Workbook

Sheet Apoio (hidden)
A1: Tipo de Joranda de Trabalho | B1: Joranda de Trabalho Mensal | C1: Dia Trabalhados no Mês | E1: Tributo | F1: Lucro Real | G1: Lucro Presumido | H1: Sem Fins Lucrativos | I1: Simples Nacional | K1: Período da semana | M1: Dia Trabalhados no Mês
A2: Escala 12x36 horas | B2: 180 | C2: 15 | E2: PIS | F2: 0.0165 | G2: 0.0065 | H2: 0 | I2: =F26 -> 0 | K2: 12x36 / Segunda a sábado | M2: 13.2188
A3: 44 horas semanais | B3: 220 | C3: 21 | E3: COFINS | F3: 0.076 | G3: 0.03 | H3: 0.01 | I3: =E26 -> 0 | K3: 12x36 / Integral | M3: 15.2188
A4: 40 horas semanais | B4: 200 | C4: 21 | E4: ISS | F4: 0.05 | G4: 0.05 | H4: 0 | I4: =G26 -> 0 | K4: 12x36 / Final de Semana | M4: 4.845
A5: 36 horas semanais | B5: 180 | C5: 25 | E5: ISS | F5: 0.03 | G5: 0.03 | H5: 0 | I5: =G26 -> 0 | K5: 44 h / segunda a sexta-feira | M5: 20.7958
A6: 30 horas semanais | B6: 150 | C6: 21 | K6: 44 h / segunda a sábado | M6: 24.7958
A7: 15 horas semanais (TQQ) | B7: 75 | C7: 12 | E7: 2 | F7: =IF(E7=1,F1,IF(E7=2,G1,IF(E7=3,H1,I1))) -> Lucro Presumido
E8: TRUE | F8: ='Dados Proponente'!C30 -> 0
F10: Folha de Pagamento | G10: Receita Bruta
E11: INSS | F11: 0.02 | G11: 0.2 | K11: 6 | L11: =IF(K11=0,"INDEFINIDO",IF(K11=1,"Brigadista",IF(K11=2,"Copeiragem",IF(K11=7,"Limpeza",IF(K11=3,"Manutenção",IF(K11=4,"Recepção",IF(K11=5,"Vigilância",))))))) -> 0 | M11: =IF(K11=0,"INDEFINIDO",IF(K11=6,"Outros",IF(K11=8,"Motorista"))) -> Outros
E12: 2 | F12: =IF(E12=0,0,IF(E12=1,F10,G10)) -> Receita Bruta
A15: ALÍQUOTAS E PARTILHA DO SIMPLES NACIONAL - RECEITAS DECORRENTES DA PRESTAÇÃO DE SERVIÇOS RELACIONADOS NO INCISO IV DO § 1º DO ART. 25 | G15: PERCENTUAIS DE REPARTIÇÃO DOS TRIBUTOS
A16: Receita - Faixas | B16: Limite Inferior | C16: Limite Superior | D16: Alíquota Nominal | E16: 6 | G16: IRPJ | H16: CSLL | I16: Cofins | J16: PIS/Pasep | K16: CPP | L16: ISS
A17: 1ª faixa | B17: 0 | C17: 180000 | D17: 0.045 | E17: 0 | G17: 0.188 | H17: 0.152 | I17: 0.1767 | J17: 0.0383 | K17: 0 | L17: 0.445
A18: 2ª faixa | B18: 180000.01 | C18: 360000 | D18: 0.09 | E18: 8100 | G18: 0.198 | H18: 0.152 | I18: 0.2055 | J18: 0.0445 | K18: 0 | L18: 0.4
A19: 3ª faixa | B19: 360000.01 | C19: 720000 | D19: 0.102 | E19: 12420 | G19: 0.208 | H19: 0.152 | I19: 0.1973 | J19: 0.0427 | K19: 0 | L19: 0.4
A20: 4ª faixa | B20: 720000.01 | C20: 1800000 | D20: 0.14 | E20: 39780 | G20: 0.178 | H20: 0.192 | I20: 0.189 | J20: 0.041 | K20: 0 | L20: 0.4
A21: 5ª faixa | B21: 1800000.01 | C21: 3600000 | D21: 0.22 | E21: 183780 | G21: 0.188 | H21: 0.192 | I21: 0.1808 | J21: 0.0392 | K21: 0 | L21: 0.4
A22: 6ª faixa | B22: 3600000.01 | C22: 4800000 | D22: 0.33 | E22: 828000 | G22: 0.535 | H22: 0.215 | I22: 0.2055 | J22: 0.0445 | K22: - | L22: 0
A24: RECEITA BRUTA DOS ÚLTIMOS 12 MESES ANTERIORES AO PERIODO DE APURAÇÃO | B24: alíquota efetiva | C24: PERCENTUAIS EFETIVOS DOS TRIBUTOS
C25: IRPJ | D25: CSLL | E25: COFINS | F25: PIS | G25: ISS
A26: ='Dados Proponente'!C31 -> 0 | B26: =IF(A26=0,0,B32) -> 0 | C26: =IF(A26<=180000,B26*G17, IF(A26<=360000,B26*G18, IF(A26<=720000,B26*G19,IF(A26<=1800000,B26*G20,IF(A26<=3600000,B26*G21,IF(A26<=4800000,B26*G22, "excluido")))))) -> 0 | D26: =IF(A26<=180000,B26*H17, IF(A26<=360000,B26*H18, IF(A26<=720000,B26*H19,IF(A26<=1800000,B26*H20,IF(A26<=3600000,B26*H21,IF(A26<=4800000,B26*H22, "excluido")))))) -> 0 | E26: =IF(A26<=180000,B26*I17, IF(A26<=360000,B26*I18, IF(A26<=720000,B26*I19,IF(A26<=1800000,B26*I20,IF(A26<=3600000,B26*I21,IF(A26<=4800000,B26*I22, "excluido")))))) -> 0 | F26: =IF(A26<=180000,B26*J17, IF(A26<=360000,B26*J18, IF(A26<=720000,B26*J19,IF(A26<=1800000,B26*J20,IF(A26<=3600000,B26*J21,IF(A26<=4800000,B26*J22, "excluido")))))) -> 0 | G26: =IF(A26<=180000,B26*L17, IF(A26<=360000,B26*L18, IF(A26<=720000,B26*L19,IF(A26<=1800000,B26*L20,IF(A26<=3600000,B26*L21,IF(A26<=4800000,B26*L22, "excluido")))))) -> 0
A28: Alíquota | B28: =IF(A26<=180000,D17, IF(A26<=360000,D18, IF(A26<=720000,D19,IF(A26<=1800000,D20,IF(A26<=3600000,D21,IF(A26<=4800000,D22, "excluido")))))) -> 0.045
A29: Resultado (=) | B29: =A26*B28 -> 0
A30: Parcela a deduzir | B30: =IF(A26<=180000,E17, IF(A26<=360000,E18, IF(A26<=720000,E19,IF(A26<=1800000,E20,IF(A26<=3600000,E21,IF(A26<=4800000,E22, "excluido")))))) -> 0
A31: Resultado - Parcela a deduzir | B31: =B29-B30 -> 0
A32: Resultado (taxa efetiva) | B32: =TRUNC(ROUND(B31/A26,4),4) -> 
A33: Resultado (taxa convertida em %) | B33: =B32*100 -> 

Sheet GESTOR
C3: ATENÇÃO GESTOR!
C5: Este arquivo é uma ferramenta de orientação no âmbito do TRT da 24ª Região
C7: Uma vez que a Planilha de Custos é obrigatória e indispensável na fase interna da licitação, após o preenchimento, ela deverá ser inserida nos autos do respectivo processo administrativo.
C9: Esta ferramenta deverá ser devidamente adaptada para futura contratação, pois balizará não somente a proposta na licitação, mas também futuras análises de repactuação, reajuste ou revisão de preços.
C11: Caso necessário, antes do preenchimento, a Seção de Compras da Coodenadoria de Material e Patrimônio poderá fornecer as instruções iniciais, tais como inclusão de postos, detalhamento ou inclusão de custos, etc. As Notas Explicativas fornecem algumas orientações.
C13: Para evitar excesso de informações, não imprima as Instruções Iniciais para os Licitantes e Gestores e Notas Esplicativa. Após a leitura e elaboração da referida planilha, o Gestor da Contratação deverá ocultar esta Aba de Aviso, clicando com o botão direito do mouse sobre aba "GESTOR" e em seguida "Ocultar".
C15: Este documento contém diversas Fórmulas, Macros e Recursos para automatizar o preenchimento. Para evitar exclusão ou alteração acidental desses recursos, todas as planilhas constantes deste arquivo estão bloqueadas com senha. Caso Necessário, o Gestor deverá entrar em contato com a Seção de Compras da Coordenadoria de Material e Patrimônio para auxilia-lo.
C17: Reforçamos que, em hipótese alguma, as Abas, Conteúdos, Linhas ou Colunas deste arquivo poderão ser excluidas. Caso necessário, o Gestão deverá ocultar o conteúde dispensável.
C19: TRIBUNAL REGIONAL DO TRABALHO DA 24ª REGIÃO
C20: Edição: Março / 2021 - Versão nº 1

Sheet LICITANTE
C3: ATENÇÃO LICITANTE!
C5: ESTA PLANILHA DE CUSTOS E FORMAÇÃO DE STA PLANILHA DE CUSTOS E FORMAÇÃO DE PREÇOS, ELABORADA EM ACORDO COM A NOVA IN 05/2017-SEGES/MP, FOI CONFIGURADA COM A FINALIDADE DE AUXILIAR O LICITANTE NO SEU PREENCHIMENTO.
C7: É DEVER E RESPONSABILIDADE EXCLUSIVA DA LICITANTE ASSEGURAR-SE DE QUE OS VALORES E CÁLCULOS INSERIDOS EM SUA PROPOSTA ESTEJAM CORRETOS.
C9: INSTRUÇÕES DE PREENCHIMENTO
C11: Insira dados apenas nas células com fundo | D11: AMARELO | E11: .
C13: Deverão atentar-se às orientações do Edital e das Notas Explicativas.
C15: As planilhas constantes neste arquivo estão bloqueadas para evitar digitação em células com fórmulas.
C17: TRIBUNAL REGIONAL DO TRABALHO DA 24ª REGIÃO
C18: Edição: Março / 2021 - Versão nº 1

Sheet Notas Explicativas
B2: Planilha Analítica de Custos e Formação de Preços
B3: NOTAS EXPLICATIVAS
B5: Módulo 1 - Composição da Remuneração | D5: Memória de cálculo | G5: Fundamento
B6: A | C6: Salário Base (1) | G6: Artigo 457 e 458 da CLT.
B7: B | C7: Adicional de Periculosidade | D7: Salário Base x 30% | G7: Súmula 132 TST. Artigo 193 a 197 da CLT. Artigo 7º, inciso XXIII da CF. NR 16 do MTE.
B8: C | C8: Adicional de Insalubridade | D8: Salário Mínimo ou Base estipulado em instrumento coletivo (2) x (10%, 20% ou 40%) | G8: Regras do instrumento coletivo da categoria, se houver. Artigo 189 a 192 da CLT (10%, 20% ou 40%). NR 15 do MTE. Súmula nº. 139 do TST.
B9: D | C9: Adicional Noturno | D9: (Salário base + adicionais periculosidade/insalubridade) ÷ 220h (conforme jornada de trabalho da categoria) x 20% x qtde. de hs noturnas). | G9: Artigo 73 da CLT e artigo 7º, inciso IX da CF. Súmula nº 60 do TST e OJ-SDI1-259 do TST.
B10: E | C10: Hora Extra Habitual (3) | D10: (Salário base + adicionais periculosidade/insalubridade/noturno) ÷ 220h (conforme jornada de trabalho da categoria) x 50% x qtde. de hs extras). | G10: Artigo 7º, inciso XVI, da CF/88. Artigo 59 da CLT. Súmulas 60 e 132 TST.
B11: F | C11: Sobreaviso | D11: Salário hora de sobreaviso (4) x Quantitativo total de horas estimadas de sobreaviso | G11: Regras do instrumento coletivo da categoria, se houver (conforme incs. III e VIII do art. 611-A da CLT, o instrumento coletivo de trabalho tem prevalência sobre a lei). Artigo 244 da CLT. Súmula n. 428 do TST.
B12: G | C12: Adicional de Feriado Trabalhado | D12: [(Salário base+adicionais previstos em lei ou CCT, se houver) ÷ 220h (conforme jornada de trabalho da categoria)] x qtde. de horas diárias (limitada a 10h, conforme Súmula 444 TST) x qtde. de feriados x PARCELA TRABALHADA(5) ÷ 12 meses) | G12: Somente se houver previsão em CCT/ACT, pois se considera compensado nos termos do art. 59-A da CLT.
B13: I | C13: Intervalo Intrajornada (6) | D13: (Salário base+adicionais previstos em lei ou CCT, se houver ÷ 220h (conforme jornada de trabalho da categoria) x 1,5 x qtde. de horas) | G13: Regras do instrumento coletivo da categoria, se houver (conforme incs. III e VIII do art. 611-A da CLT, o instrumento coletivo de trabalho tem prevalência sobre a lei). Artigo 71 da CLT. Lei 8.121/1991.
B14: (1) Salário Base: Salário mensal definido em acordo, dissídio ou convenção coletiva de trabalho no momento da publicação do edital, exceto se houver estipulação de valores mínimos de remuneração dos trabalhadores pelo Tribunal, quando houver necessidade de afastar o risco de selecionar colaboradores com capacitação inferior à necessária para a execução dos serviços, por meio de pesquisas de mercado, de dados obtidos junto a associações e sindicatos de cada categoria profissional e de informações divulgadas por outros órgãos públicos que tenham recentemente contratado o mesmo tipo de serviço. De acordo com o TCU, a fixação de remuneração mínima no edital somente é cabível, com restrições, nos casos de terceirização de mão de obra com alocação de postos de trabalho. Importante ainda que, como a planilha de custos é baseada em empregados mensalistas, consideram-se já remunerados os dias de repouso semanal no salário mensal nos termos do § 2º do art. 7º da Lei 605/1949.
B15: (2) Adicional de Insalubridade - Os percentuais definidos pelo art. 192 da CLT, segundo as classificações nos graus máximo, médio e mínimo, devem ser calculados com base no salário mínimo, salvo critério mais vantajoso estabelecido em lei ou em instrumento coletivo de trabalho (Súmula Vinculante n. 4). O direito ao recebimento do adicional somente pode ser reconhecido mediante laudo pericial que aponte estar a atividade insalubre prevista na relação oficial elaborada pelo Ministério do Trabalho, tal como definido pela NR-15 da Portaria n. 3.214 de 1978.
B16: As rubricas pertinentes ao adicional noturno, hora extra, sobreaviso, adicional de feriado trabalhado e intervalo intrajornada, não devem ser adotadas como regra na planilha, devendo sempre sua exigência estar justificada nos estudos preliminares. Como tais rubricas dependem de justificativas prévias, a análise delas será efetuada a cada caso concreto, por ocasião da aprovação das minutas de editais de que trata o parágrafo único do art. 38 da Lei n. 8.666, de 1993. Sendo assim, as informações dispostas nesta planilha somente são para fins orientadores nestes casos específicos.
B17: (3) Hora Extra Eventual - As horas extras podem ser ordinárias (habituais) ou eventuais. Se ordinárias, seu custo será aportado na planilha e integrará o valor mensal a ser pago pela prestação do serviço. Se eventuais, o Edital deverá disciplinar o pagamento em forma apartada mediante ocorrência (fato gerador) com base nos seguintes dados: previsão estimada, necessidade eventual de sua realização mediante aprovação pelo fiscal/gestor e pagamento no mês de sua ocorrência. O memorial de cálculo deverá fazer parte do custo estimado da contratação.
B18: (4) Detalhamento do custo estimado do Sobreaviso:
B19: Salário hora de sobreaviso = Salário hora normal (sem adicionais) ÷ 3.
B20: Salário hora normal = Salário ÷ 220 (conforme jornada de trabalho da categoria)
B21: (5) Adicional de Feriado Trabalhado - PARCELA TRABALHADA: A parcela trabalhada indica a proporção dos feriados que serão trabalhados e portanto remunerados com o adicional. Para a jornada de 44 horas semanais, esta parcela é 0 pois é pressuposto que os feriados não são dias de trabalho para o contratante. Já na jornada de 12x36 horas, a parcela trabalhada é de 50% que corresponde ao percentual dos trabalhadores que estarão laborando no feriado.
B22: (6) Intervalo Intrajornada: Nessa rubrica deve estar prevista a verba adicional para o empregado que trabalha normalmente no período destinado ao seu intervado para repouso/alimentação. Caso a empresa prestadora deva disponibilizar jantista/almocista, garantindo que o empregado usufrua o intervalo para repouso e alimentação, este custo deverá ser aportado no Módulo 4.5.f. Conforme nova redação dada ao art. 71 da CLT pela Lei n. 13.467/2017, o pagamento de adicional de intrajornada não possui mais natureza salarial e sim indenizatória (não é mais base de cálculo para encargos trabalhistas). Entretanto, a Lei n. 8.212, de 24 de julho de 1991, que dispõe sobre a organização da Seguridade Social e institui o Plano de Custeio, em seu artigo 28, § 9º, apresenta um rol de importâncias, parcelas e benefícios que não integram o salário de contribuição, sem contemplar o intervalo intrajornada. Desse modo, o adicional de intrajornada, embora não integre a base de cálculo para incidência dos encargos trabalhistas, integra o salário de contribuição, para fins previdenciários. A planilha não autorizará o preenchimento do item I quando já houver indicação de custo no Módulo 4.5.f. Ou seja, deve-se computar a o custo adicional para o empregado (Módulo 1.I) ou para o substituto (Módulo 4.5.f) quando houver necessidade de prestação de serviço durante o intervalo para repouso/alimentação.
B25: Submódulo 2.1 - 13º Salário e Adicional de Férias | D25: % | E25: Memória de cálculo | G25: Fundamento
B26: A | C26: 13º Salário (1) | D26: =1/12 -> 0.08333333333 | E26: ((1/12) x 100) ≅ 8,33% | G26: Art. 7º, VIII, CF/88. Decreto n. 57.155, de 3/11/1965
B27: B | C27: Adicional de Férias (2) | D27: =D26*1/3 -> 0.02777777778 | E27: ((1/3) x (1/12) x 100) ≅ 2,78% | G27: Art. 7º, XVII, CF/88;
B28: Subtotal do 13º salário e adicional de férias | D28: =SUM(D26:D27) -> 0.1111111111
B29: C | C29: Incidência dos encargos previstos no Submódulo 2.2 sobre 13º (décimo terceiro) salário | D29: =D46 -> 0.368 | E29: 20,00% + 1,5% + 1,00% + 0,20% + 2,50% + 8,00% + 3,00% + 0,60% | G29: Anexo III-A da Instrução Normativa nº 2, de 30 de abril de 2008
B30: Total do 13º salário, adicional de férias e Incidência dos encargos
B31: Estudos do CNJ – Resolução nº 98/2009
B32: (1) 13º Salário - Gratificação de Natal, instituída pela Lei nº 4.090, de 13 de julho de 1962. O percentual dessa rubrica pode ser obtido pelo cálculo: ((1/12) x 100) = 8,33%.
B33: (2) Abono de Férias - A Constituição Federal, em seu art. 7º, inciso XVII, prevê que as férias sejam pagas com adicional de, pelo menos, 1/3 (um terço) da remuneração do mês. Assim, a provisão para atender as despesas relativas ao abono de férias corresponde a: ((1/3)*(1/12) x 100) = 2,78%.
B36: Submódulo 2.2 - Encargos Previdenciários e FGTS e Outras Contribuições | D36: % | E36: Fundamento
B37: A | C37: INSS (20% ou 0% no caso de opção pela CPRB (1)) | D37: 0.2 | E37: Art. 22, Inciso I, da Lei nº 8.212/91. (3) Lei 13.161/2015 - Contribuição Previdenciária sobre a Receita Bruta (CPRB)
B38: B | C38: SESI ou SESC | D38: 0.015 | E38: Anexo II da IN RFB n. 971/09; art. 30 da Lei n° 8.036/90; art. 1°da Lei n° 8.154/90; art. 240 da Constituição Federal.
B39: C | C39: SENAI ou SENAC | D39: 0.01 | E39: Anexo II da IN RFB n. 971/09; Decreto n.º 2.318/86
B40: D | C40: INCRA | D40: 0.002 | E40: Anexo II da IN RFB n. 971/09; Lei n.º 7.787/89; DL n.º 1.146/70; Lei Complementar nº 11/71.
B41: E | C41: Salário Educação | D41: 0.025 | E41: Anexo II da IN RFB n. 971/09; art. 3°, inciso I do Decreto n° 87.043/1982; art. 15 – Lei nº 9.424/96; art. 1º § 1º - Decreto Nº 6.003/2006; art. 212 § 5º da Constituição Federal; Súmula Nº 732 do STF.
B42: F | C42: FGTS | D42: 0.08 | E42: Art. 15, Lei nº 8.036/90 e Art. 7º, III,
B43: G | C43: GIIL/RAT = RAT (1%, 2% ou 3%) x FAP (0,5 a 2,00) (2) | D43: 0.03 | E43: Anexo V do Regulamento da Previdência Social – RPS (Decreto n. 3.048/1999) e regras de enquadramento dispostas na Instrução Normativa RFB n. 971/2009 e/ou legislação superveniente. Súmula 351 do STJ.
B44: H | C44: SEBRAE | D44: 0.006 | E44: Anexo II da IN RFB n. 971/09. Art. 8º, Lei n.º 8.029/90 e Lei n.º 8154/90
B45: I | C45: PIS sobre Folha de Pagamento (3) | D45: 0 | E45: Art. 2º, I, "a", do Decreto 4.524/2002. Solução de Consulta COSIT/RFB n. 6.013/2017.
B46: Total dos encargos previdenciários e FGTS | D46: =SUM(D37:D45) -> 0.368
B47: Os valores dos encargos apresentados na planilha são calculados sobre os totais do Módulo 1 e Submódulo 2.1, mantendo o padrão da IN SG/MPDG n. 05/2017. Nos demais módulos e submódulos, há somente registro da incidência do submódulo 2.2.
B48: (1) Devido a aplicação da Lei 13.161/2015 (Desoneração da folha de pagamento), a contribuição previdenciária patronal (INSS) poderá não ser calculada no Submódulo 2.2, sendo substituída por alíquota diferenciada de acordo com a atividade, incidindo sobre o faturamento (compondo o módulo 5).
B49: (2) GILL/RAT é a sigla correspondente à Contribuição do Grau de Incidência de Incapacidade Laborativa decorrente dos Riscos Ambientais do Trabalho (o antigo Seguro de Acidente de Trabalho - SAT). A contribuição GILL/RAT é apurada por meio de um indicador criado pela Receita Federal: o RAT Ajustado. Sendo assim, em regra, considera-se para fins de definição da planilha modelo que GILL/RAT = SAT = RAT Ajustado. O cálculo do RAT ajustado é feito mediante aplicação da fórmula: RAT ajustado = RAT x FAP. A aplicação mínima ou máxima do FAP (0,5 a 2,00) sobre as alíquotas do RAT (1% a 3%) levará o percentual ajustado do RAT a uma variação entre 0,5% a 6%. A licitante deve preencher o item G do Submódulo 2.2 das planilhas analíticas de custos e formação de preços com o valor de seu RAT ajustado comprovando o percentual indicado no momento da apresentação da proposta na forma prescrita no edital e nestas notas explicativas.
B50: - RAT (Riscos Ambientais do Trabalho) contém as alíquotas de 1%, 2% ou 3%, apurada com base na atividade preponderante da empresa (CNAE), deverá ser esclarecida e comprovada quando solicitado pelo pregoeiro, conforme Anexo V do Regulamento da Previdência Social – RPS (Decreto n. 3.048/1999) e regras de enquadramento dispostas na Instrução Normativa RFB n. 971/2009 e/ou legislação superveniente.
B51: - FAP (Fator Acidentário de Prevenção) multiplicador variável num intervalo de 0,5 a 2,00 calculado anualmente pelo INSS considerando o número de acidentes do trabalho e doenças profissionais de cada empresa (Decreto nº 6.957/2009). Essa alíquota deverá ser comprovada mediante a apresentação do multiplicador FAP (FapWeb) vigente no momento da contratação, cujo valor é obtido no site da previdência social por meio de acesso individual da proponente.
B52: (3) ENTIDADE SEM FINS LUCRATIVOS: Para essas organizações, não há recolhimento de PIS e COFINS sobre as receitas referentes às atividades próprias. No que diz respeito ao PIS há recolhimento de 1% sobre a folha de salários, devendo esta alíquota ser incluída no item I do Submódulo 2.2. Nas planilhas de custos, deverão ser reexibidas as linhas correspondentes para visualização do total do Submódulo 2.2. Em relação à Cofins, caso a entidade auferir outras receitas que não seja resultado da atividade própria sobre este valor terá de calcular 7,6%. Esta receita deve ser tributada com base no sistema não cumulativo da contribuição (Lei nº 10.833/2003). Assim, uma associação sem Fins Lucrativos terá de apurar: 1,65% - a título de PIS-Sobre folha; e 7,6% de Cofins não cumulativo, sobre as receitas não derivadas de atividades próprias da associação. Isto porque as atividades próprias gozam de isenção. A linha correspondente ao campo “I – PIS sobre Folha de Pagamento" deverá ser reexibida nas planilhas analíticas (abas "P1", "P2", etc), quando do preenchimento da planilha, se for o caso.
B55: Submódulo 2.3 - Benefícios Mensais e Diários (1) | E55: Fundamento
B56: A | C56: Vale-Transporte | E56: Artigo 4º, § único, da Lei nº 7.418/85 e art. 9º do Decreto nº 95.247/87.
B57: B | C57: Auxílio-Alimentação | E57: Artigo 458, §§ 2º e 3º, da CLT, Lei nº 6.321/76, Decreto nº 5/91 e CCT.
B58: C | C58: Assistência Médica | E58: Artigo 458, inciso IV da CLT e CCT
B59: D | C59: Assistência Odontológica | E59: Artigo 458, inciso IV da CLT e CCT
B60: (1) Deve ser observado o instrumento coletivo para a fixação do percentual de desconto do empregado na hipótese do auxílio-alimentação e vale-transporte. No caso de auxílio-alimentação, deve ser exigido o comprovante de inscrição no Programa de Alimentação do Trabalhador - PAT. A OJ na Seção de Dissídios Individuais I (SDI 1) n. 133 reza que a alimentação fornecida via PAT não integra o salário para nenhum efeito legal.
B61: Não serão autorizadas, conforme orientação constante do Ofício nº 0443427 – SG constante no Processo n. 013346/2018 encaminhado pelo Conselho Nacional de Justiça, a cotação de valores na Planilha de Custos decorrentes de cláusulas de instrumentos coletivos que disponham: 1. Participação dos trabalhadores nos lucros ou resultados da empresa contratada; 2. Matéria não trabalhista, como por exemplo, o auxílio funeral ou seguro de vida; 3. Direitos não previstos em lei, como por exemplo, valores ou índices obrigatórios de encargos sociais ou previdenciários; 4. Preços para os insumos relacionados ao exercício da atividade; 5. Obrigações e direitos que somente se aplicam aos contratos com Administração ou que não são de concessão obrigatória a todos trabalhadores abrangidos pelo instrumento coletivo.
B62: Ainda pertinente à ultima vedação, não pode ser admitido, com relação à assistência médica e odontológica, cláusulas de instrumentos coletivos que dividam as categorias profissionais em duas espécies diferentes de trabalhadores, sem critério razoável de discriminação: os profissionais “terceirizados” e os “não terceirizados”. A CCT não pode estabelecer obrigações diretas a terceiros, que dela não fazem parte, uma vez que a Administração Pública não se sujeita a obrigações a ela imposta por pactos dos quais não participou diretamente.
B63: Caso o intrumento coletivo regente de cada categoria profissional não infrija as regras acima, os campos referentes aos benefícios como assitência médica e outros deverão ser reexibidos para o adequado preenchimento.
B65: Módulo 3 - Provisão para Rescisão | D65: % | E65: Memória de cálculo | G65: Fundamento
B66: A | C66: Aviso Prévio Indenizado (1) | D66: 0.004166666667 | E66: ((0,05 x (1/12) x 100) ≅ 0,42% | G66: Art. 7º, XXI, CF/88. Art. 477, 487 e 491 da CLT. Lei n. 12.506/2011.
B67: B | C67: Incidência do FGTS sobre o Aviso Prévio Indenizado | D67: 0.0003333333333 | E67: ((0,08 x 0,0042) x 100) ≅ 0,03% | G67: Súmula 305 TST.
B68: C | C68: Multa do FGTS sobre o Aviso Prévio Indenizado (2) | D68: 0.0344 | E68: 0,08 x 0,4 x 0,9 x [1 + 1/12 + 1/12 + (1/3 x 1/12)] ≅ 3,44% | G68: Art. 18 da Lei 8.036/90. Art. 12 da Lei 13.932/2019.
B69: D | C69: Aviso Prévio Trabalhado (3) | D69: 0.01244444444 | E69: {[(7/30) + (7/30 x 0,1 x 8/12)] / 20} x 100) ≅ 1,24% | G69: Art. 7º, XXI, CF/88, 477,487 e 491 CLT. Acórdãos n. 1904/2007-TCU-Plenário e n. 3006/2010-TCU-Plenário
B70: D.1 | C70: Aviso Prévio Trabalhado após 20 meses de vigência (Prorrogação) | D70: 0.001944444444 | E70: {[(7/30 x 0,1) + (7/30 x 0,1 x 8/12)] / 20} x 100) ≅ 0,194% | G70: Lei 12.506/2011. Acórdão n. 1186/2017-TCU-Plenário
B71: E | C71: Incidência do submódulo 2.2 sobre o Aviso Prévio trabalhado | D71: 0.004579555556 | E71: ((0,3680 x 0,0124) x 100) ≅ 0,46% | G71: Acórdãos n. 1904/2007-TCU-Plenário e n. 3006/2010-TCU-Plenário
B72: E.1 | C72: Incidência do submódulo 2.2 sobre o Aviso Prévio Trabalhado após 20 meses de vigência (Prorrogação) | D72: 0.0007155555556 | E72: ((0,3680 x 0,00194) x 100) ≅ 0,07% | G72: Lei 12.506/2011. Acórdão n. 1186/2017-TCU-Plenário
B73: F | C73: Multa do FGTS sobre Aviso Prévio Trabalhado (4) | D73: 0.0003982222222 | E73: ((0,0124 x 0,08) x 0,4 x 100) ≅ 0,040% | G73: Art. 12 da Lei 13.932/2019. Acórdãos n. 1904/2007-TCU-Plenário e n. 3006/2010-TCU-Plenário
B74: F.1 | C74: Incidência do submódulo 2.2 sobre o Aviso Prévio Trabalhado após 20 meses de vigência (Prorrogação) | D74: 6.222222222e-05 | E74: ((0,00194 x 0,08) x 0,4 x 100) ≅ 0,006% | G74: Lei 12.506/2011. Acórdão n. 1186/2017-TCU-Plenário
B75: Total da provisão para rescisão - 20 primeiros meses | D75: 0.05632222222 | E75: A+B+C+D+E+F
B76: Total da provisão para rescisão - após a primeira prorrogação | D76: 0.04162222222 | E76: A+B+C+D.1+E.1+F.1
B77: (1) Aviso Prévio Indenizado - Trata-se de valor devido ao empregado no caso de o empregador rescindir o contrato sem justo motivo e sem lhe conceder aviso prévio, conforme disposto no § 1º do art. 487 da CLT. De acordo com levantamento efetuado em diversos contratos, cerca de 5% do pessoal é demitido pelo empregador, antes do término do contrato de trabalho. Cálculo ((1/12)x 0,05) x 100 ≅ 0,42%.
B78: (2) Multa do FGTS sobre o Aviso Prévio Indenizado - rescisão sem justa causa: Esse item corresponde ao valor da multa do FGTS (40%) que incide sobre o saldo dos depósitos efetuados na conta vinculada ao FGTS do trabalhador. Considera-se que 10% dos empregados pedem contas, portanto, essa penalidade recai sobre os 90% remanescentes. Logo o pagamento da multa para os valores depositados relativos a salários, férias e 13º salário corresponde a: 0,08 x 0,4 x 0,9 x [1 + 1/12 + 1/12 + (1/3 * 1/12)] ≅ 3,44%.
B79: (3) Aviso Prévio Trabalhado - redução de 7 dias ou de 2h por dia. Percentual relativo aos primeiros doze meses de vigência (7dias de ausências / 30 dias) x 100 = 23,33% para 30 dias de aviso prévio no primeiro ano. Após o primeiro ano, o percentual corresponderá a 2,33% a cada ano uma vez que a Lei 12.506/2011 dispõe o acréscimo de 3 dias de aviso prévio ou 0,7 dias de ausências por ano de serviço prestado até o máximo de 60 dias. Ou seja, um décimo do valor máximo admitido pelo Acórdão 3006/2010-TCU-Plenário, conforme ditames da Lei 12.506/2011 e Acórdão 1.186/2017 - TCU-Plenário.
B80: (4) Multa do FGTS do aviso prévio trabalhado: o custo do aviso prévio trabalhado é acrescido da multa do FGTS (40%) que incide sobre a alíquota do FGTS (8%) aplicada sobre o custo de referência para o aviso trabalhado.
B81: (5) O art. 12 da Lei n. 13.932/2019 extiguiu a cobraça da contribuição de 10% devida pelos empregadores em caso de despedida sem justa causa (art. 1º da Lei Complementar 110/2001). Sendo assim, o adicional que era previsto nos itens "C" e "F" com o título "Multa do FGTS e contribuição social sobre Aviso Prévio [...]" passou a ser denominado somente de "Multa do FGTS sobre Aviso Prévio [..]"
B82: OBS: Os valores das rubricas Aviso Prévio Trabalhado, Incidência do submódulo 2.2 sobre o Aviso Prévio Trabalhado e Multa do FGTS do Aviso Prévio Trabalhado serão reduzidos a partir da primeira prorrogação de vigência do contrato conforme itens D.1, D.2 e D.3 da memória de cálculo nos termos do Acórdão 1.186/2017 - TCU-Plenário.
B84: Módulo 4 - Custo de Reposição do Profissional Ausente | D84: % | E84: Memória de cálculo | G84: Fundamento
B85: A | C85: Substituição durante férias (1) | D85: 0 | E85: ((1/12) x 100) ≅ 8,33% | G85: Art. 129 e 130 CLT.
B86: B | C86: Substituição durante ausência por doença (2) | D86: =5/30/12 -> 0.01388888889 | E86: ((5/30) /12) x 100) ≅ 1,39% | G86: Art.131 , inciso III, da CLT. Art. 476 da CLT, art. 6º, §1º, alínea "f", da Lei n. 605, de 1949, e art. 12, alínea "f", do Decreto n. 27.048, de 1949.
B87: C | C87: Substituição durante licença maternidade (3) | D87: =0.02353*0.1111*0.5 -> 0.0013070915 | E87: 0,1111 x 0,02353 x 0,5 x100 ≅ 0,13% | G87: Art. 7º inc. XVIII, CF, Lei 8.213/91, art. 72 e Lei 11770/2008. Lei n. 13.527/2016.
B88: D | C88: Substituição durante licença paternidade (4) | D88: =5/30/12*0.015 -> 0.0002083333333 | E88: (((5/30) /12) x 0,015 x 100) ≅ 0,02% | G88: Art. 7º, inciso XIX da CF. §1º do artigo 10 do ADCT. Lei n. 13.527/2016
B89: E | C89: Substituição durante ausências legais (5) | D89: =1/30/12 -> 0.002777777778 | E89: (((1/30) /12) x 100) ≅ 0,28% | G89: Art. 82 e 473 da CLT
B90: F | C90: Substituição durante ausência por acidente de trabalho (6) | D90: =1/12*0.0078 -> 0.00065 | E90: (((30/30) /12) x 0,0078 x 100) ≅ 0,07% | G90: Art. 27 do Dec. 89312/84, Art. 131 da CLT e MP. 664/2014
B91: G | C91: Substituição durante intervalo de repouso e alimentação(7) | D91: 0.06818181818 | E91: ((1/220) x 1 x 15) x 100 ≅ 6,82% | F91: 220 | G91: Total de horas na jornada de trabalho mensal
F92: 15 | G92: Total de dias estimados de substituição mensal
F93: 1 | G93: Total de horas para repouso durante a jornada
B94: H | C94: Outros (especificar) | D94: 0
B95: Subtotal (sem item "g", por padrão) | D95: =SUM(D85:D90) -> 0.0188320915 | E95: ="obs: Com o item 'g' o Subtotal ≅ "&TEXT(SUM(D85:D93),"0,00%") -> obs: Com o item 'g' o Subtotal ≅ 8,70%
B96: I | C96: Proporcional de Férias, 1/3 e 13º sobre custo de reposição (exceto licença maternidade) (8) | D96: =(D95-D87)*(1/12+1/12+(1/12*1/3)) -> 0.003407638889 | E96: ="("&TEXT(D95,"0,0000")&" - "&TEXT(D88,"0,0000")&") x [1/12+1/12+(1/12 x 1/3)] x 100 ≅ "&TEXT(D96,"0,00%") -> (0,0188 - 0,0002) x [1/12+1/12+(1/12 x 1/3)] x 100 ≅ 0,34%
B97: Subtotal antes de incidência do Submódulo 2.2 (sem item "g", por padrão) | D97: =SUM(D95:D96) -> 0.02223973039 | E97: ="obs: Com o item 'g' o Subtotal ≅ "&TEXT((SUM(D85:D93)-D87)*(1+(1/12+1/12+(1/12*1/3))),"0,00%") -> obs: Com o item 'g' o Subtotal ≅ 10,24%
B98: J | C98: Incidência do submódulo 2.2 sobre custo de reposição | D98: =D46*D97 -> 0.008184220783 | E98: ="(0,3680 x "&TEXT(D95,"0,0000")&") x 100 ≅ "&TEXT(D98,"0,00%") -> (0,3680 x 0,0188) x 100 ≅ 0,82%
B99: Total do custo de reposição do profissional ausente (sem item "g", por padrão) | D99: =SUM(D97:D98) -> 0.03042395117 | E99: ="obs: Com o item 'f' o Subtotal ≅ "&TEXT((SUM(D85:D93)-D87)*(1+(1/12+1/12+(1/12*1/3)))*(1+D46),"0,00%") -> obs: Com o item 'f' o Subtotal ≅ 14,00%
B100: (1) Caso o contrato preveja substituição do empregado em férias, para que o posto não fique descoberto a empresa deverá repor o profissional ausente por meio de profissional subtituto ao qual deverá retribuir com a mesma remuneração do titular. A estimativa do percentual dessa rubrica a ser aplicado sobre a remuneração mensal do titular pode ser obtido pelo cálculo: (1/12) x 100 = 8,33%.
B101: (2) Estimativa de 5 (cinco) dias de licença por ano.
B102: (3) Custo Estimado com licença maternidade = Custo Efetivo de Afastamento Maternidade x Número Estimado de Ocorrências x Rateio do Custo durante um ano
C103: Custo Efetivo de Afastamento Maternidade: Durante a licença, o salário maternidade e a parcela do décimo terceiro salário correspondente ao período da licença é custeado pelo INSS (Art. 86 da IN RFB 971/2009). Cabe à empresa a provisão relativa a férias (1/12) e adicional de férias (1/3 x 1/12) e as contribuições previdenciárias sobre o período de licença conforme entendimento do próprio STJ (REsp 1230957/RS, Rel. Ministro MAURO CAMPBELL MARQUES, PRIMEIRA SEÇÃO, julgado em 26/02/2014, DJe 18/03/2014). A remuneração do substituto, acrescida de todos os encargos, é justamente a remuneração da trabalhadora substituída no período (vide Módulo 1 e Submódulo 2.2). Portanto o custo do afastamento é dado pela seguinte fórmula aplicada sobre a remuneração: [(1/12) + (1/3 x 1/12)] x 100 ≅ 11,11%
C104: Número Estimado de Ocorrências: Conforme Anuário Estatístico da RAIS, elaborado pelo Ministério do Trabalho, as mulheres representaram cerca de 42,25% ≅ do total de empregos no Mato Grosso do Sul em 2019 (280.863 do total de 664.746). Já o Anuário Estatístico da Previdência Social dispõe que foi concedida a quantidade de 15.646 salários-maternidade no âmbito do Mato Grosso do Sul em 2019. Essa quantidade representa cerca de 5,57% ≅ do total de mulheres empregadas no Mato Grosso do Sul no mesmo período. Portanto, a estimativa de uma determinada empregada usurfruir 6 (seis) meses de licença a cada ano de execução contratual é de 0,4225 x 0,0557 x 100 ≅ 2,35% de empregadas afastadas.
C105: Rateio do Custo durante Vigência Contratual: Divisão proporcional do custo de 6 (seis) meses de licença por ano (base do % de ocorrências): (6 meses de licença) ÷ (12 meses) x 100 = 50%
B106: Clique aqui para consultar o Anuário RAIS do Ministério do Trabalho | D106: Selecione "Empregos em 31/12", depois "Por Área Geográfica e Sexo" e depois os atributos "Ano igual a 2019"; "Região Natural igual a Centro-Oeste"; "UF igual a 53 - Mato Grosso do Sul".
B107: Clique aqui para consultar o Anuário Estatístico da Previdência Social | D107: Clicar em 2019: "Tabelas HTML". No arquivo que abrir, clique na pasta "AEPS 2019 - SECAO I - Benefícios - HTML", depois em "Concedidos - HTML", depois em "HTML", depois em "18C4_01.HTML"
B108: (4) Estimativa de 1,5% (um inteiro e cinco décimos por cento) dos empregados usufruindo 5 (cinco) dias da licença por ano.
B109: (5) Estimativa de 1 (uma) ausência por ano.
B110: (6) Estimativa de 1 (uma) licença de 30 (trinta) dias por ano para 0,78% (setenta e oito décimos por cento) dos empregados.
B111: (7) O valor desta substituição será 0 (zero) por definição. Caso necessário para a contratação, esse valor deverá ser devidamente aportado e adaptado a situação contratual. A planilha não autorizará o preenchimento do item f quando já houver indicação de custo do Módulo 1.f - Intervalo Intrajornada. Ou seja, deve-se computar o custo adicional para o empregado (Módulo 1, item I) ou para o substituto (Submódulo 4.5, item f) quando houver necessidade de prestação de serviço durante o intervalo para repouso/alimentação.
B112: (8) A cada substituição, o empregado substituto faz jus além da remuneração, às férias proporcionais com acréscimo de um terço e 13º salário proporcional ao período trabalhado durante a ausência do titular. Essa realidade já se amolda à substituição por meio de contrato de trabalho intermitente intituído pela Lei n. 13.467/2017 (reforma trabalhista). A diferença da utilização deste contrato de trabalho para os demais é que o pagamento desses encargos trabalhistas se efetivam imediatamente após completado o serviço e não após os respectivos períodos concessivos. Deve-se atentar que, por já possuir férias proporcionais com acréscimo de um terço e não haver 13º em sua composiçã. , o percentual relativo à licença maternidade é retirado do cálculo.
B114: Módulo 5 - Insumos Diversos | E114: Fundamento
B115: A | C115: Uniformes | E115: Art. 456-A da CLT
B116: B | C116: Outros materiais não depreciáveis | E116: De acordo com a memória de cálculo específica com base na justificativa dos estudos preliminares.
B117: C | C117: Materiais depreciáveis (1)
B118: (1) Para encontrar as taxas de depreciação, recomenda-se a utilização da Macrofunção 02.03.30 do SIAFI para se obter estimativas de vida útil e do valor residual dos bens depreciáveis. Poderão ser utilizadas outras taxas, justificadamente, como as taxas de depreciação dispostas no Anexo III da IN RFB n. 1.700/2017.
B120: Módulo 6 - Custos Indiretos e Tributos | D120: % | E120: Memória de cálculo
B121: A | C121: Custos Indiretos (Despesas Opercionais e Adm.)(1) | D121: 0.03 | E121: (Módudo1 + Módulo2 + Módulo3 + Módulo4) x 5%
B122: B | C122: Lucro(1) | D122: 0.0679 | E122: (Módudo1 + Módulo2 + Módulo3 + Módulo4 + Custos indiretos) x 10%
B123: C | C123: Tributos (2) | D123: =D124+D127+D128 -> 0.0925 | E123: C% (em percentual) = C1 + C2 + C3 + C4
B124: C.1 | C124: Tributos Federais | D124: =D125+D126 -> 0.0425 | E124: C R$ (em reais) = P1 - P0
C125: PIS | D125: 0.0065
C126: COFINS | D126: 0.036 | E126: P0 = Módudo 1 + Módulo 2 + Módulo 3 + Módulo 4 + Módulo 5A + Módulo 5B (em reais)
B127: C.2 | C127: Tributos Municipais (ISS) | D127: 0.05 | E127: P1 = P0 / (1 - C%)
B128: C.3 | C128: Outros tributos (especificar) - ex: (CPRB,(3), se for o caso) | D128: 0
B129: (1) O presente modelo utiliza o percentual máximo de 3,00% (três por cento) para alíquota de custos indiretos e de 6,79% para margem de lucro. O(s) servidor(es) responsáveis pelo preenchimento da Planilha nº 1 (fase de planejamento) poderão sugerir o estabelecimento de outros índices máximos com base em pesquisa em contratos semelhantes no âmbito do Mato Grosso do Sul ou de outra unidade da federação pretendida e fazer uma média aritmética. A justificativa para alteração deverá estar devidamente fundamentada nos autos da contratação. Por fim, conforme Acórdão TCU n. 408/2019, respeitado o resultado da soma dos limites máximos definidos (3,00% + 6,79% = 9,79%), as licitantes poderão cotar percentuais para os custos indiretos e margem de lucro fora dos patamares definidos no edital, não ultrapassando o limite de 9,79%, conforme Acórdão n. 408/2019 – TCU - Plenário.
B130: (2) Os tributos (ISS, COFINS e PIS) foram definidos utilizando o regime de tributação de Lucro Presumido (Incidência cumulativa de PIS/COFINS). A licitante deve elaborar sua proposta e, por conseguinte, sua planilha com base no regime de tributação ao qual estará submetida durante a execução do contrato conforme Acórdão TCU-Plenário n. 2.647/2009 (3,60% para COFINS e 0,65% para o PIS).
C131: 2.1 Incidência não-cumulativa: Para a definição do percentual máximo de BDI, para o regime de incidência não-cumulativa, a empresa deve cotar os percentuais que representem a média das aliquotas efetivamente recolhidas nos últimos doze meses.
C132: 2.2 Comprovação: Como comprovante a licitante deverá apresentar declaração pública de que os percentuais do PIS e do COFINS cotados correspondem à média dos recolhimentos dos últimos doze meses, apurada com base nos dados da Escrituração Fiscal Digital da Contribuição para o PIS/PASEP e para a COFINS (EFD-Contribuições), cujos respectivos registros deverão ser remetidos juntamente com a proposta e as planilhas. Caso a licitante tenha recolhido tributos pelo regime de incidência não-cumulativa em apenas alguns meses do período que deve ser considerado para o cálculo do percentual médio efetivo (12 meses anteriores à data da proposta), poderá apresentar o cálculo considerando apenas os meses em que houve recolhimento.
B133: (3) Devido a aplicação da Lei 13.161/2015 (Desoneração da folha de pagamento), a contribuição previdenciária patronal (INSS) poderá não ser calculada no Submódulo 2.2, sendo substituída pela contribuição previdenciária sobre a receita bruta (CPRB) por meio de alíquota diferenciada de acordo com a atividade, incidindo sobre o faturamento (compondo o módulo 5).

Sheet Dados Contratação
B2: 1 - DADOS DA CONTRATAÇÃO
B4: Quadro 1.1 - Discriminação dos Serviços (dados referentes à contratação)
B5: Nº do Processo Administrativo: | D5: Licitação nº: | E5: Data: | G5: Horário: | J5: Vigência da Contratação: | L5: A Vigência é Prorrogável? | N5: Prazo Máximo de Vigência:
B6: 15940/2022 | J6: 12 | K6: meses | L6: SIM | N6: 60 | O6: meses
B8: Quadro 1.2 - Identificação do Serviço
B9: Objeto da Contratação:
B10: Prestação dos serviços de apoio Administrativo aos Gestores e Fiscais de Contratos
B11: Tipo de Serviço | E11: Unidade de Medida: | I11: Quantidade Mínima a Contratar: | M11: Local da Prestação dos Serviços:
B12: Apoio Administrativo aos Gestores e Fiscais de Contratos | E12: Postos de Trabalho | I12: =H41&" "&E12 -> 2 Postos de Trabalho | M12: CAMPO GRANDE/MS
B13: Categoria Profissional
B16: Quadro 1.3 - Detalhamento do Objeto
B17: DESCRIÇÃO E QUANTIFICAÇÃO DOS POSTOS DE TRABALHO | K17: COMPOSIÇÃO DA REMUNERAÇÃO
B18: Item | C18: Posto de Trabalho | D18: Local do Posto de Trabalho | E18: Tipo de Jornada de Trabalho | F18: Período | G18: Jornada de Trabalho Mensal | H18: Quantidade Mínima de Postos | I18: Ocupantes por Posto | J18: Quantidade de Profissionais | K18: Adicional de Periculosidade | L18: Adicional de Insalubridade | M18: Adicional Noturno | N18: Adicional de Hora Extra | O18: Intervalo Intrajornada
B19: 1 | C19: =IF(Apoio!$K$11=3,"Mestre de Manutenção de Prédios","Encarregado") -> Encarregado | D19: Prédio-Sede do TRT/24ª Região | E19: 44 horas semanais | F19: Diurno | G19: =VLOOKUP(E19,Apoio!$A:$B,2,FALSE) -> 220 | H19: 0 | I19: 0 | J19: =H19*I19 -> 0 | K19: Não | L19: Não | M19: Não | N19: Não | O19: Não
B20: =B19+1 -> 2 | C20: =IF(Apoio!$K$11=3,"Mestre de Manutenção de Prédios","Encarregado") -> Encarregado | D20: Fórum Trabalhista de Campo Grande | E20: 44 horas semanais | F20: Diurno | G20: =VLOOKUP(E20,Apoio!$A:$B,2,FALSE) -> 220 | H20: 0 | I20: 0 | J20: =H20*I20 -> 0 | K20: Não | L20: Não | M20: Não | N20: Não | O20: Não
B21: 1 | C21: =IF(Apoio!$K$11=3,"Técnico Eletrônico","Contador") -> Contador | D21: Prédio-Sede do TRT/24ª Região | E21: 44 horas semanais | F21: Diurno | G21: =VLOOKUP(E21,Apoio!$A:$B,2,FALSE) -> 220 | H21: 2 | I21: 1 | J21: 2 | K21: Não | L21: Não | M21: Não | N21: Não | O21: Não
B22: 4 | C22: =IF(Apoio!$K$11=3,"Técnico Eletrônico","Profissional") -> Profissional | D22: =IF(Apoio!$K$11=3,"Prédio-Sede do TRT/24ª Região","Fórum Trabalhista de Campo Grande") -> Fórum Trabalhista de Campo Grande | E22: 44 horas semanais | F22: Diurno | G22: =VLOOKUP(E22,Apoio!$A:$B,2,FALSE) -> 220 | H22: 0 | I22: 0 | J22: 0 | K22: Não | L22: Não | M22: Não | N22: Não | O22: Não
B23: 5 | C23: =IF(Apoio!$K$11=3,"Eletricista","Profissional") -> Profissional | D23: =IF(Apoio!$K$11=3,"Prédio-Sede do TRT/24ª Região","Fórum Trabalhista de Dourados") -> Fórum Trabalhista de Dourados | E23: 44 horas semanais | F23: Diurno | G23: =VLOOKUP(E23,Apoio!$A:$B,2,FALSE) -> 220 | H23: 0 | I23: 0 | J23: 0 | K23: Não | L23: Não | M23: Não | N23: Não | O23: Não
B24: 6 | C24: =IF(Apoio!$K$11=3,"Oficial de Manutenção","Profissional") -> Profissional | D24: =IF(Apoio!$K$11=3,"Prédio-Sede do TRT/24ª Região","Fórum Trabalhista de Três Lagoas") -> Fórum Trabalhista de Três Lagoas | E24: 44 horas semanais | F24: Diurno | G24: =VLOOKUP(E24,Apoio!$A:$B,2,FALSE) -> 220 | H24: 0 | I24: 0 | J24: 0 | K24: Não | L24: Não | M24: Não | N24: Não | O24: Não
B25: 7 | C25: =IF(Apoio!$K$11=3,"Oficial de Manutenção 2","Profissional") -> Profissional | D25: =IF(Apoio!$K$11=3,"Prédio-Sede do TRT/24ª Região","Vara do Trabalho de Amambaí") -> Vara do Trabalho de Amambaí | E25: 44 horas semanais | F25: Diurno | G25: =VLOOKUP(E25,Apoio!$A:$B,2,FALSE) -> 220 | H25: 0 | I25: 0 | J25: 0 | K25: Não | L25: Não | M25: Não | N25: Não | O25: Não
B26: 8 | C26: =IF(Apoio!$K$11=3,"Encarregado de Manutenção","Profissional") -> Profissional | D26: =IF(Apoio!$K$11=3,"Fórum Trabalhista de Campo Grande","Vara do Trabalho de Aquidauana") -> Vara do Trabalho de Aquidauana | E26: 44 horas semanais | F26: Diurno | G26: =VLOOKUP(E26,Apoio!$A:$B,2,FALSE) -> 220 | H26: 0 | I26: 0 | J26: 0 | K26: Não | L26: Não | M26: Não | N26: Não | O26: Não
B27: 9 | C27: =IF(Apoio!$K$11=3,"Eletricista","Profissional") -> Profissional | D27: =IF(Apoio!$K$11=3,"Fórum Trabalhista de Campo Grande","Vara do Trabalho de Bataguassu") -> Vara do Trabalho de Bataguassu | E27: 44 horas semanais | F27: Diurno | G27: =VLOOKUP(E27,Apoio!$A:$B,2,FALSE) -> 220 | H27: 0 | I27: 0 | J27: 0 | K27: Não | L27: Não | M27: Não | N27: Não | O27: Não
B28: 10 | C28: =IF(Apoio!$K$11=3,"Oficial de Manutenção","Profissional") -> Profissional | D28: =IF(Apoio!$K$11=3,"Fórum Trabalhista de Campo Grande","Posto Avançado de Cassilândia") -> Posto Avançado de Cassilândia | E28: 44 horas semanais | F28: Diurno | G28: =VLOOKUP(E28,Apoio!$A:$B,2,FALSE) -> 220 | H28: 0 | I28: 0 | J28: 0 | K28: Não | L28: Não | M28: Não | N28: Não | O28: Não
B29: 11 | C29: Profissional | D29: Vara do Trabalho de Corumbá | E29: 44 horas semanais | F29: Diurno | G29: =VLOOKUP(E29,Apoio!$A:$B,2,FALSE) -> 220 | H29: 0 | I29: 0 | J29: 0 | K29: Não | L29: Não | M29: Não | N29: Não | O29: Não
B30: 12 | C30: Profissional | D30: Vara do Trabalho de Coxim | E30: 44 horas semanais | F30: Diurno | G30: =VLOOKUP(E30,Apoio!$A:$B,2,FALSE) -> 220 | H30: 0 | I30: 0 | J30: 0 | K30: Não | L30: Não | M30: Não | N30: Não | O30: Não
B31: 13 | C31: Profissional | D31: Vara do Trabalho de Fátima do Sul | E31: 44 horas semanais | F31: Diurno | G31: =VLOOKUP(E31,Apoio!$A:$B,2,FALSE) -> 220 | H31: 0 | I31: 0 | J31: 0 | K31: Não | L31: Não | M31: Não | N31: Não | O31: Não
B32: 14 | C32: Profissional | D32: Vara do Trabalho de Jardim | E32: 44 horas semanais | F32: Diurno | G32: =VLOOKUP(E32,Apoio!$A:$B,2,FALSE) -> 220 | H32: 0 | I32: 0 | J32: 0 | K32: Não | L32: Não | M32: Não | N32: Não | O32: Não
B33: 15 | C33: Profissional | D33: Vara do Trabalho de Mundo Novo | E33: 44 horas semanais | F33: Diurno | G33: =VLOOKUP(E33,Apoio!$A:$B,2,FALSE) -> 220 | H33: 0 | I33: 0 | J33: 0 | K33: Não | L33: Não | M33: Não | N33: Não | O33: Não
B34: 16 | C34: Profissional | D34: Vara do Trabalho de Naviraí | E34: 44 horas semanais | F34: Diurno | G34: =VLOOKUP(E34,Apoio!$A:$B,2,FALSE) -> 220 | H34: 0 | I34: 0 | J34: 0 | K34: Não | L34: Não | M34: Não | N34: Não | O34: Não
B35: 17 | C35: Profissional | D35: Vara do Trabalho de Nova Andradina | E35: 44 horas semanais | F35: Diurno | G35: =VLOOKUP(E35,Apoio!$A:$B,2,FALSE) -> 220 | H35: 0 | I35: 0 | J35: 0 | K35: Não | L35: Não | M35: Não | N35: Não | O35: Não
B36: 18 | C36: Profissional | D36: Vara do Trabalho de Paranaíba | E36: 44 horas semanais | F36: Diurno | G36: =VLOOKUP(E36,Apoio!$A:$B,2,FALSE) -> 220 | H36: 0 | I36: 0 | J36: 0 | K36: Não | L36: Não | M36: Não | N36: Não | O36: Não
B37: 19 | C37: Profissional | D37: Vara do Trabalho de Ponta Porã | E37: 44 horas semanais | F37: Diurno | G37: =VLOOKUP(E37,Apoio!$A:$B,2,FALSE) -> 220 | H37: 0 | I37: 0 | J37: 0 | K37: Não | L37: Não | M37: Não | N37: Não | O37: Não
B38: 20 | C38: Profissional | D38: Vara do Trabalho de Rio Brilhante | E38: 44 horas semanais | F38: Diurno | G38: =VLOOKUP(E38,Apoio!$A:$B,2,FALSE) -> 220 | H38: 0 | I38: 0 | J38: 0 | K38: Não | L38: Não | M38: Não | N38: Não | O38: Não
B39: 21 | C39: Profissional | D39: Vara do Trabalho de São Gabriel do Oeste | E39: 44 horas semanais | F39: Diurno | G39: =VLOOKUP(E39,Apoio!$A:$B,2,FALSE) -> 220 | H39: 0 | I39: 0 | J39: 0 | K39: Não | L39: Não | M39: Não | N39: Não | O39: Não
B40: 22 | C40: Profissional | D40: Vara do Trabalho de Chapadão do Sul | E40: 44 horas semanais | F40: Diurno | G40: =VLOOKUP(E40,Apoio!$A:$B,2,FALSE) -> 220 | H40: 0 | I40: 0 | J40: 0 | K40: Não | L40: Não | M40: Não | N40: Não | O40: Não
B41: TOTAL | H41: =SUM(H19:H40) -> 2 | I41: n/a | J41: =SUM(J19:J40) -> 2

Sheet Dados Proponente
B2: 2 - DADOS DA PROPONENTE
B4: Quadro 2.1 - Dados da Proponente
B5: Razão Social: | H5: CNPJ:
B7: Endereço da Matriz (digite o endereço no formato Logradouro, nº, Complemento - Bairro):
B9: Município: | G9: UF: | H9: CEP:
B11: DDD: | C11: Telefone: | D11: E-mail
B13: Endereço do Escritório em Campo Grande / MS (digite o endereço no formato Logradouro, nº, Complemento - Bairro):
B15: Município: | G15: UF: | H15: CEP:
G16: MS
B17: DDD: | C17: Telefone: | D17: E-mail
B18: 67
B21: Quadro 2.2 - Regime de Tributação da Proponente
B22: Lucro Real | D22: Item | E22: Tributo | G22: Base de Cálculo | I22: Alíquota (%)
D23: A | E23: Tributos Federais
B24: Lucro Presumido | D24: A.1 | E24: PIS | G24: =IF(Apoio!$E$7=0,"",IF(Apoio!$F$7=Apoio!$H$1,"n/a","Faturamento")) -> Faturamento | I24: =IF(Apoio!$E$7=0,0,HLOOKUP(Apoio!$F$7,Apoio!$E$1:$I$5,2,FALSE)) -> 0.0065
D25: A.2 | E25: COFINS | G25: =IF(Apoio!$E$7=0,"",IF(Apoio!$F$7=Apoio!$H$1,"Folha de Pagamento","Faturamento")) -> Faturamento | I25: =IF(Apoio!$E$7=0,0,HLOOKUP(Apoio!$F$7,Apoio!$E$1:$I$4,3,FALSE)) -> 0.03
B26: Entidade Sem Fins Lucrativos | D26: Subtotal Tributos Federais | I26: =SUM(I23:I25) -> 0.0365
D27: B | E27: Tributos Distritais
B28: Optante pelo Simples Nacional | D28: B.1 | E28: ISS (ISSQN) | G28: =IF(Apoio!$E$7=0,"",IF(Apoio!$F$7=Apoio!$H$1,"n/a","Faturamento")) -> Faturamento | I28: =IF(Apoio!$E$7=0,0,HLOOKUP(Apoio!$F$7,Apoio!$E$1:$I$4,4,FALSE)) -> 0.05
B29: DIGITE A RECEITA BRUTA DOS ÚLTIMOS 12 MESES: | D29: TOTAL (COM ISSQN DE 5%) | I29: =SUM(I26,I28) -> 0.0865
D30: B.2 | E30: ISS (ISSQN) | G30: =IF(Apoio!$E$7=0,"",IF(Apoio!$F$7=Apoio!$H$1,"n/a","Faturamento")) -> Faturamento | I30: =IF(Apoio!$E$7=0,0,HLOOKUP(Apoio!$F$7,Apoio!$E$1:$I$5,5,FALSE)) -> 0.03
C31: 0 | D31: TOTAL (COM ISSQN DE 3%) | I31: =SUM(I26,I30) -> 0.0665
B32: Obs.: As empresas optantes pelo Simples Nacional poderão participar deste pregão e terão direito ao tratamento diferenciado previsto na Lei Complementar nº 123/2006. No entanto, caso as empresas sejam vedadas ao ingresso no simples nacional, não poderão apresentar proposta com os benefícios da condição de optante e, caso venham a ser contratadas, estarão sujeitas à exclusão obrigatória do Simples Nacional, em consequência do que dispõem o art. 17, inciso XII, o art. 30, inciso II, e o art. 31, inciso II, da citada Lei.
B41: Quadro 2.3 - Substituição da Insidência da Contribuição Previdendiária sobre a Folha de Pagamento
D42: Item | E42: Tributo | G42: Base de Cálculo | I42: Alíquota (%)
B43: Sim | D43: A | E43: Folha de Pagamento
D44: A.1 | E44: INSS | G44: =IF(Apoio!$E$12=0,"",IF(Apoio!$E$12=2,"Folha de Pagamento","")) -> Folha de Pagamento | I44: =IF(Apoio!$E$12=0,0,IF(Apoio!$E$12=1,0,HLOOKUP(Apoio!$F$12,Apoio!$F$10:$G$11,2,FALSE))) -> 0.2
B45: Não | D45: B | E45: Receita Bruta
D46: B.1 | E46: INSS | G46: =IF(Apoio!$E$12=0,"",IF(Apoio!$E$12=1,"Faturamento","")) ->  | I46: =IF(Apoio!$E$12=0,0,IF(Apoio!$E$12=2,0,HLOOKUP(Apoio!$F$12,Apoio!$F$10:$G$11,2,FALSE))) -> 0
B47: Obs.: As empresas abrangidas pela Lei nº 12.546/2011, que dispõe sobre a incidência das contribuições previdenciárias sobre o valor da receita bruta, em substituição às contribuições previstas em Lei específca.
B50: Quadro 2.4 - Custos Indiretos, Despesas Operacionais e Administrativas e Lucro
B51: Custos Indiretos / Despesas Operacionais e Administrativas | I51: 0.03
B52: Lucro | I52: 0.0679
B54: Outros Tributos Estaduais (especificar): | I54: 0
B55: Outros Tributos Municipais (especificar): | I55: 0

Sheet Encargos_Benefícios
B1: 3 - ENCARGOS E BENEFÍCIOS
B3: Discriminação dos Serviços (dados referentes à contratação)
B4: Nº do Processo Administrativo: | E4: Licitação nº: | F4: Data: | H4: Horário:
B5: =IF(ISBLANK('Dados Contratação'!$B$6),"-",'Dados Contratação'!$B$6) -> 15940/2022 | E5: =IF(ISBLANK('Dados Contratação'!$D$6),"-",'Dados Contratação'!$D$6) -> - | F5: =IF(ISBLANK('Dados Contratação'!$E$6),"-",'Dados Contratação'!$E$6) -> - | H5: =IF(ISBLANK('Dados Contratação'!$F$6),"-",'Dados Contratação'!$F$6) -> -
B6: Local da Prestação dos Serviços: | E6: Vigência da Contratação: | F6: Máximo de Vigência:
B7: =IF(ISBLANK('Dados Contratação'!$M$12),"-",'Dados Contratação'!$M$12) -> CAMPO GRANDE/MS | E7: =IF(ISBLANK('Dados Contratação'!$J$6),"-",CONCATENATE('Dados Contratação'!$J$6," ",'Dados Contratação'!$K$6)) -> 12 meses | F7: =IF(ISBLANK('Dados Contratação'!$N$6),"-",CONCATENATE('Dados Contratação'!$N$6," ",'Dados Contratação'!$O$6)) -> 60 meses
B9: DADOS GERAIS
C11: SALÁRIO MÍNIMO OFICIAL
H12: SALÁRIO
D13: Salário Mínimo Oficial Vigente: | H13: 1212
C16: SALÁRIO NORMATIVO (GERAL)
H17: SALÁRIO
D18: Salário Normativo da Categoria Profissional: | H18: 4189
D19: Salário Normativo da Categoria Profissional (Sábados, Domingos e Feriados): | H19: =ROUND($H$18/220*60,2) -> 1142.45
D21: Data Base da Categoria Profissional: | H21: 2021-11-01
C24: SALÁRIO NORMATIVO (ENGENHARIA)
H25: SALÁRIO
D26: Salário Normativo - CCT Sinduscon/MS: Mestre de Manutenção de Prédios | H26: 0
D27: Salário Normativo - CCT Sinduscon/MS: Encarregado de Manutenção | H27: 0
D28: Salário Normativo - CCT Sinduscon/MS: Técnico de Edificações | H28: 0
D29: Salário Normativo - CCT Sinduscon/MS: Técnico Eletrônico | H29: 0
D30: Salário Normativo - CCT STEAC/MS: Eletricista | H30: 0
D31: Salário Normativo - CCT STEAC/MS: Oficial de Manutenção | H31: 0
D33: Data Base da Categoria Profissional: | H33: 00/00/2021
B36: ENCARGOS LEGAIS
H37: PERCENTUAL
C38: INSS | H38: =IF(Apoio!E12=0,0,IF(Apoio!E12=1,Apoio!F11,Apoio!G11)) -> 0.2
C39: SESI ou SESC | H39: 0.015
C40: SENAI ou SENAC | H40: 0.01
C41: INCRA | H41: 0.002
C42: Salário Educação | H42: 0.025
C43: FGTS | H43: 0.08
C44: Seguro Acidente de Trabalho | H44: 0.03
C45: SEBRAE | H45: 0.006
C47: 13º Salário | H47: 0.0833
C48: Adicional de Férias | H48: 0.0278
C49: Incidência dos encargos previstos no Submódulo 2.2 sobre 13º (décimo terceiro) salário | H49: =SUM(H38:H45) -> 0.368
B51: BENEFÍCIOS LEGAIS ACORDADOS
H52: PROFISSIONAL
C53: Benefício Social Familiar Sindical
D54: Valor Unitário Mensal | F54: 0 | H54: =$F54-$F55 -> 0
D55: Empregado | F55: 0
C57: Assistência e Inclusão Social do Trabalhador
D58: Valor Unitário Mensal | F58: 0 | H58: =$F58 -> 0
C60: Prêmio Cesta Básica
D61: Valor Unitário Mensal | F61: 0 | H61: =$F61 -> 0
C63: Auxílio Creche
D64: Valor Unitário Mensal | F64: 0 | H64: =TRUNC(ROUND($F64*$F65,2),2) -> 0
D65: Percentual de Ocorrência | F65: 0
C67: Seguro de Vida em Grupo | E67: (Custo Total Mensal)
D68: Valor Unitário Anual | F68: 0 | H68: =$F69-$F70 -> 0
D69: Valor Unitário Mensal | F69: =F68/12 -> 0
D70: Custo Mensal do Empregado (10%) | F70: =ROUND(0.1*F69,2) -> 0
C72: Vale Transporte (Profissional) | E72: (Custo da Empresa Excedente aos 6%)
D73: Base de cálculo (remuneração individual) | H73: =$H$18 -> 4189
D74: Empregado (6% do base de cálculo) | H74: =TRUNC(ROUND(6*H73/100,2),2) -> 251.34
C75: Campo Grande | D75: Número de bilhetes/dia | F75: 2 | H75: =IF($F77=0,0,TRUNC(ROUND((($F75*$F76*$F77)-H$74),2),2)) -> 0
D76: Numero de dias | E76: 44 h / segunda a sexta-feira | F76: =VLOOKUP($E76,Apoio!$K:$M,3,FALSE) -> 20.7958
D77: Valor da tarifa | F77: 0
C79: Vale Transporte (Profissional) | E79: (Custo da Empresa Excedente aos 6%)
D80: Base de cálculo (remuneração individual) | H80: =$H$18 -> 4189
D81: Empregado (6% do base de cálculo) | H81: =TRUNC(ROUND(6*H80/100,2),2) -> 251.34
C82: Dourados | D82: Número de bilhetes/dia | F82: 2 | H82: =IF($F84=0,0,TRUNC(ROUND((($F82*$F83*$F84)-H$74),2),2)) -> 0
D83: Numero de dias | E83: 44 h / segunda a sexta-feira | F83: =VLOOKUP($E83,Apoio!$K:$M,3,FALSE) -> 20.7958
D84: Valor da tarifa | F84: 0
C86: Vale Transporte (Profissional) | E86: (Custo da Empresa Excedente aos 6%)
D87: Base de cálculo (remuneração individual) | H87: =$H$18 -> 4189
D88: Empregado (6% do base de cálculo) | H88: =TRUNC(ROUND(6*H87/100,2),2) -> 251.34
C89: Três Lagoas | D89: Número de bilhetes/dia | F89: 2 | H89: =IF($F91=0,0,TRUNC(ROUND((($F89*$F90*$F91)-H$74),2),2)) -> 0
D90: Numero de dias | E90: 44 h / segunda a sexta-feira | F90: =VLOOKUP($E90,Apoio!$K:$M,3,FALSE) -> 20.7958
D91: Valor da tarifa | F91: 0
C93: Vale Transporte (Profissional) | E93: (Custo da Empresa Excedente aos 6%)
D94: Base de cálculo (remuneração individual) | H94: =$H$18 -> 4189
D95: Empregado (6% do base de cálculo) | H95: =TRUNC(ROUND(6*H94/100,2),2) -> 251.34
C96: Corumbá | D96: Número de bilhetes/dia | F96: 2 | H96: =IF($F98=0,0,TRUNC(ROUND((($F96*$F97*$F98)-H$74),2),2)) -> 0
D97: Numero de dias | E97: 44 h / segunda a sexta-feira | F97: =VLOOKUP($E97,Apoio!$K:$M,3,FALSE) -> 20.7958
D98: Valor da tarifa | F98: 0
C100: Vale Transporte (Profissional) | E100: (Custo da Empresa Excedente aos 6%)
D101: Base de cálculo (remuneração individual) | H101: =$H$18 -> 4189
D102: Empregado (6% do base de cálculo) | H102: =TRUNC(ROUND(6*H101/100,2),2) -> 251.34
C103: Ponta Porã | D103: Número de bilhetes/dia | F103: 2 | H103: =IF($F105=0,0,TRUNC(ROUND((($F103*$F104*$F105)-H$74),2),2)) -> 0
D104: Numero de dias | E104: 44 h / segunda a sexta-feira | F104: =VLOOKUP($E104,Apoio!$K:$M,3,FALSE) -> 20.7958
D105: Valor da tarifa | F105: 0
C107: Vale Transporte (Profissional) | E107: (Custo da Empresa Excedente aos 6%)
D108: Base de cálculo (remuneração individual) | H108: =$H$18 -> 4189
D109: Empregado (6% do base de cálculo) | H109: =TRUNC(ROUND(6*H108/100,2),2) -> 251.34
C110: Amambai | D110: Número de bilhetes/dia | F110: 2 | H110: =IF($F112=0,0,TRUNC(ROUND((($F110*$F111*$F112)-H$74),2),2)) -> 0
D111: Numero de dias | E111: 44 h / segunda a sexta-feira | F111: =VLOOKUP($E111,Apoio!$K:$M,3,FALSE) -> 20.7958
D112: Valor da tarifa | F112: 0
C114: Vale Transporte (Profissional) | E114: (Custo da Empresa Excedente aos 6%)
D115: Base de cálculo (remuneração individual) | H115: =$H$18 -> 4189
D116: Empregado (6% do base de cálculo) | H116: =TRUNC(ROUND(6*H115/100,2),2) -> 251.34
C117: São Gabriel | D117: Número de bilhetes/dia | F117: 2 | H117: =IF($F119=0,0,TRUNC(ROUND((($F117*$F118*$F119)-H$74),2),2)) -> 0
D118: Numero de dias | E118: 44 h / segunda a sexta-feira | F118: =VLOOKUP($E118,Apoio!$K:$M,3,FALSE) -> 20.7958
D119: Valor da tarifa | F119: 0
C121: Auxílio Alimentação (Encarregado) | E121: (Custo Mensal da Empresa)
D122: Número de refeições/dia | F122: 1 | H122: =IF($F124=0,0,TRUNC(ROUND((($F122*$F123*$F124)-F$125),2),2)) -> 0
D123: Número de dias/mês | E123: 44 h / segunda a sexta-feira | F123: =VLOOKUP($E123,Apoio!$K:$M,3,FALSE) -> 20.7958
D124: Valor unitário da refeição | F124: 0
D125: Custo do Empregado | F125: 0
C127: Auxílio Alimentação (Profissional) | E127: (Custo Mensal da Empresa)
D128: Número de refeições/dia | F128: 1 | H128: =IF($F130=0,0,TRUNC(ROUND((($F128*$F129*$F130)-F$131),2),2)) -> 345
D129: Número de dias/mês | E129: 44 h / segunda a sexta-feira | F129: =VLOOKUP($E129,Apoio!$K:$M,3,FALSE) -> 20.7958
D130: Valor unitário da refeição | F130: 16.59
D131: Custo do Empregado | F131: 0
C133: Observação: A planilha está concebida para efetuar automaticamente os cálculos, devendo ser alimentados somente os valores nos campos em amarelo.

Sheet Certificação digital
B1: 4 - Certificação Digital
B3: Discriminação dos Serviços (dados referentes à contratação)
B4: Nº do Processo Administrativo: | E4: Licitação nº: | H4: Data: | I4: Horário:
B5: =IF(ISBLANK('Dados Contratação'!$B$6),"-",'Dados Contratação'!$B$6) -> 15940/2022 | E5: =IF(ISBLANK('Dados Contratação'!$D$6),"-",'Dados Contratação'!$D$6) -> - | H5: =IF(ISBLANK('Dados Contratação'!$E$6),"-",'Dados Contratação'!$E$6) -> - | I5: =IF(ISBLANK('Dados Contratação'!$F$6),"-",'Dados Contratação'!$F$6) -> -
B6: Local da Prestação dos Serviços: | E6: Vigência da Contratação: | H6: Máximo de Vigência:
B7: =IF(ISBLANK('Dados Contratação'!$M$12),"-",'Dados Contratação'!$M$12) -> CAMPO GRANDE/MS | E7: =IF(ISBLANK('Dados Contratação'!$J$6),"-",CONCATENATE('Dados Contratação'!$J$6," ",'Dados Contratação'!$K$6)) -> 12 meses | H7: =IF(ISBLANK('Dados Contratação'!$N$6),"-",CONCATENATE('Dados Contratação'!$N$6," ",'Dados Contratação'!$O$6)) -> 60 meses
E9: PROFISSIONAL
E10: Unidade | F10: Qtd. | G10: Vida Útil (meses) | H10: Custo Unitário | I10: Custo Total Mensal
B11: · | C11: Etoken CPF (12 meses) | E11: Peça | F11: 1 | G11: 12 | H11: 130.97 | I11: =IF(H11=0,0,TRUNC(ROUND(F11*H11/G11,2),2)) -> 10.91
B12: · | E12: Peça | I12: =IF(H12=0,0,TRUNC(ROUND(F12*H12/G12,2),2)) -> 0
B13: · | E13: Par | I13: 0
B14: · | E14: Peça | I14: 0
B15: · | E15: Par | I15: 0
C16: Custo Total Mensal de Uniformes e equipamentos | I16: =SUM(I11:I15) -> 10.91
E18: ENCARREGADO
E19: Unidade | F19: Qtd. | G19: Vida Útil (meses) | H19: Custo Unitário | I19: Custo Total Mensal
B20: · | C20: Blusa | E20: Peça | F20: 0 | G20: 0 | H20: 0 | I20: =IF(H20=0,0,TRUNC(ROUND(F20*H20/G20,2),2)) -> 0
B21: · | C21: Camisa | E21: Peça | F21: 0 | G21: 0 | H21: 0 | I21: =IF(H21=0,0,TRUNC(ROUND(F21*H21/G21,2),2)) -> 0
B22: · | C22: Calça | E22: Peça | F22: 0 | G22: 0 | H22: 0 | I22: 0
B23: · | C23: Meia (par) | E23: Par | F23: 0 | G23: 0 | H23: 0 | I23: 0
B24: · | C24: Coturno (par) | E24: Par | F24: 0 | G24: 0 | H24: 0 | I24: 0
B25: · | C25: Boné | E25: Peça | F25: 0 | G25: 0 | H25: 0 | I25: 0
B26: · | C26: Cinto | E26: Peça | F26: 0 | G26: 0 | H26: 0 | I26: 0
C27: Custo Total Mensal de Uniformes | I27: =SUM(I20:I26) -> 0
C29: Observação: A planilha está concebida para efetuar automaticamente os cálculos, devendo ser alimentados somente os valores nos campos em amarelo.

Sheet Insumos - Brigadista (hidden)
B1: 5 - EQUIPAMENTOS E INSUMOS DIVERSOS
B3: Discriminação dos Serviços (dados referentes à contratação)
B4: Nº do Processo Administrativo: | F4: Licitação nº: | H4: Data: | J4: Horário:
B5: =IF(ISBLANK('Dados Contratação'!$B$6),"-",'Dados Contratação'!$B$6) -> 15940/2022 | F5: =IF(ISBLANK('Dados Contratação'!$D$6),"-",'Dados Contratação'!$D$6) -> - | H5: =IF(ISBLANK('Dados Contratação'!$E$6),"-",'Dados Contratação'!$E$6) -> - | J5: =IF(ISBLANK('Dados Contratação'!$F$6),"-",'Dados Contratação'!$F$6) -> -
B6: Local da Prestação dos Serviços: | F6: Vigência da Contratação: | I6: Máximo de Vigência:
B7: =IF(ISBLANK('Dados Contratação'!$M$12),"-",'Dados Contratação'!$M$12) -> CAMPO GRANDE/MS | F7: =IF(ISBLANK('Dados Contratação'!$J$6),"-",CONCATENATE('Dados Contratação'!$J$6," ",'Dados Contratação'!$K$6)) -> 12 meses | I7: =IF(ISBLANK('Dados Contratação'!$N$6),"-",CONCATENATE('Dados Contratação'!$N$6," ",'Dados Contratação'!$O$6)) -> 60 meses
C9: EQUIPAMENTOS
C11: 1 | D11: MOBILIÁRIOS
F12: Medida | G12: Marca | H12: Custo Unitário | I12: Vida Útil (meses) | J12: TRT e Fórum CG
J13: Qtd. | K13: Custo Mensal
C14: 1 | E14: Armário de aço, duas portas grandes, com chave, com pintura antiferrugem, com 5 compartimentos abertos para guarda dos materiais de primeiros socorros, materiais de escritório e materiais de arrombamento | F14: unidade | H14: 0 | I14: 60 | J14: 0 | K14: =TRUNC(ROUND(($H14*$J14)/$I14,2),2) -> 0
C15: 2 | E15: Roupeiros de aço, portas grandes, com pintura antiferrugem e total de 6(seis) compartimentos(portas) suficientes ao número de empregados, sendo um compartimento para cada, com fechadura a chave ou pitão para cadeado. Cada compartimento deverá possuir as seguintes medidas mínimas: Largura: 30 cm; Altura: 90 cm; Profundidade: 40 cm. | F15: Unidade | H15: 0 | I15: 60 | J15: 0 | K15: =TRUNC(ROUND(($H15*$J15)/$I15,2),2) -> 0
C16: Custo Mensal dos Mobiliários | J16: =SUM(K14:K15) -> 0
D18: Custo de Capital Mensal (SELIC) | J18: 0.008363
D19: Custo Financeiro Mensal | J19: =TRUNC(ROUND(J16*J18,2),2) -> 0
C20: Custo Mensal Total dos Mobiliários | J20: =J16+J19 -> 0
J22: TRT e Fórum CG
D23: Quantidade Total de Empregados (Brigadista e Chefe de Brigada) | J23: ='Dados Contratação'!$J$41 -> 2
C24: Custo Mensal Total dos Mobiliários - por Empregado | J24: =IF(J23=0,0,TRUNC(ROUND(J20/J23,2),2)) -> 0
C27: 2 | D27: EQUIPAMENTOS DE SEGURANÇA DE BRIGADISTA
F28: Medida | G28: Marca | H28: Custo Unitário | I28: Vida Útil (meses) | J28: TRT e Fórum CG
J29: Qtd. | K29: Custo Mensal
C30: 1 | E30: Máscaras individuais com filtro de carvão | F30: Unidade | H30: 0 | I30: 20 | J30: 0 | K30: =TRUNC(ROUND(($H30*$J30)/$I30,2),2) -> 0
C31: 2 | E31: Lanterna de mão tipo farolete com capacidade de luminosidade de 500.000 velas, com uma bateria selada de 6V/4,2Ah recarregável, com recarregador, carregador veicular e transformador bivolt automático. | F31: Unidade | H31: 0 | I31: 60 | J31: 0 | K31: =TRUNC(ROUND(($H31*$J31)/$I31,2),2) -> 0
C32: 3 | E32: Luvas em rapa de couro para serviços diversos | F32: Unidade | H32: 0 | I32: 60 | J32: 0 | K32: 0
C33: 4 | E33: Óculos transparente de proteção contra partículas | F33: Unidade | H33: 0 | I33: 24 | J33: 0 | K33: 0
C34: 5 | E34: Abafador de ouvido tipo concha | F34: Unidade | H34: 0 | I34: 60 | J34: 0 | K34: 0
C35: 6 | E35: Capas de chuva na cor amarela com fitas refletivas | F35: Unidade | H35: 0 | I35: 60 | J35: 0 | K35: 0
C36: 7 | E36: Capacete de segurança para brigadista - C.A. 14816 - Capacete de Segurança Tipo III, Classe A, injetado em polipropileno | F36: Unidade | H36: 0 | I36: 60 | J36: 0 | K36: 0
C37: Custo Mensal dos Equipamentos de Segurança | J37: =SUM(K30:K36) -> 0
D39: Custo de Capital Mensal (SELIC) | J39: 0.008363
D40: Custo Financeiro Mensal | J40: =TRUNC(ROUND(J37*J39,2),2) -> 0
C41: Custo Mensal Total dos Equipamentos de Segurança | J41: =J37+J40 -> 0
J43: TRT e Fórum CG
D44: Quantidade Total de Empregados (Brigadista e Chefe de Brigada) | J44: ='Dados Contratação'!$J$41 -> 2
C45: Custo Mensal dos Equipamentos de Segurança - por Empregado | J45: =IF(J44=0,0,TRUNC(ROUND(J41/J44,2),2)) -> 0
C48: 3 | D48: MATERIAIS DE ARROMBAMENTO - FERRAMENTAS
F49: Unidade | G49: Marca | H49: Custo Unitário | I49: Vida Útil (meses) | J49: TRT e Fórum CG
J50: Qtd | K50: Custo Mensal
C51: 1 | E51: Escada prolongável em fibra de vidro ou em alumínio, medindo 4,8m quando fechada e 8,4 quando aberta. Montantes em perfil tipo U, não condutivos, degraus de alumínio estruturado, fixo à escada por meio de suporte em alumínio, com encaixe prensado. Corrediça de aço estampado, revestida com resina de PVC. Sapata articulável de alumínio, liga com solado de borracha. Catraca com base de aço estampada e gancho de aço forjado. Terminal de polietileno para alinhamento e deslizamento da escada. Suporte de apoio de aço, com tratamento anticorrosivo. Moitão de alumínio - liga, com corda de polipropileno de 3/8", distância entre os degraus de 300mm. Peso aproximado de 29Kg. Número de degraus úteis: 27. Possuir nos montantes externos punhos laterais, rebatíveis, posicionados um de cada lado, altura de 1,5m para facilitar as atividades de armar e desarmar, comprimento de 16cm quando armado, possuindo encaixe para fixar o punho quando rebatido. Todas as medidas são aproximadas, tolerando-se 10% para mais ou para menos. | F51: Unidade | H51: 0 | I51: 60 | J51: 0 | K51: =TRUNC(ROUND(($H51*$J51)/$I51,2),2) -> 0
C52: 2 | E52: Alavanca de 1,5m | F52: Unidade | H52: 0 | I52: 60 | J52: 0 | K52: 0
C53: 3 | E53: Gancho crock | F53: Unidade | H53: 0 | I53: 60 | J53: 0 | K53: 0
C54: 4 | E54: Machado que garanta resistência ao desgaste, com cabo de madeira reforçado. | F54: Unidade | H54: 0 | I54: 60 | J54: 0 | K54: 0
C55: 5 | E55: Marretas de 2Kg e 5Kg, com base polida, cabo curto de madeira fixado com cunhas metálicas. | F55: Unidade | H55: 0 | I55: 60 | J55: 0 | K55: 0
C56: 6 | E56: Martelo unha polido 25”, com cabo de madeira fixado com epóxi. | F56: Unidade | H56: 0 | I56: 60 | J56: 0 | K56: 0
C57: 7 | E57: Arco de serra fixo de 12”. | F57: Unidade | H57: 0 | I57: 60 | J57: 0 | K57: 0
C58: 8 | E58: Lâmina para arco de serra para arco de serra fixo de 12”. | F58: Unidade | H58: 0 | I58: 60 | J58: 0 | K58: 0
C59: 9 | E59: Facão de 18”, em aço, com cabo em polipropileno. | F59: Unidade | H59: 0 | I59: 60 | J59: 0 | K59: 0
C60: 10 | E60: Pé de cabra 75 cm | F60: Unidade | H60: 0 | I60: 60 | J60: 0 | K60: 0
C61: Custo Mensal dos Materiais de Arrombamento | J61: =SUM(K51:K60) -> 0
D63: Custo de Capital Mensal (SELIC) | J63: 0.008363
D64: Custo Financeiro Mensal | J64: =TRUNC(ROUND(J61*J63,2),2) -> 0
C65: Custo Mensal Total dos Materiais de Arrombamento | J65: =J61+J64 -> 0
J67: TRT e Fórum CG
D68: Qtd. Estimada de Brigadista (Incluso o Chefe de Brigada) | J68: ='Dados Contratação'!$J$41 -> 2
C69: Custo Mensal dos Materiais de Arrombamento - Por Empregado | J69: =IF(J68=0,0,TRUNC(ROUND(J65/J68,2),2)) -> 0
C72: 4 | D72: MATERIAL DE TRABALHO - COMUNICAÇÃO
F73: Unidade | G73: Marca | H73: Custo Unitário | I73: Vida Útil (meses) | J73: TRT e Fórum CG
J74: Qtd. | K74: Custo Mensal
C75: 1 | D75: Serviço móvel celular, com fornecimento de aparelhos de comunicação móvel, habilitado, com carregador e manual do usuário | F75: Unidade | H75: 0 | I75: 60 | J75: 0 | K75: =TRUNC(ROUND(($H75*$J75)/$I75,2),2) -> 0
C76: 2 | D76: Megafone com potência regulável nominal de 12 e máximo de 18 watts, com 230 x355mm, 1,6Kg (sem bateria), alcance de 1Km em zona rural e 500m em zona urbana, autonomia de 15 horas, alimentação: 8 pilhas R6. | F76: unidade | H76: 0 | I76: 60 | J76: 0 | K76: =TRUNC(ROUND(($H76*$J76)/$I76,2),2) -> 0
C77: 3 | D77: Rádio transmissor (HT) para comunicação interpessoal. | F77: Unidade | H77: 0 | I77: 60 | J77: 0 | K77: =TRUNC(ROUND(($H77*$J77)/$I77,2),2) -> 0
C78: Custo Mensal dos Materiais de Comunicação | J78: =SUM(K75:K77) -> 0
D80: Custo de Capital Mensal (SELIC) | J80: 0.008363
D81: Custo Financeiro Mensal | J81: =TRUNC(ROUND(J78*J80,2),2) -> 0
C82: Custo Mensal dos Materiais de Comunicação | J82: =J78+J81 -> 0
F84: Unidade | G84: Marca | H84: Custo Unitário | I84: Vida Útil (meses) | J84: TRT e Fórum CG
J85: Qtd. | K85: Custo Mensal
C86: 4 | D86: Plano pós-pago para o serviço móvel celular | F86: Mensalidade | H86: 0 | I86: 1 | J86: 0 | K86: =TRUNC(ROUND(($H86*$J86)/$I86,2),2) -> 0
C88: Custo Mensal Total dos Materiais de Comunicação | J88: =J82+K86 -> 0
J90: TRT e Fórum CG
D91: Quantidade Estimada de Profissionais (Chefe de Brigada) | J91: ='Dados Contratação'!$J$41 -> 2
C92: Custo Mensal dos Materiais de Comunicação - por Empregado | J92: =IF(J91=0,0,TRUNC(ROUND(J88/J91,2),2)) -> 0
C95: INSUMOS DIVERSOS
C97: 5 | D97: MATERIAIS DE ESCRITÓRIO
F98: Unidade | G98: Marca | H98: Custo Unitário | I98: Vida Útil | J98: TRTe Fórum CG
J99: Qtd. | K99: Custo Mensal
C100: 1 | E100: Livros para anotação de ocorrência, com 100 (cem) folhas pautadas e numeradas | F100: Unidade | H100: 0 | I100: 12 | J100: 0 | K100: =($H100*J100)/I100 -> 0
C101: 2 | E101: Apagadores para quadro branco | F101: Unidade | H101: 0 | I101: 60 | J101: 0 | K101: =($H101*J101)/I101 -> 0
C102: 3 | E102: Borracha | F102: Unidade | H102: 0 | I102: 6 | J102: 0 | K102: 0
C103: 4 | E103: Canetas esferográficas azuis | F103: caixa | H103: 0 | I103: 12 | J103: 0 | K103: 0
C104: 5 | E104: Canetas esferográficas vermelha | F104: caixa | H104: 0 | I104: 12 | J104: 0 | K104: 0
C105: 6 | E105: Clipes – 100 unidades | F105: caixa | H105: 0 | I105: 12 | J105: 0 | K105: 0
C106: 7 | E106: Cola branca grande | F106: Unidade | H106: 0 | I106: 2 | J106: 0 | K106: 0
C107: 8 | E107: Extrator para grampos | F107: Unidade | H107: 0 | I107: 60 | J107: 0 | K107: 0
C108: 9 | E108: Elástico Latex N° 18 Caixa Com 25 Gramas | F108: caixa | H108: 0 | I108: 3 | J108: 0 | K108: 0
C109: 10 | E109: Envelope para papel A4 | F109: Unidade | H109: 0 | I109: 6 | J109: 0 | K109: 0
C110: 11 | E110: Estilete grande e lâminas | F110: unidade | H110: 0 | I110: 6 | J110: 0 | K110: 0
C111: 12 | E111: Fita adesiva transparente- 45mmx50m | F111: unidade | H111: 0 | I111: 12 | J111: 0 | K111: 0
C112: 13 | E112: Prancheta em acrílico para folha A4 | F112: unidade | H112: 0 | I112: 24 | J112: 0 | K112: 0
C113: 14 | E113: Grampeador grande | F113: unidade | H113: 0 | I113: 24 | J113: 0 | K113: 0
C114: 15 | E114: Furador de papéis | F114: unidade | H114: 0 | I114: 24 | J114: 0 | K114: 0
C115: 16 | E115: Grampos para grampeador – 1000 unidades | F115: caixa | H115: 0 | I115: 12 | J115: 0 | K115: 0
C116: 17 | E116: Lápis preto n. 2 | F116: caixa | H116: 0 | I116: 12 | J116: 0 | K116: 0
C117: 18 | E117: Pincel marca texto | F117: Unidade | H117: 0 | I117: 6 | J117: 0 | K117: 0
C118: 19 | E118: Percevejo | F118: caixa | H118: 0 | I118: 12 | J118: 0 | K118: 0
C119: 20 | E119: Bloco post-it amarelo 76x102 c/100 folhas | F119: pacote | H119: 0 | I119: 12 | J119: 0 | K119: 0
C120: 21 | E120: Régua de 30cm | F120: Unidade | H120: 0 | I120: 24 | J120: 0 | K120: 0
C121: 22 | E121: Quadro branco médio | F121: Unidade | H121: 0 | I121: 24 | J121: 0 | K121: 0
C122: 23 | E122: Resma de papel A4 | F122: Unidade | H122: 0 | I122: 12 | J122: 0 | K122: 0
C123: 24 | E123: Tesoura grande em aço | F123: Unidade | H123: 0 | I123: 24 | J123: 0 | K123: 0
C124: 25 | E124: Pasta AZ | F124: Unidade | H124: 0 | I124: 24 | J124: 0 | K124: 0
C125: Valor Estimado Mensal | K125: =SUM(K100:K124) -> 0
J127: TRTe Fórum CG
D128: Qtd. Estimada de Brigadista (Incluso o Chefe de Brigada) | J128: ='Dados Contratação'!$J$41 -> 2
C129: Valor Mensal dos Materiais de Escritório Por Empregado | J129: =IF(J128=0,0,TRUNC(ROUND(K125/J128,2),2)) -> 0
C132: 6 | D132: MATERIAIS DE PRIMEIROS SOCORROS
F133: Unidade | G133: Marca | H133: Custo Unitário | I133: Vida Útil | J133: TRTe Fórum CG
J134: Qtd. | K134: Custo Mensal
C135: 1 | E135: Bolsa para transporte de material de emergência Médica Pré-Hospitalar, fabricada em nylon, a prova d'água na cor vermelha, medindo aproximadamente 62 cm de comprimento, 30 cm de largura por 24 cm de altura. Com quatro bolsos externos, dois nas laterais, um na parte da frente e um na parte de trás. | F135: Unidade | H135: 0 | I135: 24 | J135: 0 | K135: =($H135*J135)/I135 -> 0
C136: 2 | E136: Abaixador de língua (espátula de madeira), descartável, formato convencional liso, superfície e bordas perfeitamente acabadas, espessura e largura uniforme em toda a sua extensão. Procedência nacional. Dispensado de Registro no MS. Medidas: Aproximadamente 14 cm de comprimento; 1,4 cm de largura; 0,5 mm de espessura, embalado em pacote com 100 peças, | F136: Unidade | H136: 0 | I136: 6 | J136: 0 | K136: 0
C137: 3 | E137: água oxigenada vol.10 | F137: litro | H137: 0 | I137: 12 | J137: 0 | K137: 0
C138: 4 | E138: algodão hidrófilo em bolinhas 500g. | F138: pacote | H138: 0 | I138: 12 | J138: 0 | K138: 0
C139: 5 | E139: álcool a 70% INPM | F139: litro | H139: 0 | I139: 12 | J139: 0 | K139: 0
C140: 6 | E140: gelol spray | F140: Unidade | H140: 0 | I140: 12 | J140: 0 | K140: 0
C141: 7 | E141: band-aid de tamanhos e formas variadas | F141: caixa | H141: 0 | I141: 12 | J141: 0 | K141: 0
C142: 8 | E142: colar cervical de resgate (rígido e higienizável) P/M/G/ | F142: Unidade | H142: 0 | I142: 60 | J142: 0 | K142: 0
C143: 9 | E143: compressas gazes esterilizadas | F143: Unidade | H143: 0 | I143: 24 | J143: 0 | K143: 0
C144: 10 | E144: compressas de gaze esterelizada 7,50cm x 7,50cm 13 fios, pacote com 500 unidades; | F144: unidade | H144: 0 | I144: 24 | J144: 0 | K144: 0
C145: 11 | E145: Hastes de polipropileno, corante atóxicos, flexíveis e inquebráveis, 100%algodão, caixa com 75 unidades | F145: caixa | H145: 0 | I145: 12 | J145: 0 | K145: 0
C146: 12 | E146: estabilizadores (imobilizadores) de cabeça para prancha | F146: Unidade | H146: 0 | I146: 60 | J146: 0 | K146: 0
C147: 13 | E147: Estetoscópio | F147: Unidade | H147: 0 | I147: 60 | J147: 0 | K147: 0
C148: 14 | E148: Plástico protetor de queimaduras e eviscerações (01m x 01m) esterelizado | F148: Unidade | H148: 0 | I148: 24 | J148: 0 | K148: 0
C149: 15 | E149: fita microporos a 50mmx10m cor da pele | F149: Unidade | H149: 0 | I149: 12 | J149: 0 | K149: 0
C150: 16 | E150: lanterna para avaliar pupilas com pilhas | F150: Unidade | H150: 0 | I150: 60 | J150: 0 | K150: 0
C151: 17 | E151: luvas em látex para procedimentos M/G | F151: Unidade | H151: 0 | I151: 12 | J151: 0 | K151: 0
C152: 18 | E152: pinças de secção com serrilha 16cm | F152: Unidade | H152: 0 | I152: 60 | J152: 0 | K152: 0
C153: 19 | E153: pochetes tipo cartucheira para transportes de materiais de primeiros socorros | F153: Unidade | H153: 0 | I153: 60 | J153: 0 | K153: 0
C154: 20 | E154: ressuscitador digital (reanimador) pulmonar adulto em silicone | F154: Unidade | H154: 0 | I154: 60 | J154: 0 | K154: 0
C155: 21 | E155: solução fisiológica de cloreto de sódio 0,9% 125 ml | F155: Unidade | H155: 0 | I155: 12 | J155: 0 | K155: 0
C156: 22 | E156: rolo de gaze hidrófila circular 500g. | F156: Unidade | H156: 0 | I156: 12 | J156: 0 | K156: 0
C157: 23 | E157: máscara cirúrgica descartável, formato retangular, com elástico, cor branca, com 50 unidades | F157: caixa | H157: 0 | I157: 12 | J157: 0 | K157: 0
C158: 24 | E158: tala moldável para dedo | F158: Unidade | H158: 0 | I158: 60 | J158: 0 | K158: 0
C159: 25 | E159: talas moldáveis aramadas P/M/G/ | F159: Unidade | H159: 0 | I159: 60 | J159: 0 | K159: 0
C160: 26 | E160: sabão degermante líquido | F160: Unidade | H160: 0 | I160: 12 | J160: 0 | K160: 0
C161: 27 | E161: tesoura sem ponta | F161: Unidade | H161: 0 | I161: 60 | J161: 0 | K161: 0
C162: 28 | E162: termômetro | F162: Unidade | H162: 0 | I162: 60 | J162: 0 | K162: 0
C163: 29 | E163: tintura de iodo, povidine ou álcool iodado | F163: litro | H163: 0 | I163: 12 | J163: 0 | K163: 0
C164: 30 | E164: prancha longa de madeira ou material similar resistência (185/190 x 45 cm) | F164: litro | H164: 0 | I164: 60 | J164: 0 | K164: 0
C165: Valor Estimado Mensal | K165: =SUM(K135:K164) -> 0
J167: TRTe Fórum CG
D168: Qtd. Estimada de Brigadista (Incluso o Chefe de Brigada) | J168: ='Dados Contratação'!$J$41 -> 2
C169: Valor Mensal dos Materiais de Primeiros Socorros Por Empregado | J169: =IF(J168=0,0,TRUNC(ROUND(K165/J168,2),2)) -> 0

Sheet Insumos - Motorista (hidden)
B1: 5 - EQUIPAMENTOS E INSUMOS DIVERSOS
B3: Discriminação dos Serviços (dados referentes à contratação)
B4: Nº do Processo Administrativo: | F4: Licitação nº: | H4: Data: | J4: Horário:
B5: =IF(ISBLANK('Dados Contratação'!$B$6),"-",'Dados Contratação'!$B$6) -> 15940/2022 | F5: =IF(ISBLANK('Dados Contratação'!$D$6),"-",'Dados Contratação'!$D$6) -> - | H5: =IF(ISBLANK('Dados Contratação'!$E$6),"-",'Dados Contratação'!$E$6) -> - | J5: =IF(ISBLANK('Dados Contratação'!$F$6),"-",'Dados Contratação'!$F$6) -> -
B6: Local da Prestação dos Serviços: | F6: Vigência da Contratação: | I6: Máximo de Vigência:
B7: =IF(ISBLANK('Dados Contratação'!$M$12),"-",'Dados Contratação'!$M$12) -> CAMPO GRANDE/MS | F7: =IF(ISBLANK('Dados Contratação'!$J$6),"-",CONCATENATE('Dados Contratação'!$J$6," ",'Dados Contratação'!$K$6)) -> 12 meses | I7: =IF(ISBLANK('Dados Contratação'!$N$6),"-",CONCATENATE('Dados Contratação'!$N$6," ",'Dados Contratação'!$O$6)) -> 60 meses
C9: MATERIAIS E EQUIPAMENTOS
C11: 1 | D11: Material de Escritório
F12: Unidade | G12: Marca | H12: Custo Unitário | I12: Vida Útil (meses) | J12: TRT
J13: Qtd. | K13: Custo Mensal
C14: 1 | D14: Livros anotação de ocorrência, contendo 100 (cem) folhas pautadas | F14: Unidade | H14: 0 | I14: 30 | J14: 0 | K14: =TRUNC(ROUND((H14*J14)/I14,2),2) -> 0
C15: 2 | D15: Caneta esferográfica azul ou preta | F15: Unidade | H15: 0 | I15: 30 | J15: 0 | K15: =TRUNC(ROUND((H15*J15)/I15,2),2) -> 0
C16: 3 | D16: Lápis grafite para anotações | F16: Unidade | H16: 0 | I16: 30 | J16: 0 | K16: 0
C17: Valor Estimado Mensal | J17: =SUM(K14:K16) -> 0
J19: TRT
D20: Quantidade Estimada de Profissionais | J20: ='Dados Contratação'!$J$41 -> 2
C21: Valor Mensal dos Materiais de Consumo por Empregado | J21: =IF(J20=0,0,TRUNC(ROUND(J17/J20,2),2)) -> 0
C26: 2 | D26: Material de Comunicação
F27: Unidade | G27: Marca | H27: Custo Unitário | I27: Vida Útil (meses) | J27: TRT
J28: Qtd. | K28: Custo Mensal
C29: 1 | D29: Fornecimento de aparelhos de comunicação móvel, habilitado, com carregador e manual do usuário | F29: Unidade | G29: Multilaser MS 45 | H29: 0 | I29: 60 | J29: 0 | K29: =TRUNC(ROUND((H29*J29)/I29,2),2) -> 0
C30: 2 | D30: Plano pós-pago para o serviço móvel celular (1) | F30: Mensalidade | G30: (Tim) Linha ilimitado para qualquer operadora (fixo e móvel) + 6 GB de internet | H30: 0 | I30: 1 | J30: 0 | K30: =TRUNC(ROUND((H30*J30)/I30,2),2) -> 0
C31: Valor Estimado Mensal | J31: =SUM(K29:K30) -> 0
D32: Obs.: o valor estimado se dá conforme o programa pós-pago das operadoras, normalmente média de 50 minutos para outras operadoras e ilimitado quando as ligações são para a mesma operadora
J33: TRT
D34: Quantidade Estimada de Profissionais | J34: ='Dados Contratação'!$J$41 -> 2
C35: Valor Mensal dos Materiais de Trabalho por Empregado | J35: =IF(J34=0,0,TRUNC(ROUND(J31/J34,2),2)) -> 0

Sheet Insumos - Manutenção (hidden)
B1: 5 - EQUIPAMENTOS E INSUMOS DIVERSOS
B3: Discriminação dos Serviços (dados referentes à contratação)
B4: Nº do Processo Administrativo: | F4: Licitação nº: | H4: Data: | J4: Horário:
B5: =IF(ISBLANK('Dados Contratação'!$B$6),"-",'Dados Contratação'!$B$6) -> 15940/2022 | F5: =IF(ISBLANK('Dados Contratação'!$D$6),"-",'Dados Contratação'!$D$6) -> - | H5: =IF(ISBLANK('Dados Contratação'!$E$6),"-",'Dados Contratação'!$E$6) -> - | J5: =IF(ISBLANK('Dados Contratação'!$F$6),"-",'Dados Contratação'!$F$6) -> -
B6: Local da Prestação dos Serviços: | F6: Vigência da Contratação: | I6: Máximo de Vigência:
B7: =IF(ISBLANK('Dados Contratação'!$M$12),"-",'Dados Contratação'!$M$12) -> CAMPO GRANDE/MS | F7: =IF(ISBLANK('Dados Contratação'!$J$6),"-",CONCATENATE('Dados Contratação'!$J$6," ",'Dados Contratação'!$K$6)) -> 12 meses | I7: =IF(ISBLANK('Dados Contratação'!$N$6),"-",CONCATENATE('Dados Contratação'!$N$6," ",'Dados Contratação'!$O$6)) -> 60 meses
C9: EQUIPAMENTOS DE PROTEÇÃO INDIVIDUAL (EPI's) E FERRAMENTAS
C11: 1 | D11: EQUIPAMENTOS DE PROTEÇÃO INDIVIDUAL (EPI's)
F12: Unidade | G12: Marca | H12: Custo Unitário | I12: Vida Útil (meses) | J12: TRT
J13: Qtd. | K13: Custo Mensal
C14: 1 | E14: Abafador de ruídos tipo concha; arco que gira 360º, possibilitando sua utilização em três posições diferentes, permitindo o uso simultâneo com outros E.P.I.s; fabricado em plástico não condutor de eletricidade; almofada em espuma revestida com vinil; permite a reposição de todas as peças; NRRsf 21 dB. Modelo de referência: MSA Mark V | F14: Unidade | H14: 0 | I14: 30 | J14: 0 | K14: =TRUNC(ROUND((H14*J14)/I14,2),2) -> 0
C15: 2 | E15: Capa para chuva descartável; medidas mínimas para adulto 1,75 m altura x 100 kg; fecho com botão de pressão; cor transparente, translúcida ou branca. | F15: Unidade | H15: 0 | I15: 30 | J15: 0 | K15: =TRUNC(ROUND((H15*J15)/I15,2),2) -> 0
C16: 3 | E16: Cinto de segurança tipo pára-quedista; almofadado; com cinta larga e reforçada na cintura; com mosquetão frontal e 03 olhal; fornecer com corda de segurança tipo "cordão umbilical". Modelo de referência: Carbografite CG 790E. | F16: Unidade | H16: 0 | I16: 30 | J16: 0 | K16: 0
C17: 4 | E17: Óculos de segurança âmbar; com camada anti-embaçante e anti-risco; ampla visão periférica; apoio nasal em silicone macio; orifícios para cordão; capacidade de filtrar 99,9% dos raios ultravioletas; formato conforme foto abaixo. Modelo de ref.: Carbografite Cayman Âmbar Anti-Embaçante cód 012299012 | F17: Unidade | H17: 0 | I17: 30 | J17: 0 | K17: 0
C18: 5 | E18: Óculos de segurança cinza; com camada anti-embaçante e anti-risco; ampla visão periférica; apoio nasal em silicone macio; orifícios para cordão; capacidade de filtrar 99,9% dos raios ultravioletas; formato conforme foto abaixo. Modelo de ref.: Carbografite Cayman Cinza Anti-Embaçante cód 012298812 | F18: Unidade | H18: 0 | I18: 30 | J18: 0 | K18: 0
C19: 6 | E19: Óculos de segurança incolor; com camada anti-embaçante e anti-risco; ampla visão periférica; apoio nasal em silicone macio; orifícios para cordão; capacidade de filtrar 99,9% dos raios ultravioletas; formato conforme foto abaixo. Modelo de ref.: Carbografite Cayman Incolor Anti-Embaçante cód 012298912 | F19: Unidade | H19: 0 | I19: 30 | J19: 0 | K19: 0
C20: 7 | E20: Respirador descartável com válvula de exalação para respiração confortável; com tratamento eletrostático; classe PFF-1; para proteção respiratória contra particulados na forma de poeiras e névoas; espuma na área do nariz; embalagem individual; dobrável em 3 paineis; compatível com outros EPIs; uso indicado para proteção das vias respiratórias contra poeiras e névoas nao oleosas, tais como: minério de ferro, carvao, fibras, texteis, cal, cimento refinado, poeiras vegetais, poeiras de lixamento e esmerilhamento, névoas de ácido sulfúrico, soda cáustica, entre outras, em concentração até 10 vezes o limite de exposição ocupacional dessas substâncias. Modelo de ref.: 3M cód 9312. | F20: Unidade | H20: 0 | I20: 30 | J20: 0 | K20: 0
C21: 8 | E21: luva de malha pigmentada; fabricada em fios de algodão e poliéster; palma com pigmentos de PVC; com elástico para o punho; 4 fios. Modelo de referência: Carbografite código 012348212 | F21: Par | H21: 0 | I21: 30 | J21: 0 | K21: 0
C22: 9 | E22: Botina de segurança confeccionado em 100% microfibra; atende a NR 10, sem componentes metálicos; proteção elétrica e mecânica; colarinho forrado respirável; forração da gáspea respirável; fechamento em cadarço; palmilha de montagem em tanino dublado ou têxtil resistente à perfuração fixada/costurada junto ao cabedal (processo Strobel); solado com sistema de absorção de impacto; injetado diretamente ao cabedal; modelo transpirável e que possibilita a absorção e dessorção do suor, fácil higienização; não propaga chamas; lavável, impermeável, resistente a produtos químicos; biqueira de composite: leve, antimagnética, anticorrosiva e ultraresistente; palmilha resistente à perfuração: superflexível e cobre 100% da planta do pé; solado isolante em PU bidensidade. Modelo de referência Marluvas 70S29 C ou CPAP. | F22: Par | H22: 0 | I22: 30 | J22: 0 | K22: 0
C23: 10 | E23: Capacete de segurança, cor branca. CARACTERÍSTICAS DO CASCO: rígido; leve; balanceado para um dia inteiro de uso confortável; injetado em uma única peça em polietileno de alta densidade; sem porosidade; não sendo condutor de corrente elétrica e com alta resistência dielétrica; possuir fendas lateriais (Slot) para que sejam acoplados protetores faciais e auditivos; com aba frontal. CARACTERÍSTICAS DA SUSPENSÃO: sistema com catraca de ajuste rápido; com ajuste de precisão, com tira de nuca, para manter o capacete no lugar mesmo quando o usuário inclinar a cabeça; testeira absorvedora de suor, produzida em laminado de PVC atóxico, dublado com espuma multiperfurada em poliuretano, na cor cinza; carneira ajustável para todas as medidas de cabeça, confeccionada em polietileno de baixa densidade, de alta resistência; sistema de amortecimento com cinta dupla posicionada na forma de cruz, para receber o impacto e deslizar entre as fendas dos clips de fixação, da Suspensão ao Capacete, formando um inteligente sistema de amortecimento; GRAVAÇÃO DE LOGOTIPO NO CASCO: alta qualidade; colorido; feita pelo fabricante do capacete. Fabricante / modelo de referência: MSA Capacete V-Gard Aba Frontal com Suspensão Fas-Trac. | F23: Par | H23: 0 | I23: 30 | J23: 0 | K23: 0
C24: 11 | E24: Luva de segurança vaqueta petroleiro em couro, confeccionada em vaqueta total, com reforço, costurada com linha de nylon ou algodão, elástico para ajuste no dorso, proteção de couro embutida nas principais costuras do polegar e dedos, modelo Petroleiro. | F24: Par | H24: 0 | I24: 30 | J24: 0 | K24: 0
C25: 12 | E25: Luva de segurança raspa em couro, confeccionada em raspa total, com reforço, costurada com linha de nylon ou algodão, elástico para ajuste no dorso, proteção de couro embutida nas principais costuras do polegar e dedos, modelo Petroleiro. | F25: Par | H25: 0 | I25: 30 | J25: 0 | K25: 0
C26: 13 | E26: Luva de borracha p/ tensão 20 kV; classe II. | F26: Par | H26: 0 | I26: 30 | J26: 0 | K26: 0
C27: 14 | E27: Proteção de couro para luva isolante classe II. | F27: Par | H27: 0 | I27: 30 | J27: 0 | K27: 0
C28: 15 | E28: Uniforme eletricista retardante-chama NR10 com faixa refletiva. | F28: Jogo | H28: 0 | I28: 30 | J28: 0 | K28: 0
C29: 16 | E29: Protetor Facial V-Gard® 190 ARC Plus | F29: Par | H29: 0 | I29: 30 | J29: 0 | K29: 0
C30: Valor Estimado Mensal | J30: =SUM(K14:K29) -> 0
J32: TRT
J33: ='Dados Contratação'!$J$41 -> 2
C34: Valor Mensal dos Materiais de Consumo por Empregado | J34: =IF(J33=0,0,TRUNC(ROUND(J30/J33,2),2)) -> 0
C36: 2 | D36: FERRAMENTAS DE TELECOMUNICAÇÃO
F37: Unidade | G37: Marca | H37: Custo Unitário | I37: Vida Útil (meses) | J37: TRT
J38: Qtd. | K38: Custo Mensal
C39: 1 | E39: Alicate de crimpagem RJ-45; padrão RoHS Compliant; corpo de aço com revestimento termoplástico; executa a inserção das garras de contato do conector RJ-45 macho e aciona o prensa-cabo; conectorização de conectores RJ-45 macho CAT 5e e CAT 6; metal na cor preta e termoplástico na cor azul; dimensões 265 x 100 x 100 mm; ferramenta de alta qualidade. Modelo de referência Furukawa ET1698 da família de produtos FISACESSO ou Fluke Crimpadora Modular 11212530. | F39: Unidade | H39: 0 | I39: 60 | J39: 0 | K39: =TRUNC(ROUND((H39*J39)/I39,2),2) -> 0
C40: 2 | E40: Kit de gerador de tom e sonda digital que rastreia e localiza cabos em uma rede ativa com acessórios; itens inclusos: a) gerador de tom de sinal digital codificado e sinal analógico 500 a 1200 Hz de 4 sons com desligamento automático, b) sonda detectora de sinal digital codificado e sinal analógico 500 a 1200 Hz com desligamento automático, c) adaptador de conector coaxial F, d) 2 cabos de acoplamento RJ11, e) 2 cabos de acoplamento RJ45, f) pontas de teste com garras jacaré, g) coletores, h) CD do proprietário, i) guia de início rápido, j) 2 baterias de 9 volts, k) estojo reforçado com acolchoado e passadores para cinto, l) pontas de teste com jogo cama de pregos, duas pontas de teste tipo banana do tipo cama de pregos, com garras jacaré do tipo cama de pregos e protetores de vinil, m) pontas de teste com jogo de garras jacaré, duas pontas de teste banana, com garras jacaré comuns e protetores de vinil; características: diagnostica informações essenciais de cabos com polaridade, continuidade e talkbattery; identifica e diagnostica POTS com serviço e polaridade de linha telefônica 1 e 2; identifica e diagnostica conectividade de link Ethernet de 10/100/1 Gb com NIC/indicação de hub; verifica instalação de par trançado com CableMap, identificando fiação mal feita de cabo comum; rejeição de ruídos e sinais falsos; localiza cabos em redes ativas, mesmo que estejam conectados a um switch; isola cabos e fiações dentro de um grupo, apesar do vazamento do cabo; confirma o local do cabo, verifica a continuidade e detecta falhas (aberturas, curtos e pares torcidos) de uma só vez; isola pares de fios individuais precisamente, alterando o tom quando em curto; controla e localiza cabos de voz, áudio e vídeo de maneira eficiente; sinalização digital e analógica; localização de cabos ocultos em pisos, telhados, paredes e grupos; verifica a continuidade do cabo; gera tom em redes vivas; identifica serviços de telecomunicações; verifica o serviço de Ethernet. Modelo de referência Fluke IntelliTone 200 Pro Toner and Probe MT-8200-60A e acessórios MT-8202-05, MT-8203-20 e MT-8203-22. | F40: Unidade | H40: 0 | I40: 60 | J40: 0 | K40: =TRUNC(ROUND((H40*J40)/I40,2),2) -> 0
C41: 3 | E41: Kit detector de tensão portátil; especificações do detector de tensão: 30,5 x 3,8 cm / 450 g / LED indicativo para 50 - 20.000 VAC RMS e 6 - 2.000 VDC; o kit deve incluir: a) protetor de sonda; b) bolsa de guarda; c) conexão temporária; d) fio terra; e) plug de teste; f) manual. Modelo de referência Fluke Kit Detector de Voltagem C9974. | F41: Unidade | H41: 0 | I41: 60 | J41: 0 | K41: 0
C42: 4 | E42: Alicate amperímetro; medição de corrente CA e CC escalas 40A e 400A, true RMS, precisão 2% +- 5 dígitos; medição de tensão CA e CC até 600V, true RMS, precisão 1,5% +- 5 dígitos; medição de resistência até 40 kOhms, precisão 1% +- 5 dígitos; detecção de continuidade <= 30 Ohms; medição de temperatura -10 a 400°C; medição de capacitância; medição de frequência 5 a 500 Hz; luz de fundo; design ergonômico; monitor amplo; botão de retenção; classificação CAT III 600V e CAT IV 300V; c/ maleta flexível para transporte; c/ terminais de teste. Modelo de referência Fluke 325. | F42: Unidade | H42: 0 | I42: 60 | J42: 0 | K42: 0
C43: 5 | E43: Escada ajustável multiuso; fabricado em alumínio aeronáutico; ajustável em 14 posições; sistema de travas seguras; 12 degraus (distância entre eles de 28cm); pés de borracha; capacidade 150 Kg; altura da escada reta 3,40m; altura da escada dobrada em 4 partes: 85 cm; altura da escada auxiliar: 1,57m; distância entre os degraus: 28 cm; peso aproximado: 11 kg; 2 barras estabilizadoras com pés de borracha; fornecido com: 1 chapa longa de andaime; 1 chapa curta de andaime, 8 parafusos, 16 arruelas, 8 porcas, 1 plataforma, 1 manual de instruções. Modelo de referência: Super Ladder. | F43: Unidade | H43: 0 | I43: 60 | J43: 0 | K43: 0
C44: 6 | E44: Escada Telescópica multi-uso; fabricada em aço-carbono fosfotizado; pintura eletrostática epóxi-pó; altura fechada: 1,27m e 4 degraus; altura cavalete: 2,05m e 4 a 7 degraus; altura vertical: 4,10m e 8 a 14 degraus; peso 14,5 Kg; com plataforma universal em polipropileno; com prolongador 1,6m; com kit andaime; possibilidade de uso em piso irregular; capacidade 120Kg. Modelo de referência: Zeus ref. 8055. | F44: Unidade | H44: 0 | I44: 60 | J44: 0 | K44: 0
C45: 7 | E45: Combo Furadeira Parafusadeira e Parafusadeira de impacto à bateria de 12 volts, rotação de 0 - 1300 rpm, torque máximo de 24 N.m. e mandril de aperto rápido de 3/8", com maleta. Modelo de referência: Makita LCT204 | F45: Unidade | H45: 0 | I45: 60 | J45: 0 | K45: 0
C46: 8 | E46: Furadeira e Parafusadeira de Impacto 20,0 Volts Max com mandril de 1/2" (13 mm) sem chave (aperto rápido), luz de Led, 03 velocidades mecânicas e gatilho eletrônico com velocidade variável e reversível. Acompanha 02 baterias de lítio (li-ion)de 3,0 amperes , carregador rápido, empunhadura, clip para cinto e maleta para transporte. • Luz de Led de 20s. • Controle de Torque. • Gatilho eletrônico com velocidade variável e reversível. • 03 velocidades mecânicas. • Empunhadura ergonômica.. Modelo de referência: DeWalt DCD985L2 | F46: Par | H46: 0 | I46: 60 | J46: 0 | K46: 0
C47: 9 | E47: Carrinho para ferramentas 5 gavetas e 1 porta 115 ferramentas. Descrição: Armazenamento e transporte de ferramentas manuais, peças e acessórios. Capacidade de carga dinâmica máxima no carrinho: 400-450 kg. Capacidade de carga estática máxima no carrinho: 500 kg. Espessura das chapas: Gavetas e portas: 0.80 mm; Estrutura: 1.20 mm. Acompanha puxador ergonômico e cobertura de borracha. Pintura eletrostática. Especificações: Estrutura com paredes reforçadas; Cinco gavetas com corrediças telescópicas; Quatro gavetas com 75 mm de altura; Uma gaveta com 154 mm de altura; Uma porta na parte inferior do carro; Trancas para as gavetas e portas; Rodas dianteiras fixas de borracha com 125 mm de diâmetro; Rodas traseiras giratórias de borracha com 125 mm de diâmetro; Rodas traseiras providas de freio individual; Capacidade de carga máxima por gaveta: 40 kg. Itens Inclusos: Gaveta 1 - 44980/001 - Jogo de Chaves Combinadas - 14 Peças; Gaveta 1 - 44980/002 - Jogo de Chaves Fixas e Hexagonais - 19 Peças; Gaveta 1 - 44980/011 - Jogo de Soquetes 1/2" - 20 Peças; Gaveta 2 - 44980/005 - Jogo de Chaves de Fenda - Cabo Verde - 8 Peças; Gaveta 2 - 44980/010 - Jogo de Martelos, Talhadeiras / Punções - 9 Peças; Gaveta 3 - 44980/024 - Jogo Chaves Tipo L; Gaveta 3 - 44980/009 - Jogo de Alicates - 5 Peças; Gaveta 4 - 44980/007 - Jogo de Alicates para Anéis - 4 Peças; Gaveta 4 - 44980/012 - Módulos para Objetos Diversos; Gaveta 4 - 44980/014 - 3 unidades; Gaveta 1 - 44980/026 - 3 unidades; Gaveta2 - 44980/026 - 3 Unidades; Gaveta 3 - 44980/026 - 3 Unidades; Gaveta 4 - 44980/026 - 3 Unidades. Modelo de referência: ”ADVANTAGE” - Tramontina pro | F47: Par | H47: 0 | I47: 60 | J47: 0 | K47: 0
C48: 10 | E48: Martelete Perfurador Rompedor para serviços pesados em concreto armado e alvenaria; executa rapidamente perfurações e pequenos trabalhos de rompimento; sistema de encaixe SDS-Plus; velocidade variável; vários Lock (36 posições); embreagem de segurança; empunhadeira auxiliar ajustável à 360º com limitador de profundidade regulável; capacidade de perfurar concreto 24mm, metal 13mm, madeira 30mm; potência 680W; rotação max. 870 rpm; velocidade de impactos máx. 4850 / min; força de impacto 2,4 Joules; massa 2,4 Kg; 127V; com maleta própria; fornecer com 06 unidades de brocas SDS Plus nas medidas (mm) 6x210, 6x260, 8x210, 8x300, 10x300 e 12x300. Modelo de referência Bosch GBH 2-24 DSE ou DSR ou Makita. | F48: Par | H48: 0 | I48: 60 | J48: 0 | K48: 0
C49: 11 | E49: Esmerilhadeira angular 4.1/2" 800 watts rotação de 12.000 rpm; empunhadura lateral em duas posições e cabo elétrico emborrachado de 2,5 metros; Modelo de referencia: Dewalt DWE4020B2B, Makita GA4530, Bosch GWS8-115. | F49: Par | H49: 0 | I49: 60 | J49: 0 | K49: 0
C50: 12 | E50: Jogo De Ferramentas Com 23 Peças; Estojo Em Lona Com Zíper; 1 Alicate Universal 7; 1 Alicate Bomba Dagua 10"; - 1 Trena 3 Metros; - 1 Estilete 18mm; 1 Chave De Fenda 5x75mm; 1 Chave Phillips 1x75mm; 2 Chaves De Precisão 2,4x40mm; 9 Chaves Hexagonais / Allen 1,5 A 10mm; 6 Chaves Combinadas 8 A 19mm | F50: Par | H50: 0 | I50: 60 | J50: 0 | K50: 0
C51: 13 | E51: Arco de serra para metais; cabo ergonômico fechado para maior proteção; profundidade de corte 90mm; para lâminas de 12"; largura 435mm; peso máximo 360g; pode ser usado com lâmina na vertical ou com ângulo de 40° em relação ao arco; cabo em alumínio com pintura eletrostática; magazine (suporte) para armazenar 3 lâminas reservas dentro do tubo do arco; fornecer com 4 lâminas do mesmo fabricante do arco de serra. Modelo de referência: Gedore cód 039.010 / ref 403. | F51: Par | H51: 0 | I51: 60 | J51: 0 | K51: 0
C52: 14 | E52: Broca SDS-plus diâmetro 8mm; comprimento útil 90mm; comprimento total 150mm; broca de percussão mais resistente ao impacto, com maior durabilidade em concreto e granito, extremamente resistente à torção; forma em espiral com ranhura de avanço em forma de U, impedindo a obstrução pelo pó, com maior rendimento da perfuração; formato largo e a posição aprofundada da pastilha de metal duro para evitar a quebra da ponta; arestas de metal duro afiadas com diamante, soldadas a alta temperatura para furar de forma rápida, precisa e segura; apropriada para furos em granito, concreto, alvenaria, arenito calcário, pedras naturais e artificiais. Modelo de referência Bosch Blue Granite, número de tipo 2 608 597 743 e código de barras 3165140187558. | F52: Par | H52: 0 | I52: 60 | J52: 0 | K52: 0
C53: 15 | E53: Broca SDS-plus diâmetro 10mm; comprimento útil 300mm; comprimento total 365mm; ponta centradora cônica para centramento durante a perfuração de diâmetros precisos; aresta de corte com formato especial para alta velocidade de perfuração constante; marca de desgaste fácil de checar; precisão constante das perfurações; pastilha de metal duro maciço com geometria de quatro lâminas para prolongamento da vida útil em concreto e concreto armado; superfície e geometria em espiral de alta performance para transferência de força máxima e rápida remoção de pó. Modelo de referência Bosch, número de tipo 2 2608680273 e código de barras 3165140440202. | F53: Par | H53: 0 | I53: 60 | J53: 0 | K53: 0
C54: 16 | E54: Broca SDS-plus diâmetro 12mm; comprimento útil 300mm; comprimento total 365mm; ponta centradora cônica para centramento durante a perfuração de diâmetros precisos; aresta de corte com formato especial para alta velocidade de perfuração constante; marca de desgaste fácil de checar; precisão constante das perfurações; pastilha de metal duro maciço com geometria de quatro lâminas para prolongamento da vida útil em concreto e concreto armado; superfície e geometria em espiral de alta performance para transferência de força máxima e rápida remoção de pó. Modelo de referência Bosch, número de tipo 2 608 585 053 e código de barras 3165140440202. | F54: Par | H54: 0 | I54: 60 | J54: 0 | K54: 0
C55: 17 | E55: Broca SDS-plus diâmetro 14mm; comprimento útil 300mm; comprimento total 365mm; ponta centradora cônica para centramento durante a perfuração de diâmetros precisos; aresta de corte com formato especial para alta velocidade de perfuração constante; marca de desgaste fácil de checar; precisão constante das perfurações; pastilha de metal duro maciço com geometria de quatro lâminas para prolongamento da vida útil em concreto e concreto armado; superfície e geometria em espiral de alta performance para transferência de força máxima e rápida remoção de pó. Modelo de referência Bosch, número de tipo 2 608 585 947 e código de barras 3165140522212. | F55: Par | H55: 0 | I55: 60 | J55: 0 | K55: 0
C56: 18 | E56: Corda 8mm - 30 metros | F56: Par | H56: 0 | I56: 60 | J56: 0 | K56: 0
C57: 19 | E57: Fita Isolante Autofusão 10 Metros Preto 3M | F57: Par | H57: 0 | I57: 60 | J57: 0 | K57: 0
C58: 20 | E58: Passa fio com alma de aço proagua 20 metros profissional | F58: Par | H58: 0 | I58: 60 | J58: 0 | K58: 0
C59: 21 | E59: Fita isolante antichama - rolo 20 metros; PVC auto-extinguível à chama; antiflam; não perecível; para isolação até 750V; classe de temperatura 90°C; largura 19mm, espessura 0,18 a 0,19mm; norma NBR 5037; cor preta; cada unidade em uma embalagem plástica rígida; validade impressa no rolo da fita com pelo menos 18 meses; fabricante e modelo impresso em auto-relevo na fita. Modelos de referência: Pirelli Prysmian P44, 3M Scotch 33+ e Tigre Pro Classe A. | F59: Par | H59: 0 | I59: 60 | J59: 0 | K59: 0
C60: 22 | E60: Trena de precisão, 5 metros, fita de aço inoxidável, em caixa ergonômica resistente a impactos, fita de fácil leitura, extremidade da fita duplamente rebitada, graduações em milímetro e polegada tipo S9; largura da fita 19mm. Modelo de referência: Starrett VI34-5. | F60: Par | H60: 0 | I60: 60 | J60: 0 | K60: 0
C61: 23 | E61: Medidor de Distância - Trena a Laser Especificações Técnicas: Distância de trabalho: 0,15 ? 40 m; Precisão de medição: ± 1,5 mm; Pilhas: 2 x 1,5 V LR03 (AAA); Classe e tipo do laser: Class 2, 635 nm, <1mW; Modelo de referencia : GLM40 Bosch | F61: Par | H61: 0 | I61: 60 | J61: 0 | K61: 0
C62: 24 | E62: Ventosa; material ABS; utilizada no manuseio de placas de vidro de até 60 kg; sistema de aspiração e trava de segurança; os discos de aspiração são fixos. Modelo de referência Vonder 35.99.303.303 | F62: Par | H62: 0 | I62: 60 | J62: 0 | K62: 0
C63: 25 | E63: Jogo X-Line Titânio Com 100 Peças. Contendo: 1 Adaptador magnético universal, 1 Chave de catraca angular (frente/reverso), 1 Adaptador de soquete, 1 Adaptador p/ serra copo, 1 Chave allen, 1 Nível de bolha, 1 Guia p/ broca, 1 Lanterna, 1 Limitador de profundidade, 18 Brocas p/ metal titânio 1-10mm, 7 Brocas p/ concreto 3-8mm, 7 Brocas p/ madeira 3-10mm, 3 Brocas chatas titânio 16/22/32mm, 40 Pontas 25mm: SL 4/4/6/6/7/7 - Hex 3/4/5/6 - PH 0/0/1/1/2/2/2/3/3/3 - PZ 0/0/1/1/2/2/2/3/3/3 - Torx T10/T10/T15/T15/T20/T20/T25/T25/T30. Modelo de referência: BOSCH | F63: Par | H63: 0 | I63: 60 | J63: 0 | K63: 0
C64: 26 | E64: Notebook Intel Core i5-7200U 8GB 1TB Tela 15.6” Windows 10; wifi; bluetooth; saída HDMI; fornecido com mouse sem fio, 2,4GHz 1000dpi, 3 botóes e scroll, com mousepad. Modelo de referência: Dell Inspiron I15-3567-A40P | F64: Par | H64: 0 | I64: 60 | J64: 0 | K64: 0
C65: 27 | E65: Smartphone 4G; processador octa-core 1.4GHz; 3GB memória RAM; armazenamento 32GB; tela full HD entre 5 e 6,5 polegadas de diagonal; tela com proteção de vidro à prova de riscos (Gorilla Glass 3 ou similar); capacidade mín. bateria 3200 mAh; redes GSM / GPRS / EDGE / 3G / 4G nas bandas em uso no MS; com função de compartilhamento de internet wifi; câmera traseira mín. 12 MP com flash; câmera frontal mín. 2 MP; captura de vídeo em full HD; bluetooth; Wi-Fi 802.11a/g/b/n/ac; GPS / Glonass; sistema operacional Android 7 ou superior; modelos de referência: Samsung Galaxy S8, Samsung Galaxy A5+, Motorola Moto G6 play; fornecer com capa resistente a quedas. | F65: Par | H65: 0 | I65: 30 | J65: 0 | K65: 0
C66: 28 | E66: Alicate de Inserção Punch Down, faz inserção e corte excesso, permite ajuste de impacto, cabo anatômico e regulagem de pressão. Modelo de referência: GC-314B | F66: Jogo | H66: 0 | I66: 60 | J66: 0 | K66: 0
C67: 29 | E67: Plano de dados e voz, cuja cobertura abranja todos os pavimentos do prédio sede e todas as cidades que abrigam prédios do TRT24: mín. de 100 minutos de voz outras operadoras, voz ilimitado entre mesma operadora, mín. de 2GB de tráfego mensal, banda de dados mín. de 7Mbps, torpedos ilimitados. | F67: Par | H67: 0 | I67: 1 | J67: 0 | K67: 0
C68: Valor Estimado Mensal | J68: =SUM(K39:K67) -> 0
J70: TRT
J71: ='Dados Contratação'!$J$41 -> 2
C72: Valor Mensal dos Materiais de Consumo por Empregado | J72: =IF(J71=0,0,TRUNC(ROUND(J68/J71,2),2)) -> 0

Sheet Insumos - Limpeza (hidden)
B1: 5 - EQUIPAMENTOS E INSUMOS DIVERSOS
B3: Discriminação dos Serviços (dados referentes à contratação)
B4: Nº do Processo Administrativo: | F4: Licitação nº: | H4: Data: | J4: Horário:
B5: =IF(ISBLANK('Dados Contratação'!$B$6),"-",'Dados Contratação'!$B$6) -> 15940/2022 | F5: =IF(ISBLANK('Dados Contratação'!$D$6),"-",'Dados Contratação'!$D$6) -> - | H5: =IF(ISBLANK('Dados Contratação'!$E$6),"-",'Dados Contratação'!$E$6) -> - | J5: =IF(ISBLANK('Dados Contratação'!$F$6),"-",'Dados Contratação'!$F$6) -> -
B6: Local da Prestação dos Serviços: | F6: Vigência da Contratação: | I6: Máximo de Vigência:
B7: =IF(ISBLANK('Dados Contratação'!$M$12),"-",'Dados Contratação'!$M$12) -> CAMPO GRANDE/MS | F7: =IF(ISBLANK('Dados Contratação'!$J$6),"-",CONCATENATE('Dados Contratação'!$J$6," ",'Dados Contratação'!$K$6)) -> 12 meses | I7: =IF(ISBLANK('Dados Contratação'!$N$6),"-",CONCATENATE('Dados Contratação'!$N$6," ",'Dados Contratação'!$O$6)) -> 60 meses
C9: MÁQUINAS, EQUIPAMENTOS E FERRAMENTAS
C11: 1 | D11: MÁQUINAS E EQUIPAMENTOS
F12: Unidade | G12: Marca | H12: Custo Unitário | I12: Vida Útil (meses) | J12: TRT - SEDE | L12: FÓRUM C. GRANDE | N12: FÓRUM DOURADOS | P12: FÓRUM TRÊS LAGOAS | R12: VT. AMAMBAI | T12: VT. AQUIDAUANA | V12: VT. BATAGUASSU | X12: VT. CASSILÂNDIA | Z12: VT. CORUMBÁ | AB12: VT. COXIM | AD12: VT. FÁTIMA DO SUL | AF12: VT. JARDIM | AH12: VT. MUNDO NOVO | AJ12: VT. NAVIRAÍ | AL12: VT. NOVA ANDRADINA | AN12: VT. PARANAÍBA | AP12: VT. PONTA PORÃ | AR12: VT. RIO BRILHANTE | AT12: VT. SÃO GABRIEL | AV12: VT. CHAPADÃO DO SUL
J13: Qtd. | K13: Custo Mensal | L13: Qtd. | M13: Custo Mensal | N13: Qtd. | O13: Custo Mensal | P13: Qtd. | Q13: Custo Mensal | R13: Qtd. | S13: Custo Mensal | T13: Qtd. | U13: Custo Mensal | V13: Qtd. | W13: Custo Mensal | X13: Qtd. | Y13: Custo Mensal | Z13: Qtd. | AA13: Custo Mensal | AB13: Qtd. | AC13: Custo Mensal | AD13: Qtd. | AE13: Custo Mensal | AF13: Qtd. | AG13: Custo Mensal | AH13: Qtd. | AI13: Custo Mensal | AJ13: Qtd. | AK13: Custo Mensal | AL13: Qtd. | AM13: Custo Mensal | AN13: Qtd. | AO13: Custo Mensal | AP13: Qtd. | AQ13: Custo Mensal | AR13: Qtd. | AS13: Custo Mensal | AT13: Qtd. | AU13: Custo Mensal | AV13: Qtd. | AW13: Custo Mensal
C14: 1 | D14: Balde com rodas para limpeza profissional | F14: Unidade | H14: 0 | I14: 30 | J14: 0 | K14: =TRUNC(ROUND(($H14*J14)/$I14,2),2) -> 0 | L14: 0 | M14: =TRUNC(ROUND(($H14*L14)/$I14,2),2) -> 0 | N14: 0 | O14: =TRUNC(ROUND(($H14*N14)/$I14,2),2) -> 0 | P14: 0 | Q14: =TRUNC(ROUND(($H14*P14)/$I14,2),2) -> 0 | R14: 0 | S14: =TRUNC(ROUND(($H14*R14)/$I14,2),2) -> 0 | T14: 0 | U14: =TRUNC(ROUND(($H14*T14)/$I14,2),2) -> 0 | V14: 0 | W14: =TRUNC(ROUND(($H14*V14)/$I14,2),2) -> 0 | X14: 0 | Y14: =TRUNC(ROUND(($H14*X14)/$I14,2),2) -> 0 | Z14: 0 | AA14: =TRUNC(ROUND(($H14*Z14)/$I14,2),2) -> 0 | AB14: 0 | AC14: =TRUNC(ROUND(($H14*AB14)/$I14,2),2) -> 0 | AD14: 0 | AE14: =TRUNC(ROUND(($H14*AD14)/$I14,2),2) -> 0 | AF14: 0 | AG14: =TRUNC(ROUND(($H14*AF14)/$I14,2),2) -> 0 | AH14: 0 | AI14: =TRUNC(ROUND(($H14*AH14)/$I14,2),2) -> 0 | AJ14: 0 | AK14: =TRUNC(ROUND(($H14*AJ14)/$I14,2),2) -> 0 | AL14: 0 | AM14: =TRUNC(ROUND(($H14*AL14)/$I14,2),2) -> 0 | AN14: 0 | AO14: =TRUNC(ROUND(($H14*AN14)/$I14,2),2) -> 0 | AP14: 0 | AQ14: =TRUNC(ROUND(($H14*AP14)/$I14,2),2) -> 0 | AR14: 0 | AS14: =TRUNC(ROUND(($H14*AR14)/$I14,2),2) -> 0 | AT14: 0 | AU14: =TRUNC(ROUND(($H14*AT14)/$I14,2),2) -> 0 | AV14: 0 | AW14: =TRUNC(ROUND(($H14*AV14)/$I14,2),2) -> 0
C15: 2 | D15: Enceradeira industrial | F15: Unidade | H15: 0 | I15: 60 | J15: 0 | K15: =TRUNC(ROUND(($H15*J15)/$I15,2),2) -> 0 | L15: 0 | M15: =TRUNC(ROUND(($H15*L15)/$I15,2),2) -> 0 | N15: 0 | O15: =TRUNC(ROUND(($H15*N15)/$I15,2),2) -> 0 | P15: 0 | Q15: =TRUNC(ROUND(($H15*P15)/$I15,2),2) -> 0 | R15: 0 | S15: =TRUNC(ROUND(($H15*R15)/$I15,2),2) -> 0 | T15: 0 | U15: =TRUNC(ROUND(($H15*T15)/$I15,2),2) -> 0 | V15: 0 | W15: =TRUNC(ROUND(($H15*V15)/$I15,2),2) -> 0 | X15: 0 | Y15: =TRUNC(ROUND(($H15*X15)/$I15,2),2) -> 0 | Z15: 0 | AA15: =TRUNC(ROUND(($H15*Z15)/$I15,2),2) -> 0 | AB15: 0 | AC15: =TRUNC(ROUND(($H15*AB15)/$I15,2),2) -> 0 | AD15: 0 | AE15: =TRUNC(ROUND(($H15*AD15)/$I15,2),2) -> 0 | AF15: 0 | AG15: =TRUNC(ROUND(($H15*AF15)/$I15,2),2) -> 0 | AH15: 0 | AI15: =TRUNC(ROUND(($H15*AH15)/$I15,2),2) -> 0 | AJ15: 0 | AK15: =TRUNC(ROUND(($H15*AJ15)/$I15,2),2) -> 0 | AL15: 0 | AM15: =TRUNC(ROUND(($H15*AL15)/$I15,2),2) -> 0 | AN15: 0 | AO15: =TRUNC(ROUND(($H15*AN15)/$I15,2),2) -> 0 | AP15: 0 | AQ15: =TRUNC(ROUND(($H15*AP15)/$I15,2),2) -> 0 | AR15: 0 | AS15: =TRUNC(ROUND(($H15*AR15)/$I15,2),2) -> 0 | AT15: 0 | AU15: =TRUNC(ROUND(($H15*AT15)/$I15,2),2) -> 0 | AV15: 0 | AW15: =TRUNC(ROUND(($H15*AV15)/$I15,2),2) -> 0
C16: 3 | D16: Escada de 5/6 degraus com proteção nos pés | F16: Unidade | H16: 0 | I16: 60 | J16: 0 | K16: 0 | L16: 0 | M16: 0 | N16: 0 | O16: 0 | P16: 0 | Q16: 0 | R16: 0 | S16: 0 | T16: 0 | U16: 0 | V16: 0 | W16: 0 | X16: 0 | Y16: 0 | Z16: 0 | AA16: 0 | AB16: 0 | AC16: 0 | AD16: 0 | AE16: 0 | AF16: 0 | AG16: 0 | AH16: 0 | AI16: 0 | AJ16: 0 | AK16: 0 | AL16: 0 | AM16: 0 | AN16: 0 | AO16: 0 | AP16: 0 | AQ16: 0 | AR16: 0 | AS16: 0 | AT16: 0 | AU16: 0 | AV16: 0 | AW16: 0
C17: 4 | D17: Lavadora a jato de alta pressão profissional | F17: Unidade | H17: 0 | I17: 60 | J17: 0 | K17: 0 | L17: 0 | M17: 0 | N17: 0 | O17: 0 | P17: 0 | Q17: 0 | R17: 0 | S17: 0 | T17: 0 | U17: 0 | V17: 0 | W17: 0 | X17: 0 | Y17: 0 | Z17: 0 | AA17: 0 | AB17: 0 | AC17: 0 | AD17: 0 | AE17: 0 | AF17: 0 | AG17: 0 | AH17: 0 | AI17: 0 | AJ17: 0 | AK17: 0 | AL17: 0 | AM17: 0 | AN17: 0 | AO17: 0 | AP17: 0 | AQ17: 0 | AR17: 0 | AS17: 0 | AT17: 0 | AU17: 0 | AV17: 0 | AW17: 0
C18: 5 | D18: Carro funcional para limpeza | F18: Unidade | H18: 0 | I18: 60 | J18: 0 | K18: 0 | L18: 0 | M18: 0 | N18: 0 | O18: 0 | P18: 0 | Q18: 0 | R18: 0 | S18: 0 | T18: 0 | U18: 0 | V18: 0 | W18: 0 | X18: 0 | Y18: 0 | Z18: 0 | AA18: 0 | AB18: 0 | AC18: 0 | AD18: 0 | AE18: 0 | AF18: 0 | AG18: 0 | AH18: 0 | AI18: 0 | AJ18: 0 | AK18: 0 | AL18: 0 | AM18: 0 | AN18: 0 | AO18: 0 | AP18: 0 | AQ18: 0 | AR18: 0 | AS18: 0 | AT18: 0 | AU18: 0 | AV18: 0 | AW18: 0
C19: 6 | D19: Soprador de ar 600 W | F19: Unidade | H19: 0 | I19: 60 | J19: 0 | K19: 0 | L19: 0 | M19: 0 | N19: 0 | O19: 0 | P19: 0 | Q19: 0 | R19: 0 | S19: 0 | T19: 0 | U19: 0 | V19: 0 | W19: 0 | X19: 0 | Y19: 0 | Z19: 0 | AA19: 0 | AB19: 0 | AC19: 0 | AD19: 0 | AE19: 0 | AF19: 0 | AG19: 0 | AH19: 0 | AI19: 0 | AJ19: 0 | AK19: 0 | AL19: 0 | AM19: 0 | AN19: 0 | AO19: 0 | AP19: 0 | AQ19: 0 | AR19: 0 | AS19: 0 | AT19: 0 | AU19: 0 | AV19: 0 | AW19: 0
C20: 7 | D20: Aspirador de pó e água profissional 1200W | F20: Unidade | H20: 0 | I20: 60 | J20: 0 | K20: 0 | L20: 0 | M20: 0 | N20: 0 | O20: 0 | P20: 0 | Q20: 0 | R20: 0 | S20: 0 | T20: 0 | U20: 0 | V20: 0 | W20: 0 | X20: 0 | Y20: 0 | Z20: 0 | AA20: 0 | AB20: 0 | AC20: 0 | AD20: 0 | AE20: 0 | AF20: 0 | AG20: 0 | AH20: 0 | AI20: 0 | AJ20: 0 | AK20: 0 | AL20: 0 | AM20: 0 | AN20: 0 | AO20: 0 | AP20: 0 | AQ20: 0 | AR20: 0 | AS20: 0 | AT20: 0 | AU20: 0 | AV20: 0 | AW20: 0
C21: 8 | D21: Extensão elétrica (40/50 metros) | F21: Unidade | H21: 0 | I21: 30 | J21: 0 | K21: 0 | L21: 0 | M21: 0 | N21: 0 | O21: 0 | P21: 0 | Q21: 0 | R21: 0 | S21: 0 | T21: 0 | U21: 0 | V21: 0 | W21: 0 | X21: 0 | Y21: 0 | Z21: 0 | AA21: 0 | AB21: 0 | AC21: 0 | AD21: 0 | AE21: 0 | AF21: 0 | AG21: 0 | AH21: 0 | AI21: 0 | AJ21: 0 | AK21: 0 | AL21: 0 | AM21: 0 | AN21: 0 | AO21: 0 | AP21: 0 | AQ21: 0 | AR21: 0 | AS21: 0 | AT21: 0 | AU21: 0 | AV21: 0 | AW21: 0
C22: 9 | D22: Enxada | F22: Unidade | H22: 0 | I22: 30 | J22: 0 | K22: 0 | L22: 0 | M22: 0 | N22: 0 | O22: 0 | P22: 0 | Q22: 0 | R22: 0 | S22: 0 | T22: 0 | U22: 0 | V22: 0 | W22: 0 | X22: 0 | Y22: 0 | Z22: 0 | AA22: 0 | AB22: 0 | AC22: 0 | AD22: 0 | AE22: 0 | AF22: 0 | AG22: 0 | AH22: 0 | AI22: 0 | AJ22: 0 | AK22: 0 | AL22: 0 | AM22: 0 | AN22: 0 | AO22: 0 | AP22: 0 | AQ22: 0 | AR22: 0 | AS22: 0 | AT22: 0 | AU22: 0 | AV22: 0 | AW22: 0
C23: 10 | D23: Rastelo | F23: Unidade | H23: 0 | I23: 30 | J23: 0 | K23: 0 | L23: 0 | M23: 0 | N23: 0 | O23: 0 | P23: 0 | Q23: 0 | R23: 0 | S23: 0 | T23: 0 | U23: 0 | V23: 0 | W23: 0 | X23: 0 | Y23: 0 | Z23: 0 | AA23: 0 | AB23: 0 | AC23: 0 | AD23: 0 | AE23: 0 | AF23: 0 | AG23: 0 | AH23: 0 | AI23: 0 | AJ23: 0 | AK23: 0 | AL23: 0 | AM23: 0 | AN23: 0 | AO23: 0 | AP23: 0 | AQ23: 0 | AR23: 0 | AS23: 0 | AT23: 0 | AU23: 0 | AV23: 0 | AW23: 0
C24: 11 | D24: Mop Abrasivo Esfrebom com cabo | F24: Unidade | H24: 0 | I24: 10 | J24: 0 | K24: 0 | L24: 0 | M24: 0 | N24: 0 | O24: 0 | P24: 0 | Q24: 0 | R24: 0 | S24: 0 | T24: 0 | U24: 0 | V24: 0 | W24: 0 | X24: 0 | Y24: 0 | Z24: 0 | AA24: 0 | AB24: 0 | AC24: 0 | AD24: 0 | AE24: 0 | AF24: 0 | AG24: 0 | AH24: 0 | AI24: 0 | AJ24: 0 | AK24: 0 | AL24: 0 | AM24: 0 | AN24: 0 | AO24: 0 | AP24: 0 | AQ24: 0 | AR24: 0 | AS24: 0 | AT24: 0 | AU24: 0 | AV24: 0 | AW24: 0
C25: 12 | D25: Rodo Mop Sekito | F25: Unidade | H25: 0 | I25: 10 | J25: 0 | K25: 0 | L25: 0 | M25: 0 | N25: 0 | O25: 0 | P25: 0 | Q25: 0 | R25: 0 | S25: 0 | T25: 0 | U25: 0 | V25: 0 | W25: 0 | X25: 0 | Y25: 0 | Z25: 0 | AA25: 0 | AB25: 0 | AC25: 0 | AD25: 0 | AE25: 0 | AF25: 0 | AG25: 0 | AH25: 0 | AI25: 0 | AJ25: 0 | AK25: 0 | AL25: 0 | AM25: 0 | AN25: 0 | AO25: 0 | AP25: 0 | AQ25: 0 | AR25: 0 | AS25: 0 | AT25: 0 | AU25: 0 | AV25: 0 | AW25: 0
C26: Valor Estimado Mensal - Depreciação | J26: =SUM(K14:K25) -> 0 | L26: =SUM(M14:M25) -> 0 | N26: =SUM(O14:O25) -> 0 | P26: =SUM(Q14:Q25) -> 0 | R26: =SUM(S14:S25) -> 0 | T26: =SUM(U14:U25) -> 0 | V26: =SUM(W14:W25) -> 0 | X26: =SUM(Y14:Y25) -> 0 | Z26: =SUM(AA14:AA25) -> 0 | AB26: =SUM(AC14:AC25) -> 0 | AD26: =SUM(AE14:AE25) -> 0 | AF26: =SUM(AG14:AG25) -> 0 | AH26: =SUM(AI14:AI25) -> 0 | AJ26: =SUM(AK14:AK25) -> 0 | AL26: =SUM(AM14:AM25) -> 0 | AN26: =SUM(AO14:AO25) -> 0 | AP26: =SUM(AQ14:AQ25) -> 0 | AR26: =SUM(AS14:AS25) -> 0 | AT26: =SUM(AU14:AU25) -> 0 | AV26: =SUM(AW14:AW25) -> 0
D28: Custo Estimado Com Manutenção dos Equipamentos (0,5%) | J28: =TRUNC(ROUND(J26*0.5%,2),2) -> 0 | L28: =TRUNC(ROUND(L26*0.5%,2),2) -> 0 | N28: =TRUNC(ROUND(N26*0.5%,2),2) -> 0 | P28: =TRUNC(ROUND(P26*0.5%,2),2) -> 0 | R28: =TRUNC(ROUND(R26*0.5%,2),2) -> 0 | T28: =TRUNC(ROUND(T26*0.5%,2),2) -> 0 | V28: =TRUNC(ROUND(V26*0.5%,2),2) -> 0 | X28: =TRUNC(ROUND(X26*0.5%,2),2) -> 0 | Z28: =TRUNC(ROUND(Z26*0.5%,2),2) -> 0 | AB28: =TRUNC(ROUND(AB26*0.5%,2),2) -> 0 | AD28: =TRUNC(ROUND(AD26*0.5%,2),2) -> 0 | AF28: =TRUNC(ROUND(AF26*0.5%,2),2) -> 0 | AH28: =TRUNC(ROUND(AH26*0.5%,2),2) -> 0 | AJ28: =TRUNC(ROUND(AJ26*0.5%,2),2) -> 0 | AL28: =TRUNC(ROUND(AL26*0.5%,2),2) -> 0 | AN28: =TRUNC(ROUND(AN26*0.5%,2),2) -> 0 | AP28: =TRUNC(ROUND(AP26*0.5%,2),2) -> 0 | AR28: =TRUNC(ROUND(AR26*0.5%,2),2) -> 0 | AT28: =TRUNC(ROUND(AT26*0.5%,2),2) -> 0 | AV28: =TRUNC(ROUND(AV26*0.5%,2),2) -> 0
C29: Custo Mensal das Máquinas e Equipamentos por Posto | J29: =J26+J28 -> 0 | L29: =L26+L28 -> 0 | N29: =N26+N28 -> 0 | P29: =P26+P28 -> 0 | R29: =R26+R28 -> 0 | T29: =T26+T28 -> 0 | V29: =V26+V28 -> 0 | X29: =X26+X28 -> 0 | Z29: =Z26+Z28 -> 0 | AB29: =AB26+AB28 -> 0 | AD29: =AD26+AD28 -> 0 | AF29: =AF26+AF28 -> 0 | AH29: =AH26+AH28 -> 0 | AJ29: =AJ26+AJ28 -> 0 | AL29: =AL26+AL28 -> 0 | AN29: =AN26+AN28 -> 0 | AP29: =AP26+AP28 -> 0 | AR29: =AR26+AR28 -> 0 | AT29: =AT26+AT28 -> 0 | AV29: =AV26+AV28 -> 0
J31: TRT - SEDE | L31: FÓRUM C. GRANDE | N31: FÓRUM DOURADOS | P31: FÓRUM TRÊS LAGOAS | R31: VT. AMAMBAI | T31: VT. AQUIDAUANA | V31: VT. BATAGUASSU | X31: VT. CASSILÂNDIA | Z31: VT. CORUMBÁ | AB31: VT. COXIM | AD31: VT. FÁTIMA DO SUL | AF31: VT. JARDIM | AH31: VT. MUNDO NOVO | AJ31: VT. NAVIRAÍ | AL31: 0 | AN31: VT. PARANAÍBA | AP31: VT. PONTA PORÃ | AR31: VT. RIO BRILHANTE | AT31: VT. SÃO GABRIEL | AV31: VT. CHAPADÃO DO SUL
D32: Quantidade Total de Empregados | J32: =SUM('Dados Contratação'!$J$19,'Dados Contratação'!$J$21) -> 2 | L32: =SUM('Dados Contratação'!$J$20,'Dados Contratação'!$J$22) -> 0 | N32: ='Dados Contratação'!$J$23 -> 0 | P32: ='Dados Contratação'!$J$24 -> 0 | R32: ='Dados Contratação'!$J$25 -> 0 | T32: ='Dados Contratação'!$J$26 -> 0 | V32: ='Dados Contratação'!$J$27 -> 0 | X32: ='Dados Contratação'!$J$28 -> 0 | Z32: ='Dados Contratação'!$J$29 -> 0 | AB32: ='Dados Contratação'!$J$30 -> 0 | AD32: ='Dados Contratação'!$J$31 -> 0 | AF32: ='Dados Contratação'!$J$32 -> 0 | AH32: ='Dados Contratação'!$J$33 -> 0 | AJ32: ='Dados Contratação'!$J$34 -> 0 | AL32: ='Dados Contratação'!$J$35 -> 0 | AN32: ='Dados Contratação'!$J$36 -> 0 | AP32: ='Dados Contratação'!$J$37 -> 0 | AR32: ='Dados Contratação'!$J$38 -> 0 | AT32: ='Dados Contratação'!$J$39 -> 0 | AV32: ='Dados Contratação'!$J$40 -> 0
C33: Custo Mensal das Máquinas e Equipamentos por Empregado | J33: =IF(J32=0,0,TRUNC(ROUND(J29/J32,2),2)) -> 0 | L33: =IF(L32=0,0,TRUNC(ROUND(L29/L32,2),2)) -> 0 | N33: =IF(N32=0,0,TRUNC(ROUND(N29/N32,2),2)) -> 0 | P33: =IF(P32=0,0,TRUNC(ROUND(P29/P32,2),2)) -> 0 | R33: =IF(R32=0,0,TRUNC(ROUND(R29/R32,2),2)) -> 0 | T33: =IF(T32=0,0,TRUNC(ROUND(T29/T32,2),2)) -> 0 | V33: =IF(V32=0,0,TRUNC(ROUND(V29/V32,2),2)) -> 0 | X33: =IF(X32=0,0,TRUNC(ROUND(X29/X32,2),2)) -> 0 | Z33: =IF(Z32=0,0,TRUNC(ROUND(Z29/Z32,2),2)) -> 0 | AB33: =IF(AB32=0,0,TRUNC(ROUND(AB29/AB32,2),2)) -> 0 | AD33: =IF(AD32=0,0,TRUNC(ROUND(AD29/AD32,2),2)) -> 0 | AF33: =IF(AF32=0,0,TRUNC(ROUND(AF29/AF32,2),2)) -> 0 | AH33: =IF(AH32=0,0,TRUNC(ROUND(AH29/AH32,2),2)) -> 0 | AJ33: =IF(AJ32=0,0,TRUNC(ROUND(AJ29/AJ32,2),2)) -> 0 | AL33: =IF(AL32=0,0,TRUNC(ROUND(AL29/AL32,2),2)) -> 0 | AN33: =IF(AN32=0,0,TRUNC(ROUND(AN29/AN32,2),2)) -> 0 | AP33: =IF(AP32=0,0,TRUNC(ROUND(AP29/AP32,2),2)) -> 0 | AR33: =IF(AR32=0,0,TRUNC(ROUND(AR29/AR32,2),2)) -> 0 | AT33: =IF(AT32=0,0,TRUNC(ROUND(AT29/AT32,2),2)) -> 0 | AV33: =IF(AV32=0,0,TRUNC(ROUND(AV29/AV32,2),2)) -> 0
C36: 2 | D36: EQUIPAMENTOS E FERRAMENTAS
F37: Unidade | G37: Marca | H37: Custo Unitário | I37: Vida Útil (meses) | J37: TRT - SEDE | L37: FÓRUM C. GRANDE | N37: FÓRUM DOURADOS | P37: FÓRUM TRÊS LAGOAS | R37: VT. AMAMBAI | T37: VT. AQUIDAUANA | V37: VT. BATAGUASSU | X37: VT. CASSILÂNDIA | Z37: VT. CORUMBÁ | AB37: VT. COXIM | AD37: VT. FÁTIMA DO SUL | AF37: VT. JARDIM | AH37: VT. MUNDO NOVO | AJ37: VT. NAVIRAÍ | AL37: VT. NOVA ANDRADINA | AN37: VT. PARANAÍBA | AP37: VT. PONTA PORÃ | AR37: VT. RIO BRILHANTE | AT37: VT. SÃO GABRIEL | AV37: VT. CHAPADÃO DO SUL
J38: Qtd. | K38: Custo Mensal | L38: Qtd. | M38: Custo Mensal | N38: Qtd. | O38: Custo Mensal | P38: Qtd. | Q38: Custo Mensal | R38: Qtd. | S38: Custo Mensal | T38: Qtd. | U38: Custo Mensal | V38: Qtd. | W38: Custo Mensal | X38: Qtd. | Y38: Custo Mensal | Z38: Qtd. | AA38: Custo Mensal | AB38: Qtd. | AC38: Custo Mensal | AD38: Qtd. | AE38: Custo Mensal | AF38: Qtd. | AG38: Custo Mensal | AH38: Qtd. | AI38: Custo Mensal | AJ38: Qtd. | AK38: Custo Mensal | AL38: Qtd. | AM38: Custo Mensal | AN38: Qtd. | AO38: Custo Mensal | AP38: Qtd. | AQ38: Custo Mensal | AR38: Qtd. | AS38: Custo Mensal | AT38: Qtd. | AU38: Custo Mensal | AV38: Qtd. | AW38: Custo Mensal
C39: 1 | D39: Balde para água com cap. para 10/15 litros | F39: Unidade | H39: 0 | I39: 6 | J39: 0 | K39: =TRUNC(ROUND(($H39*J39)/$I39,2),2) -> 0 | L39: 0 | M39: =TRUNC(ROUND(($H39*L39)/$I39,2),2) -> 0 | N39: 0 | O39: =TRUNC(ROUND(($H39*N39)/$I39,2),2) -> 0 | P39: 0 | Q39: =TRUNC(ROUND(($H39*P39)/$I39,2),2) -> 0 | R39: 0 | S39: =TRUNC(ROUND(($H39*R39)/$I39,2),2) -> 0 | T39: 0 | U39: =TRUNC(ROUND(($H39*T39)/$I39,2),2) -> 0 | V39: 0 | W39: =TRUNC(ROUND(($H39*V39)/$I39,2),2) -> 0 | X39: 0 | Y39: =TRUNC(ROUND(($H39*X39)/$I39,2),2) -> 0 | Z39: 0 | AA39: =TRUNC(ROUND(($H39*Z39)/$I39,2),2) -> 0 | AB39: 0 | AC39: =TRUNC(ROUND(($H39*AB39)/$I39,2),2) -> 0 | AD39: 0 | AE39: =TRUNC(ROUND(($H39*AD39)/$I39,2),2) -> 0 | AF39: 0 | AG39: =TRUNC(ROUND(($H39*AF39)/$I39,2),2) -> 0 | AH39: 0 | AI39: =TRUNC(ROUND(($H39*AH39)/$I39,2),2) -> 0 | AJ39: 0 | AK39: =TRUNC(ROUND(($H39*AJ39)/$I39,2),2) -> 0 | AL39: 0 | AM39: =TRUNC(ROUND(($H39*AL39)/$I39,2),2) -> 0 | AN39: 0 | AO39: =TRUNC(ROUND(($H39*AN39)/$I39,2),2) -> 0 | AP39: 0 | AQ39: =TRUNC(ROUND(($H39*AP39)/$I39,2),2) -> 0 | AR39: 0 | AS39: =TRUNC(ROUND(($H39*AR39)/$I39,2),2) -> 0 | AT39: 0 | AU39: =TRUNC(ROUND(($H39*AT39)/$I39,2),2) -> 0 | AV39: 0 | AW39: =TRUNC(ROUND(($H39*AV39)/$I39,2),2) -> 0
C40: 2 | D40: Desentupidor para pia | F40: Unidade | H40: 0 | I40: 6 | J40: 0 | K40: =TRUNC(ROUND(($H40*J40)/$I40,2),2) -> 0 | L40: 0 | M40: =TRUNC(ROUND(($H40*L40)/$I40,2),2) -> 0 | N40: 0 | O40: =TRUNC(ROUND(($H40*N40)/$I40,2),2) -> 0 | P40: 0 | Q40: =TRUNC(ROUND(($H40*P40)/$I40,2),2) -> 0 | R40: 0 | S40: =TRUNC(ROUND(($H40*R40)/$I40,2),2) -> 0 | T40: 0 | U40: =TRUNC(ROUND(($H40*T40)/$I40,2),2) -> 0 | V40: 0 | W40: =TRUNC(ROUND(($H40*V40)/$I40,2),2) -> 0 | X40: 0 | Y40: =TRUNC(ROUND(($H40*X40)/$I40,2),2) -> 0 | Z40: 0 | AA40: =TRUNC(ROUND(($H40*Z40)/$I40,2),2) -> 0 | AB40: 0 | AC40: =TRUNC(ROUND(($H40*AB40)/$I40,2),2) -> 0 | AD40: 0 | AE40: =TRUNC(ROUND(($H40*AD40)/$I40,2),2) -> 0 | AF40: 0 | AG40: =TRUNC(ROUND(($H40*AF40)/$I40,2),2) -> 0 | AH40: 0 | AI40: =TRUNC(ROUND(($H40*AH40)/$I40,2),2) -> 0 | AJ40: 0 | AK40: =TRUNC(ROUND(($H40*AJ40)/$I40,2),2) -> 0 | AL40: 0 | AM40: =TRUNC(ROUND(($H40*AL40)/$I40,2),2) -> 0 | AN40: 0 | AO40: =TRUNC(ROUND(($H40*AN40)/$I40,2),2) -> 0 | AP40: 0 | AQ40: =TRUNC(ROUND(($H40*AP40)/$I40,2),2) -> 0 | AR40: 0 | AS40: =TRUNC(ROUND(($H40*AR40)/$I40,2),2) -> 0 | AT40: 0 | AU40: =TRUNC(ROUND(($H40*AT40)/$I40,2),2) -> 0 | AV40: 0 | AW40: =TRUNC(ROUND(($H40*AV40)/$I40,2),2) -> 0
C41: 3 | D41: Desentupidor para vaso sanitário | F41: Unidade | H41: 0 | I41: 6 | J41: 0 | K41: 0 | L41: 0 | M41: 0 | N41: 0 | O41: 0 | P41: 0 | Q41: 0 | R41: 0 | S41: 0 | T41: 0 | U41: 0 | V41: 0 | W41: 0 | X41: 0 | Y41: 0 | Z41: 0 | AA41: 0 | AB41: 0 | AC41: 0 | AD41: 0 | AE41: 0 | AF41: 0 | AG41: 0 | AH41: 0 | AI41: 0 | AJ41: 0 | AK41: 0 | AL41: 0 | AM41: 0 | AN41: 0 | AO41: 0 | AP41: 0 | AQ41: 0 | AR41: 0 | AS41: 0 | AT41: 0 | AU41: 0 | AV41: 0 | AW41: 0
C42: 4 | D42: Escova de mão | F42: Unidade | H42: 0 | I42: 6 | J42: 0 | K42: 0 | L42: 0 | M42: 0 | N42: 0 | O42: 0 | P42: 0 | Q42: 0 | R42: 0 | S42: 0 | T42: 0 | U42: 0 | V42: 0 | W42: 0 | X42: 0 | Y42: 0 | Z42: 0 | AA42: 0 | AB42: 0 | AC42: 0 | AD42: 0 | AE42: 0 | AF42: 0 | AG42: 0 | AH42: 0 | AI42: 0 | AJ42: 0 | AK42: 0 | AL42: 0 | AM42: 0 | AN42: 0 | AO42: 0 | AP42: 0 | AQ42: 0 | AR42: 0 | AS42: 0 | AT42: 0 | AU42: 0 | AV42: 0 | AW42: 0
C43: 5 | D43: Kit limpeza de vidro | F43: Unidade | H43: 0 | I43: 6 | J43: 0 | K43: 0 | L43: 0 | M43: 0 | N43: 0 | O43: 0 | P43: 0 | Q43: 0 | R43: 0 | S43: 0 | T43: 0 | U43: 0 | V43: 0 | W43: 0 | X43: 0 | Y43: 0 | Z43: 0 | AA43: 0 | AB43: 0 | AC43: 0 | AD43: 0 | AE43: 0 | AF43: 0 | AG43: 0 | AH43: 0 | AI43: 0 | AJ43: 0 | AK43: 0 | AL43: 0 | AM43: 0 | AN43: 0 | AO43: 0 | AP43: 0 | AQ43: 0 | AR43: 0 | AS43: 0 | AT43: 0 | AU43: 0 | AV43: 0 | AW43: 0
C44: 6 | D44: Mangueira ¾ (100 metros) | F44: Unidade | H44: 0 | I44: 15 | J44: 0 | K44: 0 | L44: 0 | M44: 0 | N44: 0 | O44: 0 | P44: 0 | Q44: 0 | R44: 0 | S44: 0 | T44: 0 | U44: 0 | V44: 0 | W44: 0 | X44: 0 | Y44: 0 | Z44: 0 | AA44: 0 | AB44: 0 | AC44: 0 | AD44: 0 | AE44: 0 | AF44: 0 | AG44: 0 | AH44: 0 | AI44: 0 | AJ44: 0 | AK44: 0 | AL44: 0 | AM44: 0 | AN44: 0 | AO44: 0 | AP44: 0 | AQ44: 0 | AR44: 0 | AS44: 0 | AT44: 0 | AU44: 0 | AV44: 0 | AW44: 0
C45: 7 | D45: Pá para lixo com cabo longo | F45: Unidade | H45: 0 | I45: 6 | J45: 0 | K45: 0 | L45: 0 | M45: 0 | N45: 0 | O45: 0 | P45: 0 | Q45: 0 | R45: 0 | S45: 0 | T45: 0 | U45: 0 | V45: 0 | W45: 0 | X45: 0 | Y45: 0 | Z45: 0 | AA45: 0 | AB45: 0 | AC45: 0 | AD45: 0 | AE45: 0 | AF45: 0 | AG45: 0 | AH45: 0 | AI45: 0 | AJ45: 0 | AK45: 0 | AL45: 0 | AM45: 0 | AN45: 0 | AO45: 0 | AP45: 0 | AQ45: 0 | AR45: 0 | AS45: 0 | AT45: 0 | AU45: 0 | AV45: 0 | AW45: 0
C46: 8 | D46: Placa de sinalização para piso molhado | F46: Unidade | H46: 0 | I46: 15 | J46: 0 | K46: 0 | L46: 0 | M46: 0 | N46: 0 | O46: 0 | P46: 0 | Q46: 0 | R46: 0 | S46: 0 | T46: 0 | U46: 0 | V46: 0 | W46: 0 | X46: 0 | Y46: 0 | Z46: 0 | AA46: 0 | AB46: 0 | AC46: 0 | AD46: 0 | AE46: 0 | AF46: 0 | AG46: 0 | AH46: 0 | AI46: 0 | AJ46: 0 | AK46: 0 | AL46: 0 | AM46: 0 | AN46: 0 | AO46: 0 | AP46: 0 | AQ46: 0 | AR46: 0 | AS46: 0 | AT46: 0 | AU46: 0 | AV46: 0 | AW46: 0
C47: 9 | D47: Rodo duplo 40 cm | F47: Unidade | H47: 0 | I47: 6 | J47: 0 | K47: 0 | L47: 0 | M47: 0 | N47: 0 | O47: 0 | P47: 0 | Q47: 0 | R47: 0 | S47: 0 | T47: 0 | U47: 0 | V47: 0 | W47: 0 | X47: 0 | Y47: 0 | Z47: 0 | AA47: 0 | AB47: 0 | AC47: 0 | AD47: 0 | AE47: 0 | AF47: 0 | AG47: 0 | AH47: 0 | AI47: 0 | AJ47: 0 | AK47: 0 | AL47: 0 | AM47: 0 | AN47: 0 | AO47: 0 | AP47: 0 | AQ47: 0 | AR47: 0 | AS47: 0 | AT47: 0 | AU47: 0 | AV47: 0 | AW47: 0
C48: 10 | D48: Rodo duplo 60 cm | F48: Unidade | H48: 0 | I48: 6 | J48: 0 | K48: 0 | L48: 0 | M48: 0 | N48: 0 | O48: 0 | P48: 0 | Q48: 0 | R48: 0 | S48: 0 | T48: 0 | U48: 0 | V48: 0 | W48: 0 | X48: 0 | Y48: 0 | Z48: 0 | AA48: 0 | AB48: 0 | AC48: 0 | AD48: 0 | AE48: 0 | AF48: 0 | AG48: 0 | AH48: 0 | AI48: 0 | AJ48: 0 | AK48: 0 | AL48: 0 | AM48: 0 | AN48: 0 | AO48: 0 | AP48: 0 | AQ48: 0 | AR48: 0 | AS48: 0 | AT48: 0 | AU48: 0 | AV48: 0 | AW48: 0
C49: 11 | D49: Vassoura de nylon comum | F49: Unidade | H49: 0 | I49: 6 | J49: 0 | K49: 0 | L49: 0 | M49: 0 | N49: 0 | O49: 0 | P49: 0 | Q49: 0 | R49: 0 | S49: 0 | T49: 0 | U49: 0 | V49: 0 | W49: 0 | X49: 0 | Y49: 0 | Z49: 0 | AA49: 0 | AB49: 0 | AC49: 0 | AD49: 0 | AE49: 0 | AF49: 0 | AG49: 0 | AH49: 0 | AI49: 0 | AJ49: 0 | AK49: 0 | AL49: 0 | AM49: 0 | AN49: 0 | AO49: 0 | AP49: 0 | AQ49: 0 | AR49: 0 | AS49: 0 | AT49: 0 | AU49: 0 | AV49: 0 | AW49: 0
C50: 12 | D50: Vassoura de pelo tamanho grande | F50: Unidade | H50: 0 | I50: 6 | J50: 0 | K50: 0 | L50: 0 | M50: 0 | N50: 0 | O50: 0 | P50: 0 | Q50: 0 | R50: 0 | S50: 0 | T50: 0 | U50: 0 | V50: 0 | W50: 0 | X50: 0 | Y50: 0 | Z50: 0 | AA50: 0 | AB50: 0 | AC50: 0 | AD50: 0 | AE50: 0 | AF50: 0 | AG50: 0 | AH50: 0 | AI50: 0 | AJ50: 0 | AK50: 0 | AL50: 0 | AM50: 0 | AN50: 0 | AO50: 0 | AP50: 0 | AQ50: 0 | AR50: 0 | AS50: 0 | AT50: 0 | AU50: 0 | AV50: 0 | AW50: 0
C51: 13 | D51: Vassoura de pelo tamanho pequeno | F51: Unidade | H51: 0 | I51: 6 | J51: 0 | K51: 0 | L51: 0 | M51: 0 | N51: 0 | O51: 0 | P51: 0 | Q51: 0 | R51: 0 | S51: 0 | T51: 0 | U51: 0 | V51: 0 | W51: 0 | X51: 0 | Y51: 0 | Z51: 0 | AA51: 0 | AB51: 0 | AC51: 0 | AD51: 0 | AE51: 0 | AF51: 0 | AG51: 0 | AH51: 0 | AI51: 0 | AJ51: 0 | AK51: 0 | AL51: 0 | AM51: 0 | AN51: 0 | AO51: 0 | AP51: 0 | AQ51: 0 | AR51: 0 | AS51: 0 | AT51: 0 | AU51: 0 | AV51: 0 | AW51: 0
C52: 14 | D52: Vassoura de piaçava | F52: Unidade | H52: 0 | I52: 6 | J52: 0 | K52: 0 | L52: 0 | M52: 0 | N52: 0 | O52: 0 | P52: 0 | Q52: 0 | R52: 0 | S52: 0 | T52: 0 | U52: 0 | V52: 0 | W52: 0 | X52: 0 | Y52: 0 | Z52: 0 | AA52: 0 | AB52: 0 | AC52: 0 | AD52: 0 | AE52: 0 | AF52: 0 | AG52: 0 | AH52: 0 | AI52: 0 | AJ52: 0 | AK52: 0 | AL52: 0 | AM52: 0 | AN52: 0 | AO52: 0 | AP52: 0 | AQ52: 0 | AR52: 0 | AS52: 0 | AT52: 0 | AU52: 0 | AV52: 0 | AW52: 0
C53: 15 | D53: Vassoura limpa teto | F53: Unidade | H53: 0 | I53: 6 | J53: 0 | K53: 0 | L53: 0 | M53: 0 | N53: 0 | O53: 0 | P53: 0 | Q53: 0 | R53: 0 | S53: 0 | T53: 0 | U53: 0 | V53: 0 | W53: 0 | X53: 0 | Y53: 0 | Z53: 0 | AA53: 0 | AB53: 0 | AC53: 0 | AD53: 0 | AE53: 0 | AF53: 0 | AG53: 0 | AH53: 0 | AI53: 0 | AJ53: 0 | AK53: 0 | AL53: 0 | AM53: 0 | AN53: 0 | AO53: 0 | AP53: 0 | AQ53: 0 | AR53: 0 | AS53: 0 | AT53: 0 | AU53: 0 | AV53: 0 | AW53: 0
C54: 16 | D54: Vassoura para limpeza de vaso | F54: Unidade | H54: 0 | I54: 6 | J54: 0 | K54: 0 | L54: 0 | M54: 0 | N54: 0 | O54: 0 | P54: 0 | Q54: 0 | R54: 0 | S54: 0 | T54: 0 | U54: 0 | V54: 0 | W54: 0 | X54: 0 | Y54: 0 | Z54: 0 | AA54: 0 | AB54: 0 | AC54: 0 | AD54: 0 | AE54: 0 | AF54: 0 | AG54: 0 | AH54: 0 | AI54: 0 | AJ54: 0 | AK54: 0 | AL54: 0 | AM54: 0 | AN54: 0 | AO54: 0 | AP54: 0 | AQ54: 0 | AR54: 0 | AS54: 0 | AT54: 0 | AU54: 0 | AV54: 0 | AW54: 0
C55: 17 | D55: Cabo de Alumínio Prolongador 46 cm | F55: Unidade | H55: 0 | I55: 6 | J55: 0 | K55: 0 | L55: 0 | M55: 0 | N55: 0 | O55: 0 | P55: 0 | Q55: 0 | R55: 0 | S55: 0 | T55: 0 | U55: 0 | V55: 0 | W55: 0 | X55: 0 | Y55: 0 | Z55: 0 | AA55: 0 | AB55: 0 | AC55: 0 | AD55: 0 | AE55: 0 | AF55: 0 | AG55: 0 | AH55: 0 | AI55: 0 | AJ55: 0 | AK55: 0 | AL55: 0 | AM55: 0 | AN55: 0 | AO55: 0 | AP55: 0 | AQ55: 0 | AR55: 0 | AS55: 0 | AT55: 0 | AU55: 0 | AV55: 0 | AW55: 0
C56: Valor Estimado Mensal | J56: =SUM(K39:K55) -> 0 | L56: =SUM(M39:M55) -> 0 | N56: =SUM(O39:O55) -> 0 | P56: =SUM(Q39:Q55) -> 0 | R56: =SUM(S39:S55) -> 0 | T56: =SUM(U39:U55) -> 0 | V56: =SUM(W39:W55) -> 0 | X56: =SUM(Y39:Y55) -> 0 | Z56: =SUM(AA39:AA55) -> 0 | AB56: =SUM(AC39:AC55) -> 0 | AD56: =SUM(AE39:AE55) -> 0 | AF56: =SUM(AG39:AG55) -> 0 | AH56: =SUM(AI39:AI55) -> 0 | AJ56: =SUM(AK39:AK55) -> 0 | AL56: =SUM(AM39:AM55) -> 0 | AN56: =SUM(AO39:AO55) -> 0 | AP56: =SUM(AQ39:AQ55) -> 0 | AR56: =SUM(AS39:AS55) -> 0 | AT56: =SUM(AU39:AU55) -> 0 | AV56: =SUM(AW39:AW55) -> 0
J58: TRT - SEDE | L58: FÓRUM C. GRANDE | N58: FÓRUM DOURADOS | P58: FÓRUM TRÊS LAGOAS | R58: VT. AMAMBAI | T58: VT. AQUIDAUANA | V58: VT. BATAGUASSU | X58: VT. CASSILÂNDIA | Z58: VT. CORUMBÁ | AB58: VT. COXIM | AD58: VT. FÁTIMA DO SUL | AF58: VT. JARDIM | AH58: VT. MUNDO NOVO | AJ58: VT. NAVIRAÍ | AL58: VT. NOVA ANDRADINA | AN58: VT. PARANAÍBA | AP58: VT. PONTA PORÃ | AR58: VT. RIO BRILHANTE | AT58: VT. SÃO GABRIEL | AV58: VT. CHAPADÃO DO SUL
D59: Quantidade Total de Empregados | J59: =SUM('Dados Contratação'!$J$19,'Dados Contratação'!$J$21) -> 2 | L59: =SUM('Dados Contratação'!$J$20,'Dados Contratação'!$J$22) -> 0 | N59: ='Dados Contratação'!$J$23 -> 0 | P59: ='Dados Contratação'!$J$24 -> 0 | R59: ='Dados Contratação'!$J$25 -> 0 | T59: ='Dados Contratação'!$J$26 -> 0 | V59: ='Dados Contratação'!$J$27 -> 0 | X59: ='Dados Contratação'!$J$28 -> 0 | Z59: ='Dados Contratação'!$J$29 -> 0 | AB59: ='Dados Contratação'!$J$30 -> 0 | AD59: ='Dados Contratação'!$J$31 -> 0 | AF59: ='Dados Contratação'!$J$32 -> 0 | AH59: ='Dados Contratação'!$J$33 -> 0 | AJ59: ='Dados Contratação'!$J$34 -> 0 | AL59: ='Dados Contratação'!$J$35 -> 0 | AN59: ='Dados Contratação'!$J$36 -> 0 | AP59: ='Dados Contratação'!$J$37 -> 0 | AR59: ='Dados Contratação'!$J$38 -> 0 | AT59: ='Dados Contratação'!$J$39 -> 0 | AV59: ='Dados Contratação'!$J$40 -> 0
C60: Custo Mensal dos Materiais de Consumo por Empregado | J60: =IF(J59=0,0,TRUNC(ROUND(J56/J59,2),2)) -> 0 | L60: =IF(L59=0,0,TRUNC(ROUND(L56/L59,2),2)) -> 0 | N60: =IF(N59=0,0,TRUNC(ROUND(N56/N59,2),2)) -> 0 | P60: =IF(P59=0,0,TRUNC(ROUND(P56/P59,2),2)) -> 0 | R60: =IF(R59=0,0,TRUNC(ROUND(R56/R59,2),2)) -> 0 | T60: =IF(T59=0,0,TRUNC(ROUND(T56/T59,2),2)) -> 0 | V60: =IF(V59=0,0,TRUNC(ROUND(V56/V59,2),2)) -> 0 | X60: =IF(X59=0,0,TRUNC(ROUND(X56/X59,2),2)) -> 0 | Z60: =IF(Z59=0,0,TRUNC(ROUND(Z56/Z59,2),2)) -> 0 | AB60: =IF(AB59=0,0,TRUNC(ROUND(AB56/AB59,2),2)) -> 0 | AD60: =IF(AD59=0,0,TRUNC(ROUND(AD56/AD59,2),2)) -> 0 | AF60: =IF(AF59=0,0,TRUNC(ROUND(AF56/AF59,2),2)) -> 0 | AH60: =IF(AH59=0,0,TRUNC(ROUND(AH56/AH59,2),2)) -> 0 | AJ60: =IF(AJ59=0,0,TRUNC(ROUND(AJ56/AJ59,2),2)) -> 0 | AL60: =IF(AL59=0,0,TRUNC(ROUND(AL56/AL59,2),2)) -> 0 | AN60: =IF(AN59=0,0,TRUNC(ROUND(AN56/AN59,2),2)) -> 0 | AP60: =IF(AP59=0,0,TRUNC(ROUND(AP56/AP59,2),2)) -> 0 | AR60: =IF(AR59=0,0,TRUNC(ROUND(AR56/AR59,2),2)) -> 0 | AT60: =IF(AT59=0,0,TRUNC(ROUND(AT56/AT59,2),2)) -> 0 | AV60: =IF(AV59=0,0,TRUNC(ROUND(AV56/AV59,2),2)) -> 0

Sheet Insumos - Vigilância (hidden)
B1: 5 - EQUIPAMENTOS E INSUMOS DIVERSOS
B3: Discriminação dos Serviços (dados referentes à contratação)
B4: Nº do Processo Administrativo: | F4: Licitação nº: | H4: Data: | J4: Horário:
B5: =IF(ISBLANK('Dados Contratação'!$B$6),"-",'Dados Contratação'!$B$6) -> 15940/2022 | F5: =IF(ISBLANK('Dados Contratação'!$D$6),"-",'Dados Contratação'!$D$6) -> - | H5: =IF(ISBLANK('Dados Contratação'!$E$6),"-",'Dados Contratação'!$E$6) -> - | J5: =IF(ISBLANK('Dados Contratação'!$F$6),"-",'Dados Contratação'!$F$6) -> -
B6: Local da Prestação dos Serviços: | F6: Vigência da Contratação: | I6: Máximo de Vigência:
B7: =IF(ISBLANK('Dados Contratação'!$M$12),"-",'Dados Contratação'!$M$12) -> CAMPO GRANDE/MS | F7: =IF(ISBLANK('Dados Contratação'!$J$6),"-",CONCATENATE('Dados Contratação'!$J$6," ",'Dados Contratação'!$K$6)) -> 12 meses | I7: =IF(ISBLANK('Dados Contratação'!$N$6),"-",CONCATENATE('Dados Contratação'!$N$6," ",'Dados Contratação'!$O$6)) -> 60 meses
C9: EQUIPAMENTOS
C11: 1 | D11: EQUIPAMENTOS DE SEGURANÇA
F12: Medida | G12: Marca | H12: Custo Unitário | I12: Vida Útil (meses) | J12: TRT
J13: Qtd. | K13: Custo Mensal
C14: 1 | D14: Cassetete | F14: unidade | H14: 0 | I14: 60 | J14: 0 | K14: =TRUNC(ROUND(($H14*$J14)/$I14,2),2) -> 0
C15: 2 | D15: Detector de metal portátil bateria recarregavel | F15: Unidade | H15: 0 | I15: 60 | J15: 0 | K15: =TRUNC(ROUND(($H15*$J15)/$I15,2),2) -> 0
C16: 3 | D16: Porta cassetete | F16: Unidade | H16: 0 | I16: 30 | J16: 0 | K16: =TRUNC(ROUND(($H16*$J16)/$I16,2),2) -> 0
C17: 4 | D17: Apito | F17: Unidade | H17: 0 | I17: 12 | J17: 0 | K17: =TRUNC(ROUND(($H17*$J17)/$I17,2),2) -> 0
C18: 5 | D18: Cordão de apito | F18: Unidade | H18: 0 | I18: 12 | J18: 0 | K18: 0
C19: 6 | D19: Capa de nylon | F19: Unidade | H19: 0 | I19: 12 | J19: 0 | K19: 0
C20: 7 | D20: Revólver calibre 38 | F20: Unidade | H20: 0 | I20: 60 | J20: 0 | K20: 0
C21: 8 | D21: Cinto com coldre e baleiro | F21: Unidade | H21: 0 | I21: 30 | J21: 0 | K21: 0
C22: 9 | D22: Munição calibre 38 | F22: Unidade | H22: 0 | I22: 24 | J22: 0 | K22: 0
C23: 10 | D23: Colete balístico, categoria II / II-A, no tamanho do vigilante | F23: Unidade | H23: 0 | I23: 60 | J23: 0 | K23: 0
C24: 11 | D24: Livro de Ocorrência | F24: Unidade | H24: 0 | I24: 12 | J24: 0 | K24: 0
C25: 12 | D25: Lanterna 3 pilhas | F25: Unidade | H25: 0 | I25: 60 | J25: 0 | K25: 0
C26: 13 | D26: Pilhas para lanterna (3 un.) | F26: Unidade | H26: 0 | I26: 6 | J26: 0 | K26: 0
C27: Custo Mensal dos Mobiliários | J27: =SUM(K14:K26) -> 0
D29: Custo de Capital Mensal (SELIC) | J29: 0.008363
D30: Custo Financeiro Mensal | J30: =TRUNC(ROUND(J27*J29,2),2) -> 0
C31: Custo Mensal Total dos Mobiliários | J31: =J27+J30 -> 0
J33: TRT
D34: Quantidade Total de Empregados | J34: ='Dados Contratação'!$J$41 -> 2
C35: Custo Mensal Total dos Mobiliários - por Empregado | J35: =IF(J34=0,0,TRUNC(ROUND(J31/J34,2),2)) -> 0

Sheet Encarregado (hidden)
B1: 6 - PLANILHA DE CUSTOS E FORMAÇÃO DE PREÇOS
B4: Processo nº: | E4: =IF(ISBLANK('Dados Contratação'!$B$6),"000/2014",'Dados Contratação'!$B$6) -> 15940/2022 | I4: Licitação: | J4: =IF(ISBLANK('Dados Contratação'!$D$6),"(NÚMERO DA LICITAÇÃO)",'Dados Contratação'!$D$6) -> (NÚMERO DA LICITAÇÃO)
B5: Descrição: | E5: ='Dados Contratação'!B10 -> Prestação dos serviços de apoio Administrativo aos Gestores e Fiscais de Contratos
B7: Data Pregão: | E7: =IF(ISBLANK('Dados Contratação'!$E$6),"dd/mm/aaaa",'Dados Contratação'!$E$6) -> dd/mm/aaaa | H7: Horário do Pregão: | I7: =IF(ISBLANK('Dados Contratação'!$F$6),"00:00",'Dados Contratação'!$F$6) -> 00:00
B9: Empresa: | E9: =IF(ISBLANK('Dados Proponente'!$B$6),"(NOME DA EMPRESA)",'Dados Proponente'!$B$6) -> (NOME DA EMPRESA)
B11: CNPJ: | E11: =IF(ISBLANK('Dados Proponente'!$H$6),"(CNPJ)",'Dados Proponente'!$H$6) -> (CNPJ)
B14: Local da Prestação dos Serviços | G14: Escala de Trabalho | J14: Profissional
B15: Campo Grande / MS | G15: ='Dados Contratação'!E19 -> 44 horas semanais | J15: ='Dados Contratação'!C19 -> Encarregado
B18: Data Base (dd/mm/aaaa): | G18: Salário Mínimo Oficial Vigente: | J18: Salário Normativo da Categoria Profissional:
B19: =IF(ISBLANK(Encargos_Benefícios!$H$21),"dd/mm/aaaa",Encargos_Benefícios!$H$21) -> 2021-11-01 | G19: =Encargos_Benefícios!H13 -> 1212 | J19: =IF(Apoio!K11=0,0,IF(Apoio!K11=3,Encargos_Benefícios!H26,Encargos_Benefícios!H18)) -> 4189
I21: =ROUND(((($J$19+K27+K28+K29+K30)/220)*1.75),2) -> 33.32 | J21: =ROUND(((($J$19+K28+K29+K30)/220)*1.5),2) -> 28.56 | K21: =ROUND(((($J$19+K28+K30)/220)*2),2) -> 38.08
C22: MÓDULO 1 - COMPOSIÇÃO DA REMUNERAÇÃO | I22: =(ROUND(((($J$19+K27+K28+K29+K30)/220)*1.75),2)*1.25) -> 41.65 | J22: =(ROUND(((($J$19+K27+K28+K29+K30)/220)*1.5),2)*1.25) -> 35.7 | K22: =(ROUND(((($J$19+K27+K28+K29+K30)/220)*2),2)*1.25) -> 47.6
K23: Valor
D24: Salário Base | K24: =$J$19 -> 4189
D25: Adicional de Periculosidade | J25: 0 | K25: =IF((OR('Dados Contratação'!K19="Sim",'Dados Contratação'!K20="Sim")),TRUNC(ROUND($J25*K$24,2),2),0) -> 0
D26: Adicional de Insalubridade | J26: 0 | K26: =IF((OR('Dados Contratação'!L19="Sim",'Dados Contratação'!L20="Sim")),TRUNC(ROUND($J26*G19,2),2),0) -> 0
D27: Gratificação Adicional de Risco de Vida | J27: 0 | K27: =TRUNC(ROUND($J27*K$24,2),2) -> 0
D28: Gratificação por Cargo de Confiança | J28: 0 | K28: =TRUNC(ROUND($J28*K$24,2),2) -> 0
D29: Gratificação por Cargo de Confiança: | K29: 0
D30: Outros: | K30: 0
D31: Subtotal de Remuneração | K31: =TRUNC(ROUND(SUM(K24:K30),2),2) -> 4189
D32: Adicional Noturno | J32: 0 | K32: =IF((OR('Dados Contratação'!M19="Sim",'Dados Contratação'!M20="Sim")),TRUNC((ROUND(($K$24+$K$27)*$J$32*(8/12),2)),2),0) -> 0
D33: Repercussão do Adicional Noturno no DSR | J33: =IF((OR('Dados Contratação'!M19="Sim",'Dados Contratação'!M20="Sim")),((365+(366-365)/4)/12)*(1-(5/7)),0) -> 0 | K33: =TRUNC((ROUND($K32/30.4375*$J33/2,2)),2) -> 0
D34: Hora Noturna Adicional | J34: =IF((OR('Dados Contratação'!M19="Sim",'Dados Contratação'!M20="Sim")),(((8*60/52.5)+4)/12)-1,0) -> 0 | K34: =TRUNC((ROUND(($K$24+$K27)*$J34*1.2,2)),2) -> 0
D35: Repercussão da Hora Noturna Adicional no DSR | J35: =IF((OR('Dados Contratação'!M19="Sim",'Dados Contratação'!M20="Sim")),((365+(366-365)/4)/12)*(1-(5/7)),) -> 0 | K35: =TRUNC((ROUND($K34/30.4375*$J35/2,2)),2) -> 0
D36: Adicional de Hora Extra | J36: =IF((OR('Dados Contratação'!N19="Sim",'Dados Contratação'!N20="Sim")),13.14*12/2/12,0) -> 0 | K36: =TRUNC((ROUND(($K$24+$K27+$K32+$K33+$K34+$K35)/220*$J36,2)),2) -> 0
D37: Repercussão do Adicional de Hora Extra no DSR | J37: =IF((OR('Dados Contratação'!N19="Sim",'Dados Contratação'!N20="Sim")),((365+(366-365)/4)/12)*(1-(5/7)),0) -> 0 | K37: =TRUNC((ROUND($K36/30.4375*$J37/2,2)),2) -> 0
D38: Adicional de Hora Extra (Domingos e Feriados) | J38: =IF((OR('Dados Contratação'!N21="Sim",'Dados Contratação'!N22="Sim")),13.14*12/2/12,0) -> 0 | K38: =TRUNC((ROUND((($K$24+$K29+$K34+$K35+$K36+$K37)/220)*2*$J38,2)),2) -> 0
D39: Repercussão do Adicional de Hora Extra no DSR (Domingos e Feriados) | J39: =IF((OR('Dados Contratação'!N21="Sim",'Dados Contratação'!N22="Sim")),((365+(366-365)/4)/12)*(1-(5/7)),0) -> 0 | K39: =TRUNC((ROUND($K38/30.4375*$J39/2,2)),2) -> 0
D40: Subtotal de Remuneração - Base de Cálculo para Encargos Trabalhistas | K40: =TRUNC(ROUND(SUM(K31:K39),2),2) -> 4189
D41: Intervalo Intrajornada | J41: 0 | K41: =IF((OR('Dados Contratação'!O19="Sim",'Dados Contratação'!O20="Sim")),TRUNC(ROUND(J41*J21,2),2),0) -> 0
D42: Outros: | K42: 0
D43: Total de Remuneração | K43: =TRUNC(ROUND(SUM(K40:K42),2),2) -> 4189
C45: MÓDULO 2 - ENCARGOS E BENEFÍCIOS
D46: SUBMÓDULO 2.1 - 13º SALÁRIO E ADICIONAL DE FÉRIAS
K47: Valor
E48: 13º Salário | K48: =TRUNC(ROUND(Encargos_Benefícios!$H47*$K$40,2),2) -> 348.94
E49: Adicional de Férias | K49: =TRUNC(ROUND(Encargos_Benefícios!$H48*$K$40,2),2) -> 116.45
D50: Subtotal do 13º Salário e Adicional de Férias | K50: =TRUNC(ROUND(SUM(K48,K49),2),2) -> 465.39
E51: Incidência dos encargos previstos no Submódulo 2.2 | K51: =TRUNC(ROUND(Encargos_Benefícios!$H49*$K$50,2),2) -> 171.26
D52: Total do Submódulo 2.1 com a Incidência dos encargos previstos no Submódulo 2.2 | K52: =TRUNC(ROUND(SUM(K50,K51),2),2) -> 636.65
D54: SUBMÓDULO 2.2 - ENCARGOS PREVIDENCIÁRIOS, FGTS E OUTRAS CONTRIBUIÇÕES
K55: Valor
E56: INSS | K56: =TRUNC(ROUND(Encargos_Benefícios!$H38*($K$40),2),2) -> 837.8
E57: SESI ou SESC | K57: =TRUNC(ROUND(Encargos_Benefícios!$H39*($K$40),2),2) -> 62.84
E58: SENAI ou SENAC | K58: =TRUNC(ROUND(Encargos_Benefícios!$H40*($K$40),2),2) -> 41.89
E59: INCRA | K59: =TRUNC(ROUND(Encargos_Benefícios!$H41*($K$40),2),2) -> 8.38
E60: Salário Educação | K60: =TRUNC(ROUND(Encargos_Benefícios!$H42*($K$40),2),2) -> 104.73
E61: FGTS | K61: =TRUNC(ROUND(Encargos_Benefícios!$H43*($K$40),2),2) -> 335.12
E62: Seguro Acidente de Trabalho | K62: =TRUNC(ROUND(Encargos_Benefícios!$H44*($K$40),2),2) -> 125.67
E63: SEBRAE | K63: =TRUNC(ROUND(Encargos_Benefícios!$H45*($K$40),2),2) -> 25.13
D64: Total de Encargos Previdenciários e FGTS | K64: =TRUNC(ROUND(SUM(K56:K63),2),2) -> 1541.56
D66: SUBMÓDULO 2.3 - BENEFÍCIOS MENSAIS E DIÁRIOS
K67: Valor
E68: Vale Transporte | K68: 0
E69: Auxílio Alimentação (Vales, cesta básica, etc.) | K69: =Encargos_Benefícios!$H122 -> 0
E70: Benefício Social Familiar Sindical | K70: =Encargos_Benefícios!$H54 -> 0
E71: Assistência e Inclusão Social do Trabalhador | K71: =Encargos_Benefícios!$H58 -> 0
E72: Prêmio Cesta Básica | K72: =Encargos_Benefícios!$H61 -> 0
E73: Auxílio Creche | K73: =Encargos_Benefícios!$H64 -> 0
E74: Seguro de Vida, Invalidez e Funeral | K74: =Encargos_Benefícios!$H68 -> 0
E75: Outros (Especificar) | K75: 0
D76: Total de Encargos Previdenciários e FGTS | K76: =TRUNC(ROUND(SUM(K68:K75),2),2) -> 0
D79: QUADRO RESUMO - ENCARGOS E BENEFÍCIOS
K80: Valor
E81: 13º Salário e Adicional de Férias | K81: =K52 -> 636.65
E82: Encargos Previdenciários, FGTS e Outras Contribuições | K82: =K64 -> 1541.56
E83: Benefìcios Mensais e Diários | K83: =K76 -> 0
D84: Total de Encargos e Benefícios | K84: =TRUNC(ROUND(SUM(K81:K83),2),2) -> 2178.21
C86: MÓDULO 3 - PROVISÃO PARA RESCISÃO
K87: Valor
D88: Aviso Prévio Indenizado | K88: =TRUNC(ROUND($K$40*'Notas Explicativas'!D66,2),2) -> 17.45
D89: Insidência do FGTS sobre o Aviso Prévio Indenizado | K89: =TRUNC(ROUND($K$40*'Notas Explicativas'!D67,2),2) -> 1.4
D90: Multa do FGTS do Aviso Prévio Indenizado | K90: =TRUNC(ROUND($K$40*'Notas Explicativas'!D68,2),2) -> 144.1
D91: Aviso Prévio Trabalhado | K91: =TRUNC(ROUND($K$40*'Notas Explicativas'!D69,2),2) -> 52.13
D92: Insidência do Módulo Encargos Previdenciários, FGTS e Outras Cont. s/ Aviso Prévio Trab. | K92: =TRUNC(ROUND($K$40*'Notas Explicativas'!D71,2),2) -> 19.18
D93: Multa do FGTS do Aviso Prévio Trabalhado | K93: =TRUNC(ROUND($K$40*'Notas Explicativas'!D73,2),2) -> 1.67
D94: Total de Provisão para Rescisão | K94: =TRUNC(ROUND(SUM(K88:K93),2),2) -> 235.93
C96: MÓDULO 4 - CUSTO DE REPOSIÇÃO DO PROFISSIONAL AUSENTE
K97: Valor
D98: Substituição Durante Férias | K98: =TRUNC(ROUND($K$43*'Notas Explicativas'!D85,2),2) -> 0
D99: Substituição Durante Ausência por Doença | K99: =TRUNC(ROUND($K$43*'Notas Explicativas'!D86,2),2) -> 58.18
D100: Substituição Durante Licença Maternidade | K100: =TRUNC(ROUND($K$43*'Notas Explicativas'!D87,2),2) -> 5.48
D101: Substituição Durante Licença Paternidade | K101: =TRUNC(ROUND($K$43*'Notas Explicativas'!D88,2),2) -> 0.87
D102: Substituição Durante Ausências Legais | K102: =TRUNC(ROUND($K$43*'Notas Explicativas'!D89,2),2) -> 11.64
D103: Substituição Durante Ausência por Acidente de Trabalho | K103: =TRUNC(ROUND($K$43*'Notas Explicativas'!D90,2),2) -> 2.72
D104: Subtotal Antes da Incidência de Proporcional de Férias, 1/3 e 13º s/ Custos de Reposição | K104: =TRUNC(ROUND(SUM(K98:K103),2),2) -> 78.89
D105: Proporcional de Férias, 1/3 e 13º Sobre Custo de Reposição (Exceto Licença Maternidade) | K105: =TRUNC(ROUND($K$43*'Notas Explicativas'!D96,2),2) -> 14.27
D106: Subtotal Antes de Incidência do Módulo Encargos Previdenciários, FGTS e Outras Cont. | K106: =TRUNC(ROUND(SUM(K104:K105),2),2) -> 93.16
D107: Incidência do Módulo Encargos Previdenciários, FGTS e Outras Cont. s/ Custo de Reposição | K107: =TRUNC(ROUND($K$43*'Notas Explicativas'!D98,2),2) -> 34.28
D108: Total do Custo de Reposição do Profissional Ausente | K108: =TRUNC(ROUND(SUM(K106:K107),2),2) -> 127.44
C110: MÓDULO 5 - UNIFORMES E EQUIPAMENTOS
K111: Valor
D112: Uniformes | K112: =IF(Apoio!$K$11=0,0,'Certificação digital'!$I$27) -> 0
D113: =IF(Apoio!$K$11=0,"Equipamentos",IF(Apoio!$K$11=1,"Mobiliários",IF(Apoio!$K$11=8,"Materiais de Escrtitório",IF(Apoio!$K$11=3,"Equipamentos de Proteção Individual (EPI's)",IF(Apoio!$K$11=7,"Máquinas e Equipamentos",IF(Apoio!$K$11=5,"Equipamentos de Segurança","")))))) ->  | K113: =IF(Apoio!$K$11=0,0,IF(Apoio!$K$11=1,'Insumos - Brigadista'!$J$24,IF(Apoio!$K$11=8,'Insumos - Motorista'!$J21,IF(Apoio!$K$11=3,'Insumos - Manutenção'!$J34,IF(Apoio!$K$11=7,'Insumos - Limpeza'!$J33,IF(Apoio!$K$11=5,'Insumos - Vigilância'!$J35,0)))))) -> 0
D114: =IF(Apoio!$K$11=0,"Equipamentos",IF(Apoio!$K$11=1,"Equipamentos de Segurança de Brigadista",IF(Apoio!$K$11=8,"Material de Comunicação",IF(Apoio!$K$11=3,"Ferramentas de Telecomunicação",IF(Apoio!$K$11=7,"Equipamentos e Ferramentas",IF(Apoio!$K$11=5,"","")))))) ->  | K114: =IF(Apoio!$K$11=0,0,IF(Apoio!$K$11=1,'Insumos - Brigadista'!$J$45,IF(Apoio!$K$11=8,'Insumos - Motorista'!$J35,IF(Apoio!$K$11=3,'Insumos - Manutenção'!$J72,IF(Apoio!$K$11=7,'Insumos - Limpeza'!$J60,IF(Apoio!$K$11=5,0,0)))))) -> 0
D115: =IF(Apoio!$K$11=0,"Equipamentos",IF(Apoio!$K$11=1,"Materiais de Arrombamento - Ferramentas","")) ->  | K115: =IF(Apoio!$K$11=0,0,IF(Apoio!$K$11=1,'Insumos - Brigadista'!$J$69,0)) -> 0
D116: =IF(Apoio!$K$11=0,"Equipamentos",IF(Apoio!$K$11=1,"Materiais de Comunicação","")) ->  | K116: =IF(Apoio!$K$11=0,0,IF(Apoio!$K$11=1,'Insumos - Brigadista'!$J$92,0)) -> 0
D117: =IF(Apoio!$K$11=0,"Equipamentos",IF(Apoio!$K$11=1,"Materiais de Escritório","")) ->  | K117: =IF(Apoio!$K$11=0,0,IF(Apoio!$K$11=1,'Insumos - Brigadista'!$J$129,0)) -> 0
D118: =IF(Apoio!$K$11=0,"Equipamentos",IF(Apoio!$K$11=1,"Materiais de Primeiros Socorros","")) ->  | K118: =IF(Apoio!$K$11=0,0,IF(Apoio!$K$11=1,'Insumos - Brigadista'!$J$169,0)) -> 0
D119: Outros (Especificar) | K119: 0
D120: Total de Uniformes e Equipamentos | K120: =TRUNC(ROUND(SUM(K112:K119),2),2) -> 0
C122: VALOR DA PROPOSTA POR EMPREGADO
K123: Valor
D124: Remuneração | K124: =K43 -> 4189
D125: Encargos e Benefícios | K125: =K84 -> 2178.21
D126: Provisão para Rescisão | K126: =K94 -> 235.93
D127: Custo de Reposição do Profissional Ausente | K127: =K108 -> 127.44
D128: Uniformes e Equipamentos | K128: =K120 -> 0
D129: Custo Total por Empregado | K129: =TRUNC(ROUND(SUM(K124:K128),2),2) -> 6730.58
C131: MÓDULO 6 - CUSTOS INDIRETOS, LUCRO E TRIBUTOS
K132: Valor
D133: Custo Total por Empregado | K133: =K129 -> 6730.58
D134: Custos Indiretos / Despesas Operacionais e Administrativas | J134: ='Dados Proponente'!$I$51 -> 0.03 | K134: =TRUNC(ROUND($J134*$K$133,2),2) -> 201.92
D135: Lucro | J135: ='Dados Proponente'!$I$52 -> 0.0679 | K135: =TRUNC(ROUND($J135*($K$133+$K$134),2),2) -> 470.72
D136: Tributos
E137: Tributos Federais: | J137: =SUM(J138:J139) -> 0.0365 | K137: =SUM(K138:K139) -> 295.8046305
I138: COFINS | J138: ='Dados Proponente'!$I$25 -> 0.03 | K138: =$J138*K$146 -> 243.1270936
I139: PIS | J139: ='Dados Proponente'!$I$24 -> 0.0065 | K139: =$J139*K$146 -> 52.67753695
G140: Obs.: Vedada a inclusão de IRPJ e CSLL.
E141: Tributos Estaduais (especificar): | G141: =IF('Dados Proponente'!$E$54=""," ",'Dados Proponente'!$E$54) ->  | J141: ='Dados Proponente'!$I$54 -> 0 | K141: =$J141*K$146 -> 0
E142: Tributos Municipais:
I143: ISSQN | J143: ='Dados Proponente'!$I$28 -> 0.05 | K143: =J143*K$146 -> 405.2118227
E145: Outros Tributos (especificar): | G145: =IF('Dados Proponente'!$E$55=""," ",'Dados Proponente'!$E$55) ->  | J145: ='Dados Proponente'!$I$55 -> 0 | K145: =$J145*K$146 -> 0
D146: Total dos Custos Indiretos, Lucro e Tributos | K146: =SUM(K133:K135)/(1-J137-J143) -> 8104.236453
C148: QUADRO RESUMO
K149: Valor por Empregado
D150: Total de Remuneração | K150: =K124 -> 4189
D151: Total de Encargos e Benefícios | K151: =K125 -> 2178.21
D152: Total de Provisão para Rescisão | K152: =K126 -> 235.93
D153: Total do Custo de Reposição do Profissional Ausente | K153: =K127 -> 127.44
D154: Total de Uniformes e Equipamentos | K154: =K128 -> 0
D155: Total dos Custos Indiretos, Lucro e Tributos | K155: =TRUNC(ROUND(SUM(K134,K135,K137,K141,K143,K145),2),2) -> 1373.66
D156: Valor Mensal do Serviço | K156: =SUM(K150:K155) -> 8104.24
C159: Observações: A planilha está concebida para efetuar automaticamente os cálculos, devendo ser alimentados somente os valores nos campos em amarelo.
C160: (Informações Gerais - IG) Informar a data do pregão, horário do pregão, razão social da empresa licitante, CNPJ da empresa licitante e data base da categoria profissional.
C161: (Módulo Remuneração - MR) Informar somente os adicionais previstos na Convenção Coletiva de Trabalho-CCT ou os decorrentes do local de trabalho.
C162: (Módulo Tributos) Informar os percentuais dos Tributos Federais: COFINS e PIS ou SIMPLES, Tributos Estaduais: especificar caso exista tributo, Tributos Municipais: ISSQN, e Outros Tributos: especificar caso exista outro tributo.

Sheet Profissional
B1: 6 - PLANILHA DE CUSTOS E FORMAÇÃO DE PREÇOS
B4: Processo nº: | E4: =IF(ISBLANK('Dados Contratação'!$B$6),"000/2014",'Dados Contratação'!$B$6) -> 15940/2022 | I4: Licitação: | J4: =IF(ISBLANK('Dados Contratação'!D6),"(NÚMERO DA LICITAÇÃO)",'Dados Contratação'!D6) -> (NÚMERO DA LICITAÇÃO)
B5: Descrição: | E5: ='Dados Contratação'!B10 -> Prestação dos serviços de apoio Administrativo aos Gestores e Fiscais de Contratos
B7: Data Pregão: | E7: =IF(ISBLANK('Dados Contratação'!$E$6),"dd/mm/aaaa",'Dados Contratação'!$E$6) -> dd/mm/aaaa | H7: Horário do Pregão: | I7: =IF(ISBLANK('Dados Contratação'!$F$6),"00:00",'Dados Contratação'!$F$6) -> 00:00
B9: Empresa: | E9: =IF(ISBLANK('Dados Proponente'!$B$6),"(NOME DA EMPRESA)",'Dados Proponente'!$B$6) -> (NOME DA EMPRESA)
B11: CNPJ: | E11: =IF(ISBLANK('Dados Proponente'!$H$6),"(CNPJ)",'Dados Proponente'!$H$6) -> (CNPJ)
B14: Local da Prestação dos Serviços | G14: Escala de Trabalho | J14: Profissional
B15: ='Dados Contratação'!D21 -> Prédio-Sede do TRT/24ª Região | G15: ='Dados Contratação'!E21 -> 44 horas semanais | J15: ='Dados Contratação'!C21 -> Contador
B18: Data Base (dd/mm/aaaa): | G18: Salário Mínimo Oficial Vigente: | J18: Salário Normativo da Categoria Profissional:
B19: =IF(ISBLANK(Encargos_Benefícios!$H$21),"dd/mm/aaaa",Encargos_Benefícios!$H$21) -> 2021-11-01 | G19: =Encargos_Benefícios!H13 -> 1212 | J19: =IF(Apoio!K11=0,0,IF(Apoio!K11=3,Encargos_Benefícios!H27,Encargos_Benefícios!H18)) -> 4189
I21: =ROUND(((($J$19+K27+K28+K29+K30)/220)*1.75),2) -> 33.32 | J21: =ROUND(((($J$19+K28+K29+K30)/220)*1.5),2) -> 28.56 | K21: =ROUND(((($J$19+K28+K30)/220)*2),2) -> 38.08
C22: MÓDULO 1 - COMPOSIÇÃO DA REMUNERAÇÃO | I22: =(ROUND(((($J$19+K27+K28+K29+K30)/220)*1.75),2)*1.25) -> 41.65 | J22: =(ROUND(((($J$19+K27+K28+K29+K30)/220)*1.5),2)*1.25) -> 35.7 | K22: =(ROUND(((($J$19+K27+K28+K29+K30)/220)*2),2)*1.25) -> 47.6
K23: Valor
D24: Salário Base | K24: =$J$19 -> 4189
D25: Adicional de Periculosidade | J25: 0 | K25: =IF((OR('Dados Contratação'!K21="Sim",'Dados Contratação'!K22="Sim",'Dados Contratação'!K23="Sim",'Dados Contratação'!K24="Sim",'Dados Contratação'!K25="Sim",'Dados Contratação'!K26="Sim",'Dados Contratação'!K27="Sim",'Dados Contratação'!K28="Sim",'Dados Contratação'!K29="Sim",'Dados Contratação'!K30="Sim",'Dados Contratação'!K31="Sim",'Dados Contratação'!K32="Sim",'Dados Contratação'!K33="Sim",'Dados Contratação'!K34="Sim",'Dados Contratação'!K35="Sim",'Dados Contratação'!K36="Sim",'Dados Contratação'!K37="Sim",'Dados Contratação'!K38="Sim",'Dados Contratação'!K39="Sim",'Dados Contratação'!K40="Sim")),TRUNC(ROUND($J25*K$24,2),2),0) -> 0
D26: Adicional de Insalubridade | J26: 0 | K26: =IF((OR('Dados Contratação'!L21="Sim",'Dados Contratação'!L22="Sim",'Dados Contratação'!L23="Sim",'Dados Contratação'!L24="Sim",'Dados Contratação'!L25="Sim",'Dados Contratação'!L26="Sim",'Dados Contratação'!L27="Sim",'Dados Contratação'!L28="Sim",'Dados Contratação'!L29="Sim",'Dados Contratação'!L30="Sim",'Dados Contratação'!L31="Sim",'Dados Contratação'!L32="Sim",'Dados Contratação'!L33="Sim",'Dados Contratação'!L34="Sim",'Dados Contratação'!L35="Sim",'Dados Contratação'!L36="Sim",'Dados Contratação'!L37="Sim",'Dados Contratação'!L38="Sim",'Dados Contratação'!L39="Sim",'Dados Contratação'!L40="Sim")),TRUNC(ROUND($J26*G19,2),2),0) -> 0
D27: Gratificação Adicional de Risco de Vida | J27: 0 | K27: =TRUNC(ROUND($J27*K$24,2),2) -> 0
D28: Gratificação por Cargo de Confiança | J28: 0 | K28: =TRUNC(ROUND($J28*K$24,2),2) -> 0
D30: Outros: | K30: 0
D31: Subtotal de Remuneração | K31: =TRUNC(ROUND(SUM(K24:K30),2),2) -> 4189
D32: Adicional Noturno | J32: 0 | K32: =IF((OR('Dados Contratação'!M21="Sim",'Dados Contratação'!M22="Sim",'Dados Contratação'!M23="Sim",'Dados Contratação'!M24="Sim",'Dados Contratação'!M25="Sim",'Dados Contratação'!M26="Sim",'Dados Contratação'!M27="Sim",'Dados Contratação'!M28="Sim",'Dados Contratação'!M29="Sim",'Dados Contratação'!M30="Sim",'Dados Contratação'!M31="Sim",'Dados Contratação'!M32="Sim",'Dados Contratação'!M33="Sim",'Dados Contratação'!M34="Sim",'Dados Contratação'!M35="Sim",'Dados Contratação'!M36="Sim",'Dados Contratação'!M37="Sim",'Dados Contratação'!M38="Sim",'Dados Contratação'!M39="Sim",'Dados Contratação'!M40="Sim")),TRUNC((ROUND(($K$24+$K$27)*$J$32*(8/12),2)),2),0) -> 0
D33: Repercussão do Adicional Noturno no DSR | J33: =IF((OR('Dados Contratação'!M21="Sim",'Dados Contratação'!M22="Sim",'Dados Contratação'!M23="Sim",'Dados Contratação'!M24="Sim",'Dados Contratação'!M25="Sim",'Dados Contratação'!M26="Sim",'Dados Contratação'!M27="Sim",'Dados Contratação'!M28="Sim",'Dados Contratação'!M29="Sim",'Dados Contratação'!M30="Sim",'Dados Contratação'!M31="Sim",'Dados Contratação'!M32="Sim",'Dados Contratação'!M33="Sim",'Dados Contratação'!M34="Sim",'Dados Contratação'!M35="Sim",'Dados Contratação'!M36="Sim",'Dados Contratação'!M37="Sim",'Dados Contratação'!M38="Sim",'Dados Contratação'!M39="Sim",'Dados Contratação'!M40="Sim")),((365+(366-365)/4)/12)*(1-(5/7)),0) -> 0 | K33: =TRUNC((ROUND($K32/30.4375*$J33/2,2)),2) -> 0
D34: Hora Noturna Adicional | J34: =IF((OR('Dados Contratação'!M21="Sim",'Dados Contratação'!M22="Sim",'Dados Contratação'!M23="Sim",'Dados Contratação'!M24="Sim",'Dados Contratação'!M25="Sim",'Dados Contratação'!M26="Sim",'Dados Contratação'!M27="Sim",'Dados Contratação'!M28="Sim",'Dados Contratação'!M29="Sim",'Dados Contratação'!M30="Sim",'Dados Contratação'!M31="Sim",'Dados Contratação'!M32="Sim",'Dados Contratação'!M33="Sim",'Dados Contratação'!M34="Sim",'Dados Contratação'!M35="Sim",'Dados Contratação'!M36="Sim",'Dados Contratação'!M37="Sim",'Dados Contratação'!M38="Sim",'Dados Contratação'!M39="Sim",'Dados Contratação'!M40="Sim")),(((8*60/52.5)+4)/12)-1,0) -> 0 | K34: =TRUNC((ROUND(($K$24+$K27)*$J34*1.2,2)),2) -> 0
D35: Repercussão da Hora Noturna Adicional no DSR | J35: =IF((OR('Dados Contratação'!M21="Sim",'Dados Contratação'!M22="Sim",'Dados Contratação'!M23="Sim",'Dados Contratação'!M24="Sim",'Dados Contratação'!M25="Sim",'Dados Contratação'!M26="Sim",'Dados Contratação'!M27="Sim",'Dados Contratação'!M28="Sim",'Dados Contratação'!M29="Sim",'Dados Contratação'!M30="Sim",'Dados Contratação'!M31="Sim",'Dados Contratação'!M32="Sim",'Dados Contratação'!M33="Sim",'Dados Contratação'!M34="Sim",'Dados Contratação'!M35="Sim",'Dados Contratação'!M36="Sim",'Dados Contratação'!M37="Sim",'Dados Contratação'!M38="Sim",'Dados Contratação'!M39="Sim",'Dados Contratação'!M40="Sim")),((365+(366-365)/4)/12)*(1-(5/7)),) -> 0 | K35: =TRUNC((ROUND($K34/30.4375*$J35/2,2)),2) -> 0
D36: Adicional de Hora Extra | J36: =IF((OR('Dados Contratação'!N21="Sim",'Dados Contratação'!N22="Sim",'Dados Contratação'!N23="Sim",'Dados Contratação'!N24="Sim",'Dados Contratação'!N25="Sim",'Dados Contratação'!N26="Sim",'Dados Contratação'!N27="Sim",'Dados Contratação'!N28="Sim",'Dados Contratação'!N29="Sim",'Dados Contratação'!N30="Sim",'Dados Contratação'!N31="Sim",'Dados Contratação'!N32="Sim",'Dados Contratação'!N33="Sim",'Dados Contratação'!N34="Sim",'Dados Contratação'!N35="Sim",'Dados Contratação'!N36="Sim",'Dados Contratação'!N37="Sim",'Dados Contratação'!N38="Sim",'Dados Contratação'!N39="Sim",'Dados Contratação'!N40="Sim")),13.14*12/2/12,0) -> 0 | K36: =TRUNC((ROUND(($K$24+$K27+$K32+$K33+$K34+$K35)/220*$J36,2)),2) -> 0
D37: Repercussão do Adicional de Hora Extra no DSR | J37: =IF((OR('Dados Contratação'!N21="Sim",'Dados Contratação'!N22="Sim",'Dados Contratação'!N23="Sim",'Dados Contratação'!N24="Sim",'Dados Contratação'!N25="Sim",'Dados Contratação'!N26="Sim",'Dados Contratação'!N27="Sim",'Dados Contratação'!N28="Sim",'Dados Contratação'!N29="Sim",'Dados Contratação'!N30="Sim",'Dados Contratação'!N31="Sim",'Dados Contratação'!N32="Sim",'Dados Contratação'!N33="Sim",'Dados Contratação'!N34="Sim",'Dados Contratação'!N35="Sim",'Dados Contratação'!N36="Sim",'Dados Contratação'!N37="Sim",'Dados Contratação'!N38="Sim",'Dados Contratação'!N39="Sim",'Dados Contratação'!N40="Sim")),((365+(366-365)/4)/12)*(1-(5/7)),0) -> 0 | K37: =TRUNC((ROUND($K36/30.4375*$J37/2,2)),2) -> 0
D38: Adicional de Hora Extra (Domingos e Feriados) | J38: =IF((OR('Dados Contratação'!N23="Sim",'Dados Contratação'!N24="Sim",'Dados Contratação'!N25="Sim",'Dados Contratação'!N26="Sim",'Dados Contratação'!N27="Sim",'Dados Contratação'!N28="Sim",'Dados Contratação'!N29="Sim",'Dados Contratação'!N30="Sim",'Dados Contratação'!N31="Sim",'Dados Contratação'!N32="Sim",'Dados Contratação'!N33="Sim",'Dados Contratação'!N34="Sim",'Dados Contratação'!N35="Sim",'Dados Contratação'!N36="Sim",'Dados Contratação'!N37="Sim",'Dados Contratação'!N38="Sim",'Dados Contratação'!N39="Sim",'Dados Contratação'!N40="Sim",'Dados Contratação'!N41="Sim",'Dados Contratação'!N42="Sim")),13.14*12/2/12,0) -> 0 | K38: =TRUNC((ROUND((($K$24+$K29+$K34+$K35+$K36+$K37)/220)*2*$J38,2)),2) -> 0
D39: Repercussão do Adicional de Hora Extra no DSR (Domingos e Feriados) | J39: =IF((OR('Dados Contratação'!N23="Sim",'Dados Contratação'!N24="Sim",'Dados Contratação'!N25="Sim",'Dados Contratação'!N26="Sim",'Dados Contratação'!N27="Sim",'Dados Contratação'!N28="Sim",'Dados Contratação'!N29="Sim",'Dados Contratação'!N30="Sim",'Dados Contratação'!N31="Sim",'Dados Contratação'!N32="Sim",'Dados Contratação'!N33="Sim",'Dados Contratação'!N34="Sim",'Dados Contratação'!N35="Sim",'Dados Contratação'!N36="Sim",'Dados Contratação'!N37="Sim",'Dados Contratação'!N38="Sim",'Dados Contratação'!N39="Sim",'Dados Contratação'!N40="Sim",'Dados Contratação'!N41="Sim",'Dados Contratação'!N42="Sim")),((365+(366-365)/4)/12)*(1-(5/7)),0) -> 0 | K39: =TRUNC((ROUND($K38/30.4375*$J39/2,2)),2) -> 0
D40: Subtotal de Remuneração - Base de Cálculo para Encargos Trabalhistas | K40: =TRUNC(ROUND(SUM(K31:K39),2),2) -> 4189
D41: Intervalo Intrajornada | J41: 0 | K41: =IF((OR('Dados Contratação'!O21="Sim",'Dados Contratação'!O22="Sim",'Dados Contratação'!O23="Sim",'Dados Contratação'!O24="Sim",'Dados Contratação'!O25="Sim",'Dados Contratação'!O26="Sim",'Dados Contratação'!O27="Sim",'Dados Contratação'!O28="Sim",'Dados Contratação'!O29="Sim",'Dados Contratação'!O30="Sim",'Dados Contratação'!O31="Sim",'Dados Contratação'!O32="Sim",'Dados Contratação'!O33="Sim",'Dados Contratação'!O34="Sim",'Dados Contratação'!O35="Sim",'Dados Contratação'!O36="Sim",'Dados Contratação'!O37="Sim",'Dados Contratação'!O38="Sim",'Dados Contratação'!O39="Sim",'Dados Contratação'!O40="Sim")),TRUNC(ROUND(J41*J21,2),2),0) -> 0
D42: Outros: | K42: 0
D43: Total de Remuneração | K43: =TRUNC(ROUND(SUM(K40:K42),2),2) -> 4189
C45: MÓDULO 2 - ENCARGOS E BENEFÍCIOS
D46: SUBMÓDULO 2.1 - 13º SALÁRIO E ADICIONAL DE FÉRIAS
K47: Valor
E48: 13º Salário | K48: =TRUNC(ROUND(Encargos_Benefícios!$H47*$K$40,2),2) -> 348.94
E49: Adicional de Férias | K49: =TRUNC(ROUND(Encargos_Benefícios!$H48*$K$40,2),2) -> 116.45
D50: Subtotal do 13º Salário e Adicional de Férias | K50: =TRUNC(ROUND(SUM(K48,K49),2),2) -> 465.39
E51: Incidência dos encargos previstos no Submódulo 2.2 | K51: =TRUNC(ROUND(Encargos_Benefícios!$H49*$K$50,2),2) -> 171.26
D52: Total do Submódulo 2.1 com a Incidência dos encargos previstos no Submódulo 2.2 | K52: =TRUNC(ROUND(SUM(K50,K51),2),2) -> 636.65
D54: SUBMÓDULO 2.2 - ENCARGOS PREVIDENCIÁRIOS, FGTS E OUTRAS CONTRIBUIÇÕES
K55: Valor
E56: INSS | K56: =TRUNC(ROUND(Encargos_Benefícios!$H38*($K$40),2),2) -> 837.8
E57: SESI ou SESC | K57: =TRUNC(ROUND(Encargos_Benefícios!$H39*($K$40),2),2) -> 62.84
E58: SENAI ou SENAC | K58: =TRUNC(ROUND(Encargos_Benefícios!$H40*($K$40),2),2) -> 41.89
E59: INCRA | K59: =TRUNC(ROUND(Encargos_Benefícios!$H41*($K$40),2),2) -> 8.38
E60: Salário Educação | K60: =TRUNC(ROUND(Encargos_Benefícios!$H42*($K$40),2),2) -> 104.73
E61: FGTS | K61: =TRUNC(ROUND(Encargos_Benefícios!$H43*($K$40),2),2) -> 335.12
E62: Seguro Acidente de Trabalho | K62: =TRUNC(ROUND(Encargos_Benefícios!$H44*($K$40),2),2) -> 125.67
E63: SEBRAE | K63: =TRUNC(ROUND(Encargos_Benefícios!$H45*($K$40),2),2) -> 25.13
D64: Total de Encargos Previdenciários e FGTS | K64: =TRUNC(ROUND(SUM(K56:K63),2),2) -> 1541.56
D66: SUBMÓDULO 2.3 - BENEFÍCIOS MENSAIS E DIÁRIOS
K67: Valor
E68: Vale Transporte | K68: 0
E69: Auxílio Alimentação (Vales, cesta básica, etc.) | K69: =Encargos_Benefícios!$H128 -> 345
E70: Benefício Social Familiar Sindical | K70: =Encargos_Benefícios!$H54 -> 0
E71: Assistência e Inclusão Social do Trabalhador | K71: =Encargos_Benefícios!$H58 -> 0
E72: Prêmio Cesta Básica | K72: =Encargos_Benefícios!$H61 -> 0
E73: Auxílio Creche | K73: =Encargos_Benefícios!$H64 -> 0
E74: Seguro de Vida, Invalidez e Funeral | K74: =Encargos_Benefícios!$H68 -> 0
E75: Outros (Especificar) | K75: 0
D76: Total de Encargos Previdenciários e FGTS | K76: =TRUNC(ROUND(SUM(K68:K75),2),2) -> 345
D79: QUADRO RESUMO - ENCARGOS E BENEFÍCIOS
K80: Valor
E81: 13º Salário e Adicional de Férias | K81: =K52 -> 636.65
E82: Encargos Previdenciários, FGTS e Outras Contribuições | K82: =K64 -> 1541.56
E83: Benefìcios Mensais e Diários | K83: =K76 -> 345
D84: Total de Encargos e Benefícios | K84: =TRUNC(ROUND(SUM(K81:K83),2),2) -> 2523.21
C86: MÓDULO 3 - PROVISÃO PARA RESCISÃO
K87: Valor
D88: Aviso Prévio Indenizado | K88: =TRUNC(ROUND($K$40*'Notas Explicativas'!D66,2),2) -> 17.45
D89: Insidência do FGTS sobre o Aviso Prévio Indenizado | K89: =TRUNC(ROUND($K$40*'Notas Explicativas'!D67,2),2) -> 1.4
D90: Multa do FGTS do Aviso Prévio Indenizado | K90: =TRUNC(ROUND($K$40*'Notas Explicativas'!D68,2),2) -> 144.1
D91: Aviso Prévio Trabalhado | K91: =TRUNC(ROUND($K$40*'Notas Explicativas'!D69,2),2) -> 52.13
D92: Insidência do Módulo Encargos Previdenciários, FGTS e Outras Cont. s/ Aviso Prévio Trab. | K92: =TRUNC(ROUND($K$40*'Notas Explicativas'!D71,2),2) -> 19.18
D93: Multa do FGTS do Aviso Prévio Trabalhado | K93: =TRUNC(ROUND($K$40*'Notas Explicativas'!D73,2),2) -> 1.67
D94: Total de Provisão para Rescisão | K94: =TRUNC(ROUND(SUM(K88:K93),2),2) -> 235.93
C96: MÓDULO 4 - CUSTO DE REPOSIÇÃO DO PROFISSIONAL AUSENTE
K97: Valor
D98: Substituição Durante Férias | K98: =TRUNC(ROUND($K$43*'Notas Explicativas'!D85,2),2) -> 0
D99: Substituição Durante Ausência por Doença | K99: =TRUNC(ROUND($K$43*'Notas Explicativas'!D86,2),2) -> 58.18
D100: Substituição Durante Licença Maternidade | K100: =TRUNC(ROUND($K$43*'Notas Explicativas'!D87,2),2) -> 5.48
D101: Substituição Durante Licença Paternidade | K101: =TRUNC(ROUND($K$43*'Notas Explicativas'!D88,2),2) -> 0.87
D102: Substituição Durante Ausências Legais | K102: =TRUNC(ROUND($K$43*'Notas Explicativas'!D89,2),2) -> 11.64
D103: Substituição Durante Ausência por Acidente de Trabalho | K103: =TRUNC(ROUND($K$43*'Notas Explicativas'!D90,2),2) -> 2.72
D104: Subtotal Antes da Incidência de Proporcional de Férias, 1/3 e 13º s/ Custos de Reposição | K104: =TRUNC(ROUND(SUM(K98:K103),2),2) -> 78.89
D105: Proporcional de Férias, 1/3 e 13º Sobre Custo de Reposição (Exceto Licença Maternidade) | K105: =TRUNC(ROUND($K$43*'Notas Explicativas'!D96,2),2) -> 14.27
D106: Subtotal Antes de Incidência do Módulo Encargos Previdenciários, FGTS e Outras Cont. | K106: =TRUNC(ROUND(SUM(K104:K105),2),2) -> 93.16
D107: Incidência do Módulo Encargos Previdenciários, FGTS e Outras Cont. s/ Custo de Reposição | K107: =TRUNC(ROUND($K$43*'Notas Explicativas'!D98,2),2) -> 34.28
D108: Total do Custo de Reposição do Profissional Ausente | K108: =TRUNC(ROUND(SUM(K106:K107),2),2) -> 127.44
C110: MÓDULO 5 - UNIFORMES E EQUIPAMENTOS
K111: Valor
D112: Uniformes e equipamentos | K112: =IF(Apoio!$K$11=0,0,'Certificação digital'!$I$16) -> 10.91
D113: =IF(Apoio!$K$11=0,"Equipamentos",IF(Apoio!$K$11=1,"Mobiliários",IF(Apoio!$K$11=8,"Materiais de Escrtitório",IF(Apoio!$K$11=3,"Equipamentos de Proteção Individual (EPI's)",IF(Apoio!$K$11=7,"Máquinas e Equipamentos",IF(Apoio!$K$11=5,"Equipamentos de Segurança","")))))) ->  | K113: =IF(Apoio!$K$11=0,0,IF(Apoio!$K$11=1,'Insumos - Brigadista'!$J$24,IF(Apoio!$K$11=8,'Insumos - Motorista'!$J21,IF(Apoio!$K$11=3,'Insumos - Manutenção'!$J34,IF(Apoio!$K$11=7,'Insumos - Limpeza'!$J33,IF(Apoio!$K$11=5,'Insumos - Vigilância'!$J35,0)))))) -> 0
D114: =IF(Apoio!$K$11=0,"Equipamentos",IF(Apoio!$K$11=1,"Equipamentos de Segurança de Brigadista",IF(Apoio!$K$11=8,"Material de Comunicação",IF(Apoio!$K$11=3,"Ferramentas de Telecomunicação",IF(Apoio!$K$11=7,"Equipamentos e Ferramentas",IF(Apoio!$K$11=5,"","")))))) ->  | K114: =IF(Apoio!$K$11=0,0,IF(Apoio!$K$11=1,'Insumos - Brigadista'!$J$45,IF(Apoio!$K$11=8,'Insumos - Motorista'!$J35,IF(Apoio!$K$11=3,'Insumos - Manutenção'!$J72,IF(Apoio!$K$11=7,'Insumos - Limpeza'!$J60,IF(Apoio!$K$11=5,0,0)))))) -> 0
D115: =IF(Apoio!$K$11=0,"Equipamentos",IF(Apoio!$K$11=1,"Materiais de Arrombamento - Ferramentas","")) ->  | K115: =IF(Apoio!$K$11=0,0,IF(Apoio!$K$11=1,'Insumos - Brigadista'!$J$69,0)) -> 0
D116: =IF(Apoio!$K$11=0,"Equipamentos",IF(Apoio!$K$11=1,"Materiais de Comunicação","")) ->  | K116: =IF(Apoio!$K$11=0,0,IF(Apoio!$K$11=1,'Insumos - Brigadista'!$J$92,0)) -> 0
D117: =IF(Apoio!$K$11=0,"Equipamentos",IF(Apoio!$K$11=1,"Materiais de Escritório","")) ->  | K117: =IF(Apoio!$K$11=0,0,IF(Apoio!$K$11=1,'Insumos - Brigadista'!$J$129,0)) -> 0
D118: =IF(Apoio!$K$11=0,"Equipamentos",IF(Apoio!$K$11=1,"Materiais de Primeiros Socorros","")) ->  | K118: =IF(Apoio!$K$11=0,0,IF(Apoio!$K$11=1,'Insumos - Brigadista'!$J$169,0)) -> 0
D119: Outros (Especificar) | K119: 0
D120: Total de Uniformes e Equipamentos | K120: =TRUNC(ROUND(SUM(K112:K119),2),2) -> 10.91
C122: VALOR DA PROPOSTA POR EMPREGADO
K123: Valor
D124: Remuneração | K124: =K43 -> 4189
D125: Encargos e Benefícios | K125: =K84 -> 2523.21
D126: Provisão para Rescisão | K126: =K94 -> 235.93
D127: Custo de Reposição do Profissional Ausente | K127: =K108 -> 127.44
D128: Uniformes e Equipamentos | K128: =K120 -> 10.91
D129: Custo Total por Empregado | K129: =TRUNC(ROUND(SUM(K124:K128),2),2) -> 7086.49
C131: MÓDULO 6 - CUSTOS INDIRETOS, LUCRO E TRIBUTOS
K132: Valor
D133: Custo Total por Empregado | K133: =K129 -> 7086.49
D134: Custos Indiretos / Despesas Operacionais e Administrativas | J134: ='Dados Proponente'!$I$51 -> 0.03 | K134: =TRUNC(ROUND($J134*$K$133,2),2) -> 212.59
D135: Lucro | J135: ='Dados Proponente'!$I$52 -> 0.0679 | K135: =TRUNC(ROUND($J135*($K$133+$K$134),2),2) -> 495.61
D136: Tributos
E137: Tributos Federais: | J137: =SUM(J138:J139) -> 0.0365 | K137: =SUM(K138:K139) -> 311.44
I138: COFINS | J138: ='Dados Proponente'!$I$25 -> 0.03 | K138: =TRUNC(ROUND($J138*K$146,2),2) -> 255.98
I139: PIS | J139: ='Dados Proponente'!$I$24 -> 0.0065 | K139: =TRUNC(ROUND($J139*K$146,2),2) -> 55.46
G140: Obs.: Vedada a inclusão de IRPJ e CSLL.
E141: Tributos Estaduais (especificar): | G141: =IF('Dados Proponente'!$E$54=""," ",'Dados Proponente'!$E$54) ->  | J141: ='Dados Proponente'!$I$54 -> 0 | K141: =TRUNC(ROUND($J141*K$146,2),2) -> 0
E142: Tributos Municipais:
I143: ISSQN | J143: ='Dados Proponente'!$I$28 -> 0.05 | K143: =TRUNC(ROUND(J143*K$146,2),2) -> 426.64
E145: Outros Tributos (especificar): | G145: =IF('Dados Proponente'!$E$55=""," ",'Dados Proponente'!$E$55) ->  | J145: ='Dados Proponente'!$I$55 -> 0 | K145: =TRUNC(ROUND($J145*K$146,2),2) -> 0
D146: Total dos Custos Indiretos, Lucro e Tributos | K146: =TRUNC(ROUND(SUM(K133:K135)/(1-J137-J143),2),2) -> 8532.78
C148: QUADRO RESUMO
K149: Valor por Empregado
D150: Total de Remuneração | K150: =K124 -> 4189
D151: Total de Encargos e Benefícios | K151: =K125 -> 2523.21
D152: Total de Provisão para Rescisão | K152: 235.93
D153: Total do Custo de Reposição do Profissional Ausente | K153: 127.44
D154: Total de Uniformes e Equipamentos | K154: 10.91
D155: Total dos Custos Indiretos, Lucro e Tributos | K155: =TRUNC(ROUND(SUM(K134,K135,K137,K141,K143,K145),2),2) -> 1446.28
D156: Valor Mensal do Serviço | K156: =SUM(K150:K155) -> 8532.77
C159: Observações: A planilha está concebida para efetuar automaticamente os cálculos, devendo ser alimentados somente os valores nos campos em amarelo.
C160: (Informações Gerais - IG) Informar a data do pregão, horário do pregão, razão social da empresa licitante, CNPJ da empresa licitante e data base da categoria profissional.
C161: (Módulo Remuneração - MR) Informar somente os adicionais previstos na Convenção Coletiva de Trabalho-CCT ou os decorrentes do local de trabalho.
C162: (Módulo Tributos) Informar os percentuais dos Tributos Federais: COFINS e PIS ou SIMPLES, Tributos Estaduais: especificar caso exista tributo, Tributos Municipais: ISSQN, e Outros Tributos: especificar caso exista outro tributo.

Sheet Vale Transporte
B1: 7 - VALE TRANSPORTE
B4: Processo nº: | E4: =IF(ISBLANK('Dados Contratação'!$B$6),"000/2014",'Dados Contratação'!$B$6) -> 15940/2022 | I4: Licitação: | J4: =IF(ISBLANK('Dados Contratação'!D6),"(NÚMERO DA LICITAÇÃO)",'Dados Contratação'!D6) -> (NÚMERO DA LICITAÇÃO)
B5: Descrição: | E5: ='Dados Contratação'!B10 -> Prestação dos serviços de apoio Administrativo aos Gestores e Fiscais de Contratos
B7: Data Pregão: | E7: =IF(ISBLANK('Dados Contratação'!$E$6),"dd/mm/aaaa",'Dados Contratação'!$E$6) -> dd/mm/aaaa | H7: Horário do Pregão: | I7: =IF(ISBLANK('Dados Contratação'!$F$6),"00:00",'Dados Contratação'!$F$6) -> 00:00
B9: Empresa: | E9: =IF(ISBLANK('Dados Proponente'!$B$6),"(NOME DA EMPRESA)",'Dados Proponente'!$B$6) -> (NOME DA EMPRESA)
B11: CNPJ: | E11: =IF(ISBLANK('Dados Proponente'!$H$6),"(CNPJ)",'Dados Proponente'!$H$6) -> (CNPJ)
B14: Local da Prestação dos Serviços | G14: Escala de Trabalho | J14: Número de Profissionais
B15: Campo Grande / MS | G15: ='Dados Contratação'!E19 -> 44 horas semanais | J15: ='Dados Contratação'!J19 -> 0
B18: Profissional | F18: Data Base (dd/mm/aaaa): | H18: Salário Mínimo Oficial Vigente: | J18: Salário Normativo da Categoria Profissional:
B19: ='Dados Contratação'!C19 -> Encarregado | F19: =IF(ISBLANK(Encargos_Benefícios!$H$21),"dd/mm/aaaa",Encargos_Benefícios!$H$21) -> 2021-11-01 | H19: =Encargos_Benefícios!H13 -> 1212 | J19: =Encargos_Benefícios!H18 -> 4189
B22: Posto de Trabalho | J22: ='Dados Contratação'!$C19 -> Encarregado | K22: ='Dados Contratação'!$C20 -> Encarregado | L22: ='Dados Contratação'!$C21 -> Contador | M22: ='Dados Contratação'!$C22 -> Profissional | N22: ='Dados Contratação'!$C23 -> Profissional | O22: ='Dados Contratação'!$C24 -> Profissional | P22: ='Dados Contratação'!$C25 -> Profissional | Q22: ='Dados Contratação'!$C26 -> Profissional | R22: ='Dados Contratação'!$C27 -> Profissional | S22: ='Dados Contratação'!$C28 -> Profissional | T22: ='Dados Contratação'!$C29 -> Profissional | U22: ='Dados Contratação'!$C30 -> Profissional | V22: ='Dados Contratação'!$C31 -> Profissional | W22: ='Dados Contratação'!$C32 -> Profissional | X22: ='Dados Contratação'!$C33 -> Profissional | Y22: ='Dados Contratação'!$C34 -> Profissional | Z22: ='Dados Contratação'!$C35 -> Profissional | AA22: ='Dados Contratação'!$C36 -> Profissional | AB22: ='Dados Contratação'!$C37 -> Profissional | AC22: ='Dados Contratação'!$C38 -> Profissional | AD22: ='Dados Contratação'!$C39 -> Profissional | AE22: ='Dados Contratação'!$C40 -> Profissional
B23: Local do Posto de Trabalho | J23: ='Dados Contratação'!$D19 -> Prédio-Sede do TRT/24ª Região | K23: ='Dados Contratação'!$D20 -> Fórum Trabalhista de Campo Grande | L23: ='Dados Contratação'!$D21 -> Prédio-Sede do TRT/24ª Região | M23: ='Dados Contratação'!$D22 -> Fórum Trabalhista de Campo Grande | N23: ='Dados Contratação'!$D23 -> Fórum Trabalhista de Dourados | O23: ='Dados Contratação'!$D24 -> Fórum Trabalhista de Três Lagoas | P23: ='Dados Contratação'!$D25 -> Vara do Trabalho de Amambaí | Q23: ='Dados Contratação'!$D26 -> Vara do Trabalho de Aquidauana | R23: ='Dados Contratação'!$D27 -> Vara do Trabalho de Bataguassu | S23: ='Dados Contratação'!$D28 -> Posto Avançado de Cassilândia | T23: ='Dados Contratação'!$D29 -> Vara do Trabalho de Corumbá | U23: ='Dados Contratação'!$D30 -> Vara do Trabalho de Coxim | V23: ='Dados Contratação'!$D31 -> Vara do Trabalho de Fátima do Sul | W23: ='Dados Contratação'!$D32 -> Vara do Trabalho de Jardim | X23: ='Dados Contratação'!$D33 -> Vara do Trabalho de Mundo Novo | Y23: ='Dados Contratação'!$D34 -> Vara do Trabalho de Naviraí | Z23: ='Dados Contratação'!$D35 -> Vara do Trabalho de Nova Andradina | AA23: ='Dados Contratação'!$D36 -> Vara do Trabalho de Paranaíba | AB23: ='Dados Contratação'!$D37 -> Vara do Trabalho de Ponta Porã | AC23: ='Dados Contratação'!$D38 -> Vara do Trabalho de Rio Brilhante | AD23: ='Dados Contratação'!$D39 -> Vara do Trabalho de São Gabriel do Oeste | AE23: ='Dados Contratação'!$D40 -> Vara do Trabalho de Chapadão do Sul
C26: COMPOSIÇÃO DOS CUSTOS COM FORNECIMENTO DE VALE TRANSPORTE
J27: Valor | K27: Valor | L27: Valor | M27: Valor | N27: Valor | O27: Valor | P27: Valor | Q27: Valor | R27: Valor | S27: Valor | T27: Valor | U27: Valor | V27: Valor | W27: Valor | X27: Valor | Y27: Valor | Z27: Valor | AA27: Valor | AB27: Valor | AC27: Valor | AD27: Valor | AE27: Valor
D28: Vale Transporte | J28: =IF(Apoio!$K$11=0,0,IF('Dados Contratação'!$J$19=0,0,Encargos_Benefícios!$H$75)) -> 0 | K28: =IF(Apoio!$K$11=0,0,IF('Dados Contratação'!$J$20=0,0,Encargos_Benefícios!$H$75)) -> 0 | L28: =IF(Apoio!$K$11=0,0,IF('Dados Contratação'!$J$21=0,0,Encargos_Benefícios!$H$75)) -> 0 | M28: =IF(Apoio!$K$11=0,0,IF('Dados Contratação'!$J$22=0,0,Encargos_Benefícios!$H$75)) -> 0 | N28: =IF(Apoio!$K$11=0,0,IF('Dados Contratação'!$J$23=0,0,Encargos_Benefícios!$H$75)) -> 0 | O28: =IF(Apoio!$K$11=0,0,IF('Dados Contratação'!$J$24=0,0,Encargos_Benefícios!$H$89)) -> 0 | P28: =Encargos_Benefícios!$H$110 -> 0 | Q28: 0 | R28: 0 | S28: 0 | T28: =Encargos_Benefícios!$H$96 -> 0 | U28: 0 | V28: 0 | W28: 0 | X28: 0 | Y28: 0 | Z28: 0 | AA28: 0 | AB28: =Encargos_Benefícios!$H$103 -> 0 | AC28: 0 | AD28: =Encargos_Benefícios!$H$117 -> 0 | AE28: 0
C31: CUSTOS INDIRETOS, LUCRO E TRIBUTOS SOBRE O VALE TRANSPORTE
J32: Valor | K32: Valor | L32: Valor | M32: Valor | N32: Valor | O32: Valor | P32: Valor | Q32: Valor | R32: Valor | S32: Valor | T32: Valor | U32: Valor | V32: Valor | W32: Valor | X32: Valor | Y32: Valor | Z32: Valor | AA32: Valor | AB32: Valor | AC32: Valor | AD32: Valor | AE32: Valor
D33: Custo Total por Empregado | J33: =J28 -> 0 | K33: 0 | L33: 0 | M33: 0 | N33: 0 | O33: 0 | P33: 0 | Q33: 0 | R33: 0 | S33: 0 | T33: 0 | U33: 0 | V33: 0 | W33: 0 | X33: 0 | Y33: 0 | Z33: 0 | AA33: 0 | AB33: 0 | AC33: 0 | AD33: 0 | AE33: 0
D34: Custos Indiretos / Despesas Operacionais e Administrativas | I34: ='Dados Proponente'!$I$51 -> 0.03 | J34: =TRUNC(ROUND($I34*J$33,2),2) -> 0 | K34: =TRUNC(ROUND($I34*K$33,2),2) -> 0 | L34: 0 | M34: 0 | N34: =TRUNC(ROUND($I34*N$33,2),2) -> 0 | O34: 0 | P34: 0 | Q34: 0 | R34: 0 | S34: 0 | T34: 0 | U34: 0 | V34: 0 | W34: 0 | X34: 0 | Y34: 0 | Z34: 0 | AA34: 0 | AB34: 0 | AC34: 0 | AD34: 0 | AE34: 0
D35: Lucro | I35: ='Dados Proponente'!$I$52 -> 0.0679 | J35: =TRUNC(ROUND($I35*(J$33+J$34),2),2) -> 0 | K35: =TRUNC(ROUND($I35*(K$33+K$34),2),2) -> 0 | L35: 0 | M35: 0 | N35: =TRUNC(ROUND($I35*(N$33+N$34),2),2) -> 0 | O35: 0 | P35: 0 | Q35: 0 | R35: 0 | S35: 0 | T35: 0 | U35: 0 | V35: 0 | W35: 0 | X35: 0 | Y35: 0 | Z35: 0 | AA35: 0 | AB35: 0 | AC35: 0 | AD35: 0 | AE35: 0
D36: Tributos
E37: Tributos Federais: | I37: =SUM(I38:I39) -> 0.0365 | J37: =SUM(J38:J39) -> 0 | K37: =SUM(K38:K39) -> 0 | L37: 0 | M37: 0 | N37: 0 | O37: 0 | P37: 0 | Q37: 0 | R37: 0 | S37: 0 | T37: 0 | U37: 0 | V37: 0 | W37: 0 | X37: 0 | Y37: 0 | Z37: 0 | AA37: 0 | AB37: 0 | AC37: 0 | AD37: 0 | AE37: 0
H38: COFINS | I38: ='Dados Proponente'!$I$25 -> 0.03 | J38: =TRUNC(ROUND($I38*J$46,2),2) -> 0 | K38: =TRUNC(ROUND($I38*K$46,2),2) -> 0 | L38: 0 | M38: 0 | N38: 0 | O38: 0 | P38: 0 | Q38: 0 | R38: 0 | S38: 0 | T38: 0 | U38: 0 | V38: 0 | W38: 0 | X38: 0 | Y38: 0 | Z38: 0 | AA38: =TRUNC(ROUND($I38*AA$46,2),2) -> 0 | AB38: 0 | AC38: 0 | AD38: 0 | AE38: =TRUNC(ROUND($I38*AE$46,2),2) -> 0
H39: PIS | I39: ='Dados Proponente'!$I$24 -> 0.0065 | J39: =TRUNC(ROUND($I39*J$46,2),2) -> 0 | K39: 0 | L39: 0 | M39: 0 | N39: 0 | O39: 0 | P39: 0 | Q39: 0 | R39: 0 | S39: 0 | T39: 0 | U39: 0 | V39: 0 | W39: 0 | X39: 0 | Y39: 0 | Z39: 0 | AA39: 0 | AB39: 0 | AC39: 0 | AD39: 0 | AE39: 0
G40: Obs.: Vedada a inclusão de IRPJ e CSLL.
E41: Tributos Estaduais (especificar): | G41: =IF('Dados Proponente'!$E$54=""," ",'Dados Proponente'!$E$54) ->  | I41: ='Dados Proponente'!$I$54 -> 0 | J41: =TRUNC(ROUND($I41*J$46,2),2) -> 0 | K41: =TRUNC(ROUND($I41*K$46,2),2) -> 0 | L41: 0 | M41: 0 | N41: 0 | O41: 0 | P41: 0 | Q41: 0 | R41: 0 | S41: 0 | T41: 0 | U41: 0 | V41: 0 | W41: 0 | X41: 0 | Y41: 0 | Z41: 0 | AA41: 0 | AB41: 0 | AC41: 0 | AD41: 0 | AE41: 0
E42: Tributos Municipais:
H43: ISSQN | I43: =Encarregado!J143 -> 0.05 | J43: =TRUNC(ROUND($I43*J$46,2),2) -> 0 | K43: =TRUNC(ROUND($I43*K$46,2),2) -> 0 | L43: 0 | M43: 0 | N43: 0 | O43: 0 | P43: 0 | Q43: 0 | R43: 0 | S43: 0 | T43: 0 | U43: 0 | V43: 0 | W43: 0 | X43: 0 | Y43: 0 | Z43: 0 | AA43: 0 | AB43: 0 | AC43: 0 | AD43: 0 | AE43: 0
E45: Outros Tributos (especificar): | G45: =IF('Dados Proponente'!$E$55=""," ",'Dados Proponente'!$E$55) ->  | I45: ='Dados Proponente'!$I$55 -> 0 | J45: =TRUNC(ROUND($I45*J$46,2),2) -> 0 | K45: =TRUNC(ROUND($I45*K$46,2),2) -> 0 | L45: 0 | M45: 0 | N45: 0 | O45: 0 | P45: 0 | Q45: 0 | R45: 0 | S45: 0 | T45: 0 | U45: 0 | V45: 0 | W45: 0 | X45: 0 | Y45: 0 | Z45: 0 | AA45: 0 | AB45: 0 | AC45: 0 | AD45: 0 | AE45: 0
D46: Total dos Custos Indiretos, Lucro e Tributos | J46: =TRUNC(ROUND(SUM(J33:J35)/(1-$I37-$I43),2),2) -> 0 | K46: =TRUNC(ROUND(SUM(K33:K35)/(1-$I37-$I43),2),2) -> 0 | L46: 0 | M46: =TRUNC(ROUND(SUM(M33:M35)/(1-$I37-$I43),2),2) -> 0 | N46: 0 | O46: 0 | P46: 0 | Q46: 0 | R46: 0 | S46: 0 | T46: 0 | U46: 0 | V46: 0 | W46: 0 | X46: 0 | Y46: 0 | Z46: 0 | AA46: 0 | AB46: 0 | AC46: 0 | AD46: 0 | AE46: 0

Sheet Hora Extra (hidden)
B1: 8 - HORA EXTRA
B4: Processo nº: | E4: =IF(ISBLANK('Dados Contratação'!$B$6),"000/2014",'Dados Contratação'!$B$6) -> 15940/2022 | I4: Licitação: | J4: =IF(ISBLANK('Dados Contratação'!D6),"(NÚMERO DA LICITAÇÃO)",'Dados Contratação'!D6) -> (NÚMERO DA LICITAÇÃO)
B5: Descrição: | E5: ='Dados Contratação'!B10 -> Prestação dos serviços de apoio Administrativo aos Gestores e Fiscais de Contratos
B7: Data Pregão: | E7: =IF(ISBLANK('Dados Contratação'!$E$6),"dd/mm/aaaa",'Dados Contratação'!$E$6) -> dd/mm/aaaa | H7: Horário do Pregão: | I7: =IF(ISBLANK('Dados Contratação'!$F$6),"00:00",'Dados Contratação'!$F$6) -> 00:00
B9: Empresa: | E9: =IF(ISBLANK('Dados Proponente'!$B$6),"(NOME DA EMPRESA)",'Dados Proponente'!$B$6) -> (NOME DA EMPRESA)
B11: CNPJ: | E11: =IF(ISBLANK('Dados Proponente'!$H$6),"(CNPJ)",'Dados Proponente'!$H$6) -> (CNPJ)
B14: Local da Prestação dos Serviços | G14: Escala de Trabalho | J14: Número de Profissionais
B15: Campo Grande / MS | G15: ='Dados Contratação'!E19 -> 44 horas semanais | J15: ='Dados Contratação'!J19 -> 0
B18: Profissional | F18: Data Base (dd/mm/aaaa): | H18: Salário Mínimo Oficial Vigente: | J18: Salário Normativo da Categoria Profissional:
B19: ='Dados Contratação'!C19 -> Encarregado | F19: =IF(ISBLANK(Encargos_Benefícios!$H$21),"dd/mm/aaaa",Encargos_Benefícios!$H$21) -> 2021-11-01 | H19: =Encargos_Benefícios!H13 -> 1212 | J19: =Encargos_Benefícios!H18 -> 4189
B22: Posto de Trabalho | J22: ='Dados Contratação'!$C19 -> Encarregado | K22: ='Dados Contratação'!$C20 -> Encarregado | L22: ='Dados Contratação'!$C21 -> Contador | M22: ='Dados Contratação'!$C22 -> Profissional | N22: ='Dados Contratação'!$C23 -> Profissional | O22: ='Dados Contratação'!$C24 -> Profissional | P22: ='Dados Contratação'!$C25 -> Profissional | Q22: ='Dados Contratação'!$C26 -> Profissional | R22: ='Dados Contratação'!$C27 -> Profissional | S22: ='Dados Contratação'!$C28 -> Profissional | T22: ='Dados Contratação'!$C29 -> Profissional | U22: ='Dados Contratação'!$C30 -> Profissional | V22: ='Dados Contratação'!$C31 -> Profissional | W22: ='Dados Contratação'!$C32 -> Profissional | X22: ='Dados Contratação'!$C33 -> Profissional | Y22: ='Dados Contratação'!$C34 -> Profissional | Z22: ='Dados Contratação'!$C35 -> Profissional | AA22: ='Dados Contratação'!$C36 -> Profissional | AB22: ='Dados Contratação'!$C37 -> Profissional | AC22: ='Dados Contratação'!$C38 -> Profissional | AD22: ='Dados Contratação'!$C39 -> Profissional | AE22: ='Dados Contratação'!$C40 -> Profissional
B23: Local do Posto de Trabalho | J23: ='Dados Contratação'!$D19 -> Prédio-Sede do TRT/24ª Região | K23: ='Dados Contratação'!$D20 -> Fórum Trabalhista de Campo Grande | L23: ='Dados Contratação'!$D21 -> Prédio-Sede do TRT/24ª Região | M23: ='Dados Contratação'!$D22 -> Fórum Trabalhista de Campo Grande | N23: ='Dados Contratação'!$D23 -> Fórum Trabalhista de Dourados | O23: ='Dados Contratação'!$D24 -> Fórum Trabalhista de Três Lagoas | P23: ='Dados Contratação'!$D25 -> Vara do Trabalho de Amambaí | Q23: ='Dados Contratação'!$D26 -> Vara do Trabalho de Aquidauana | R23: ='Dados Contratação'!$D27 -> Vara do Trabalho de Bataguassu | S23: ='Dados Contratação'!$D28 -> Posto Avançado de Cassilândia | T23: ='Dados Contratação'!$D29 -> Vara do Trabalho de Corumbá | U23: ='Dados Contratação'!$D30 -> Vara do Trabalho de Coxim | V23: ='Dados Contratação'!$D31 -> Vara do Trabalho de Fátima do Sul | W23: ='Dados Contratação'!$D32 -> Vara do Trabalho de Jardim | X23: ='Dados Contratação'!$D33 -> Vara do Trabalho de Mundo Novo | Y23: ='Dados Contratação'!$D34 -> Vara do Trabalho de Naviraí | Z23: ='Dados Contratação'!$D35 -> Vara do Trabalho de Nova Andradina | AA23: ='Dados Contratação'!$D36 -> Vara do Trabalho de Paranaíba | AB23: ='Dados Contratação'!$D37 -> Vara do Trabalho de Ponta Porã | AC23: ='Dados Contratação'!$D38 -> Vara do Trabalho de Rio Brilhante | AD23: ='Dados Contratação'!$D39 -> Vara do Trabalho de São Gabriel do Oeste | AE23: ='Dados Contratação'!$D40 -> Vara do Trabalho de Chapadão do Sul
C26: COMPOSIÇÃO DOS CUSTOS COM FORNECIMENTO DE VALE TRANSPORTE
J27: Valor | K27: Valor | L27: Valor | M27: Valor | N27: Valor | O27: Valor | P27: Valor | Q27: Valor | R27: Valor | S27: Valor | T27: Valor | U27: Valor | V27: Valor | W27: Valor | X27: Valor | Y27: Valor | Z27: Valor | AA27: Valor | AB27: Valor | AC27: Valor | AD27: Valor | AE27: Valor
D28: Adicional de Hora Extra / Semanal (Diurna - 50%) | J28: 00:00:00 | K28: 00:00:00 | L28: 00:00:00 | M28: 00:00:00 | N28: 00:00:00 | O28: 00:00:00 | P28: 00:00:00 | Q28: 00:00:00 | R28: 00:00:00 | S28: 00:00:00 | T28: 00:00:00 | U28: 00:00:00 | V28: 00:00:00 | W28: 00:00:00 | X28: 00:00:00 | Y28: 00:00:00 | Z28: 00:00:00 | AA28: 00:00:00 | AB28: 00:00:00 | AC28: 00:00:00 | AD28: 00:00:00 | AE28: 00:00:00
D29: Adicional de Hora Extra / Semanal (Noturna - 50% + 20%) | J29: 00:00:00 | K29: 00:00:00 | L29: 00:00:00 | M29: 00:00:00 | N29: 00:00:00 | O29: 00:00:00 | P29: 00:00:00 | Q29: 00:00:00 | R29: 00:00:00 | S29: 00:00:00 | T29: 00:00:00 | U29: 00:00:00 | V29: 00:00:00 | W29: 00:00:00 | X29: 00:00:00 | Y29: 00:00:00 | Z29: 00:00:00 | AA29: 00:00:00 | AB29: 00:00:00 | AC29: 00:00:00 | AD29: 00:00:00 | AE29: 00:00:00
D30: Adicional de Hora Extra / Domingo e Feriado (Diurna - 100%) | J30: 00:00:00 | K30: 00:00:00 | L30: 00:00:00 | M30: 00:00:00 | N30: 00:00:00 | O30: 00:00:00 | P30: 00:00:00 | Q30: 00:00:00 | R30: 00:00:00 | S30: 00:00:00 | T30: 00:00:00 | U30: 00:00:00 | V30: 00:00:00 | W30: 00:00:00 | X30: 00:00:00 | Y30: 00:00:00 | Z30: 00:00:00 | AA30: 00:00:00 | AB30: 00:00:00 | AC30: 00:00:00 | AD30: 00:00:00 | AE30: 00:00:00
D31: Adicional de Hora Extra / Domingo e Feriado Noturna - 100% + 20%) | J31: 00:00:00 | K31: 00:00:00 | L31: 00:00:00 | M31: 00:00:00 | N31: 00:00:00 | O31: 00:00:00 | P31: 00:00:00 | Q31: 00:00:00 | R31: 00:00:00 | S31: 00:00:00 | T31: 00:00:00 | U31: 00:00:00 | V31: 00:00:00 | W31: 00:00:00 | X31: 00:00:00 | Y31: 00:00:00 | Z31: 00:00:00 | AA31: 00:00:00 | AB31: 00:00:00 | AC31: 00:00:00 | AD31: 00:00:00 | AE31: 00:00:00

Sheet Diária, Passagem e Combustível (hidden)
B1: 9 - DIÁRIA, PASSAGEM E COMBUSTÍVEL
B4: Processo nº: | E4: =IF(ISBLANK('Dados Contratação'!$B$6),"000/2014",'Dados Contratação'!$B$6) -> 15940/2022 | I4: Licitação: | J4: =IF(ISBLANK('Dados Contratação'!D6),"(NÚMERO DA LICITAÇÃO)",'Dados Contratação'!D6) -> (NÚMERO DA LICITAÇÃO)
B5: Descrição: | E5: ='Dados Contratação'!B10 -> Prestação dos serviços de apoio Administrativo aos Gestores e Fiscais de Contratos
B7: Data Pregão: | E7: =IF(ISBLANK('Dados Contratação'!$E$6),"dd/mm/aaaa",'Dados Contratação'!$E$6) -> dd/mm/aaaa | I7: Horário do Pregão: | J7: =IF(ISBLANK('Dados Contratação'!$F$6),"00:00",'Dados Contratação'!$F$6) -> 00:00
B9: Empresa: | E9: =IF(ISBLANK('Dados Proponente'!$B$6),"(NOME DA EMPRESA)",'Dados Proponente'!$B$6) -> (NOME DA EMPRESA)
B11: CNPJ: | E11: =IF(ISBLANK('Dados Proponente'!$H$6),"(CNPJ)",'Dados Proponente'!$H$6) -> (CNPJ)
C14: INDENIZAÇÃO DE DIÁRIAS DE VIAGENS
D16: DIÁRIAS DE VIAGENS - Diárias calculadas a partir do Decreto do Governo federal 5992/2006.
I17: Quantidade | J17: Custo Unitário | K17: Custo Mensal
D18: 1 | E18: Diária com pernoite | I18: 0 | J18: 0 | K18: =I18*J18 -> 0
D19: 2 | E19: Diária sem pernoite | I19: 0 | J19: 0 | K19: =I19*J19 -> 0
D20: Valor Estimado Mensal | K20: =SUM(K18:K19) -> 0
D23: PASSAGENS RODOVIÁRIAS
K24: Custo Mensal
D25: 3 | E25: Passagens | K25: =I25*J25 -> 0
D28: QUADRO RESUMO
K29: Valor
D30: 4 | E30: Diária com pernoite | K30: =K20 -> 0
D31: 5 | E31: Diária sem pernoite | K31: =K25 -> 0
D32: Total de Indenização de Diárias de Viagens | K32: =SUM(K30:K31) -> 0
C35: DESPESAS COM TRANSPORTE
D37: COMBUSTÍVEL
G38: Consumo Estimado (Km/L) | H38: Valor do Combustível | I38: Preço do Combustível por Quilômetro | J38: Quilômetro Rodado Mensal | K38: Custo Mensal
D39: 6 | E39: km rodado Sinduscom MS | G39: 0 | H39: 0 | I39: =IF(G39=0,0,TRUNC(ROUND(H39/G39,2),2)) -> 0 | J39: 0 | K39: =TRUNC(ROUND(I39*J39,2),2) -> 0
D40: Total deDespesa com Transporte | K40: =K39 -> 0
C44: CUSTOS INDIRETOS, LUCRO E TRIBUTOS
K45: Valor
D46: Custo Total por Empregado | K46: =SUM(K32,K40) -> 0
D47: Custos Indiretos / Despesas Operacionais e Administrativas | J47: ='Dados Proponente'!$I$51 -> 0.03 | K47: =TRUNC(ROUND($J47*K$46,2),2) -> 0
D48: Lucro | J48: ='Dados Proponente'!$I$52 -> 0.0679 | K48: =TRUNC(ROUND($J48*(K$46+K$47),2),2) -> 0
D49: Tributos
E50: Tributos Federais: | J50: =SUM(J51:J52) -> 0.0365 | K50: =SUM(K51:K52) -> 0
I51: COFINS | J51: ='Dados Proponente'!$I$25 -> 0.03 | K51: =TRUNC(ROUND($J51*K$59,2),2) -> 0
I52: PIS | J52: ='Dados Proponente'!$I$24 -> 0.0065 | K52: =TRUNC(ROUND($J52*K$59,2),2) -> 0
G53: Obs.: Vedada a inclusão de IRPJ e CSLL.
E54: Tributos Estaduais (especificar): | G54: =IF('Dados Proponente'!$E$54=""," ",'Dados Proponente'!$E$54) ->  | J54: ='Dados Proponente'!$I$54 -> 0 | K54: =TRUNC(ROUND($J54*K$59,2),2) -> 0
E55: Tributos Municipais:
I56: ISSQN | J56: ='Dados Proponente'!$I$28 -> 0.05 | K56: =TRUNC(ROUND($J56*K$59,2),2) -> 0
E58: Outros Tributos (especificar): | G58: =IF('Dados Proponente'!$E$55=""," ",'Dados Proponente'!$E$55) ->  | J58: ='Dados Proponente'!$I$55 -> 0 | K58: =TRUNC(ROUND($J58*K$59,2),2) -> 0
D59: Total dos Custos Indiretos, Lucro e Tributos | K59: =TRUNC(ROUND(SUM(K46:K48)/(1-$J50-$J56),2),2) -> 0
C62: Observação: A planilha está concebida para efetuar automaticamente os cálculos, devendo ser alimentados somente os valores nos campos em amarelo.

Sheet Consumo - Manutenção (TRT) (hidden)
B1: 10 - MATERIAIS PARA MANUTENÇÃO (PREÇO TRT)
B4: Processo nº: | E4: =IF(ISBLANK('Dados Contratação'!$B$6),"000/2014",'Dados Contratação'!$B$6) -> 15940/2022 | H4: Licitação: | I4: =IF(ISBLANK('Dados Contratação'!D6),"(NÚMERO DA LICITAÇÃO)",'Dados Contratação'!D6) -> (NÚMERO DA LICITAÇÃO)
B5: Descrição: | E5: ='Dados Contratação'!B10 -> Prestação dos serviços de apoio Administrativo aos Gestores e Fiscais de Contratos
B7: Data Pregão: | E7: =IF(ISBLANK('Dados Contratação'!$E$6),"dd/mm/aaaa",'Dados Contratação'!$E$6) -> dd/mm/aaaa | H7: Horário do Pregão: | I7: =IF(ISBLANK('Dados Contratação'!$F$6),"00:00",'Dados Contratação'!$F$6) -> 00:00
B9: Empresa: | E9: =IF(ISBLANK('Dados Proponente'!$B$6),"(NOME DA EMPRESA)",'Dados Proponente'!$B$6) -> (NOME DA EMPRESA)
B11: CNPJ: | E11: =IF(ISBLANK('Dados Proponente'!$H$6),"(CNPJ)",'Dados Proponente'!$H$6) -> (CNPJ)
C14: MATERIAIS PARA MANUTENÇÃO (PREÇO TRT)
D16: MATERIAIS TRT (QTDE: PREVISÃO ANUAL)
F17: Unidade | G17: Marca | H17: Custo Unitário | I17: TRT
I18: Qtd. | J18: Custo Mensal
C19: 1 | E19: Canaleta sistema X rígida 2,10mX20mmX10mm; canaleta sistema X; rígida; em material termoplástico auto-extinguível; com divisória; com selo do INMETRO; medidas 2,10m x 20mm x 10mm; cor branca. Modelo de referência: Tigre ou Alumbra | F19: unid. | H19: 0 | I19: 0 | J19: =TRUNC(ROUND((H19*I19)/12,2),2) -> 0
C20: 2 | E20: Fita dupla-face espumada resistente (rolo 1,5m); fita dupla face de espuma; USO EXTERNO; suporta até 2,2Kg; para superfície lisa e rugosa; superaderente; alta resistência; medida 24mm X 1,50m. Modelo de refer.: 3M Scotch 4411 | F20: unid. | H20: 0 | I20: 0 | J20: =TRUNC(ROUND((H20*I20)/12,2),2) -> 0
C21: 3 | E21: Adesivo de contato; embalagem 730g; à base de solvente alifático, solventes oxigenados, resinas sintéticas, borrachas sintéticas e aditivos; sem substâncias consideradas inalantes com potencial de abuso que podem desencadear a autoadministração; secagem entre 5 e 10 minutos; temperatura de aplicação 18°C e 25°C; rendimento 250 a 300 g/m²; suporta temperaturas de até 70°C; para uso em porcelanato e piso elevado; validade 1 ano à partir do recebimento do material. Modelo de referência Cascola Adesivo de Contato Tradicional. | F21: unid. | H21: 0 | I21: 0 | J21: 0
C22: 4 | E22: Cola madeira; adesivo à base de PVA 100g; composto de poliacetato de vinila (PVA) em dispersão aquosa; desenvolvido para reparos e consertos de móveis e objetos em madeira, laminados plásticos, aglomerados, MDF e HDF; utilizado pelos processos convencionados de colagem (prensagem a frio e quente); adere ainda úmido; pronto para uso, sem a necessidade de preparo ou adição de outros componentes; tecnologia à base d'água, isento de solventes; fácil manuseio e limpeza; odor suave; produto sem características tóxicas; alta força de colagem; excelente flexibilidade, ideal para a colagem de materiais que sofrem esforço mecânico. Modelo de referência CascolaCascorez Cola Madeira 100g. | F22: unid. | H22: 0 | I22: 0 | J22: 0
C23: 5 | E23: Fita vermelha de demarcação de solo 48mm x 15m; composta de PVC e adesivo acrílico de alta resistência; para uso externo e interno; resistente; fácil de aplicar, fornecida em rolo. Modelo de referência Kapazi Fita de Demarcação de Solo. | F23: unid. | H23: 0 | I23: 0 | J23: 0
C24: 6 | E24: Fita amarela de demarcação de solo 48mm x 15m; composta de PVC e adesivo acrílico de alta resistência; para uso externo e interno; resistente; fácil de aplicar, fornecida em rolo. Modelo de referência Kapazi Fita de Demarcação de Solo. | F24: unid. | H24: 0 | I24: 0 | J24: 0
C25: 7 | E25: Fita antiderrapante para pisos; com faixa fosforescente que emite luz até 6 horas; largura 50mm; rolo de 5 metros; cor preta; fórmula à base d'água; material antiderrapante óxido de alumínio; resina para adesão poliuretana. Modelo de referência 3M Fita Antiderrapante Safety-Walk Fosforescente. | F25: unid. | H25: 0 | I25: 0 | J25: 0
C26: 8 | E26: Graxa de cavidade 400 ml / 280 g; cor branca; a base de parafina com alto grau de destilação, sabão de lítio, antioxidante e espessante; alta resistência; estável a extremas pressões, ambientes úmidos, cargas altas e choques; não contem CFC; sem silicone, chumbo e zinco; viscosidade cinemática a 40°C 150mm²/seg; ponto de fulgor >220°C; temperatura de ignição 330°C; limite de explosividadeinf-sup 2,8 a 11,5 vol.%. Graxa Branca de Lítio Specialist 400ml | F26: unid. | H26: 0 | I26: 0 | J26: 0
C27: 9 | E27: Malha costurada tipo pastelão 20x20cm para limpeza, em tecido de algodão. | F27: unid. | H27: 0 | I27: 0 | J27: 0
C28: 10 | E28: Micro-óleo anticorrosivo multiuso; embalagem de 500ml; finalidades: lubrifica, penetra, limpa, protege, elimina umidade, solta parafusos, destrava mecanismos, evita corrosão, evita ferrugem, imunizar máquinas de injeção e moldes plásticos de vapores corrosivos; conservar peças em processo de fabricação, remove cola de linóleo, entre outros; uso em máquinas e equipamentos elétricos e eletrônicos; com bico inteligente fácil e prático de aplicar, funcionando como spray e como jato, com canudo extensor; composição (concentração p/p): óleo básico de petróleo (<40), hidrocarboneto alifático (<40), butano (<30), propano (<30); propriedades físico-químicas: líquido premido, cor levemente amarelada, odor característico, ponto de fulgor -60°C, insolúvel na água, não conduz eletricidade até 12kV; produto estável a temperatura ambiente, não ocorre polimerização; reage com cloratos, peróxidos, ácidos e outros. Modelo de referência: WD-40 Produto Multiusos FlexTop 500ml Bico Inteligente. | F28: unid. | H28: 0 | I28: 0 | J28: 0
C29: 11 | E29: Piso Porcelanato 60 x 60 cm; espessura 9 mm; superfície polida; junta de assentamento 2mm; variação de tonalidade de uma mesma produção mínima; classe de atrito I; recomendado para uso em áreas comerciais com acesso para rua; acabamento retificado; grupo de absorção BIA; caixa com 4 peças / 1,44 m² / 28,5 kg; conforme padronização da nova sede do TRT24. Modelo de referência Eliane Panna Plus PO. | F29: unid. | H29: 0 | I29: 0 | J29: 0
C30: 12 | E30: Assento sanitário com abertura frontal para acessibilidade; em poliéster; cor branca; fixação cromada; medidas externas 435 x 360 x 40mm; em conformidade com as normas aplicáveis; modelo de referência Deca AP.52. | F30: unid. | H30: 0 | I30: 0 | J30: 0
C31: 13 | E31: Assento sanitário sem abertura frontal; em poliéster; cor branca; fixação cromada; medidas externas 435 x 360 x 40mm; em conformidade com as normas aplicáveis; modelo de referência Deca. | F31: unid. | H31: 0 | I31: 0 | J31: 0
C32: 14 | E32: Dispenser para papel higienico interfolhas branco | F32: unid. | H32: 0 | I32: 0 | J32: 0
C33: 15 | E33: Ducha higiênica Deca; mangueira de metal, comprimento da mangueira 120 cm; dimensões 6,30x6,30x11,90cm; acionamento à gatilho. referência DECA 1984.C84.ACT.CR | F33: unid. | H33: 0 | I33: 0 | J33: 0
C34: 16 | E34: Sifão para pia 1 1/2"x2"x30cm cromado com copo. Modelo de referência: Sigma/Econoline. | F34: unid. | H34: 0 | I34: 0 | J34: 0
C35: 17 | E35: Suporte p/ papel higiênico comum; em inox | F35: unid. | H35: 0 | I35: 0 | J35: 0
C36: 18 | E36: Torneira bica alta de parede; em metal de boa qualidade; cromado; altura total 200mm; diâmmáx da base 58mm; altura da bica em relação à base 156mm. Modelo de ref.: Docol código Trio 00503206 | F36: unid. | H36: 0 | I36: 0 | J36: 0
C37: 19 | E37: Torneira de mesa em metal cromada com arejador volta completa cruzeta. Modelo de referência: Docol Torneira para Cozinha de Mesa 1/2" Trio Cód. 00512206. | F37: unid. | H37: 0 | I37: 0 | J37: 0
C38: 20 | E38: Torneira para lavatório; acionamento hidromecânico com leve pressão manual; dimensões: diâmetro corpo da torneira 34,5mm / altura visível 93mm / largura 134mm / altura da saída d'água 63mm / projeção da água inclinada em 25º em relação ao eixo do corpo da torneira / distância entre eixo do corpo com o eixo da saída de água 102mm; deve atender as exigências da especificação LEED, proporcionando redução média de consumo de 70%; arejador embutido que evita o vandalismo e facilita a limpeza do produto; acabamento superficial cromado, alta resistência a corrosão e riscos; fechamento em aproximadamente 6 segundos; bitola de 1/2"; temperatura máxima da água: 70ºC; para pressões acima de 1 Kgf/cm² para obter a vazão constante de 1,8 litros/minuto; funcionamento perfeito de: 1 a 4 kgf/cm² ou 14,23 a 57 psi. Modelo de ref.: DOCOL Torneira para Lavatório de Mesa Pressmatic Alfa cód. 00592606. | F38: unid. | H38: 0 | I38: 0 | J38: 0
C39: 21 | E39: Lâmpada fluorescente compacta twist 13 a 15W; Tensão 110-130V; fluxo luminoso 830 lm; temp cor 4000; diâmetro 42mm; comprimento 123mm; base E-27; vida útil 6.000 horas; formato espiral (twist) ; as especificações devem estar obrigatoriamente disponíveis em catálogo técnico na internet. Modelo de ref.: OsramDuluxstarMiniTwist 14W/840 | F39: unid. | H39: 0 | I39: 0 | J39: 0
C40: 22 | E40: Lâmpada Led de Alta Potência a100 50w Bivolt 6500k Luz Branca | F40: unid. | H40: 0 | I40: 0 | J40: 0
C41: 23 | E41: Lâmpada halopar 110-130V 50W; base E-27; 1250 lm; 2.000 horas; ângulo de iluminação 30°; diâmetro 64,5 mm; comprimento 91 mm; modelo de referência OsramHalopar 20 cód 64832 Flood. | F41: unid. | H41: 0 | I41: 0 | J41: 0
C42: 24 | E42: Lâmpada halopar 110-130V 90W; base E-27; 3680 lm; 2.000 horas; ângulo de iluminação 30°; diâmetro 121 mm; comprimento 135 mm; modelo de referência OsramHalopar 38 NFL. | F42: unid. | H42: 0 | I42: 0 | J42: 0
C43: 25 | E43: Fita Impermeável auto-adesiva 10 cm x 10 m à base de asfalto modificado para vedação em telhas, calhas e rufos; composta de uma camada de adesivo asfáltico, coberto com uma lâmina de alumínio e protegido por um filme plástico; utilizado para vedar e reparar: telhas metálicas, de fibrocimento e de concreto, junção de parede com telhado ou lajes, passagens de tubulações em lajes e telhados, união entre materiais de diferentes naturezas; reparo de trincas em concreto e alvenaria, cumieiras, calhas, dutos e rufos; aplicação rápida e fácil; impermeável e resistente à água; boa resistência aos raios solares; flexível; aderência na maioria dos materiais utilizados na construção civil, como concreto, argamassa, pedra, tijolos, madeiras, cerâmica, telhas, alumínio, etc; não necessita de ferramentas especiais para a aplicação; resistência a tração 85 N; cor alumínio; fornecido em rolo; validade mínima de 20 meses à partir do recebimento provisório no TRT.. Modelo de referência SikaMultiSeal S. | F43: unid. | H43: 0 | I43: 0 | J43: 0
C44: 26 | E44: Bateria alcalina ultra 9V; sistema de carga em zinco e dióxido de manganês, 60% mais energia que as alcalinas comuns; validade maior que 4 anos à partir do recebimento provisório no TRT. Modelo de ref.: Duracell Duralock. | F44: unid. | H44: 0 | I44: 0 | J44: 0
C45: 27 | E45: Pilha palito alcalina ultra AAA 1,5V; sistema de carga em zinco e dióxido de manganês, 60% mais energia que as alcalinas comuns; com indicador de carga em cada pilha, pressionando dois dedos na mesma; norma IEC LR80425; validade maior que 8 anos à partir do recebimento provisório no TRT. Modelo de ref.: Duracell Alcalina Ultra Power. | F45: unid. | H45: 0 | I45: 0 | J45: 0
C46: 28 | E46: Pilha alcalina ultra AA 1,5V; sistema de carga em zinco e dióxido de manganês, 60% mais energia que as alcalinas comuns; com indicador de carga em cada pilha, pressionando dois dedos na mesma; norma IEC LR80425; validade maior que 8 anos à partir do recebimento provisório no TRT. Modelo de ref.: Duracell Alcalina Ultra Power. | F46: unid. | H46: 0 | I46: 0 | J46: 0
C47: 29 | E47: Caçamba plástica para pintura 14 litros; com alça e gancho; alta resistência; qualidade superior; multiuso; modelo de referência Tigre 1309. | F47: unid. | H47: 0 | I47: 0 | J47: 0
C48: 30 | E48: Espátula de aço inox 2 ½ polegadas; com olhal no cabo de madeira; alta qualidade; próprio para preparação de paredes; modelo de referência Tigre 2153. | F48: unid. | H48: 0 | I48: 0 | J48: 0
C49: 31 | E49: Fita crepe 19mm x 50 metros; papel crepe especialmente tratado de gramatura 35g/m²; espessura 0,11 mm; alongamento da ruptura 5%; alta resistência a tração 6 kgf/12mm de largura; alta conformabilidade; alta resistência a umidade; alta resistência ao cisalhamento, cisalhamento ao papelão 60 minutos; desenrolamento 9,4N/100mm; alta coesão; resistente até 50º; indicada para mascaramento de pintura; adesivo composto por resina e borracha sintética, sensível a pressão; adesão a placa de aço 380 gf/12mm de largura; modelo de referência: 3M Fita 2314-C. | F49: unid. | H49: 0 | I49: 0 | J49: 0
C50: 32 | E50: Pincel trincha cerda gris 1 polegada; próprio para tintas acrílica e látex; com qualidade, cabo e aparência semelhante ao modelo Tigre 695. | F50: unid. | H50: 0 | I50: 0 | J50: 0
C51: 33 | E51: Pincel trincha cerda gris 1/2 polegada; próprio para tintas acrílica e látex; com qualidade, cabo e aparência semelhante ao modelo Tigre 695. | F51: unid. | H51: 0 | I51: 0 | J51: 0
C52: 34 | E52: Pincel trincha cerda gris 2 ½ polegada; próprio para tintas acrílica e látex; com qualidade, cabo e aparência semelhante ao modelo Tigre 695. | F52: unid. | H52: 0 | I52: 0 | J52: 0
C53: 35 | E53: Rolo para pintura 23 cm com suporte; altura da lã 22mm; desempenho superior; qualidade premium; tecido especial lã natural; próprio para pintura paredes ásperas e rugosas (grafiato), com tinta látex e acrílica; modelo de referência: Tigre Rolo 1391. | F53: unid. | H53: 0 | I53: 0 | J53: 0
C54: 36 | E54: Rolo para pintura 23 cm com suporte; antirrespingo; altura da lã 15mm; pinta 30% mais e desempenho superior; tecido especial lã sintética de cor mesclada amarela e branca; próprio para pintura em tetos, paredes lisas e ásperas, com tinta látex e acrílica; modelo de referência: Tigre Rolo 1369. | F54: unid. | H54: 0 | I54: 0 | J54: 0
C55: 37 | E55: Selador acrílico; acabamento fosco; próprio para paredes; aplicação em exteriores e interiores, reboco, blocos de concreto, concreto aparente, fibro-cimento e massa fina; composto à base de dispersão aquosa de copolímero estireno-acrílico, pigmentos isentos de metais pesados, cargas minerais inertes, hidrocarbonetos alifáticos, glicóis e tensoativosetoxilados; diluição 10% com água potável; rendimento 16 a 24 m² com 3,6litros ou 80 a 120 m² com 18litros; secagem ao toque em 2 horas e secagem total em 6 horas; modelo de referência Suvinil Selador Acrílico. Embalagem lata com 18l. | F55: unid. | H55: 0 | I55: 0 | J55: 0
C56: 38 | E56: Tinta acrílica fosco branco neve; acabamento fosco; próprio para paredes; aplicação em exteriores e interiores, reboco, massa acrílica, texturas, concreto, fibrocimento e superfícies internas de massa corrida, gesso e repintura sobre tintas PVA ou acrílicas; composto de resina à base de dispersão aquosa de copolímero estireno acrílico, pigmentos isentos de metais pesados, cargas minerais inertes, hidrocarbonetos alifáticos, glicóis e tensoativosetoxilados e carboxilados; sem cheiro; diluição 1ª demão 20 a 30% (10 a 20% nas demais) com água potável; rendimento até 76 m² com 3,6litros ou 380 m² com 18litros; secagem ao toque em 2 horas e secagem total em 12 horas; modelo de referência Suvinil Acrílico Premium Fosco. Embalagem lata com 18l. | F56: unid. | H56: 0 | I56: 0 | J56: 0
C57: 39 | E57: Tinta acrílico semi-brilho branco fosco; próprio para paredes; aplicação em exteriores e interiores, reboco, massa acrílica, texturas, concreto, fibrocimento e superfícies internas de massa corrida, gesso e repintura sobre tintas PVA ou acrílicas; composto de resina à base de dispersão aquosa de copolímero estireno acrílico, pigmentos isentos de metais pesados, cargas minerais inertes, hidrocarbonetos alifáticos, glicóis e tensoativosetoxilados e carboxilados; sem cheiro e menos sujeira; diluição na 1ª demão 20 a 30% (demais 10 a 20%) com água potável; rendimento até 64 m² com 3,6litros ou 320 m² com 18litros; secagem ao toque em 2 horas e secagem total em 12 horas; modelo de referência Suvinil Acrílico Premium Semi-Brilho. Embalagem lata com 18l. | F57: unid. | H57: 0 | I57: 0 | J57: 0
C58: 40 | E58: Tinta para piso amarela; aplicação em pisos, cimentados, áreas de lazer, escadas, varandas, quadras poliesportivas e outras superfícies de concreto rústico, liso ou ainda para repintura de pisos; composto de resina à base de dispersão aquosa de copolímero estireno-acrílico, pigmentos isentos de metais pesados, cargas minerais inertes, glicóis, tensoativoscarboxilados, bactericidas e fungicidas (a base de isotiazolonas); diluição 10% (30% na 1ª demão) com água potável; rendimento até 55 m² com 3,6litros e até 275 m² com 18litros; secagem ao toque em 2 horas e secagem total em 72 horas; modelo de referência Suvinil Piso. Galão de 3,6l. | F58: unid. | H58: 0 | I58: 0 | J58: 0
C59: 41 | E59: Plugue 3 saídas (3 tomadas) 2P+T 10A/250V; cinza; acabamento de alta qualidade sem rebarbas. Modelo de referência Fame 1491. | F59: unid. | H59: 0 | I59: 0 | J59: 0
C60: 42 | E60: Plugue 3 saídas (3 tomadas) 2P+T 20A/250V; cinza; acabamento de alta qualidade sem rebarbas. Modelo de referência Fame 1492. | F60: unid. | H60: 0 | I60: 0 | J60: 0
C61: 43 | E61: Plugue macho tomada 2P+T 20A/250V; tipo profissional e reforçado; acabamento de alta qualidade sem rebarbas; plugue com saída ajustável lateral e axial; com prensa-cabo ajustável por parafuso, para cabos com diâmetro externo até 13 mm; cor preto. Referência PIAL LEGRAND 6158 53. | F61: unid. | H61: 0 | I61: 0 | J61: 0
C62: 44 | E62: Anel de vedação de bacia sanitária, prazo de validade para estocagem: 2 anos. Certificação NBR 15491. Modelo de referência Deca anel. | F62: unid. | H62: 0 | I62: 0 | J62: 0
C63: 45 | E63: Painel para forro modular 625 x 1250 x 15 mm; caixa com 10 placas; branco; com micro-furos espalhados pela superfície; fabricado a partir de lãs minerais bio-solúveis, argila, perlita e aglomerados orgânicos; resistente ao fogo; ótima performance acústica; classe de material A2-s1, d0 segundo EM 13501-1; combustibilidade Classe II-A conforme NBR 9442 e IT-10; absorção sonora EM ISSO 354, alfaW = 0,60 conforme EM ISSO 11654, NRC = 0,60 conforme ASTM C 423; atenuação sonora Dncw = 34 dB conforme EM 20140-9; reflexão luminosa 90%; condutividade térmica 0,052 - 0,057 W/mK conforme DIN 52612; resistência até 95% de umidade relativa do ar; o fornecedor deve estar atento para fornecer o mesmo padrão de forro existente na sede do TRT24. Modelo de referência AMF Thermatex Star (borda SK) | F63: unid. | H63: 0 | I63: 0 | J63: 0
C64: 46 | E64: Extensor telescópio para rolo de pintura; 3000mm; fabricado em aço metálico revestido de plástico azul com adaptador; multiuso; alta resistência; qualidade superior; modelo de referencia Tigre 1307. | F64: unid. | H64: 0 | I64: 0 | J64: 0
C65: 47 | E65: Plugue macho tomada 2P+T 10A/250V; tipo profissional e reforçado; acabamento de alta qualidade sem rebarbas; plugue com saída ajustável lateral e axial; com prensa-cabo ajustável por parafuso, para cabos com diâmetro externo até 13 mm; cor branco. Referência PIAL LEGRAND 6158 32. | F65: unid. | H65: 0 | I65: 0 | J65: 0
C66: 48 | E66: Tomada móvel múltipla 2P+T 10A/250V quádrupla (4 tomadas); cinza; acabamento de alta qualidade sem rebarbas. Modelo de referência Fame 2701. | F66: unid. | H66: 0 | I66: 0 | J66: 0
C67: 49 | E67: Selante de Silicone Resistente à Intempérie COR CINZA; selante de cura RTV de cura neutra, monocomponente; excelente resistência à intempérie, não sendo afetado pela luz do sol, chuva, neve ou ozônio; ideal para juntas de expansão, conexão, selos perimetrais, juntas de movimentação, vidros em geral e vedação em fachadas de edificações; na classe de selante arquitetônico; validade mínima 10 meses à partir da entrega no TRT; embalagem em cartucho descartável de 310ml; | F67: unid. | H67: 0 | I67: 0 | J67: 0
C68: 50 | E68: Bucha para gesso acartonado 8mm (parede dry-wall), em nailon ou poliamida, espessura do material de base de até 16mm, carga máxima recomendada mínima de 10kgf. Modelo de referência Bucha Wurth código 3903 9 ou Bucha Ancora KWIK TOG Médio. | F68: unid. | H68: 0 | I68: 0 | J68: 0
C69: 51 | E69: Bateria Selada 12v UP12 Compacta Alarme. Modelo de referência: UNI-06C213 Unipower | F69: unid. | H69: 0 | I69: 0 | J69: 0
C70: 52 | E70: Central de Alarme JFL Active 20 Ultra LCD. Modelo de referência: DOU-1027 JFL | F70: unid. | H70: 0 | I70: 0 | J70: 0
C71: 53 | E71: Central Pabx Digital Impacta 16 Intelbras | F71: unid. | H71: 0 | I71: 0 | J71: 0
C72: 54 | E72: Placa 2 trocos Analogicos Impacta 16/68 Intelbras | F72: unid. | H72: 0 | I72: 0 | J72: 0
C73: 55 | E73: Placa Ramal Misto Impecta 16/40/68 Intelbras | F73: unid. | H73: 0 | I73: 0 | J73: 0
C74: 56 | E74: Placa 4 ramais Analógicos Impacta 16/40/68 Intelbras | F74: unid. | H74: 0 | I74: 0 | J74: 0
C75: 57 | E75: Receptor 2 canais XAR 3060 UM (Universal) Intelbras | F75: unid. | H75: 0 | I75: 0 | J75: 0
C76: 58 | E76: Controle Remotop/ Portão, Alarme 433 Mhz RC TX4-R JFL Preto | F76: unid. | H76: 0 | I76: 0 | J76: 0
C77: 59 | E77: Cancela Automática Reta | F77: unid. | H77: 0 | I77: 0 | J77: 0
C78: 60 | E78: Cancela Automática Articulada | F78: unid. | H78: 0 | I78: 0 | J78: 0
C79: 61 | E79: Motor corrente para portão de elevação - Industrial 1/2cv 220V | F79: unid. | H79: 0 | I79: 0 | J79: 0
C80: 62 | E80: Motor para portão de Elevação Garen 1/3 CV | F80: unid. | H80: 0 | I80: 0 | J80: 0
C81: 63 | E81: Motor para portão de correr Garen 1/3CV | F81: unid. | H81: 0 | I81: 0 | J81: 0
C82: =C81+1 -> 64 | E82: PAINEL METALICO (ANDAIME) 1.00x1.50m | F82: diária | H82: 0 | I82: 0 | J82: 0
C83: =C82+1 -> 65 | E83: BETONEIRA 400L 220V | F83: diária | H83: 0 | I83: 0 | J83: 0
C84: 66 | E84: COMPRESSOR DE AR DIRETO 110/220V | F84: diária | H84: 0 | I84: 0 | J84: =TRUNC(ROUND((H84*I84)/12,2),2) -> 0
C85: 67 | E85: MARTELETE PERFURADOR\ROMP 2.6KG 220V | F85: diária | H85: 0 | I85: 0 | J85: 0
C86: 68 | E86: ROÇADEIRA COSTAL GASOLINA | F86: diária | H86: 0 | I86: 0 | J86: 0
C87: 69 | E87: ASPIRADOR DE PÓ 220V | F87: diária | H87: 0 | I87: 0 | J87: 0
C88: 70 | E88: ROMPEDOR 10KG 220V | F88: diária | H88: 0 | I88: 0 | J88: 0
C89: 71 | E89: SERRA MADEIRA 110V | F89: diária | H89: 0 | I89: 0 | J89: 0
C90: =C89+1 -> 72 | E90: CAÇAMBA GRANDE DE 4 METROS | F90: mensal | H90: 0 | I90: 0 | J90: 0
C91: Valor Estimado Anual | J91: =SUM(J19:J90) -> 0
C94: CUSTOS INDIRETOS, LUCRO E TRIBUTOS
J95: Valor
D96: Custo Total por Empregado | J96: =J91 -> 0
D97: Custos Indiretos / Despesas Operacionais e Administrativas | I97: ='Dados Proponente'!$I$51 -> 0.03 | J97: =TRUNC(ROUND($I97*J$96,2),2) -> 0
D98: Lucro | I98: ='Dados Proponente'!$I$52 -> 0.0679 | J98: =TRUNC(ROUND($I98*(J$96+J$97),2),2) -> 0
D99: Tributos
E100: Tributos Federais: | I100: =SUM(I101:I102) -> 0.0365 | J100: =SUM(J101:J102) -> 0
H101: COFINS | I101: ='Dados Proponente'!$I$25 -> 0.03 | J101: =TRUNC(ROUND($I101*J$109,2),2) -> 0
H102: PIS | I102: ='Dados Proponente'!$I$24 -> 0.0065 | J102: =TRUNC(ROUND($I102*J$109,2),2) -> 0
F103: Obs.: Vedada a inclusão de IRPJ e CSLL.
E104: Tributos Estaduais (especificar): | I104: ='Dados Proponente'!$I$54 -> 0 | J104: =TRUNC(ROUND($I104*J$109,2),2) -> 0
E105: Tributos Municipais:
H106: ISSQN | I106: ='Dados Proponente'!$I$28 -> 0.05 | J106: =TRUNC(ROUND($I106*J$109,2),2) -> 0
E108: Outros Tributos (especificar): | I108: ='Dados Proponente'!$I$55 -> 0 | J108: =TRUNC(ROUND($I108*J$109,2),2) -> 0
D109: Total dos Custos Indiretos, Lucro e Tributos | J109: =TRUNC(ROUND(SUM(J96:J98)/(1-$I100-$I106),2),2) -> 0
C111: Observação: A planilha está concebida para efetuar automaticamente os cálculos, devendo ser alimentados somente os valores nos campos em amarelo.

Sheet Consumo - Manutenção (SINAPI) (hidden)
B1: 10 - MATERIAIS PARA MANUTENÇÃO (PREÇO SINAPI)
B4: Processo nº: | E4: =IF(ISBLANK('Dados Contratação'!$B$6),"000/2014",'Dados Contratação'!$B$6) -> 15940/2022 | I4: =IF(ISBLANK('Dados Contratação'!D6),"(NÚMERO DA LICITAÇÃO)",'Dados Contratação'!D6) -> (NÚMERO DA LICITAÇÃO) | J4: =IF(ISBLANK('Dados Contratação'!D6),"(NÚMERO DA LICITAÇÃO)",'Dados Contratação'!D6) -> (NÚMERO DA LICITAÇÃO)
B5: Descrição: | E5: ='Dados Contratação'!B10 -> Prestação dos serviços de apoio Administrativo aos Gestores e Fiscais de Contratos
B7: Data Pregão: | E7: =IF(ISBLANK('Dados Contratação'!$E$6),"dd/mm/aaaa",'Dados Contratação'!$E$6) -> dd/mm/aaaa | I7: Horário do Pregão: | J7: =IF(ISBLANK('Dados Contratação'!$F$6),"00:00",'Dados Contratação'!$F$6) -> 00:00
B9: Empresa: | E9: =IF(ISBLANK('Dados Proponente'!$B$6),"(NOME DA EMPRESA)",'Dados Proponente'!$B$6) -> (NOME DA EMPRESA)
B11: CNPJ: | E11: =IF(ISBLANK('Dados Proponente'!$H$6),"(CNPJ)",'Dados Proponente'!$H$6) -> (CNPJ)
C14: MATERIAIS PARA MANUTENÇÃO (PREÇO SINAPI)
D16: MATERIAIS SINAPI (QTDE: PREVISÃO ANUAL)
F17: Código SINAPI | G17: Unidade | H17: Marca | I17: Custo Unitário | J17: TRT
J18: Qtd. | K18: Custo Mensal
C19: 1 | E19: ABERTURA PARA ENCAIXE DE CUBA OU LAVATORIO EM BANCADA DE MARMORE/ GRANITO OU OUTRO TIPO DE PEDRA NATURAL | F19: 38605 | G19: UN | I19: 0 | J19: 0 | K19: =TRUNC(ROUND((I19*J19)/12,2),2) -> 0
C20: 2 | E20: ABRACADEIRA DE LATAO PARA FIXACAO DE CABO PARA-RAIO, DIMENSOES 32 X 24 X 24 MM | F20: 11270 | G20: UN | I20: 0 | J20: 0 | K20: =TRUNC(ROUND((I20*J20)/12,2),2) -> 0
C21: 3 | E21: ABRACADEIRA DE NYLON PARA AMARRACAO DE CABOS, COMPRIMENTO DE *230* X *7,6* MM | F21: 412 | G21: UN | I21: 0 | J21: 0 | K21: 0
C22: 4 | E22: ABRACADEIRA DE NYLON PARA AMARRACAO DE CABOS, COMPRIMENTO DE 100 X 2,5 MM | F22: 414 | G22: UN | I22: 0 | J22: 0 | K22: 0
C23: 5 | E23: ABRACADEIRA DE NYLON PARA AMARRACAO DE CABOS, COMPRIMENTO DE 150 X *3,6* MM | F23: 410 | G23: UN | I23: 0 | J23: 0 | K23: 0
C24: 6 | E24: ABRACADEIRA DE NYLON PARA AMARRACAO DE CABOS, COMPRIMENTO DE 200 X *4,6* MM | F24: 411 | G24: UN | I24: 0 | J24: 0 | K24: 0
C25: 7 | E25: ABRACADEIRA DE NYLON PARA AMARRACAO DE CABOS, COMPRIMENTO DE 390 X *4,6* MM | F25: 408 | G25: UN | I25: 0 | J25: 0 | K25: 0
C26: 8 | E26: ABRACADEIRA EM ACO PARA AMARRACAO DE ELETRODUTOS, TIPO D, COM 1 1/2" E CUNHA DE FIXACAO | F26: 39131 | G26: UN | I26: 0 | J26: 0 | K26: 0
C27: 9 | E27: ABRACADEIRA EM ACO PARA AMARRACAO DE ELETRODUTOS, TIPO D, COM 1 1/2" E PARAFUSO DE FIXACAO | F27: 394 | G27: UN | I27: 0 | J27: 0 | K27: 0
C28: 10 | E28: ABRACADEIRA EM ACO PARA AMARRACAO DE ELETRODUTOS, TIPO D, COM 1 1/4" E CUNHA DE FIXACAO | F28: 39130 | G28: UN | I28: 0 | J28: 0 | K28: 0
C29: 11 | E29: ABRACADEIRA EM ACO PARA AMARRACAO DE ELETRODUTOS, TIPO D, COM 1 1/4" E PARAFUSO DE FIXACAO | F29: 395 | G29: UN | I29: 0 | J29: 0 | K29: 0
C30: 12 | E30: ABRACADEIRA EM ACO PARA AMARRACAO DE ELETRODUTOS, TIPO D, COM 1" E CUNHA DE FIXACAO | F30: 39129 | G30: UN | I30: 0 | J30: 0 | K30: 0
C31: 13 | E31: ABRACADEIRA EM ACO PARA AMARRACAO DE ELETRODUTOS, TIPO D, COM 1" E PARAFUSO DE FIXACAO | F31: 393 | G31: UN | I31: 0 | J31: 0 | K31: 0
C32: 14 | E32: ABRACADEIRA EM ACO PARA AMARRACAO DE ELETRODUTOS, TIPO D, COM 1/2" E CUNHA DE FIXACAO | F32: 39127 | G32: UN | I32: 0 | J32: 0 | K32: 0
C33: 15 | E33: ABRACADEIRA EM ACO PARA AMARRACAO DE ELETRODUTOS, TIPO D, COM 1/2" E PARAFUSO DE FIXACAO | F33: 392 | G33: UN | I33: 0 | J33: 0 | K33: 0
C34: 16 | E34: ABRACADEIRA EM ACO PARA AMARRACAO DE ELETRODUTOS, TIPO D, COM 2 1/2" E CUNHA DE FIXACAO | F34: 39133 | G34: UN | I34: 0 | J34: 0 | K34: 0
C35: 17 | E35: ABRACADEIRA EM ACO PARA AMARRACAO DE ELETRODUTOS, TIPO D, COM 2 1/2" E PARAFUSO DE FIXACAO | F35: 397 | G35: UN | I35: 0 | J35: 0 | K35: 0
C36: 18 | E36: ABRACADEIRA EM ACO PARA AMARRACAO DE ELETRODUTOS, TIPO D, COM 2" E CUNHA DE FIXACAO | F36: 39132 | G36: UN | I36: 0 | J36: 0 | K36: 0
C37: 19 | E37: ABRACADEIRA EM ACO PARA AMARRACAO DE ELETRODUTOS, TIPO D, COM 2" E PARAFUSO DE FIXACAO | F37: 396 | G37: UN | I37: 0 | J37: 0 | K37: 0
C38: 20 | E38: ABRACADEIRA EM ACO PARA AMARRACAO DE ELETRODUTOS, TIPO D, COM 3 1/2" E CUNHA DE FIXACAO | F38: 39135 | G38: UN | I38: 0 | J38: 0 | K38: 0
C39: 21 | E39: ABRACADEIRA EM ACO PARA AMARRACAO DE ELETRODUTOS, TIPO D, COM 3/4" E CUNHA DE FIXACAO | F39: 39128 | G39: UN | I39: 0 | J39: 0 | K39: 0
C40: 22 | E40: ABRACADEIRA EM ACO PARA AMARRACAO DE ELETRODUTOS, TIPO D, COM 3/4" E PARAFUSO DE FIXACAO | F40: 400 | G40: UN | I40: 0 | J40: 0 | K40: 0
C41: 23 | E41: ABRACADEIRA EM ACO PARA AMARRACAO DE ELETRODUTOS, TIPO D, COM 3/8" E PARAFUSO DE FIXACAO | F41: 39125 | G41: UN | I41: 0 | J41: 0 | K41: 0
C42: 24 | E42: ABRACADEIRA EM ACO PARA AMARRACAO DE ELETRODUTOS, TIPO ECONOMICA (GOTA), COM 8" | F42: 39158 | G42: UN | I42: 0 | J42: 0 | K42: 0
C43: 25 | E43: ABRACADEIRA PVC, PARA CALHA PLUVIAL, DIAMETRO ENTRE 80 E 100 MM, PARA DRENAGEM PREDIAL | F43: 12615 | G43: UN | I43: 0 | J43: 0 | K43: 0
C44: 26 | E44: ABRACADEIRA, GALVANIZADA/ZINCADA, ROSCA SEM FIM, PARAFUSO INOX, LARGURA FITA *12,6 A *14 MM, D = 2" A 2 1/2" | F44: 11927 | G44: UN | I44: 0 | J44: 0 | K44: 0
C45: 27 | E45: ACABAMENTO CROMADO PARA REGISTRO PEQUENO, 1/2 " OU 3/4 " | F45: 36801 | G45: UN | I45: 0 | J45: 0 | K45: 0
C46: 28 | E46: ACABAMENTO SIMPLES/CONVENCIONAL PARA FORRO PVC, TIPO "U" OU "C", COR BRANCA, COMPRIMENTO 6 M | F46: 36246 | G46: M | I46: 0 | J46: 0 | K46: 0
C47: 29 | E47: ACETILENO (RECARGA PARA CILINDRO DE CONJUNTO OXICORTE GRANDE) | F47: 1 | G47: KG | I47: 0 | J47: 0 | K47: 0
C48: 30 | E48: ACIDO MURIATICO, DILUICAO 10% A 12% PARA USO EM LIMPEZA | F48: 3 | G48: L | I48: 0 | J48: 0 | K48: 0
C49: 31 | E49: ACO CA-25, 10,0 MM, VERGALHAO | F49: 26 | G49: KG | I49: 0 | J49: 0 | K49: 0
C50: 32 | E50: ACO CA-25, 12,5 MM, VERGALHAO | F50: 20 | G50: KG | I50: 0 | J50: 0 | K50: 0
C51: 33 | E51: ACO CA-25, 6,3 MM, VERGALHAO | F51: 22 | G51: KG | I51: 0 | J51: 0 | K51: 0
C52: 34 | E52: ACO CA-25, 8,0 MM, VERGALHAO | F52: 23 | G52: KG | I52: 0 | J52: 0 | K52: 0
C53: 35 | E53: ACO CA-50, 10,0 MM, VERGALHAO | F53: 34 | G53: KG | I53: 0 | J53: 0 | K53: 0
C54: 36 | E54: ACO CA-50, 12,5 MM, VERGALHAO | F54: 31 | G54: KG | I54: 0 | J54: 0 | K54: 0
C55: 37 | E55: ACO CA-50, 16,0 MM, VERGALHAO | F55: 27 | G55: KG | I55: 0 | J55: 0 | K55: 0
C56: 38 | E56: ACO CA-50, 20,0 MM, VERGALHAO | F56: 29 | G56: KG | I56: 0 | J56: 0 | K56: 0
C57: 39 | E57: ACO CA-50, 25,0 MM, VERGALHAO | F57: 28 | G57: KG | I57: 0 | J57: 0 | K57: 0
C58: 40 | E58: ACO CA-50, 6,3 MM, VERGALHAO | F58: 32 | G58: KG | I58: 0 | J58: 0 | K58: 0
C59: 41 | E59: ACO CA-50, 8,0 MM, VERGALHAO | F59: 33 | G59: KG | I59: 0 | J59: 0 | K59: 0
C60: 42 | E60: ACO CA-60, 4,2 MM, VERGALHAO | F60: 36 | G60: KG | I60: 0 | J60: 0 | K60: 0
C61: 43 | E61: ACO CA-60, 5,0 MM, VERGALHAO | F61: 39 | G61: KG | I61: 0 | J61: 0 | K61: 0
C62: 44 | E62: ACO CA-60, 6,0 MM, VERGALHAO | F62: 40 | G62: KG | I62: 0 | J62: 0 | K62: 0
C63: 45 | E63: ACO CA-60, 7,0 MM, VERGALHAO | F63: 42 | G63: KG | I63: 0 | J63: 0 | K63: 0
C64: 46 | E64: ACO CA-60, 8,0 MM, VERGALHAO | F64: 38 | G64: KG | I64: 0 | J64: 0 | K64: 0
C65: 47 | E65: ACO CA-60, VERGALHAO, 9,5 MM | F65: 34343 | G65: KG | I65: 0 | J65: 0 | K65: 0
C66: 48 | E66: ACO-FIO PARA PROTENSAO, CP-150 RB L, 8 MM | F66: 34344 | G66: KG | I66: 0 | J66: 0 | K66: 0
C67: 49 | E67: ACOPLAMENTO DE CONDUTOR PLUVIAL, EM PVC, DIAMETRO ENTRE 80 E 100 MM, PARA DRENAGEM PREDIAL | F67: 20063 | G67: UN | I67: 0 | J67: 0 | K67: 0
C68: 50 | E68: ACOPLAMENTO RIGIDO EM FERRO FUNDIDO PARA SISTEMA DE TUBULACAO RANHURADA, DN 50 MM (2") | F68: 40410 | G68: UN | I68: 0 | J68: 0 | K68: 0
C69: 51 | E69: ACOPLAMENTO RIGIDO EM FERRO FUNDIDO PARA SISTEMA DE TUBULACAO RANHURADA, DN 65 MM (2 1/2") | F69: 40411 | G69: UN | I69: 0 | J69: 0 | K69: 0
C70: 52 | E70: ADAPTADOR DE COMPRESSAO EM POLIPROPILENO (PP), PARA TUBO EM PEAD, 20 MM X 1/2", PARA LIGACAO PREDIAL DE AGUA (NTS 179) | F70: 55 | G70: UN | I70: 0 | J70: 0 | K70: 0
C71: 53 | E71: ADAPTADOR DE COMPRESSAO EM POLIPROPILENO (PP), PARA TUBO EM PEAD, 20 MM X 3/4", PARA LIGACAO PREDIAL DE AGUA (NTS 179) | F71: 61 | G71: UN | I71: 0 | J71: 0 | K71: 0
C72: 54 | E72: ADAPTADOR DE COMPRESSAO EM POLIPROPILENO (PP), PARA TUBO EM PEAD, 32 MM X 1", PARA LIGACAO PREDIAL DE AGUA (NTS 179) | F72: 62 | G72: UN | I72: 0 | J72: 0 | K72: 0
C73: 55 | E73: ADAPTADOR PVC PARA SIFAO METALICO, SOLDAVEL, COM ANEL BORRACHA (JE), 40 MM X 1 1/2" | F73: 77 | G73: UN | I73: 0 | J73: 0 | K73: 0
C74: 56 | E74: ADAPTADOR PVC PARA SIFAO, ROSCAVEL, 40 MM X 1 1/4" | F74: 76 | G74: UN | I74: 0 | J74: 0 | K74: 0
C75: 57 | E75: ADAPTADOR PVC ROSCAVEL, COM FLANGES E ANEL DE VEDACAO, 1", PARA CAIXA D' AGUA | F75: 71 | G75: UN | I75: 0 | J75: 0 | K75: 0
C76: 58 | E76: ADAPTADOR PVC ROSCAVEL, COM FLANGES E ANEL DE VEDACAO, 1/2", PARA CAIXA D' AGUA | F76: 67 | G76: UN | I76: 0 | J76: 0 | K76: 0
C77: 59 | E77: ADAPTADOR PVC ROSCAVEL, COM FLANGES E ANEL DE VEDACAO, 3/4", PARA CAIXA D' AGUA | F77: 73 | G77: UN | I77: 0 | J77: 0 | K77: 0
C78: 60 | E78: ADAPTADOR PVC SOLDAVEL CURTO COM BOLSA E ROSCA, 20 MM X 1/2", PARA AGUA FRIA | F78: 107 | G78: UN | I78: 0 | J78: 0 | K78: 0
C79: 61 | E79: ADAPTADOR PVC SOLDAVEL CURTO COM BOLSA E ROSCA, 25 MM X 3/4", PARA AGUA FRIA | F79: 65 | G79: UN | I79: 0 | J79: 0 | K79: 0
C80: 62 | E80: ADAPTADOR PVC SOLDAVEL CURTO COM BOLSA E ROSCA, 32 MM X 1", PARA AGUA FRIA | F80: 108 | G80: UN | I80: 0 | J80: 0 | K80: 0
C81: 63 | E81: ADAPTADOR PVC SOLDAVEL CURTO COM BOLSA E ROSCA, 40 MM X 1 1/2", PARA AGUA FRIA | F81: 110 | G81: UN | I81: 0 | J81: 0 | K81: 0
C82: 64 | E82: ADAPTADOR PVC SOLDAVEL CURTO COM BOLSA E ROSCA, 40 MM X 1 1/4", PARA AGUA FRIA | F82: 109 | G82: UN | I82: 0 | J82: 0 | K82: 0
C83: 65 | E83: ADAPTADOR PVC SOLDAVEL CURTO COM BOLSA E ROSCA, 50 MM X 1 1/4", PARA AGUA FRIA | F83: 111 | G83: UN | I83: 0 | J83: 0 | K83: 0
C84: 66 | E84: ADAPTADOR PVC SOLDAVEL CURTO COM BOLSA E ROSCA, 50 MM X1 1/2", PARA AGUA FRIA | F84: 112 | G84: UN | I84: 0 | J84: 0 | K84: =TRUNC(ROUND((I84*J84)/12,2),2) -> 0
C85: 67 | E85: ADAPTADOR PVC SOLDAVEL CURTO COM BOLSA E ROSCA, 60 MM X 2", PARA AGUA FRIA | F85: 113 | G85: UN | I85: 0 | J85: 0 | K85: 0
C86: 68 | E86: ADAPTADOR PVC SOLDAVEL CURTO COM BOLSA E ROSCA, 75 MM X 2 1/2", PARA AGUA FRIA | F86: 104 | G86: UN | I86: 0 | J86: 0 | K86: 0
C87: 69 | E87: ADAPTADOR PVC SOLDAVEL, COM FLANGE E ANEL DE VEDACAO, 20 MM X 1/2", PARA CAIXA D'AGUA | F87: 95 | G87: UN | I87: 0 | J87: 0 | K87: 0
C88: 70 | E88: ADAPTADOR PVC SOLDAVEL, COM FLANGE E ANEL DE VEDACAO, 25 MM X 3/4", PARA CAIXA D'AGUA | F88: 96 | G88: UN | I88: 0 | J88: 0 | K88: 0
C89: 71 | E89: ADAPTADOR PVC SOLDAVEL, COM FLANGE E ANEL DE VEDACAO, 32 MM X 1", PARA CAIXA D'AGUA | F89: 97 | G89: UN | I89: 0 | J89: 0 | K89: 0
C90: 72 | E90: ADAPTADOR PVC SOLDAVEL, COM FLANGE E ANEL DE VEDACAO, 40 MM X 1 1/4", PARA CAIXA D'AGUA | F90: 98 | G90: UN | I90: 0 | J90: 0 | K90: 0
C91: 73 | E91: ADAPTADOR PVC SOLDAVEL, COM FLANGE E ANEL DE VEDACAO, 50 MM X 1 1/2", PARA CAIXA D'AGUA | F91: 99 | G91: UN | I91: 0 | J91: 0 | K91: 0
C92: 74 | E92: ADAPTADOR PVC SOLDAVEL, COM FLANGES E ANEL DE VEDACAO, 60 MM X 2", PARA CAIXA D' AGUA | F92: 100 | G92: UN | I92: 0 | J92: 0 | K92: 0
C93: 75 | E93: ADAPTADOR PVC SOLDAVEL, COM FLANGES LIVRES, 110 MM X 4", PARA CAIXA D' AGUA | F93: 75 | G93: UN | I93: 0 | J93: 0 | K93: 0
C94: 76 | E94: ADAPTADOR PVC SOLDAVEL, COM FLANGES LIVRES, 25 MM X 3/4", PARA CAIXA D' AGUA | F94: 114 | G94: UN | I94: 0 | J94: 0 | K94: 0
C95: 77 | E95: ADAPTADOR PVC SOLDAVEL, COM FLANGES LIVRES, 32 MM X 1", PARA CAIXA D' AGUA | F95: 68 | G95: UN | I95: 0 | J95: 0 | K95: 0
C96: 78 | E96: ADAPTADOR PVC SOLDAVEL, COM FLANGES LIVRES, 40 MM X 1 1/4", PARA CAIXA D' AGUA | F96: 86 | G96: UN | I96: 0 | J96: 0 | K96: 0
C97: 79 | E97: ADAPTADOR PVC SOLDAVEL, COM FLANGES LIVRES, 50 MM X 1 1/2", PARA CAIXA D' AGUA | F97: 66 | G97: UN | I97: 0 | J97: 0 | K97: 0
C98: 80 | E98: ADAPTADOR PVC SOLDAVEL, COM FLANGES LIVRES, 60 MM X 2", PARA CAIXA D' AGUA | F98: 69 | G98: UN | I98: 0 | J98: 0 | K98: 0
C99: 81 | E99: ADAPTADOR PVC SOLDAVEL, COM FLANGES LIVRES, 75 MM X 2 1/2", PARA CAIXA D' AGUA | F99: 83 | G99: UN | I99: 0 | J99: 0 | K99: 0
C100: 82 | E100: ADAPTADOR PVC SOLDAVEL, LONGO, COM FLANGE LIVRE, 110 MM X 4", PARA CAIXA D' AGUA | F100: 106 | G100: UN | I100: 0 | J100: 0 | K100: 0
C101: 83 | E101: ADAPTADOR PVC SOLDAVEL, LONGO, COM FLANGE LIVRE, 25 MM X 3/4", PARA CAIXA D' AGUA | F101: 87 | G101: UN | I101: 0 | J101: 0 | K101: 0
C102: 84 | E102: ADAPTADOR PVC SOLDAVEL, LONGO, COM FLANGE LIVRE, 32 MM X 1", PARA CAIXA D' AGUA | F102: 88 | G102: UN | I102: 0 | J102: 0 | K102: 0
C103: 85 | E103: ADAPTADOR PVC SOLDAVEL, LONGO, COM FLANGE LIVRE, 40 MM X 1 1/4", PARA CAIXA D' AGUA | F103: 89 | G103: UN | I103: 0 | J103: 0 | K103: 0
C104: 86 | E104: ADAPTADOR PVC SOLDAVEL, LONGO, COM FLANGE LIVRE, 50 MM X 1 1/2", PARA CAIXA D' AGUA | F104: 90 | G104: UN | I104: 0 | J104: 0 | K104: 0
C105: 87 | E105: ADAPTADOR PVC SOLDAVEL, LONGO, COM FLANGE LIVRE, 60 MM X 2", PARA CAIXA D' AGUA | F105: 81 | G105: UN | I105: 0 | J105: 0 | K105: 0
C106: 88 | E106: ADAPTADOR PVC SOLDAVEL, LONGO, COM FLANGE LIVRE, 75 MM X 2 1/2", PARA CAIXA D' AGUA | F106: 82 | G106: UN | I106: 0 | J106: 0 | K106: 0
C107: 89 | E107: ADAPTADOR PVC, COM REGISTRO, PARA PEAD, 20 MM X 3/4", PARA LIGACAO PREDIAL DE AGUA | F107: 60 | G107: UN | I107: 0 | J107: 0 | K107: 0
C108: 90 | E108: ADAPTADOR PVC, ROSCAVEL, COM FLANGES E ANEL DE VEDACAO, 1 1/2", PARA CAIXA D'AGUA | F108: 72 | G108: UN | I108: 0 | J108: 0 | K108: 0
C109: 91 | E109: ADAPTADOR PVC, ROSCAVEL, COM FLANGES E ANEL DE VEDACAO, 1 1/4", PARA CAIXA D' AGUA | F109: 70 | G109: UN | I109: 0 | J109: 0 | K109: 0
C110: 92 | E110: ADAPTADOR PVC, ROSCAVEL, COM FLANGES E ANEL DE VEDACAO, 2", PARA CAIXA D' AGUA | F110: 85 | G110: UN | I110: 0 | J110: 0 | K110: 0
C111: 93 | E111: ADAPTADOR PVC, ROSCAVEL, PARA VALVULA PIA OU LAVATORIO, 40 MM | F111: 84 | G111: UN | I111: 0 | J111: 0 | K111: 0
C112: 94 | E112: ADAPTADOR, EM LATAO, ENGATE RAPIDO 2 1/2" X ROSCA INTERNA 5 FIOS 2 1/2", PARA INSTALACAO PREDIAL DE COMBATE A INCENDIO | F112: 10899 | G112: UN | I112: 0 | J112: 0 | K112: 0
C113: 95 | E113: ADAPTADOR, EM LATAO, ENGATE RAPIDO1 1/2" X ROSCA INTERNA 5 FIOS 2 1/2", PARA INSTALACAO PREDIAL DE COMBATE A INCENDIO | F113: 10900 | G113: UN | I113: 0 | J113: 0 | K113: 0
C114: 96 | E114: ADAPTADOR, PVC PBA, BOLSA/ROSCA, JE, DN 75 / DE 85 MM | F114: 46 | G114: UN | I114: 0 | J114: 0 | K114: 0
C115: 97 | E115: ADAPTADOR, PVC PBA, A BOLSA DEFOFO, JE, DN 100 / DE 110 MM | F115: 51 | G115: UN | I115: 0 | J115: 0 | K115: 0
C116: 98 | E116: ADAPTADOR, PVC PBA, A BOLSA DEFOFO, JE, DN 50 / DE 60 MM | F116: 12863 | G116: UN | I116: 0 | J116: 0 | K116: 0
C117: 99 | E117: ADAPTADOR, PVC PBA, A BOLSA DEFOFO, JE, DN 75 / DE 85 MM | F117: 50 | G117: UN | I117: 0 | J117: 0 | K117: 0
C118: 100 | E118: ADAPTADOR, PVC PBA, BOLSA/ROSCA, JE, DN 100 / DE 110 MM | F118: 47 | G118: UN | I118: 0 | J118: 0 | K118: 0
C119: 101 | E119: ADAPTADOR, PVC PBA, BOLSA/ROSCA, JE, DN 50 / DE 60 MM | F119: 48 | G119: UN | I119: 0 | J119: 0 | K119: 0
C120: 102 | E120: ADAPTADOR, PVC PBA, PONTA/ROSCA, JE, DN 50 / DE 60 MM | F120: 52 | G120: UN | I120: 0 | J120: 0 | K120: 0
C121: 103 | E121: ADAPTADOR, PVC PBA, PONTA/ROSCA, JE, DN 75 / DE 85 MM | F121: 43 | G121: UN | I121: 0 | J121: 0 | K121: 0
C122: 104 | E122: ADESIVO ACRILICO/COLA DE CONTATO | F122: 4791 | G122: KG | I122: 0 | J122: 0 | K122: 0
C123: 105 | E123: ADESIVO ESTRUTURAL A BASE DE RESINA EPOXI PARA INJECAO EM TRINCAS, BICOMPONENTE, BAIXA VISCOSIDADE | F123: 157 | G123: KG | I123: 0 | J123: 0 | K123: 0
C124: 106 | E124: ADESIVO ESTRUTURAL A BASE DE RESINA EPOXI, BICOMPONENTE, FLUIDO | F124: 156 | G124: KG | I124: 0 | J124: 0 | K124: 0
C125: 107 | E125: ADESIVO ESTRUTURAL A BASE DE RESINA EPOXI, BICOMPONENTE, PASTOSO (TIXOTROPICO) | F125: 131 | G125: KG | I125: 0 | J125: 0 | K125: 0
C126: 108 | E126: ADESIVO LIQUIDO A BASE DE RESINAS PARA COLAGEM DE ESPUMA DE ISOLAMENTO TERMICO FLEXIVEL | F126: 39719 | G126: L | I126: 0 | J126: 0 | K126: 0
C127: 109 | E127: ADESIVO PLASTICO PARA PVC, BISNAGA COM 75 GR | F127: 119 | G127: UN | I127: 0 | J127: 0 | K127: 0
C128: 110 | E128: ADESIVO PLASTICO PARA PVC, FRASCO COM 175 GR | F128: 20080 | G128: UN | I128: 0 | J128: 0 | K128: 0
C129: 111 | E129: ADESIVO PLASTICO PARA PVC, FRASCO COM 850 GR | F129: 122 | G129: UN | I129: 0 | J129: 0 | K129: 0
C130: 112 | E130: ADESIVO/COLA PARA EPS (ISOPOR) E OUTROS MATERIAIS | F130: 3410 | G130: KG | I130: 0 | J130: 0 | K130: 0
C131: 113 | E131: ADITIVO ACELERADOR DE PEGA E ENDURECIMENTO PARA ARGAMASSAS E CONCRETOS | F131: 124 | G131: L | I131: 0 | J131: 0 | K131: 0
C132: 114 | E132: ADITIVO ADESIVO LIQUIDO PARA ARGAMASSAS DE REVESTIMENTOS CIMENTICIOS | F132: 7334 | G132: L | I132: 0 | J132: 0 | K132: 0
C133: 115 | E133: ADITIVO IMPERMEABILIZANTE DE PEGA NORMAL PARA ARGAMASSAS E CONCRETOS SEM ARMACAO | F133: 7325 | G133: KG | I133: 0 | J133: 0 | K133: 0
C134: 116 | E134: ADITIVO IMPERMEABILIZANTE DE PEGA NORMAL PARA ARGAMASSAS E CONCRETOS SEM ARMACAO | F134: 123 | G134: L | I134: 0 | J134: 0 | K134: 0
C135: 117 | E135: ADITIVO IMPERMEABILIZANTE DE PEGA ULTRARRAPIDA | F135: 127 | G135: L | I135: 0 | J135: 0 | K135: 0
C136: 118 | E136: ADITIVO LIQUIDO INCORPORADOR DE AR PARA CONCRETO E ARGAMASSA | F136: 133 | G136: L | I136: 0 | J136: 0 | K136: 0
C137: 119 | E137: ADITIVO PLASTIFICANTE E ESTABILIZADOR PARA ARGAMASSAS DE ASSENTAMENTO E REBOCO | F137: 37538 | G137: 18L | I137: 0 | J137: 0 | K137: 0
C138: 120 | E138: ADITIVO PLASTIFICANTE RETARDADOR DE PEGA E REDUTOR DE AGUA PARA CONCRETO | F138: 132 | G138: L | I138: 0 | J138: 0 | K138: 0
C139: 121 | E139: ADITIVO SUPERPLASTIFICANTE DE PEGA NORMAL PARA CONCRETO (TAMBOR 200 KG) | F139: 13408 | G139: 200KG | I139: 0 | J139: 0 | K139: 0
C140: 122 | E140: AFASTADOR PARA TELHA DE FIBROCIMENTO CANALETE 90 OU KALHETAO | F140: 4319 | G140: UN | I140: 0 | J140: 0 | K140: 0
C141: 123 | E141: AGREGADO RECICLADO (RCD), CLASSE A, CINZA, TIPO RACHAO RECICLADO | F141: 40553 | G141: M3 | I141: 0 | J141: 0 | K141: 0
C142: 124 | E142: AGUA SANITARIA | F142: 13003 | G142: L | I142: 0 | J142: 0 | K142: 0
C143: 125 | E143: ALUMINIO ANODIZADO | F143: 583 | G143: KG | I143: 0 | J143: 0 | K143: 0
C144: 126 | E144: ANEL BORRACHA DN 100 MM, PARA TUBO SERIE REFORCADA ESGOTO PREDIAL | F144: 299 | G144: UN | I144: 0 | J144: 0 | K144: 0
C145: 127 | E145: ANEL BORRACHA DN 75 MM, PARA TUBO SERIE REFORCADA ESGOTO PREDIAL | F145: 298 | G145: UN | I145: 0 | J145: 0 | K145: 0
C146: 128 | E146: ANEL BORRACHA PARA TUBO ESGOTO PREDIAL DN 40 MM (NBR 5688) | F146: 295 | G146: UN | I146: 0 | J146: 0 | K146: 0
C147: 129 | E147: ANEL BORRACHA PARA TUBO ESGOTO PREDIAL DN 50 MM (NBR 5688) | F147: 296 | G147: UN | I147: 0 | J147: 0 | K147: 0
C148: 130 | E148: ANEL BORRACHA PARA TUBO ESGOTO PREDIAL DN 75 MM (NBR 5688) | F148: 297 | G148: UN | I148: 0 | J148: 0 | K148: =TRUNC(ROUND((I148*J148)/12,2),2) -> 0
C149: 131 | E149: ANEL BORRACHA PARA TUBO ESGOTO PREDIAL, DN 100 MM (NBR 5688) | F149: 301 | G149: UN | I149: 0 | J149: 0 | K149: 0
C150: 132 | E150: ANEL BORRACHA, DN 150 MM, PARA TUBO SERIE REFORCADA ESGOTO PREDIAL | F150: 300 | G150: UN | I150: 0 | J150: 0 | K150: 0
C151: 133 | E151: ANEL BORRACHA, DN 40 MM, PARA TUBO SERIE REFORCADA ESGOTO PREDIAL | F151: 20084 | G151: UN | I151: 0 | J151: 0 | K151: 0
C152: 134 | E152: ANEL BORRACHA, DN 50 MM, PARA TUBO SERIE REFORCADA ESGOTO PREDIAL | F152: 20085 | G152: UN | I152: 0 | J152: 0 | K152: 0
C153: 135 | E153: ANEL BORRACHA, PARA TUBO PVC DEFOFO, DN 100 MM (NBR 7665) | F153: 311 | G153: UN | I153: 0 | J153: 0 | K153: 0
C154: 136 | E154: ANEL BORRACHA, PARA TUBO PVC DEFOFO, DN 150 MM (NBR 7665) | F154: 318 | G154: UN | I154: 0 | J154: 0 | K154: 0
C155: 137 | E155: ANEL BORRACHA, PARA TUBO PVC DEFOFO, DN 200 MM (NBR 7665) | F155: 319 | G155: UN | I155: 0 | J155: 0 | K155: 0
C156: 138 | E156: ANEL BORRACHA, PARA TUBO PVC DEFOFO, DN 250 MM (NBR 7665) | F156: 320 | G156: UN | I156: 0 | J156: 0 | K156: 0
C157: 139 | E157: ANEL BORRACHA, PARA TUBO PVC DEFOFO, DN 300 MM (NBR 7665) | F157: 314 | G157: UN | I157: 0 | J157: 0 | K157: 0
C158: 140 | E158: ANEL BORRACHA, PARA TUBO PVC, REDE COLETOR ESGOTO, DN 100 MM (NBR 7362) | F158: 303 | G158: UN | I158: 0 | J158: 0 | K158: 0
C159: 141 | E159: ANEL BORRACHA, PARA TUBO PVC, REDE COLETOR ESGOTO, DN 125 MM (NBR 7362) | F159: 304 | G159: UN | I159: 0 | J159: 0 | K159: 0
C160: 142 | E160: ANEL BORRACHA, PARA TUBO PVC, REDE COLETOR ESGOTO, DN 150 MM (NBR 7362) | F160: 305 | G160: UN | I160: 0 | J160: 0 | K160: 0
C161: 143 | E161: ANEL BORRACHA, PARA TUBO PVC, REDE COLETOR ESGOTO, DN 200 MM (NBR 7362) | F161: 306 | G161: UN | I161: 0 | J161: 0 | K161: 0
C162: 144 | E162: ANEL BORRACHA, PARA TUBO/CONEXAO PVC PBA, DN 100 MM, PARA REDE AGUA | F162: 328 | G162: UN | I162: 0 | J162: 0 | K162: 0
C163: 145 | E163: ANEL BORRACHA, PARA TUBO/CONEXAO PVC PBA, DN 50 MM, PARA REDE AGUA | F163: 325 | G163: UN | I163: 0 | J163: 0 | K163: 0
C164: 146 | E164: ANEL BORRACHA, PARA TUBO/CONEXAO PVC PBA, DN 60 MM, PARA REDE AGUA | F164: 20326 | G164: UN | I164: 0 | J164: 0 | K164: 0
C165: 147 | E165: ANEL BORRACHA, PARA TUBO/CONEXAO PVC PBA, DN 75 MM, PARA REDE AGUA | F165: 329 | G165: UN | I165: 0 | J165: 0 | K165: 0
C166: 148 | E166: ANEL DE BORRACHA PARA VEDACAO DE DUTO PEAD CORRUGADO PARA ELETRICA, DN 1 1/2" | F166: 39642 | G166: UN | I166: 0 | J166: 0 | K166: 0
C167: 149 | E167: ANEL DE BORRACHA PARA VEDACAO DE DUTO PEAD CORRUGADO PARA ELETRICA, DN 1 1/4" | F167: 39641 | G167: UN | I167: 0 | J167: 0 | K167: 0
C168: 150 | E168: ANEL DE BORRACHA PARA VEDACAO DE DUTO PEAD CORRUGADO PARA ELETRICA, DN 2" | F168: 39643 | G168: UN | I168: 0 | J168: 0 | K168: 0
C169: 151 | E169: ANEL DE BORRACHA PARA VEDACAO DE DUTO PEAD CORRUGADO PARA ELETRICA, DN 4" | F169: 39645 | G169: UN | I169: 0 | J169: 0 | K169: 0
C170: 152 | E170: ANEL DE DISTRIBUICAO EM ACO GALVANIZADO PARA FIO FE-160 | F170: 11789 | G170: UN | I170: 0 | J170: 0 | K170: 0
C171: 153 | E171: ANEL DE EXPANSAO EM COBRE, ENGATE RAPIDO 1 1/2", PARA EMPATACAO MANGUEIRA DE COMBATE A INCENDIO PREDIAL | F171: 20975 | G171: UN | I171: 0 | J171: 0 | K171: 0
C172: 154 | E172: ANEL DE EXPANSAO EM COBRE, ENGATE RAPIDO 2 1/2", PARA EMPATACAO MANGUEIRA DE COMBATE A INCENDIO PREDIAL | F172: 20976 | G172: UN | I172: 0 | J172: 0 | K172: 0
C173: 155 | E173: APARELHO SINALIZADOR LUMINOSO COM LED, PARA SAIDA GARAGEM, COM 2 LENTES EM POLICARBONATO, BIVOLT (INCLUI SUPORTE DE FIXACAO) | F173: 4814 | G173: UN | I173: 0 | J173: 0 | K173: 0
C174: 156 | E174: ARAME DE ACO OVALADO 15 X 17 ( 45,7 KG, 700 KGF), ROLO 1000 M | F174: 346 | G174: KG | I174: 0 | J174: 0 | K174: 0
C175: 157 | E175: ARAME DE AMARRACAO PARA GABIAO GALVANIZADO, DIAMETRO 2,2 MM | F175: 3312 | G175: KG | I175: 0 | J175: 0 | K175: 0
C176: 158 | E176: ARAME GALVANIZADO 16 BWG, 1,65MM (0,0166 KG/M) | F176: 344 | G176: KG | I176: 0 | J176: 0 | K176: 0
C177: 159 | E177: ARAME GALVANIZADO 18 BWG, 1,24MM (0,009 KG/M) | F177: 341 | G177: M | I177: 0 | J177: 0 | K177: 0
C178: 160 | E178: ARAME PROTEGIDO COM PVC PARA GABIAO, DIAMETRO 2,2 MM | F178: 3313 | G178: KG | I178: 0 | J178: 0 | K178: 0
C179: 161 | E179: ARAME RECOZIDO 16 BWG, 1,60 MM (0,016 KG/M) | F179: 34562 | G179: KG | I179: 0 | J179: 0 | K179: 0
C180: 162 | E180: ARAME RECOZIDO 18 BWG, 1,25 MM (0,01 KG/M) | F180: 337 | G180: KG | I180: 0 | J180: 0 | K180: 0
C181: 163 | E181: AREIA AMARELA, AREIA BARRADA OU ARENOSO (RETIRADA NO AREAL, SEM TRANSPORTE) | F181: 369 | G181: M3 | I181: 0 | J181: 0 | K181: 0
C182: 164 | E182: AREIA FINA - POSTO JAZIDA/FORNECEDOR (RETIRADO NA JAZIDA, SEM TRANSPORTE) | F182: 366 | G182: M3 | I182: 0 | J182: 0 | K182: 0
C183: 165 | E183: AREIA GROSSA - POSTO JAZIDA/FORNECEDOR (RETIRADO NA JAZIDA, SEM TRANSPORTE) | F183: 367 | G183: M3 | I183: 0 | J183: 0 | K183: 0
C184: 166 | E184: AREIA MEDIA - POSTO JAZIDA/FORNECEDOR (RETIRADO NA JAZIDA, SEM TRANSPORTE) | F184: 370 | G184: M3 | I184: 0 | J184: 0 | K184: 0
C185: 167 | E185: AREIA PARA ATERRO - POSTO JAZIDA/FORNECEDOR (RETIRADO NA JAZIDA, SEM TRANSPORTE) | F185: 368 | G185: M3 | I185: 0 | J185: 0 | K185: 0
C186: 168 | E186: AREIA PARA LEITO FILTRANTE (0,42 A 1,68 MM) - POSTO JAZIDA/FORNECEDOR (RETIRADO NA JAZIDA, SEM TRANSPORTE) | F186: 11075 | G186: M3 | I186: 0 | J186: 0 | K186: 0
C187: 169 | E187: AREIA PRETA PARA EMBOCO - POSTO JAZIDA/FORNECEDOR (RETIRADO NA JAZIDA, SEM TRANSPORTE) | F187: 11076 | G187: M3 | I187: 0 | J187: 0 | K187: 0
C188: 170 | E188: ARGAMASSA COLANTE AC I PARA CERAMICAS | F188: 1381 | G188: KG | I188: 0 | J188: 0 | K188: 0
C189: 171 | E189: ARGAMASSA COLANTE AC-II | F189: 34353 | G189: KG | I189: 0 | J189: 0 | K189: 0
C190: 172 | E190: ARGAMASSA COLANTE TIPO ACIII | F190: 37595 | G190: KG | I190: 0 | J190: 0 | K190: 0
C191: 173 | E191: ARGAMASSA COLANTE TIPO ACIII E | F191: 37596 | G191: KG | I191: 0 | J191: 0 | K191: 0
C192: 174 | E192: ARGAMASSA INDUSTRIALIZADA PARA CHAPISCO COLANTE | F192: 37553 | G192: KG | I192: 0 | J192: 0 | K192: 0
C193: 175 | E193: ARGAMASSA INDUSTRIALIZADA PARA CHAPISCO ROLADO | F193: 37552 | G193: KG | I193: 0 | J193: 0 | K193: 0
C194: 176 | E194: ARGAMASSA PARA REVESTIMENTO DECORATIVO MONOCAMADA, CORES CLARAS | F194: 36880 | G194: KG | I194: 0 | J194: 0 | K194: 0
C195: 177 | E195: ARGAMASSA PISO SOBRE PISO | F195: 34355 | G195: KG | I195: 0 | J195: 0 | K195: 0
C196: 178 | E196: ARGAMASSA POLIMERICA DE REPARO ESTRUTURAL, BICOMPONENTE | F196: 130 | G196: KG | I196: 0 | J196: 0 | K196: 0
C197: 179 | E197: ARGAMASSA POLIMERICA IMPERMEABILIZANTE SEMIFLEXIVEL, BICOMPONENTE (MEMBRANA IMPERMEABILIZANTE ACRILICA) | F197: 135 | G197: KG | I197: 0 | J197: 0 | K197: 0
C198: 180 | E198: ARGAMASSA PRONTA PARA CONTRAPISO | F198: 36886 | G198: KG | I198: 0 | J198: 0 | K198: 0
C199: 181 | E199: ARGAMASSA PRONTA PARA REVESTIMENTO INTERNO EM PAREDES | F199: 374 | G199: KG | I199: 0 | J199: 0 | K199: 0
C200: 182 | E200: ARGAMASSA USINADA AUTOADENSAVEL E AUTONIVELANTE PARA CONTRAPISO, INCLUI BOMBEAMENTO | F200: 38546 | G200: M3 | I200: 0 | J200: 0 | K200: 0
C201: 183 | E201: ARGILA EXPANDIDA, GRANULOMETRIA 2215 | F201: 34549 | G201: M3 | I201: 0 | J201: 0 | K201: 0
C202: 184 | E202: ARGILA OU BARRO PARA ATERRO/REATERRO (COM TRANSPORTE ATE 10 KM) | F202: 6081 | G202: M3 | I202: 0 | J202: 0 | K202: 0
C203: 185 | E203: ARGILA OU BARRO PARA ATERRO/REATERRO (RETIRADO NA JAZIDA, SEM TRANSPORTE) | F203: 6077 | G203: M3 | I203: 0 | J203: 0 | K203: 0
C204: 186 | E204: ARGILA, ARGILA VERMELHA OU ARGILA ARENOSA (RETIRADA NA JAZIDA, SEM TRANSPORTE) | F204: 6079 | G204: M3 | I204: 0 | J204: 0 | K204: 0
C205: 187 | E205: ARRUELA EM ACO GALVANIZADO, DIAMETRO EXTERNO = 35MM, ESPESSURA = 3MM, DIAMETRO DO FURO= 18MM | F205: 13348 | G205: UN | I205: 0 | J205: 0 | K205: 0
C206: 188 | E206: ARRUELA EM ALUMINIO, COM ROSCA, DE 1 1/4", PARA ELETRODUTO | F206: 39211 | G206: UN | I206: 0 | J206: 0 | K206: 0
C207: 189 | E207: ARRUELA EM ALUMINIO, COM ROSCA, DE 1 1/2", PARA ELETRODUTO | F207: 39212 | G207: UN | I207: 0 | J207: 0 | K207: 0
C208: 190 | E208: ARRUELA EM ALUMINIO, COM ROSCA, DE 1", PARA ELETRODUTO | F208: 39210 | G208: UN | I208: 0 | J208: 0 | K208: 0
... 3162 more rows

Sheet Consumo - Limpeza (hidden)
B1: 10 - MATERIAIS PARA SERVIÇOS DE LIMPEZA
B4: Processo nº: | E4: =IF(ISBLANK('Dados Contratação'!$B$6),"000/2014",'Dados Contratação'!$B$6) -> 15940/2022 | G4: Licitação: | H4: =IF(ISBLANK('Dados Contratação'!D6),"(NÚMERO LICITAÇÃO)",'Dados Contratação'!D6) -> (NÚMERO LICITAÇÃO)
B5: Descrição: | E5: ='Dados Contratação'!B10 -> Prestação dos serviços de apoio Administrativo aos Gestores e Fiscais de Contratos
B7: Data Pregão: | E7: =IF(ISBLANK('Dados Contratação'!$E$6),"dd/mm/aaaa",'Dados Contratação'!$E$6) -> dd/mm/aaaa | G7: Horário do Pregão: | H7: =IF(ISBLANK('Dados Contratação'!$F$6),"00:00",'Dados Contratação'!$F$6) -> 00:00
B9: Empresa: | E9: =IF(ISBLANK('Dados Proponente'!$B$6),"(NOME DA EMPRESA)",'Dados Proponente'!$B$6) -> (NOME DA EMPRESA)
B11: CNPJ: | E11: =IF(ISBLANK('Dados Proponente'!$H$6),"(CNPJ)",'Dados Proponente'!$H$6) -> (CNPJ)
C14: MATERIAIS PARA MANUTENÇÃO (PREÇO TRT)
D16: MATERIAIS TRT (QTDE: PREVISÃO ANUAL)
F17: Unidade | G17: Valor | H17: TRT - SEDE | J17: FÓRUM C. GRANDE | L17: FÓRUM DOURADOS | N17: FÓRUM TRÊS LAGOAS | P17: VT. AMAMBAI | R17: VT. AQUIDAUANA | T17: VT. BATAGUASSU | V17: VT. CASSILÂNDIA | X17: VT. CORUMBÁ | Z17: VT. COXIM | AB17: VT. FÁTIMA DO SUL | AD17: VT. JARDIM | AF17: VT. MUNDO NOVO | AH17: VT. NAVIRAÍ | AJ17: VT. NOVA ANDRADINA | AL17: VT. PARANAÍBA | AN17: VT. PONTA PORÃ | AP17: VT. RIO BRILHANTE | AR17: VT. SÃO GABRIEL | AT17: VT. CHAPADÃO DO SUL | AV17: TOTAL INSUMOS
H18: Qtd. | I18: Custo Mensal | J18: Qtd. | K18: Custo Mensal | L18: Qtd. | M18: Custo Mensal | N18: Qtd. | O18: Custo Mensal | P18: Qtd. | Q18: Custo Mensal | R18: Qtd. | S18: Custo Mensal | T18: Qtd. | U18: Custo Mensal | V18: Qtd. | W18: Custo Mensal | X18: Qtd. | Y18: Custo Mensal | Z18: Qtd. | AA18: Custo Mensal | AB18: Qtd. | AC18: Custo Mensal | AD18: Qtd. | AE18: Custo Mensal | AF18: Qtd. | AG18: Custo Mensal | AH18: Qtd. | AI18: Custo Mensal | AJ18: Qtd. | AK18: Custo Mensal | AL18: Qtd. | AM18: Custo Mensal | AN18: Qtd. | AO18: Custo Mensal | AP18: Qtd. | AQ18: Custo Mensal | AR18: Qtd. | AS18: Custo Mensal | AT18: Qtd. | AU18: Custo Mensal | AV18: Qtd. | AW18: Custo Mensal
C19: 1 | D19: Água sanitária de 1ª qualidade 1 litro | F19: Litro | G19: 0 | H19: 0 | I19: =$G19*H19 -> 0 | J19: 0 | K19: =$G19*J19 -> 0 | L19: 0 | M19: =$G19*L19 -> 0 | N19: 0 | O19: =$G19*N19 -> 0 | P19: 0 | Q19: =$G19*P19 -> 0 | R19: 0 | S19: =$G19*R19 -> 0 | T19: 0 | U19: =$G19*T19 -> 0 | V19: 0 | W19: =$G19*V19 -> 0 | X19: 0 | Y19: =$G19*X19 -> 0 | Z19: 0 | AA19: =$G19*Z19 -> 0 | AB19: 0 | AC19: =$G19*AB19 -> 0 | AD19: 0 | AE19: =$G19*AD19 -> 0 | AF19: 0 | AG19: =$G19*AF19 -> 0 | AH19: 0 | AI19: =$G19*AH19 -> 0 | AJ19: 0 | AK19: =$G19*AJ19 -> 0 | AL19: 0 | AM19: =$G19*AL19 -> 0 | AN19: 0 | AO19: =$G19*AN19 -> 0 | AP19: 0 | AQ19: =$G19*AP19 -> 0 | AR19: 0 | AS19: =$G19*AR19 -> 0 | AT19: 0 | AU19: =$G19*AT19 -> 0 | AV19: =SUM(H19,J19,L19,N19,P19,R19,T19,V19,X19,Z19,AB19,AD19,AF19,AH19,AJ19,AL19,AN19,AP19,AR19,AT19) -> 0 | AW19: =$G19*AV19 -> 0
C20: 2 | D20: Álcool 92%, de 1ª qualidade 1litro | F20: Litro | G20: 0 | H20: 0 | I20: =$G20*H20 -> 0 | J20: 0 | K20: =$G20*J20 -> 0 | L20: 0 | M20: =$G20*L20 -> 0 | N20: 0 | O20: =$G20*N20 -> 0 | P20: 0 | Q20: =$G20*P20 -> 0 | R20: 0 | S20: =$G20*R20 -> 0 | T20: 0 | U20: =$G20*T20 -> 0 | V20: 0 | W20: =$G20*V20 -> 0 | X20: 0 | Y20: =$G20*X20 -> 0 | Z20: 0 | AA20: =$G20*Z20 -> 0 | AB20: 0 | AC20: =$G20*AB20 -> 0 | AD20: 0 | AE20: =$G20*AD20 -> 0 | AF20: 0 | AG20: =$G20*AF20 -> 0 | AH20: 0 | AI20: =$G20*AH20 -> 0 | AJ20: 0 | AK20: =$G20*AJ20 -> 0 | AL20: 0 | AM20: =$G20*AL20 -> 0 | AN20: 0 | AO20: =$G20*AN20 -> 0 | AP20: 0 | AQ20: =$G20*AP20 -> 0 | AR20: 0 | AS20: =$G20*AR20 -> 0 | AT20: 0 | AU20: =$G20*AT20 -> 0 | AV20: =SUM(H20,J20,L20,N20,P20,R20,T20,V20,X20,Z20,AB20,AD20,AF20,AH20,AJ20,AL20,AN20,AP20,AR20,AT20) -> 0 | AW20: =$G20*AV20 -> 0
C21: 3 | D21: Álcool 70% em gel 500 ml | F21: Litro | G21: 0 | H21: 0 | I21: 0 | J21: 0 | K21: 0 | L21: 0 | M21: 0 | N21: 0 | O21: 0 | P21: 0 | Q21: 0 | R21: 0 | S21: 0 | T21: 0 | U21: 0 | V21: 0 | W21: 0 | X21: 0 | Y21: 0 | Z21: 0 | AA21: 0 | AB21: 0 | AC21: 0 | AD21: 0 | AE21: 0 | AF21: 0 | AG21: 0 | AH21: 0 | AI21: 0 | AJ21: 0 | AK21: 0 | AL21: 0 | AM21: 0 | AN21: 0 | AO21: 0 | AP21: 0 | AQ21: 0 | AR21: 0 | AS21: 0 | AT21: 0 | AU21: 0 | AV21: 0 | AW21: 0
C22: 4 | D22: Cera líquida incolor 750 ml | F22: Litro | G22: 0 | H22: 0 | I22: 0 | J22: 0 | K22: 0 | L22: 0 | M22: 0 | N22: 0 | O22: 0 | P22: 0 | Q22: 0 | R22: 0 | S22: 0 | T22: 0 | U22: 0 | V22: 0 | W22: 0 | X22: 0 | Y22: 0 | Z22: 0 | AA22: 0 | AB22: 0 | AC22: 0 | AD22: 0 | AE22: 0 | AF22: 0 | AG22: 0 | AH22: 0 | AI22: 0 | AJ22: 0 | AK22: 0 | AL22: 0 | AM22: 0 | AN22: 0 | AO22: 0 | AP22: 0 | AQ22: 0 | AR22: 0 | AS22: 0 | AT22: 0 | AU22: 0 | AV22: 0 | AW22: 0
C23: 5 | D23: Detergente 500 ml | F23: Litro | G23: 0 | H23: 0 | I23: 0 | J23: 0 | K23: 0 | L23: 0 | M23: 0 | N23: 0 | O23: 0 | P23: 0 | Q23: 0 | R23: 0 | S23: 0 | T23: 0 | U23: 0 | V23: 0 | W23: 0 | X23: 0 | Y23: 0 | Z23: 0 | AA23: 0 | AB23: 0 | AC23: 0 | AD23: 0 | AE23: 0 | AF23: 0 | AG23: 0 | AH23: 0 | AI23: 0 | AJ23: 0 | AK23: 0 | AL23: 0 | AM23: 0 | AN23: 0 | AO23: 0 | AP23: 0 | AQ23: 0 | AR23: 0 | AS23: 0 | AT23: 0 | AU23: 0 | AV23: 0 | AW23: 0
A24: 1 | C24: 6 | D24: Desengordurante, com amoníaco | F24: Litro | G24: 0 | H24: 0 | I24: 0 | J24: 0 | K24: 0 | L24: 0 | M24: 0 | N24: 0 | O24: 0 | P24: 0 | Q24: 0 | R24: 0 | S24: 0 | T24: 0 | U24: 0 | V24: 0 | W24: 0 | X24: 0 | Y24: 0 | Z24: 0 | AA24: 0 | AB24: 0 | AC24: 0 | AD24: 0 | AE24: 0 | AF24: 0 | AG24: 0 | AH24: 0 | AI24: 0 | AJ24: 0 | AK24: 0 | AL24: 0 | AM24: 0 | AN24: 0 | AO24: 0 | AP24: 0 | AQ24: 0 | AR24: 0 | AS24: 0 | AT24: 0 | AU24: 0 | AV24: 0 | AW24: 0
C25: 7 | D25: Desinfetante uso geral | F25: Litro | G25: 0 | H25: 0 | I25: 0 | J25: 0 | K25: 0 | L25: 0 | M25: 0 | N25: 0 | O25: 0 | P25: 0 | Q25: 0 | R25: 0 | S25: 0 | T25: 0 | U25: 0 | V25: 0 | W25: 0 | X25: 0 | Y25: 0 | Z25: 0 | AA25: 0 | AB25: 0 | AC25: 0 | AD25: 0 | AE25: 0 | AF25: 0 | AG25: 0 | AH25: 0 | AI25: 0 | AJ25: 0 | AK25: 0 | AL25: 0 | AM25: 0 | AN25: 0 | AO25: 0 | AP25: 0 | AQ25: 0 | AR25: 0 | AS25: 0 | AT25: 0 | AU25: 0 | AV25: 0 | AW25: 0
C26: 8 | D26: Disco verde/preto para enceradeira industrial | F26: Unidade | G26: 0 | H26: 0 | I26: 0 | J26: 0 | K26: 0 | L26: 0 | M26: 0 | N26: 0 | O26: 0 | P26: 0 | Q26: 0 | R26: 0 | S26: 0 | T26: 0 | U26: 0 | V26: 0 | W26: 0 | X26: 0 | Y26: 0 | Z26: 0 | AA26: 0 | AB26: 0 | AC26: 0 | AD26: 0 | AE26: 0 | AF26: 0 | AG26: 0 | AH26: 0 | AI26: 0 | AJ26: 0 | AK26: 0 | AL26: 0 | AM26: 0 | AN26: 0 | AO26: 0 | AP26: 0 | AQ26: 0 | AR26: 0 | AS26: 0 | AT26: 0 | AU26: 0 | AV26: 0 | AW26: 0
C27: 9 | D27: Desodorizador de ambientes (400ml) | F27: Unidade | G27: 0 | H27: 0 | I27: 0 | J27: 0 | K27: 0 | L27: 0 | M27: 0 | N27: 0 | O27: 0 | P27: 0 | Q27: 0 | R27: 0 | S27: 0 | T27: 0 | U27: 0 | V27: 0 | W27: 0 | X27: 0 | Y27: 0 | Z27: 0 | AA27: 0 | AB27: 0 | AC27: 0 | AD27: 0 | AE27: 0 | AF27: 0 | AG27: 0 | AH27: 0 | AI27: 0 | AJ27: 0 | AK27: 0 | AL27: 0 | AM27: 0 | AN27: 0 | AO27: 0 | AP27: 0 | AQ27: 0 | AR27: 0 | AS27: 0 | AT27: 0 | AU27: 0 | AV27: 0 | AW27: 0
C28: 10 | D28: Esponja de lã de aço pct c/ 8 unidades | F28: PCT | G28: 0 | H28: 0 | I28: 0 | J28: 0 | K28: 0 | L28: 0 | M28: 0 | N28: 0 | O28: 0 | P28: 0 | Q28: 0 | R28: 0 | S28: 0 | T28: 0 | U28: 0 | V28: 0 | W28: 0 | X28: 0 | Y28: 0 | Z28: 0 | AA28: 0 | AB28: 0 | AC28: 0 | AD28: 0 | AE28: 0 | AF28: 0 | AG28: 0 | AH28: 0 | AI28: 0 | AJ28: 0 | AK28: 0 | AL28: 0 | AM28: 0 | AN28: 0 | AO28: 0 | AP28: 0 | AQ28: 0 | AR28: 0 | AS28: 0 | AT28: 0 | AU28: 0 | AV28: 0 | AW28: 0
C29: 11 | D29: Esponja dupla-face | F29: Unidade | G29: 0 | H29: 0 | I29: 0 | J29: 0 | K29: 0 | L29: 0 | M29: 0 | N29: 0 | O29: 0 | P29: 0 | Q29: 0 | R29: 0 | S29: 0 | T29: 0 | U29: 0 | V29: 0 | W29: 0 | X29: 0 | Y29: 0 | Z29: 0 | AA29: 0 | AB29: 0 | AC29: 0 | AD29: 0 | AE29: 0 | AF29: 0 | AG29: 0 | AH29: 0 | AI29: 0 | AJ29: 0 | AK29: 0 | AL29: 0 | AM29: 0 | AN29: 0 | AO29: 0 | AP29: 0 | AQ29: 0 | AR29: 0 | AS29: 0 | AT29: 0 | AU29: 0 | AV29: 0 | AW29: 0
C30: 12 | D30: Flanela de algodão, 40x60 ou 50x50 cm. | F30: Unidade | G30: 0 | H30: 0 | I30: 0 | J30: 0 | K30: 0 | L30: 0 | M30: 0 | N30: 0 | O30: 0 | P30: 0 | Q30: 0 | R30: 0 | S30: 0 | T30: 0 | U30: 0 | V30: 0 | W30: 0 | X30: 0 | Y30: 0 | Z30: 0 | AA30: 0 | AB30: 0 | AC30: 0 | AD30: 0 | AE30: 0 | AF30: 0 | AG30: 0 | AH30: 0 | AI30: 0 | AJ30: 0 | AK30: 0 | AL30: 0 | AM30: 0 | AN30: 0 | AO30: 0 | AP30: 0 | AQ30: 0 | AR30: 0 | AS30: 0 | AT30: 0 | AU30: 0 | AV30: 0 | AW30: 0
C31: 13 | D31: Inseticida contra pragas em spray aerosol | F31: Unidade | G31: 0 | H31: 0 | I31: 0 | J31: 0 | K31: 0 | L31: 0 | M31: 0 | N31: 0 | O31: 0 | P31: 0 | Q31: 0 | R31: 0 | S31: 0 | T31: 0 | U31: 0 | V31: 0 | W31: 0 | X31: 0 | Y31: 0 | Z31: 0 | AA31: 0 | AB31: 0 | AC31: 0 | AD31: 0 | AE31: 0 | AF31: 0 | AG31: 0 | AH31: 0 | AI31: 0 | AJ31: 0 | AK31: 0 | AL31: 0 | AM31: 0 | AN31: 0 | AO31: 0 | AP31: 0 | AQ31: 0 | AR31: 0 | AS31: 0 | AT31: 0 | AU31: 0 | AV31: 0 | AW31: 0
C32: 14 | D32: Isca formicida 100g | F32: Quilograma | G32: 0 | H32: 0 | I32: 0 | J32: 0 | K32: 0 | L32: 0 | M32: 0 | N32: 0 | O32: 0 | P32: 0 | Q32: 0 | R32: 0 | S32: 0 | T32: 0 | U32: 0 | V32: 0 | W32: 0 | X32: 0 | Y32: 0 | Z32: 0 | AA32: 0 | AB32: 0 | AC32: 0 | AD32: 0 | AE32: 0 | AF32: 0 | AG32: 0 | AH32: 0 | AI32: 0 | AJ32: 0 | AK32: 0 | AL32: 0 | AM32: 0 | AN32: 0 | AO32: 0 | AP32: 0 | AQ32: 0 | AR32: 0 | AS32: 0 | AT32: 0 | AU32: 0 | AV32: 0 | AW32: 0
C33: 15 | D33: Limpa pedras 1 litro | F33: Litro | G33: 0 | H33: 0 | I33: 0 | J33: 0 | K33: 0 | L33: 0 | M33: 0 | N33: 0 | O33: 0 | P33: 0 | Q33: 0 | R33: 0 | S33: 0 | T33: 0 | U33: 0 | V33: 0 | W33: 0 | X33: 0 | Y33: 0 | Z33: 0 | AA33: 0 | AB33: 0 | AC33: 0 | AD33: 0 | AE33: 0 | AF33: 0 | AG33: 0 | AH33: 0 | AI33: 0 | AJ33: 0 | AK33: 0 | AL33: 0 | AM33: 0 | AN33: 0 | AO33: 0 | AP33: 0 | AQ33: 0 | AR33: 0 | AS33: 0 | AT33: 0 | AU33: 0 | AV33: 0 | AW33: 0
C34: 16 | D34: Limpa-vidros 500ml | F34: Litro | G34: 0 | H34: 0 | I34: 0 | J34: 0 | K34: 0 | L34: 0 | M34: 0 | N34: 0 | O34: 0 | P34: 0 | Q34: 0 | R34: 0 | S34: 0 | T34: 0 | U34: 0 | V34: 0 | W34: 0 | X34: 0 | Y34: 0 | Z34: 0 | AA34: 0 | AB34: 0 | AC34: 0 | AD34: 0 | AE34: 0 | AF34: 0 | AG34: 0 | AH34: 0 | AI34: 0 | AJ34: 0 | AK34: 0 | AL34: 0 | AM34: 0 | AN34: 0 | AO34: 0 | AP34: 0 | AQ34: 0 | AR34: 0 | AS34: 0 | AT34: 0 | AU34: 0 | AV34: 0 | AW34: 0
C35: 17 | D35: Limpador multiuso 500 ml | F35: Litro | G35: 0 | H35: 0 | I35: 0 | J35: 0 | K35: 0 | L35: 0 | M35: 0 | N35: 0 | O35: 0 | P35: 0 | Q35: 0 | R35: 0 | S35: 0 | T35: 0 | U35: 0 | V35: 0 | W35: 0 | X35: 0 | Y35: 0 | Z35: 0 | AA35: 0 | AB35: 0 | AC35: 0 | AD35: 0 | AE35: 0 | AF35: 0 | AG35: 0 | AH35: 0 | AI35: 0 | AJ35: 0 | AK35: 0 | AL35: 0 | AM35: 0 | AN35: 0 | AO35: 0 | AP35: 0 | AQ35: 0 | AR35: 0 | AS35: 0 | AT35: 0 | AU35: 0 | AV35: 0 | AW35: 0
C36: 18 | D36: Lustra móvel 200ml | F36: Litro | G36: 0 | H36: 0 | I36: 0 | J36: 0 | K36: 0 | L36: 0 | M36: 0 | N36: 0 | O36: 0 | P36: 0 | Q36: 0 | R36: 0 | S36: 0 | T36: 0 | U36: 0 | V36: 0 | W36: 0 | X36: 0 | Y36: 0 | Z36: 0 | AA36: 0 | AB36: 0 | AC36: 0 | AD36: 0 | AE36: 0 | AF36: 0 | AG36: 0 | AH36: 0 | AI36: 0 | AJ36: 0 | AK36: 0 | AL36: 0 | AM36: 0 | AN36: 0 | AO36: 0 | AP36: 0 | AQ36: 0 | AR36: 0 | AS36: 0 | AT36: 0 | AU36: 0 | AV36: 0 | AW36: 0
C37: 19 | D37: Luva em látex para limpeza | F37: Par | G37: 0 | H37: 0 | I37: 0 | J37: 0 | K37: 0 | L37: 0 | M37: 0 | N37: 0 | O37: 0 | P37: 0 | Q37: 0 | R37: 0 | S37: 0 | T37: 0 | U37: 0 | V37: 0 | W37: 0 | X37: 0 | Y37: 0 | Z37: 0 | AA37: 0 | AB37: 0 | AC37: 0 | AD37: 0 | AE37: 0 | AF37: 0 | AG37: 0 | AH37: 0 | AI37: 0 | AJ37: 0 | AK37: 0 | AL37: 0 | AM37: 0 | AN37: 0 | AO37: 0 | AP37: 0 | AQ37: 0 | AR37: 0 | AS37: 0 | AT37: 0 | AU37: 0 | AV37: 0 | AW37: 0
C38: 20 | D38: Óleo lubrificante em spray | F38: Frasco | G38: 0 | H38: 0 | I38: 0 | J38: 0 | K38: 0 | L38: 0 | M38: 0 | N38: 0 | O38: 0 | P38: 0 | Q38: 0 | R38: 0 | S38: 0 | T38: 0 | U38: 0 | V38: 0 | W38: 0 | X38: 0 | Y38: 0 | Z38: 0 | AA38: 0 | AB38: 0 | AC38: 0 | AD38: 0 | AE38: 0 | AF38: 0 | AG38: 0 | AH38: 0 | AI38: 0 | AJ38: 0 | AK38: 0 | AL38: 0 | AM38: 0 | AN38: 0 | AO38: 0 | AP38: 0 | AQ38: 0 | AR38: 0 | AS38: 0 | AT38: 0 | AU38: 0 | AV38: 0 | AW38: 0
C39: 21 | D39: Pano de chão | F39: Unidade | G39: 0 | H39: 0 | I39: 0 | J39: 0 | K39: 0 | L39: 0 | M39: 0 | N39: 0 | O39: 0 | P39: 0 | Q39: 0 | R39: 0 | S39: 0 | T39: 0 | U39: 0 | V39: 0 | W39: 0 | X39: 0 | Y39: 0 | Z39: 0 | AA39: 0 | AB39: 0 | AC39: 0 | AD39: 0 | AE39: 0 | AF39: 0 | AG39: 0 | AH39: 0 | AI39: 0 | AJ39: 0 | AK39: 0 | AL39: 0 | AM39: 0 | AN39: 0 | AO39: 0 | AP39: 0 | AQ39: 0 | AR39: 0 | AS39: 0 | AT39: 0 | AU39: 0 | AV39: 0 | AW39: 0
C40: 22 | D40: Papel higiênico, branco | F40: pcte c/ 4 rolos | G40: 0 | H40: 0 | I40: 0 | J40: 0 | K40: 0 | L40: 0 | M40: 0 | N40: 0 | O40: 0 | P40: 0 | Q40: 0 | R40: 0 | S40: 0 | T40: 0 | U40: 0 | V40: 0 | W40: 0 | X40: 0 | Y40: 0 | Z40: 0 | AA40: 0 | AB40: 0 | AC40: 0 | AD40: 0 | AE40: 0 | AF40: 0 | AG40: 0 | AH40: 0 | AI40: 0 | AJ40: 0 | AK40: 0 | AL40: 0 | AM40: 0 | AN40: 0 | AO40: 0 | AP40: 0 | AQ40: 0 | AR40: 0 | AS40: 0 | AT40: 0 | AU40: 0 | AV40: 0 | AW40: 0
C41: 23 | D41: Pastilha sanitária - 1 unidade | F41: Unidade | G41: 0 | H41: 0 | I41: 0 | J41: 0 | K41: 0 | L41: 0 | M41: 0 | N41: 0 | O41: 0 | P41: 0 | Q41: 0 | R41: 0 | S41: 0 | T41: 0 | U41: 0 | V41: 0 | W41: 0 | X41: 0 | Y41: 0 | Z41: 0 | AA41: 0 | AB41: 0 | AC41: 0 | AD41: 0 | AE41: 0 | AF41: 0 | AG41: 0 | AH41: 0 | AI41: 0 | AJ41: 0 | AK41: 0 | AL41: 0 | AM41: 0 | AN41: 0 | AO41: 0 | AP41: 0 | AQ41: 0 | AR41: 0 | AS41: 0 | AT41: 0 | AU41: 0 | AV41: 0 | AW41: 0
C42: 24 | D42: Sabão em barra 200 g | F42: Unidade | G42: 0 | H42: 0 | I42: 0 | J42: 0 | K42: 0 | L42: 0 | M42: 0 | N42: 0 | O42: 0 | P42: 0 | Q42: 0 | R42: 0 | S42: 0 | T42: 0 | U42: 0 | V42: 0 | W42: 0 | X42: 0 | Y42: 0 | Z42: 0 | AA42: 0 | AB42: 0 | AC42: 0 | AD42: 0 | AE42: 0 | AF42: 0 | AG42: 0 | AH42: 0 | AI42: 0 | AJ42: 0 | AK42: 0 | AL42: 0 | AM42: 0 | AN42: 0 | AO42: 0 | AP42: 0 | AQ42: 0 | AR42: 0 | AS42: 0 | AT42: 0 | AU42: 0 | AV42: 0 | AW42: 0
C43: 25 | D43: Sabão em pó 1 kg | F43: Quilograma | G43: 0 | H43: 0 | I43: 0 | J43: 0 | K43: 0 | L43: 0 | M43: 0 | N43: 0 | O43: 0 | P43: 0 | Q43: 0 | R43: 0 | S43: 0 | T43: 0 | U43: 0 | V43: 0 | W43: 0 | X43: 0 | Y43: 0 | Z43: 0 | AA43: 0 | AB43: 0 | AC43: 0 | AD43: 0 | AE43: 0 | AF43: 0 | AG43: 0 | AH43: 0 | AI43: 0 | AJ43: 0 | AK43: 0 | AL43: 0 | AM43: 0 | AN43: 0 | AO43: 0 | AP43: 0 | AQ43: 0 | AR43: 0 | AS43: 0 | AT43: 0 | AU43: 0 | AV43: 0 | AW43: 0
C44: 26 | D44: Sabão líquido 1 litro | F44: Litro | G44: 0 | H44: 0 | I44: 0 | J44: 0 | K44: 0 | L44: 0 | M44: 0 | N44: 0 | O44: 0 | P44: 0 | Q44: 0 | R44: 0 | S44: 0 | T44: 0 | U44: 0 | V44: 0 | W44: 0 | X44: 0 | Y44: 0 | Z44: 0 | AA44: 0 | AB44: 0 | AC44: 0 | AD44: 0 | AE44: 0 | AF44: 0 | AG44: 0 | AH44: 0 | AI44: 0 | AJ44: 0 | AK44: 0 | AL44: 0 | AM44: 0 | AN44: 0 | AO44: 0 | AP44: 0 | AQ44: 0 | AR44: 0 | AS44: 0 | AT44: 0 | AU44: 0 | AV44: 0 | AW44: 0
C45: 27 | D45: Sabonete em barra 90 g | F45: Barra | G45: 0 | H45: 0 | I45: 0 | J45: 0 | K45: 0 | L45: 0 | M45: 0 | N45: 0 | O45: 0 | P45: 0 | Q45: 0 | R45: 0 | S45: 0 | T45: 0 | U45: 0 | V45: 0 | W45: 0 | X45: 0 | Y45: 0 | Z45: 0 | AA45: 0 | AB45: 0 | AC45: 0 | AD45: 0 | AE45: 0 | AF45: 0 | AG45: 0 | AH45: 0 | AI45: 0 | AJ45: 0 | AK45: 0 | AL45: 0 | AM45: 0 | AN45: 0 | AO45: 0 | AP45: 0 | AQ45: 0 | AR45: 0 | AS45: 0 | AT45: 0 | AU45: 0 | AV45: 0 | AW45: 0
C46: 28 | D46: Sabonete líquido, galão c/ 5 litros, cremoso, com ph fisiologico (5,0-7,0) | F46: Litro | G46: 0 | H46: 0 | I46: 0 | J46: 0 | K46: 0 | L46: 0 | M46: 0 | N46: 0 | O46: 0 | P46: 0 | Q46: 0 | R46: 0 | S46: 0 | T46: 0 | U46: 0 | V46: 0 | W46: 0 | X46: 0 | Y46: 0 | Z46: 0 | AA46: 0 | AB46: 0 | AC46: 0 | AD46: 0 | AE46: 0 | AF46: 0 | AG46: 0 | AH46: 0 | AI46: 0 | AJ46: 0 | AK46: 0 | AL46: 0 | AM46: 0 | AN46: 0 | AO46: 0 | AP46: 0 | AQ46: 0 | AR46: 0 | AS46: 0 | AT46: 0 | AU46: 0 | AV46: 0 | AW46: 0
C47: 29 | D47: Saco de lixo preto, capacidade 100 litros | F47: Unidade | G47: 0 | H47: 0 | I47: 0 | J47: 0 | K47: 0 | L47: 0 | M47: 0 | N47: 0 | O47: 0 | P47: 0 | Q47: 0 | R47: 0 | S47: 0 | T47: 0 | U47: 0 | V47: 0 | W47: 0 | X47: 0 | Y47: 0 | Z47: 0 | AA47: 0 | AB47: 0 | AC47: 0 | AD47: 0 | AE47: 0 | AF47: 0 | AG47: 0 | AH47: 0 | AI47: 0 | AJ47: 0 | AK47: 0 | AL47: 0 | AM47: 0 | AN47: 0 | AO47: 0 | AP47: 0 | AQ47: 0 | AR47: 0 | AS47: 0 | AT47: 0 | AU47: 0 | AV47: 0 | AW47: 0
C48: 30 | D48: Saco de lixo preto, capacidade 40 ou 50 litros | F48: Unidade | G48: 0 | H48: 0 | I48: 0 | J48: 0 | K48: 0 | L48: 0 | M48: 0 | N48: 0 | O48: 0 | P48: 0 | Q48: 0 | R48: 0 | S48: 0 | T48: 0 | U48: 0 | V48: 0 | W48: 0 | X48: 0 | Y48: 0 | Z48: 0 | AA48: 0 | AB48: 0 | AC48: 0 | AD48: 0 | AE48: 0 | AF48: 0 | AG48: 0 | AH48: 0 | AI48: 0 | AJ48: 0 | AK48: 0 | AL48: 0 | AM48: 0 | AN48: 0 | AO48: 0 | AP48: 0 | AQ48: 0 | AR48: 0 | AS48: 0 | AT48: 0 | AU48: 0 | AV48: 0 | AW48: 0
C49: 31 | D49: Saco de pano para limpeza de piso | F49: Unidade | G49: 0 | H49: 0 | I49: 0 | J49: 0 | K49: 0 | L49: 0 | M49: 0 | N49: 0 | O49: 0 | P49: 0 | Q49: 0 | R49: 0 | S49: 0 | T49: 0 | U49: 0 | V49: 0 | W49: 0 | X49: 0 | Y49: 0 | Z49: 0 | AA49: 0 | AB49: 0 | AC49: 0 | AD49: 0 | AE49: 0 | AF49: 0 | AG49: 0 | AH49: 0 | AI49: 0 | AJ49: 0 | AK49: 0 | AL49: 0 | AM49: 0 | AN49: 0 | AO49: 0 | AP49: 0 | AQ49: 0 | AR49: 0 | AS49: 0 | AT49: 0 | AU49: 0 | AV49: 0 | AW49: 0
C50: 32 | D50: Saponáceo em pó 500g | F50: Quilograma | G50: 0 | H50: 0 | I50: 0 | J50: 0 | K50: 0 | L50: 0 | M50: 0 | N50: 0 | O50: 0 | P50: 0 | Q50: 0 | R50: 0 | S50: 0 | T50: 0 | U50: 0 | V50: 0 | W50: 0 | X50: 0 | Y50: 0 | Z50: 0 | AA50: 0 | AB50: 0 | AC50: 0 | AD50: 0 | AE50: 0 | AF50: 0 | AG50: 0 | AH50: 0 | AI50: 0 | AJ50: 0 | AK50: 0 | AL50: 0 | AM50: 0 | AN50: 0 | AO50: 0 | AP50: 0 | AQ50: 0 | AR50: 0 | AS50: 0 | AT50: 0 | AU50: 0 | AV50: 0 | AW50: 0
C51: 33 | D51: Toalha de papel interfolha, triplex 20x26 ou 23x26 1250 folhas | F51: Fardo | G51: 0 | H51: 0 | I51: 0 | J51: 0 | K51: 0 | L51: 0 | M51: 0 | N51: 0 | O51: 0 | P51: 0 | Q51: 0 | R51: 0 | S51: 0 | T51: 0 | U51: 0 | V51: 0 | W51: 0 | X51: 0 | Y51: 0 | Z51: 0 | AA51: 0 | AB51: 0 | AC51: 0 | AD51: 0 | AE51: 0 | AF51: 0 | AG51: 0 | AH51: 0 | AI51: 0 | AJ51: 0 | AK51: 0 | AL51: 0 | AM51: 0 | AN51: 0 | AO51: 0 | AP51: 0 | AQ51: 0 | AR51: 0 | AS51: 0 | AT51: 0 | AU51: 0 | AV51: 0 | AW51: 0
C52: 34 | D52: Refil Mop Abrasivo Esfrebom | F52: Unidade | G52: 0 | H52: 0 | I52: 0 | J52: 0 | K52: 0 | L52: 0 | M52: 0 | N52: 0 | O52: 0 | P52: 0 | Q52: 0 | R52: 0 | S52: 0 | T52: 0 | U52: 0 | V52: 0 | W52: 0 | X52: 0 | Y52: 0 | Z52: 0 | AA52: 0 | AB52: 0 | AC52: 0 | AD52: 0 | AE52: 0 | AF52: 0 | AG52: 0 | AH52: 0 | AI52: 0 | AJ52: 0 | AK52: 0 | AL52: 0 | AM52: 0 | AN52: 0 | AO52: 0 | AP52: 0 | AQ52: 0 | AR52: 0 | AS52: 0 | AT52: 0 | AU52: 0 | AV52: 0 | AW52: 0
C53: 35 | D53: Refil Mop sekito | F53: Unidade | G53: 0 | H53: 0 | I53: 0 | J53: 0 | K53: 0 | L53: 0 | M53: 0 | N53: 0 | O53: 0 | P53: 0 | Q53: 0 | R53: 0 | S53: 0 | T53: 0 | U53: 0 | V53: 0 | W53: 0 | X53: 0 | Y53: 0 | Z53: 0 | AA53: 0 | AB53: 0 | AC53: 0 | AD53: 0 | AE53: 0 | AF53: 0 | AG53: 0 | AH53: 0 | AI53: 0 | AJ53: 0 | AK53: 0 | AL53: 0 | AM53: 0 | AN53: 0 | AO53: 0 | AP53: 0 | AQ53: 0 | AR53: 0 | AS53: 0 | AT53: 0 | AU53: 0 | AV53: 0 | AW53: 0
C54: 36 | D54: Brilha inox spray 500ml | F54: Unidade | G54: 0 | H54: 0 | I54: 0 | J54: 0 | K54: 0 | L54: 0 | M54: 0 | N54: 0 | O54: 0 | P54: 0 | Q54: 0 | R54: 0 | S54: 0 | T54: 0 | U54: 0 | V54: 0 | W54: 0 | X54: 0 | Y54: 0 | Z54: 0 | AA54: 0 | AB54: 0 | AC54: 0 | AD54: 0 | AE54: 0 | AF54: 0 | AG54: 0 | AH54: 0 | AI54: 0 | AJ54: 0 | AK54: 0 | AL54: 0 | AM54: 0 | AN54: 0 | AO54: 0 | AP54: 0 | AQ54: 0 | AR54: 0 | AS54: 0 | AT54: 0 | AU54: 0 | AV54: 0 | AW54: 0
C55: 37 | D55: Limpa couro | F55: Unidade | G55: 0 | H55: 0 | I55: 0 | J55: 0 | K55: 0 | L55: 0 | M55: 0 | N55: 0 | O55: 0 | P55: 0 | Q55: 0 | R55: 0 | S55: 0 | T55: 0 | U55: 0 | V55: 0 | W55: 0 | X55: 0 | Y55: 0 | Z55: 0 | AA55: 0 | AB55: 0 | AC55: 0 | AD55: 0 | AE55: 0 | AF55: 0 | AG55: 0 | AH55: 0 | AI55: 0 | AJ55: 0 | AK55: 0 | AL55: 0 | AM55: 0 | AN55: 0 | AO55: 0 | AP55: 0 | AQ55: 0 | AR55: 0 | AS55: 0 | AT55: 0 | AU55: 0 | AV55: 0 | AW55: 0
C56: 37 | D56: kit de Limpeza tela de led 100ml | F56: Unidade | G56: 0 | H56: 0 | I56: 0 | J56: 0 | K56: 0 | L56: 0 | M56: 0 | N56: 0 | O56: 0 | P56: 0 | Q56: 0 | R56: 0 | S56: =$G56*R56 -> 0 | T56: 0 | U56: 0 | V56: 0 | W56: 0 | X56: 0 | Y56: 0 | Z56: 0 | AA56: 0 | AB56: 0 | AC56: 0 | AD56: 0 | AE56: 0 | AF56: 0 | AG56: 0 | AH56: 0 | AI56: 0 | AJ56: 0 | AK56: 0 | AL56: 0 | AM56: 0 | AN56: 0 | AO56: 0 | AP56: 0 | AQ56: 0 | AR56: 0 | AS56: 0 | AT56: 0 | AU56: 0 | AV56: 0 | AW56: 0
C57: Valor Estimado Mensal | I57: =SUM(I19:I56) -> 0 | K57: =SUM(K19:K56) -> 0 | M57: =SUM(M19:M56) -> 0 | O57: =SUM(O19:O56) -> 0 | Q57: =SUM(Q19:Q56) -> 0 | S57: =SUM(S19:S56) -> 0 | U57: =SUM(U19:U56) -> 0 | W57: =SUM(W19:W56) -> 0 | Y57: =SUM(Y19:Y56) -> 0 | AA57: =SUM(AA19:AA56) -> 0 | AC57: =SUM(AC19:AC56) -> 0 | AE57: =SUM(AE19:AE56) -> 0 | AG57: =SUM(AG19:AG56) -> 0 | AI57: =SUM(AI19:AI56) -> 0 | AK57: =SUM(AK19:AK56) -> 0 | AM57: =SUM(AM19:AM56) -> 0 | AO57: =SUM(AO19:AO56) -> 0 | AQ57: =SUM(AQ19:AQ56) -> 0 | AS57: =SUM(AS19:AS56) -> 0 | AU57: =SUM(AU19:AU56) -> 0 | AW57: =SUM(I57,K57,M57,O57,Q57,S57,U57,W57,Y57,AA57,AC57,AE57,AG57,AI57,AK57,AM57,AO57,AQ57,AS57) -> 0
C60: CUSTOS INDIRETOS, LUCRO E TRIBUTOS DOS INSUMOS
H61: TRT - SEDE | J61: FÓRUM C. GRANDE | L61: FÓRUM DOURADOS | N61: FÓRUM TRÊS LAGOAS | P61: VT. AMAMBAI | R61: VT. AQUIDAUANA | T61: VT. BATAGUASSU | V61: VT. CASSILÂNDIA | X61: VT. CORUMBÁ | Z61: VT. COXIM | AB61: VT. FÁTIMA DO SUL | AD61: VT. JARDIM | AF61: VT. MUNDO NOVO | AH61: VT. NAVIRAÍ | AJ61: VT. NOVA ANDRADINA | AL61: VT. PARANAÍBA | AN61: VT. PONTA PORÃ | AP61: VT. RIO BRILHANTE | AR61: VT. SÃO GABRIEL | AT61: VT. RIO BRILHANTE | AV61: TOTAL INSUMOS
D62: Custo Total por Empregado | H62: =I57 -> 0 | J62: =K57 -> 0 | L62: =M57 -> 0 | N62: =O57 -> 0 | P62: =Q57 -> 0 | R62: =S57 -> 0 | T62: =U57 -> 0 | V62: =W57 -> 0 | X62: =Y57 -> 0 | Z62: =AA57 -> 0 | AB62: =AC57 -> 0 | AD62: =AE57 -> 0 | AF62: =AG57 -> 0 | AH62: =AI57 -> 0 | AJ62: =AK57 -> 0 | AL62: =AM57 -> 0 | AN62: =AO57 -> 0 | AP62: =AQ57 -> 0 | AR62: =AS57 -> 0 | AT62: =AU57 -> 0 | AV62: =SUM(H62:AU62) -> 0
D63: Custos Indiretos / Despesas Operacionais e Administrativas | G63: ='Dados Proponente'!$I$51 -> 0.03 | H63: =TRUNC(ROUND($G63*H$62,2),2) -> 0 | J63: =TRUNC(ROUND($G63*J$62,2),2) -> 0 | L63: =TRUNC(ROUND($G63*L$62,2),2) -> 0 | N63: =TRUNC(ROUND($G63*N$62,2),2) -> 0 | P63: =TRUNC(ROUND($G63*P$62,2),2) -> 0 | R63: =TRUNC(ROUND($G63*R$62,2),2) -> 0 | T63: =TRUNC(ROUND($G63*T$62,2),2) -> 0 | V63: =TRUNC(ROUND($G63*V$62,2),2) -> 0 | X63: =TRUNC(ROUND($G63*X$62,2),2) -> 0 | Z63: =TRUNC(ROUND($G63*Z$62,2),2) -> 0 | AB63: =TRUNC(ROUND($G63*AB$62,2),2) -> 0 | AD63: =TRUNC(ROUND($G63*AD$62,2),2) -> 0 | AF63: =TRUNC(ROUND($G63*AF$62,2),2) -> 0 | AH63: =TRUNC(ROUND($G63*AH$62,2),2) -> 0 | AJ63: =TRUNC(ROUND($G63*AJ$62,2),2) -> 0 | AL63: =TRUNC(ROUND($G63*AL$62,2),2) -> 0 | AN63: =TRUNC(ROUND($G63*AN$62,2),2) -> 0 | AP63: =TRUNC(ROUND($G63*AP$62,2),2) -> 0 | AR63: =TRUNC(ROUND($G63*AR$62,2),2) -> 0 | AT63: =TRUNC(ROUND($G63*AT$62,2),2) -> 0 | AV63: =SUM(H63:AU63) -> 0
D64: Lucro | G64: ='Dados Proponente'!$I$52 -> 0.0679 | H64: =TRUNC(ROUND($G64*(H$62+H$63),2),2) -> 0 | J64: =TRUNC(ROUND($G64*(J$62+J$63),2),2) -> 0 | L64: =TRUNC(ROUND($G64*(L$62+L$63),2),2) -> 0 | N64: =TRUNC(ROUND($G64*(N$62+N$63),2),2) -> 0 | P64: =TRUNC(ROUND($G64*(P$62+P$63),2),2) -> 0 | R64: =TRUNC(ROUND($G64*(R$62+R$63),2),2) -> 0 | T64: =TRUNC(ROUND($G64*(T$62+T$63),2),2) -> 0 | V64: =TRUNC(ROUND($G64*(V$62+V$63),2),2) -> 0 | X64: =TRUNC(ROUND($G64*(X$62+X$63),2),2) -> 0 | Z64: =TRUNC(ROUND($G64*(Z$62+Z$63),2),2) -> 0 | AB64: =TRUNC(ROUND($G64*(AB$62+AB$63),2),2) -> 0 | AD64: =TRUNC(ROUND($G64*(AD$62+AD$63),2),2) -> 0 | AF64: =TRUNC(ROUND($G64*(AF$62+AF$63),2),2) -> 0 | AH64: =TRUNC(ROUND($G64*(AH$62+AH$63),2),2) -> 0 | AJ64: =TRUNC(ROUND($G64*(AJ$62+AJ$63),2),2) -> 0 | AL64: =TRUNC(ROUND($G64*(AL$62+AL$63),2),2) -> 0 | AN64: =TRUNC(ROUND($G64*(AN$62+AN$63),2),2) -> 0 | AP64: =TRUNC(ROUND($G64*(AP$62+AP$63),2),2) -> 0 | AR64: =TRUNC(ROUND($G64*(AR$62+AR$63),2),2) -> 0 | AT64: =TRUNC(ROUND($G64*(AT$62+AT$63),2),2) -> 0 | AV64: =SUM(H64:AU64) -> 0
D65: Tributos
E66: Tributos Federais: | G66: =SUM(G67:G68) -> 0.0365 | H66: =SUM(H67:H68) -> 0 | J66: =SUM(J67:J68) -> 0 | L66: =SUM(L67:L68) -> 0 | N66: =SUM(N67:N68) -> 0 | P66: =SUM(P67:P68) -> 0 | R66: =SUM(R67:R68) -> 0 | T66: =SUM(T67:T68) -> 0 | V66: =SUM(V67:V68) -> 0 | X66: =SUM(X67:X68) -> 0 | Z66: =SUM(Z67:Z68) -> 0 | AB66: =SUM(AB67:AB68) -> 0 | AD66: =SUM(AD67:AD68) -> 0 | AF66: =SUM(AF67:AF68) -> 0 | AH66: =SUM(AH67:AH68) -> 0 | AJ66: =SUM(AJ67:AJ68) -> 0 | AL66: =SUM(AL67:AL68) -> 0 | AN66: =SUM(AN67:AN68) -> 0 | AP66: =SUM(AP67:AP68) -> 0 | AR66: =SUM(AR67:AR68) -> 0 | AT66: =SUM(AT67:AT68) -> 0 | AV66: =SUM(H66:AU66) -> 0
F67: COFINS | G67: ='Dados Proponente'!$I$25 -> 0.03 | H67: =TRUNC(ROUND($G67*H$75,2),2) -> 0 | J67: =TRUNC(ROUND($G67*J$75,2),2) -> 0 | L67: =TRUNC(ROUND($G67*L$75,2),2) -> 0 | N67: =TRUNC(ROUND($G67*N$75,2),2) -> 0 | P67: 0 | R67: 0 | T67: 0 | V67: 0 | X67: 0 | Z67: 0 | AB67: 0 | AD67: =TRUNC(ROUND($G67*AD$75,2),2) -> 0 | AF67: 0 | AH67: 0 | AJ67: 0 | AL67: 0 | AN67: 0 | AP67: 0 | AR67: 0 | AT67: 0 | AV67: =SUM(H67:AU67) -> 0
F68: PIS | G68: ='Dados Proponente'!$I$24 -> 0.0065 | H68: =TRUNC(ROUND($G68*H$75,2),2) -> 0 | J68: 0 | L68: 0 | N68: 0 | P68: 0 | R68: 0 | T68: 0 | V68: 0 | X68: 0 | Z68: 0 | AB68: 0 | AD68: 0 | AF68: 0 | AH68: 0 | AJ68: 0 | AL68: 0 | AN68: 0 | AP68: 0 | AR68: 0 | AT68: 0 | AV68: 0
E69: Obs.: Vedada a inclusão de IRPJ e CSLL.
E70: Tributos Estaduais (especificar): | G70: ='Dados Proponente'!$I$54 -> 0 | H70: =TRUNC(ROUND($G70*H$75,2),2) -> 0 | J70: =TRUNC(ROUND($G70*J$75,2),2) -> 0 | L70: =TRUNC(ROUND($G70*L$75,2),2) -> 0 | N70: =TRUNC(ROUND($G70*N$75,2),2) -> 0 | P70: 0 | R70: 0 | T70: 0 | V70: 0 | X70: 0 | Z70: 0 | AB70: 0 | AD70: 0 | AF70: 0 | AH70: 0 | AJ70: 0 | AL70: 0 | AN70: 0 | AP70: 0 | AR70: 0 | AT70: 0 | AV70: =SUM(H70:AU70) -> 0
E71: Tributos Municipais:
F72: ISSQN | G72: ='Dados Proponente'!$I$28 -> 0.05 | H72: =TRUNC(ROUND($G72*H$75,2),2) -> 0 | J72: =TRUNC(ROUND($G72*J$75,2),2) -> 0 | L72: =TRUNC(ROUND($G72*L$75,2),2) -> 0 | N72: =TRUNC(ROUND($G72*N$75,2),2) -> 0 | P72: 0 | R72: 0 | T72: 0 | V72: 0 | X72: 0 | Z72: 0 | AB72: 0 | AD72: 0 | AF72: 0 | AH72: 0 | AJ72: 0 | AL72: 0 | AN72: 0 | AP72: 0 | AR72: 0 | AT72: 0 | AV72: =SUM(H72:AU72) -> 0
E74: Outros Tributos (especificar): | G74: ='Dados Proponente'!$I$55 -> 0 | H74: =TRUNC(ROUND($G74*H$75,2),2) -> 0 | J74: =TRUNC(ROUND($G74*J$75,2),2) -> 0 | L74: =TRUNC(ROUND($G74*L$75,2),2) -> 0 | N74: =TRUNC(ROUND($G74*N$75,2),2) -> 0 | P74: 0 | R74: 0 | T74: 0 | V74: 0 | X74: 0 | Z74: 0 | AB74: 0 | AD74: 0 | AF74: 0 | AH74: 0 | AJ74: 0 | AL74: 0 | AN74: 0 | AP74: 0 | AR74: 0 | AT74: 0 | AV74: =SUM(H74:AU74) -> 0
D75: Total dos Custos Indiretos, Lucro e Tributos | H75: =TRUNC(ROUND(SUM(H62:H64)/(1-$G66-$G72),2),2) -> 0 | J75: =TRUNC(ROUND(SUM(J62:J64)/(1-$G66-$G72),2),2) -> 0 | L75: =TRUNC(ROUND(SUM(L62:L64)/(1-$G66-$G72),2),2) -> 0 | N75: =TRUNC(ROUND(SUM(N62:N64)/(1-$G66-$G72),2),2) -> 0 | P75: =TRUNC(ROUND(SUM(P62:P64)/(1-$G66-$G72),2),2) -> 0 | R75: =TRUNC(ROUND(SUM(R62:R64)/(1-$G66-$G72),2),2) -> 0 | T75: =TRUNC(ROUND(SUM(T62:T64)/(1-$G66-$G72),2),2) -> 0 | V75: =TRUNC(ROUND(SUM(V62:V64)/(1-$G66-$G72),2),2) -> 0 | X75: =TRUNC(ROUND(SUM(X62:X64)/(1-$G66-$G72),2),2) -> 0 | Z75: =TRUNC(ROUND(SUM(Z62:Z64)/(1-$G66-$G72),2),2) -> 0 | AB75: =TRUNC(ROUND(SUM(AB62:AB64)/(1-$G66-$G72),2),2) -> 0 | AD75: =TRUNC(ROUND(SUM(AD62:AD64)/(1-$G66-$G72),2),2) -> 0 | AF75: =TRUNC(ROUND(SUM(AF62:AF64)/(1-$G66-$G72),2),2) -> 0 | AH75: =TRUNC(ROUND(SUM(AH62:AH64)/(1-$G66-$G72),2),2) -> 0 | AJ75: =TRUNC(ROUND(SUM(AJ62:AJ64)/(1-$G66-$G72),2),2) -> 0 | AL75: =TRUNC(ROUND(SUM(AL62:AL64)/(1-$G66-$G72),2),2) -> 0 | AN75: =TRUNC(ROUND(SUM(AN62:AN64)/(1-$G66-$G72),2),2) -> 0 | AP75: =TRUNC(ROUND(SUM(AP62:AP64)/(1-$G66-$G72),2),2) -> 0 | AR75: =TRUNC(ROUND(SUM(AR62:AR64)/(1-$G66-$G72),2),2) -> 0 | AT75: =TRUNC(ROUND(SUM(AT62:AT64)/(1-$G66-$G72),2),2) -> 0 | AV75: =SUM(H75:AU75) -> 0
C77: Observação: A planilha está concebida para efetuar automaticamente os cálculos, devendo ser alimentados somente os valores nos campos em amarelo.

Sheet Consumo - Copeiragem (hidden)
B1: 10 - MATERIAIS PARA SERVIÇOS DE COPEIRAGEM
B4: Processo nº: | E4: =IF(ISBLANK('Dados Contratação'!$B$6),"000/2014",'Dados Contratação'!$B$6) -> 15940/2022 | G4: Licitação: | H4: =IF(ISBLANK('Dados Contratação'!D6),"(NÚMERO LICITAÇÃO)",'Dados Contratação'!D6) -> (NÚMERO LICITAÇÃO)
B5: Descrição: | E5: ='Dados Contratação'!B10 -> Prestação dos serviços de apoio Administrativo aos Gestores e Fiscais de Contratos
B7: Data Pregão: | E7: =IF(ISBLANK('Dados Contratação'!$E$6),"dd/mm/aaaa",'Dados Contratação'!$E$6) -> dd/mm/aaaa | G7: Horário do Pregão: | H7: =IF(ISBLANK('Dados Contratação'!$F$6),"00:00",'Dados Contratação'!$F$6) -> 00:00
B9: Empresa: | E9: =IF(ISBLANK('Dados Proponente'!$B$6),"(NOME DA EMPRESA)",'Dados Proponente'!$B$6) -> (NOME DA EMPRESA)
B11: CNPJ: | E11: =IF(ISBLANK('Dados Proponente'!$H$6),"(CNPJ)",'Dados Proponente'!$H$6) -> (CNPJ)
C14: MATERIAIS PARA MANUTENÇÃO (PREÇO TRT)
D16: MATERIAIS TRT (QTDE: PREVISÃO ANUAL)
F17: Unidade | G17: Valor | H17: TRT - SEDE | J17: FÓRUM C. GRANDE | L17: TOTAL INSUMOS
H18: Qtd. | I18: Custo Mensal | J18: Qtd. | K18: Custo Mensal | L18: Qtd. | M18: Custo Mensal
C19: 1 | D19: Açúcar tipo cristal, branco, pacote de 2 kg. | F19: Pacote | G19: 0 | H19: 0 | I19: =$G19*H19 -> 0 | J19: 0 | K19: =$G19*J19 -> 0 | L19: =SUM(H19,J19) -> 0 | M19: =$G19*L19 -> 0
C20: 2 | D20: Água sanitária de 1ª qualidade | F20: Litro | G20: 0 | H20: 0 | I20: =$G20*H20 -> 0 | J20: 0 | K20: =$G20*J20 -> 0 | L20: =SUM(H20,J20) -> 0 | M20: =$G20*L20 -> 0
C21: 3 | D21: Álcool 92%, de 1ª qualidade | F21: Litro | G21: 0 | H21: 0 | I21: 0 | J21: 0 | K21: 0 | L21: 0 | M21: 0
C22: 4 | D22: Brilho inox, embalagem com 500 ml | F22: Frasco | G22: 0 | H22: 0 | I22: 0 | J22: 0 | K22: 0 | L22: 0 | M22: 0
C23: 5 | D23: Café torrado e moído do Tipo Superior, pacotes com 500g. | F23: Pacote | G23: 0 | H23: 0 | I23: 0 | J23: 0 | K23: 0 | L23: 0 | M23: 0
A24: 1 | C24: 6 | D24: Chá-mate, sabor natural, caixa Peso líquido de cada caixa: 250 gramas. | F24: Caixa | G24: 0 | H24: 0 | I24: 0 | J24: 0 | K24: 0 | L24: 0 | M24: 0
C25: 7 | D25: Coador de pano para cafeteira industrial Consercaf CIP20 | F25: Unidade | G25: 0 | H25: 0 | I25: 0 | J25: 0 | K25: 0 | L25: 0 | M25: 0
C26: 8 | D26: Detergente neutro, embalagem com 500 ml | F26: Unidade | G26: 0 | H26: 0 | I26: 0 | J26: 0 | K26: 0 | L26: 0 | M26: 0
C27: 9 | D27: Esponja de lã de aço, pacote com 8 unidades | F27: Pacote | G27: 0 | H27: 0 | I27: 0 | J27: 0 | K27: 0 | L27: 0 | M27: 0
C28: 10 | D28: Esponja dupla-face | F28: Unidade | G28: 0 | H28: 0 | I28: 0 | J28: 0 | K28: 0 | L28: 0 | M28: 0
C29: 11 | D29: Filtro para café de papel grande (103) - caixa com 30 unidades | F29: Caixa | G29: 0 | H29: 0 | I29: 0 | J29: 0 | K29: 0 | L29: 0 | M29: 0
C30: 12 | D30: Flanela de algodão, 40x60 ou 50x50 cm. | F30: Unidade | G30: 0 | H30: 0 | I30: 0 | J30: 0 | K30: 0 | L30: 0 | M30: 0
C31: 13 | D31: Inseticida contra pragas em spray aerosol, frasco com, no mínimo, 300 ml | F31: Unidade | G31: 0 | H31: 0 | I31: 0 | J31: 0 | K31: 0 | L31: 0 | M31: 0
C32: 14 | D32: Limpa alumínio, frasco com, no mínimo, 300 ml | F32: Unidade | G32: 0 | H32: 0 | I32: 0 | J32: 0 | K32: 0 | L32: 0 | M32: 0
C33: 15 | D33: Limpador multiuso, frasco com, no mínimo, 500 ml | F33: Unidade | G33: 0 | H33: 0 | I33: 0 | J33: 0 | K33: 0 | L33: 0 | M33: 0
C34: 16 | D34: Pano de chão alvejado | F34: Unidade | G34: 0 | H34: 0 | I34: 0 | J34: 0 | K34: 0 | L34: 0 | M34: 0
C35: 17 | D35: Pano de prato | F35: Unidade | G35: 0 | H35: 0 | I35: 0 | J35: 0 | K35: 0 | L35: 0 | M35: 0
C36: 18 | D36: Sabão em barra, pacote com 5 barras | F36: Pacote | G36: 0 | H36: 0 | I36: 0 | J36: 0 | K36: 0 | L36: 0 | M36: 0
C37: 19 | D37: Saco de lixo biodegradável, capacidade 40 ou 50 litros, pacote com 50 unidades | F37: Pacote | G37: 0 | H37: 0 | I37: 0 | J37: 0 | K37: 0 | L37: 0 | M37: 0
C38: 20 | D38: Saponáceo em pó | F38: Quilograma | G38: 0 | H38: 0 | I38: 0 | J38: 0 | K38: 0 | L38: 0 | M38: 0
C39: 21 | D39: Toalha de papel, p/ copa, c/ no mín. 60 toalhas, pacote com 2 rolos | F39: Pacote | G39: 0 | H39: 0 | I39: 0 | J39: 0 | K39: 0 | L39: 0 | M39: 0
C40: 22 | D40: Suporte para filtro de café grande (103) | F40: Pacote | G40: 0 | H40: 0 | I40: 0 | J40: 0 | K40: 0 | L40: 0 | M40: 0
C41: Valor Estimado Mensal | I41: =SUM(I19:I40) -> 0 | K41: =SUM(K19:K40) -> 0 | M41: =SUM(I41,K41) -> 0
C44: CUSTOS INDIRETOS, LUCRO E TRIBUTOS DOS INSUMOS
H45: TRT - SEDE | J45: FÓRUM C. GRANDE | L45: TOTAL INSUMOS
D46: Custo Total por Empregado | H46: =I41 -> 0 | J46: =K41 -> 0 | L46: =SUM(H46:K46) -> 0
D47: Custos Indiretos / Despesas Operacionais e Administrativas | G47: ='Dados Proponente'!$I$51 -> 0.03 | H47: =TRUNC(ROUND($G47*H$46,2),2) -> 0 | J47: =TRUNC(ROUND($G47*J$46,2),2) -> 0 | L47: =SUM(H47:K47) -> 0
D48: Lucro | G48: ='Dados Proponente'!$I$52 -> 0.0679 | H48: =TRUNC(ROUND($G48*(H$46+H$47),2),2) -> 0 | J48: =TRUNC(ROUND($G48*(J$46+J$47),2),2) -> 0 | L48: =SUM(H48:K48) -> 0
D49: Tributos
E50: Tributos Federais: | G50: =SUM(G51:G52) -> 0.0365 | H50: =SUM(H51:H52) -> 0 | J50: =SUM(J51:J52) -> 0 | L50: =SUM(H50:K50) -> 0
F51: COFINS | G51: ='Dados Proponente'!$I$25 -> 0.03 | H51: =TRUNC(ROUND($G51*H$59,2),2) -> 0 | J51: =TRUNC(ROUND($G51*J$59,2),2) -> 0 | L51: =SUM(H51:K51) -> 0
F52: PIS | G52: ='Dados Proponente'!$I$24 -> 0.0065 | H52: =TRUNC(ROUND($G52*H$59,2),2) -> 0 | J52: =TRUNC(ROUND($G52*J$59,2),2) -> 0 | L52: =SUM(H52:K52) -> 0
E53: Obs.: Vedada a inclusão de IRPJ e CSLL.
E54: Tributos Estaduais (especificar): | G54: ='Dados Proponente'!$I$54 -> 0 | H54: =TRUNC(ROUND($G54*H$59,2),2) -> 0 | J54: =TRUNC(ROUND($G54*J$59,2),2) -> 0 | L54: =SUM(H54:K54) -> 0
E55: Tributos Municipais:
F56: ISSQN | G56: ='Dados Proponente'!$I$28 -> 0.05 | H56: =TRUNC(ROUND($G56*H$59,2),2) -> 0 | J56: =TRUNC(ROUND($G56*J$59,2),2) -> 0 | L56: =SUM(H56:K56) -> 0
E58: Outros Tributos (especificar): | G58: ='Dados Proponente'!$I$55 -> 0 | H58: =TRUNC(ROUND($G58*H$59,2),2) -> 0 | J58: =TRUNC(ROUND($G58*J$59,2),2) -> 0 | L58: =SUM(H58:K58) -> 0
D59: Total dos Custos Indiretos, Lucro e Tributos | H59: =TRUNC(ROUND(SUM(H46:H48)/(1-$G50-$G56),2),2) -> 0 | J59: =TRUNC(ROUND(SUM(J46:K48)/(1-$G50-$G56),2),2) -> 0 | L59: =SUM(H59:K59) -> 0
C61: Observação: A planilha está concebida para efetuar automaticamente os cálculos, devendo ser alimentados somente os valores nos campos em amarelo.

Sheet Auditagem
B1: 11 - CONDENSAÇÃO DA PLANILHA DE CUSTOS E FORMAÇÃO DE PREÇOS PARA AUDITAGEM
B4: Processo nº: | E4: =IF(ISBLANK('Dados Contratação'!$B$6),"000/2014",'Dados Contratação'!$B$6) -> 15940/2022 | H4: Licitação: | I4: =IF(ISBLANK('Dados Contratação'!D6),"(NÚMERO DA LICITAÇÃO)",'Dados Contratação'!D6) -> (NÚMERO DA LICITAÇÃO)
B5: Descrição: | E5: ='Dados Contratação'!B10 -> Prestação dos serviços de apoio Administrativo aos Gestores e Fiscais de Contratos
B7: Posto de Trabalho | J7: ='Dados Contratação'!$C19 -> Encarregado | K7: ='Dados Contratação'!$C20 -> Encarregado | L7: ='Dados Contratação'!$C21 -> Contador | M7: ='Dados Contratação'!$C22 -> Profissional | N7: ='Dados Contratação'!$C23 -> Profissional | O7: ='Dados Contratação'!$C24 -> Profissional | P7: ='Dados Contratação'!$C25 -> Profissional | Q7: ='Dados Contratação'!$C26 -> Profissional | R7: ='Dados Contratação'!$C27 -> Profissional | S7: ='Dados Contratação'!$C28 -> Profissional | T7: ='Dados Contratação'!$C29 -> Profissional | U7: ='Dados Contratação'!$C30 -> Profissional | V7: ='Dados Contratação'!$C31 -> Profissional | W7: ='Dados Contratação'!$C32 -> Profissional | X7: ='Dados Contratação'!$C33 -> Profissional | Y7: ='Dados Contratação'!$C34 -> Profissional | Z7: ='Dados Contratação'!$C35 -> Profissional | AA7: ='Dados Contratação'!$C36 -> Profissional | AB7: ='Dados Contratação'!$C37 -> Profissional | AC7: ='Dados Contratação'!$C38 -> Profissional | AD7: ='Dados Contratação'!$C39 -> Profissional | AE7: ='Dados Contratação'!$C40 -> Profissional | AF7: Totalização
B8: Local do Posto de Trabalho | J8: ='Dados Contratação'!$D19 -> Prédio-Sede do TRT/24ª Região | K8: ='Dados Contratação'!$D20 -> Fórum Trabalhista de Campo Grande | L8: ='Dados Contratação'!$D21 -> Prédio-Sede do TRT/24ª Região | M8: ='Dados Contratação'!$D22 -> Fórum Trabalhista de Campo Grande | N8: ='Dados Contratação'!$D23 -> Fórum Trabalhista de Dourados | O8: ='Dados Contratação'!$D24 -> Fórum Trabalhista de Três Lagoas | P8: ='Dados Contratação'!$D25 -> Vara do Trabalho de Amambaí | Q8: ='Dados Contratação'!$D26 -> Vara do Trabalho de Aquidauana | R8: ='Dados Contratação'!$D27 -> Vara do Trabalho de Bataguassu | S8: ='Dados Contratação'!$D28 -> Posto Avançado de Cassilândia | T8: ='Dados Contratação'!$D29 -> Vara do Trabalho de Corumbá | U8: ='Dados Contratação'!$D30 -> Vara do Trabalho de Coxim | V8: ='Dados Contratação'!$D31 -> Vara do Trabalho de Fátima do Sul | W8: ='Dados Contratação'!$D32 -> Vara do Trabalho de Jardim | X8: ='Dados Contratação'!$D33 -> Vara do Trabalho de Mundo Novo | Y8: ='Dados Contratação'!$D34 -> Vara do Trabalho de Naviraí | Z8: ='Dados Contratação'!$D35 -> Vara do Trabalho de Nova Andradina | AA8: ='Dados Contratação'!$D36 -> Vara do Trabalho de Paranaíba | AB8: ='Dados Contratação'!$D37 -> Vara do Trabalho de Ponta Porã | AC8: ='Dados Contratação'!$D38 -> Vara do Trabalho de Rio Brilhante | AD8: ='Dados Contratação'!$D39 -> Vara do Trabalho de São Gabriel do Oeste | AE8: ='Dados Contratação'!$D40 -> Vara do Trabalho de Chapadão do Sul
C11: MÓDULO 1 - COMPOSIÇÃO DA REMUNERAÇÃO
J12: Valor | K12: Valor | L12: Valor | M12: Valor | N12: Valor | O12: Valor | P12: Valor | Q12: Valor | R12: Valor | S12: Valor | T12: Valor | U12: Valor | V12: Valor | W12: Valor | X12: Valor | Y12: Valor | Z12: Valor | AA12: Valor | AB12: Valor | AC12: Valor | AD12: Valor | AE12: Valor | AF12: Valor
D13: Salário Base | J13: =IF(Apoio!$K$11=0,0,IF('Dados Contratação'!$J$19=0,0,IF(Apoio!$K$11=3,Encargos_Benefícios!$H$26,Encargos_Benefícios!$H18))) -> 0 | K13: =IF(Apoio!$K$11=0,0,IF('Dados Contratação'!$J$20=0,0,IF(Apoio!$K$11=3,Encargos_Benefícios!$H$26,Encargos_Benefícios!$H18))) -> 0 | L13: =IF(Apoio!$K$11=0,0,IF('Dados Contratação'!$J$21=0,0,IF(Apoio!$K$11=3,Encargos_Benefícios!$H$28,Encargos_Benefícios!$H18))) -> 4189 | M13: =IF(Apoio!$K$11=0,0,IF('Dados Contratação'!$J$22=0,0,IF(Apoio!$K$11=3,Encargos_Benefícios!$H$29,Encargos_Benefícios!$H18))) -> 0 | N13: =IF(Apoio!$K$11=0,0,IF('Dados Contratação'!$J$23=0,0,IF(Apoio!$K$11=3,Encargos_Benefícios!$H$30,Encargos_Benefícios!$H18))) -> 0 | O13: =IF(Apoio!$K$11=0,0,IF('Dados Contratação'!$J$24=0,0,IF(Apoio!$K$11=3,Encargos_Benefícios!$H$31,Encargos_Benefícios!$H18))) -> 0 | P13: =IF(Apoio!$K$11=0,0,IF('Dados Contratação'!$J$25=0,0,IF(Apoio!$K$11=3,Encargos_Benefícios!$H$31,Encargos_Benefícios!$H18))) -> 0 | Q13: =IF(Apoio!$K$11=0,0,IF('Dados Contratação'!$J$26=0,0,IF(Apoio!$K$11=3,Encargos_Benefícios!$H$27,Encargos_Benefícios!$H18))) -> 0 | R13: =IF(Apoio!$K$11=0,0,IF('Dados Contratação'!$J$27=0,0,IF(Apoio!$K$11=3,Encargos_Benefícios!$H$30,Encargos_Benefícios!$H18))) -> 0 | S13: =IF(Apoio!$K$11=0,0,IF('Dados Contratação'!$J$28=0,0,IF(Apoio!$K$11=3,Encargos_Benefícios!$H$31,Encargos_Benefícios!$H18))) -> 0 | T13: =IF(Apoio!$K$11=0,0,IF('Dados Contratação'!$J$29=0,0,Encargos_Benefícios!$H18)) -> 0 | U13: =IF(Apoio!$K$11=0,0,IF('Dados Contratação'!$J$30=0,0,Encargos_Benefícios!$H18)) -> 0 | V13: =IF(Apoio!$K$11=0,0,IF('Dados Contratação'!$J$31=0,0,Encargos_Benefícios!$H18)) -> 0 | W13: =IF(Apoio!$K$11=0,0,IF('Dados Contratação'!$J$32=0,0,Encargos_Benefícios!$H18)) -> 0 | X13: =IF(Apoio!$K$11=0,0,IF('Dados Contratação'!$J$33=0,0,Encargos_Benefícios!$H18)) -> 0 | Y13: =IF(Apoio!$K$11=0,0,IF('Dados Contratação'!$J$34=0,0,Encargos_Benefícios!$H18)) -> 0 | Z13: =IF(Apoio!$K$11=0,0,IF('Dados Contratação'!$J$35=0,0,Encargos_Benefícios!$H18)) -> 0 | AA13: =IF(Apoio!$K$11=0,0,IF('Dados Contratação'!$J$36=0,0,Encargos_Benefícios!$H18)) -> 0 | AB13: =IF(Apoio!$K$11=0,0,IF('Dados Contratação'!$J$37=0,0,Encargos_Benefícios!$H18)) -> 0 | AC13: =IF(Apoio!$K$11=0,0,IF('Dados Contratação'!$J$38=0,0,Encargos_Benefícios!$H18)) -> 0 | AD13: =IF(Apoio!$K$11=0,0,IF('Dados Contratação'!$J$39=0,0,Encargos_Benefícios!$H18)) -> 0 | AE13: =IF(Apoio!$K$11=0,0,IF('Dados Contratação'!$J$40=0,0,Encargos_Benefícios!$H18)) -> 0 | AF13: =SUM(J13:AE13) -> 4189
D14: Adicional de Periculosidade | J14: =IF('Dados Contratação'!$K$19="Sim",TRUNC(ROUND(Encarregado!$J25*J$13,2),2),0) -> 0 | K14: =IF('Dados Contratação'!$K$20="Sim",TRUNC(ROUND(Encarregado!$J25*K$13,2),2),0) -> 0 | L14: =IF('Dados Contratação'!$K$21="Sim",TRUNC(ROUND(Profissional!$J25*L13,2),2),0) -> 0 | M14: =IF('Dados Contratação'!$K$22="Sim",TRUNC(ROUND(Profissional!$J25*M13,2),2),0) -> 0 | N14: =IF('Dados Contratação'!$K$23="Sim",TRUNC(ROUND(Profissional!$J25*N13,2),2),0) -> 0 | O14: =IF('Dados Contratação'!$K$24="Sim",TRUNC(ROUND(Profissional!$J25*O13,2),2),0) -> 0 | P14: =IF('Dados Contratação'!$K$25="Sim",TRUNC(ROUND(Profissional!$J25*P13,2),2),0) -> 0 | Q14: =IF('Dados Contratação'!$K$26="Sim",TRUNC(ROUND(Profissional!$J25*Q13,2),2),0) -> 0 | R14: =IF('Dados Contratação'!$K$27="Sim",TRUNC(ROUND(Profissional!$J25*R13,2),2),0) -> 0 | S14: =IF('Dados Contratação'!$K$28="Sim",TRUNC(ROUND(Profissional!$J25*S13,2),2),0) -> 0 | T14: =IF('Dados Contratação'!$K$29="Sim",TRUNC(ROUND(Profissional!$J25*T13,2),2),0) -> 0 | U14: =IF('Dados Contratação'!$K$30="Sim",TRUNC(ROUND(Profissional!$J25*U13,2),2),0) -> 0 | V14: =IF('Dados Contratação'!$K$31="Sim",TRUNC(ROUND(Profissional!$J25*V13,2),2),0) -> 0 | W14: =IF('Dados Contratação'!$K$32="Sim",TRUNC(ROUND(Profissional!$J25*W13,2),2),0) -> 0 | X14: =IF('Dados Contratação'!$K$33="Sim",TRUNC(ROUND(Profissional!$J25*X13,2),2),0) -> 0 | Y14: =IF('Dados Contratação'!$K$34="Sim",TRUNC(ROUND(Profissional!$J25*Y13,2),2),0) -> 0 | Z14: =IF('Dados Contratação'!$K$35="Sim",TRUNC(ROUND(Profissional!$J25*Z13,2),2),0) -> 0 | AA14: =IF('Dados Contratação'!$K$36="Sim",TRUNC(ROUND(Profissional!$J25*AA13,2),2),0) -> 0 | AB14: =IF('Dados Contratação'!$K$37="Sim",TRUNC(ROUND(Profissional!$J25*AB13,2),2),0) -> 0 | AC14: =IF('Dados Contratação'!$K$38="Sim",TRUNC(ROUND(Profissional!$J25*AC13,2),2),0) -> 0 | AD14: =IF('Dados Contratação'!$K$39="Sim",TRUNC(ROUND(Profissional!$J25*AD13,2),2),0) -> 0 | AE14: =IF('Dados Contratação'!$K$40="Sim",TRUNC(ROUND(Profissional!$J25*AE13,2),2),0) -> 0 | AF14: 0
D15: Adicional de Insalubridade | J15: =IF('Dados Contratação'!$L$19="Sim",TRUNC(ROUND(Encarregado!$J26*Encarregado!$G19,2),2),0) -> 0 | K15: =IF('Dados Contratação'!$L$20="Sim",TRUNC(ROUND(Encarregado!$J26*Encarregado!$G19,2),2),0) -> 0 | L15: =IF('Dados Contratação'!$L$21="Sim",TRUNC(ROUND(Profissional!$J26*Encarregado!$G19,2),2),0) -> 0 | M15: =IF('Dados Contratação'!$L$22="Sim",TRUNC(ROUND(Profissional!$J26*Encarregado!$G19,2),2),0) -> 0 | N15: =IF('Dados Contratação'!$L$23="Sim",TRUNC(ROUND(Profissional!$J26*Encarregado!$G19,2),2),0) -> 0 | O15: =IF('Dados Contratação'!$L$24="Sim",TRUNC(ROUND(Profissional!$J26*Encarregado!$G19,2),2),0) -> 0 | P15: =IF('Dados Contratação'!$L$25="Sim",TRUNC(ROUND(Profissional!$J26*Encarregado!$G19,2),2),0) -> 0 | Q15: =IF('Dados Contratação'!$L$26="Sim",TRUNC(ROUND(Profissional!$J26*Encarregado!$G19,2),2),0) -> 0 | R15: =IF('Dados Contratação'!$L$27="Sim",TRUNC(ROUND(Profissional!$J26*Encarregado!$G19,2),2),0) -> 0 | S15: =IF('Dados Contratação'!$L$28="Sim",TRUNC(ROUND(Profissional!$J26*Encarregado!$G19,2),2),0) -> 0 | T15: =IF('Dados Contratação'!$L$29="Sim",TRUNC(ROUND(Profissional!$J26*Encarregado!$G19,2),2),0) -> 0 | U15: =IF('Dados Contratação'!$L$30="Sim",TRUNC(ROUND(Profissional!$J26*Encarregado!$G19,2),2),0) -> 0 | V15: =IF('Dados Contratação'!$L$31="Sim",TRUNC(ROUND(Profissional!$J26*Encarregado!$G19,2),2),0) -> 0 | W15: =IF('Dados Contratação'!$L$32="Sim",TRUNC(ROUND(Profissional!$J26*Encarregado!$G19,2),2),0) -> 0 | X15: =IF('Dados Contratação'!$L$33="Sim",TRUNC(ROUND(Profissional!$J26*Encarregado!$G19,2),2),0) -> 0 | Y15: =IF('Dados Contratação'!$L$34="Sim",TRUNC(ROUND(Profissional!$J26*Encarregado!$G19,2),2),0) -> 0 | Z15: =IF('Dados Contratação'!$L$35="Sim",TRUNC(ROUND(Profissional!$J26*Encarregado!$G19,2),2),0) -> 0 | AA15: =IF('Dados Contratação'!$L$36="Sim",TRUNC(ROUND(Profissional!$J26*Encarregado!$G19,2),2),0) -> 0 | AB15: =IF('Dados Contratação'!$L$37="Sim",TRUNC(ROUND(Profissional!$J26*Encarregado!$G19,2),2),0) -> 0 | AC15: =IF('Dados Contratação'!$L$38="Sim",TRUNC(ROUND(Profissional!$J26*Encarregado!$G19,2),2),0) -> 0 | AD15: =IF('Dados Contratação'!$L$39="Sim",TRUNC(ROUND(Profissional!$J26*Encarregado!$G19,2),2),0) -> 0 | AE15: =IF('Dados Contratação'!$L$40="Sim",TRUNC(ROUND(Profissional!$J26*Encarregado!$G19,2),2),0) -> 0 | AF15: 0
D16: Gratificação Adicional de Risco de Vida | J16: =TRUNC(ROUND(Encarregado!$J27*J$13,2),2) -> 0 | K16: =TRUNC(ROUND(Encarregado!$J27*K$13,2),2) -> 0 | L16: =TRUNC(ROUND(Profissional!$J27*L$13,2),2) -> 0 | M16: =TRUNC(ROUND(Profissional!$J27*M$13,2),2) -> 0 | N16: =TRUNC(ROUND(Profissional!$J27*N$13,2),2) -> 0 | O16: =TRUNC(ROUND(Profissional!$J27*O$13,2),2) -> 0 | P16: =TRUNC(ROUND(Profissional!$J27*P$13,2),2) -> 0 | Q16: =TRUNC(ROUND(Profissional!$J27*Q$13,2),2) -> 0 | R16: =TRUNC(ROUND(Profissional!$J27*R$13,2),2) -> 0 | S16: =TRUNC(ROUND(Profissional!$J27*S$13,2),2) -> 0 | T16: =TRUNC(ROUND(Profissional!$J27*T$13,2),2) -> 0 | U16: =TRUNC(ROUND(Profissional!$J27*U$13,2),2) -> 0 | V16: =TRUNC(ROUND(Profissional!$J27*V$13,2),2) -> 0 | W16: =TRUNC(ROUND(Profissional!$J27*W$13,2),2) -> 0 | X16: =TRUNC(ROUND(Profissional!$J27*X$13,2),2) -> 0 | Y16: =TRUNC(ROUND(Profissional!$J27*Y$13,2),2) -> 0 | Z16: =TRUNC(ROUND(Profissional!$J27*Z$13,2),2) -> 0 | AA16: =TRUNC(ROUND(Profissional!$J27*AA$13,2),2) -> 0 | AB16: =TRUNC(ROUND(Profissional!$J27*AB$13,2),2) -> 0 | AC16: =TRUNC(ROUND(Profissional!$J27*AC$13,2),2) -> 0 | AD16: =TRUNC(ROUND(Profissional!$J27*AD$13,2),2) -> 0 | AE16: =TRUNC(ROUND(Profissional!$J27*AE$13,2),2) -> 0 | AF16: 0
D17: Gratificação por Cargo de Confiança | J17: =TRUNC(ROUND(Encarregado!$J28*J$13,2),2) -> 0 | K17: =TRUNC(ROUND(Encarregado!$J28*K$13,2),2) -> 0 | L17: =TRUNC(ROUND(Profissional!$J28*L$13,2),2) -> 0 | M17: =TRUNC(ROUND(Profissional!$J28*M$13,2),2) -> 0 | N17: =TRUNC(ROUND(Profissional!$J28*N$13,2),2) -> 0 | O17: =TRUNC(ROUND(Profissional!$J28*O$13,2),2) -> 0 | P17: =TRUNC(ROUND(Profissional!$J28*P$13,2),2) -> 0 | Q17: =TRUNC(ROUND(Profissional!$J28*Q$13,2),2) -> 0 | R17: =TRUNC(ROUND(Profissional!$J28*R$13,2),2) -> 0 | S17: =TRUNC(ROUND(Profissional!$J28*S$13,2),2) -> 0 | T17: =TRUNC(ROUND(Profissional!$J28*T$13,2),2) -> 0 | U17: =TRUNC(ROUND(Profissional!$J28*U$13,2),2) -> 0 | V17: =TRUNC(ROUND(Profissional!$J28*V$13,2),2) -> 0 | W17: =TRUNC(ROUND(Profissional!$J28*W$13,2),2) -> 0 | X17: =TRUNC(ROUND(Profissional!$J28*X$13,2),2) -> 0 | Y17: =TRUNC(ROUND(Profissional!$J28*Y$13,2),2) -> 0 | Z17: =TRUNC(ROUND(Profissional!$J28*Z$13,2),2) -> 0 | AA17: =TRUNC(ROUND(Profissional!$J28*AA$13,2),2) -> 0 | AB17: =TRUNC(ROUND(Profissional!$J28*AB$13,2),2) -> 0 | AC17: =TRUNC(ROUND(Profissional!$J28*AC$13,2),2) -> 0 | AD17: =TRUNC(ROUND(Profissional!$J28*AD$13,2),2) -> 0 | AE17: =TRUNC(ROUND(Profissional!$J28*AE$13,2),2) -> 0 | AF17: 0
D18: Gratificação por Cargo de Confiança: | J18: =IF(Apoio!$K$11=0,0,IF('Dados Contratação'!$J$19=0,0,Encarregado!$K$29)) -> 0 | K18: =IF(Apoio!$K$11=0,0,IF('Dados Contratação'!$J$20=0,0,Encarregado!$K$29)) -> 0 | L18: =IF(Apoio!$K$11=0,0,IF('Dados Contratação'!$J$21=0,0,Profissional!$K$29)) -> 0 | M18: =IF(Apoio!$K$11=0,0,IF('Dados Contratação'!$J$22=0,0,Profissional!$K$29)) -> 0 | N18: =IF(Apoio!$K$11=0,0,IF('Dados Contratação'!$J$23=0,0,Profissional!$K$29)) -> 0 | O18: =IF(Apoio!$K$11=0,0,IF('Dados Contratação'!$J$24=0,0,Profissional!$K$29)) -> 0 | P18: =IF(Apoio!$K$11=0,0,IF('Dados Contratação'!$J$25=0,0,Profissional!$K$29)) -> 0 | Q18: =IF(Apoio!$K$11=0,0,IF('Dados Contratação'!$J$26=0,0,Profissional!$K$29)) -> 0 | R18: =IF(Apoio!$K$11=0,0,IF('Dados Contratação'!$J$27=0,0,Profissional!$K$29)) -> 0 | S18: =IF(Apoio!$K$11=0,0,IF('Dados Contratação'!$J$28=0,0,Profissional!$K$29)) -> 0 | T18: =IF(Apoio!$K$11=0,0,IF('Dados Contratação'!$J$29=0,0,Profissional!$K$29)) -> 0 | U18: =IF(Apoio!$K$11=0,0,IF('Dados Contratação'!$J$30=0,0,Profissional!$K$29)) -> 0 | V18: =IF(Apoio!$K$11=0,0,IF('Dados Contratação'!$J$31=0,0,Profissional!$K$29)) -> 0 | W18: =IF(Apoio!$K$11=0,0,IF('Dados Contratação'!$J$32=0,0,Profissional!$K$29)) -> 0 | X18: =IF(Apoio!$K$11=0,0,IF('Dados Contratação'!$J$33=0,0,Profissional!$K$29)) -> 0 | Y18: =IF(Apoio!$K$11=0,0,IF('Dados Contratação'!$J$34=0,0,Profissional!$K$29)) -> 0 | Z18: =IF(Apoio!$K$11=0,0,IF('Dados Contratação'!$J$35=0,0,Profissional!$K$29)) -> 0 | AA18: =IF(Apoio!$K$11=0,0,IF('Dados Contratação'!$J$36=0,0,Profissional!$K$29)) -> 0 | AB18: =IF(Apoio!$K$11=0,0,IF('Dados Contratação'!$J$37=0,0,Profissional!$K$29)) -> 0 | AC18: =IF(Apoio!$K$11=0,0,IF('Dados Contratação'!$J$38=0,0,Profissional!$K$29)) -> 0 | AD18: =IF(Apoio!$K$11=0,0,IF('Dados Contratação'!$J$39=0,0,Profissional!$K$29)) -> 0 | AE18: =IF(Apoio!$K$11=0,0,IF('Dados Contratação'!$J$40=0,0,Profissional!$K$29)) -> 0 | AF18: 0
D19: Outros: | J19: =IF(Apoio!$K$11=0,0,IF('Dados Contratação'!$J$19=0,0,Encarregado!$K$30)) -> 0 | K19: =IF(Apoio!$K$11=0,0,IF('Dados Contratação'!$J$20=0,0,Encarregado!$K$30)) -> 0 | L19: =IF(Apoio!$K$11=0,0,IF('Dados Contratação'!$J$21=0,0,Profissional!$K$30)) -> 0 | M19: =IF(Apoio!$K$11=0,0,IF('Dados Contratação'!$J$22=0,0,Profissional!$K$30)) -> 0 | N19: =IF(Apoio!$K$11=0,0,IF('Dados Contratação'!$J$23=0,0,Profissional!$K$30)) -> 0 | O19: =IF(Apoio!$K$11=0,0,IF('Dados Contratação'!$J$24=0,0,Profissional!$K$30)) -> 0 | P19: =IF(Apoio!$K$11=0,0,IF('Dados Contratação'!$J$25=0,0,Profissional!$K$30)) -> 0 | Q19: =IF(Apoio!$K$11=0,0,IF('Dados Contratação'!$J$26=0,0,Profissional!$K$30)) -> 0 | R19: =IF(Apoio!$K$11=0,0,IF('Dados Contratação'!$J$27=0,0,Profissional!$K$30)) -> 0 | S19: =IF(Apoio!$K$11=0,0,IF('Dados Contratação'!$J$28=0,0,Profissional!$K$30)) -> 0 | T19: =IF(Apoio!$K$11=0,0,IF('Dados Contratação'!$J$29=0,0,Profissional!$K$30)) -> 0 | U19: =IF(Apoio!$K$11=0,0,IF('Dados Contratação'!$J$30=0,0,Profissional!$K$30)) -> 0 | V19: =IF(Apoio!$K$11=0,0,IF('Dados Contratação'!$J$31=0,0,Profissional!$K$30)) -> 0 | W19: =IF(Apoio!$K$11=0,0,IF('Dados Contratação'!$J$32=0,0,Profissional!$K$30)) -> 0 | X19: =IF(Apoio!$K$11=0,0,IF('Dados Contratação'!$J$33=0,0,Profissional!$K$30)) -> 0 | Y19: =IF(Apoio!$K$11=0,0,IF('Dados Contratação'!$J$34=0,0,Profissional!$K$30)) -> 0 | Z19: =IF(Apoio!$K$11=0,0,IF('Dados Contratação'!$J$35=0,0,Profissional!$K$30)) -> 0 | AA19: =IF(Apoio!$K$11=0,0,IF('Dados Contratação'!$J$36=0,0,Profissional!$K$30)) -> 0 | AB19: =IF(Apoio!$K$11=0,0,IF('Dados Contratação'!$J$37=0,0,Profissional!$K$30)) -> 0 | AC19: =IF(Apoio!$K$11=0,0,IF('Dados Contratação'!$J$38=0,0,Profissional!$K$30)) -> 0 | AD19: =IF(Apoio!$K$11=0,0,IF('Dados Contratação'!$J$39=0,0,Profissional!$K$30)) -> 0 | AE19: =IF(Apoio!$K$11=0,0,IF('Dados Contratação'!$J$40=0,0,Profissional!$K$30)) -> 0 | AF19: 0
D20: Subtotal de Remuneração | J20: =SUM(J13:J19) -> 0 | K20: =SUM(K13:K19) -> 0 | L20: =SUM(L13:L19) -> 4189 | M20: 0 | N20: 0 | O20: 0 | P20: 0 | Q20: 0 | R20: 0 | S20: 0 | T20: 0 | U20: 0 | V20: 0 | W20: 0 | X20: 0 | Y20: 0 | Z20: 0 | AA20: 0 | AB20: 0 | AC20: 0 | AD20: 0 | AE20: 0 | AF20: 4189
D21: Adicional de Hora Extra / Semanal (Diurna - 50%) | J21: =IF('Dados Contratação'!$J$19=0,0,TRUNC(ROUND(((J$20/220)*(24*('Hora Extra'!J28)))*1.5,2),2)) -> 0 | K21: =IF('Dados Contratação'!$J$20=0,0,TRUNC(ROUND(((L$20/220)*(24*('Hora Extra'!K28)))*1.5,2),2)) -> 0 | L21: =IF('Dados Contratação'!$J$21=0,0,TRUNC(ROUND(((L$20/220)*(24*('Hora Extra'!L28)))*1.5,2),2)) -> 0 | M21: =IF('Dados Contratação'!$J$22=0,0,TRUNC(ROUND((($M$20/220)*(24*('Hora Extra'!M28)))*1.5,2),2)) -> 0 | N21: =IF('Dados Contratação'!$J$23=0,0,TRUNC(ROUND((($N$20/220)*(24*('Hora Extra'!N28)))*1.5,2),2)) -> 0 | O21: =IF('Dados Contratação'!$J$24=0,0,TRUNC(ROUND((($O$20/220)*(24*('Hora Extra'!O28)))*1.5,2),2)) -> 0 | P21: =IF('Dados Contratação'!$J$25=0,0,TRUNC(ROUND((($P$20/220)*(24*('Hora Extra'!P28)))*1.5,2),2)) -> 0 | Q21: =IF('Dados Contratação'!$J$26=0,0,TRUNC(ROUND((($Q$20/220)*(24*('Hora Extra'!Q28)))*1.5,2),2)) -> 0 | R21: =IF('Dados Contratação'!$J$27=0,0,TRUNC(ROUND((($R$20/220)*(24*('Hora Extra'!R28)))*1.5,2),2)) -> 0 | S21: =IF('Dados Contratação'!$J$28=0,0,TRUNC(ROUND((($S$20/220)*(24*('Hora Extra'!S28)))*1.5,2),2)) -> 0 | T21: =IF('Dados Contratação'!$J$29=0,0,TRUNC(ROUND((($T$20/220)*(24*('Hora Extra'!T28)))*1.5,2),2)) -> 0 | U21: =IF('Dados Contratação'!$J$30=0,0,TRUNC(ROUND((($U$20/220)*(24*('Hora Extra'!U28)))*1.5,2),2)) -> 0 | V21: =IF('Dados Contratação'!$J$31=0,0,TRUNC(ROUND((($V$20/220)*(24*('Hora Extra'!V28)))*1.5,2),2)) -> 0 | W21: =IF('Dados Contratação'!$J$32=0,0,TRUNC(ROUND((($W$20/220)*(24*('Hora Extra'!W28)))*1.5,2),2)) -> 0 | X21: =IF('Dados Contratação'!$J$33=0,0,TRUNC(ROUND((($X$20/220)*(24*('Hora Extra'!X28)))*1.5,2),2)) -> 0 | Y21: =IF('Dados Contratação'!$J$34=0,0,TRUNC(ROUND((($Y$20/220)*(24*('Hora Extra'!Y28)))*1.5,2),2)) -> 0 | Z21: =IF('Dados Contratação'!$J$35=0,0,TRUNC(ROUND((($Z$20/220)*(24*('Hora Extra'!Z28)))*1.5,2),2)) -> 0 | AA21: =IF('Dados Contratação'!$J$36=0,0,TRUNC(ROUND((($AA$20/220)*(24*('Hora Extra'!AA28)))*1.5,2),2)) -> 0 | AB21: =IF('Dados Contratação'!$J$37=0,0,TRUNC(ROUND((($AB$20/220)*(24*('Hora Extra'!AB28)))*1.5,2),2)) -> 0 | AC21: =IF('Dados Contratação'!$J$38=0,0,TRUNC(ROUND((($AC$20/220)*(24*('Hora Extra'!AC28)))*1.5,2),2)) -> 0 | AD21: =IF('Dados Contratação'!$J$39=0,0,TRUNC(ROUND((($AD$20/220)*(24*('Hora Extra'!AD28)))*1.5,2),2)) -> 0 | AE21: =IF('Dados Contratação'!$J$40=0,0,TRUNC(ROUND((($AE$20/220)*(24*('Hora Extra'!AE28)))*1.5,2),2)) -> 0 | AF21: =SUM(J21:AE21) -> 0
D22: Adicional de Hora Extra / Semanal (Noturna - 50% + 20%) | J22: =IF('Dados Contratação'!$J$19=0,0,TRUNC(ROUND((((J$20/220)*(24*('Hora Extra'!J29)))*1.5)*1.2,2),2)) -> 0 | K22: =IF('Dados Contratação'!$J$20=0,0,TRUNC(ROUND((((L$20/220)*(24*('Hora Extra'!K29)))*1.5)*1.2,2),2)) -> 0 | L22: =IF('Dados Contratação'!$J$21=0,0,TRUNC(ROUND((((L$20/220)*(24*('Hora Extra'!L29)))*1.5)*1.2,2),2)) -> 0 | M22: =IF('Dados Contratação'!$J$22=0,0,TRUNC(ROUND(((($M$20/220)*(24*('Hora Extra'!M29)))*1.5)*1.2,2),2)) -> 0 | N22: =IF('Dados Contratação'!$J$23=0,0,TRUNC(ROUND(((($N$20/220)*(24*('Hora Extra'!N29)))*1.5)*1.2,2),2)) -> 0 | O22: =IF('Dados Contratação'!$J$24=0,0,TRUNC(ROUND(((($O$20/220)*(24*('Hora Extra'!O29)))*1.5)*1.2,2),2)) -> 0 | P22: =IF('Dados Contratação'!$J$25=0,0,TRUNC(ROUND(((($P$20/220)*(24*('Hora Extra'!P29)))*1.5)*1.2,2),2)) -> 0 | Q22: =IF('Dados Contratação'!$J$26=0,0,TRUNC(ROUND(((($Q$20/220)*(24*('Hora Extra'!Q29)))*1.5)*1.2,2),2)) -> 0 | R22: =IF('Dados Contratação'!$J$27=0,0,TRUNC(ROUND(((($R$20/220)*(24*('Hora Extra'!R29)))*1.5)*1.2,2),2)) -> 0 | S22: =IF('Dados Contratação'!$J$28=0,0,TRUNC(ROUND(((($S$20/220)*(24*('Hora Extra'!S29)))*1.5)*1.2,2),2)) -> 0 | T22: =IF('Dados Contratação'!$J$29=0,0,TRUNC(ROUND(((($T$20/220)*(24*('Hora Extra'!T29)))*1.5)*1.2,2),2)) -> 0 | U22: =IF('Dados Contratação'!$J$30=0,0,TRUNC(ROUND(((($U$20/220)*(24*('Hora Extra'!U29)))*1.5)*1.2,2),2)) -> 0 | V22: =IF('Dados Contratação'!$J$31=0,0,TRUNC(ROUND(((($V$20/220)*(24*('Hora Extra'!V29)))*1.5)*1.2,2),2)) -> 0 | W22: =IF('Dados Contratação'!$J$32=0,0,TRUNC(ROUND(((($W$20/220)*(24*('Hora Extra'!W29)))*1.5)*1.2,2),2)) -> 0 | X22: =IF('Dados Contratação'!$J$33=0,0,TRUNC(ROUND(((($X$20/220)*(24*('Hora Extra'!X29)))*1.5)*1.2,2),2)) -> 0 | Y22: =IF('Dados Contratação'!$J$34=0,0,TRUNC(ROUND(((($Y$20/220)*(24*('Hora Extra'!Y29)))*1.5)*1.2,2),2)) -> 0 | Z22: =IF('Dados Contratação'!$J$35=0,0,TRUNC(ROUND(((($Z$20/220)*(24*('Hora Extra'!Z29)))*1.5)*1.2,2),2)) -> 0 | AA22: =IF('Dados Contratação'!$J$36=0,0,TRUNC(ROUND(((($AA$20/220)*(24*('Hora Extra'!AA29)))*1.5)*1.2,2),2)) -> 0 | AB22: =IF('Dados Contratação'!$J$37=0,0,TRUNC(ROUND(((($AB$20/220)*(24*('Hora Extra'!AB29)))*1.5)*1.2,2),2)) -> 0 | AC22: =IF('Dados Contratação'!$J$38=0,0,TRUNC(ROUND(((($AC$20/220)*(24*('Hora Extra'!AC29)))*1.5)*1.2,2),2)) -> 0 | AD22: =IF('Dados Contratação'!$J$39=0,0,TRUNC(ROUND(((($AD$20/220)*(24*('Hora Extra'!AD29)))*1.5)*1.2,2),2)) -> 0 | AE22: =IF('Dados Contratação'!$J$40=0,0,TRUNC(ROUND(((($AE$20/220)*(24*('Hora Extra'!AE29)))*1.5)*1.2,2),2)) -> 0 | AF22: 0
D23: Adicional de Hora Extra / Domingo e Feriado (Diurna - 100%) | J23: =IF('Dados Contratação'!$J$19=0,0,TRUNC(ROUND(((J$20/220)*(24*('Hora Extra'!J30)))*2,2),2)) -> 0 | K23: =IF('Dados Contratação'!$J$20=0,0,TRUNC(ROUND(((L$20/220)*(24*('Hora Extra'!K30)))*2,2),2)) -> 0 | L23: =IF('Dados Contratação'!$J$21=0,0,TRUNC(ROUND(((L$20/220)*(24*('Hora Extra'!L30)))*2,2),2)) -> 0 | M23: =IF('Dados Contratação'!$J$22=0,0,TRUNC(ROUND((($M$20/220)*(24*('Hora Extra'!M30)))*2,2),2)) -> 0 | N23: =IF('Dados Contratação'!$J$23=0,0,TRUNC(ROUND((($N$20/220)*(24*('Hora Extra'!N30)))*2,2),2)) -> 0 | O23: =IF('Dados Contratação'!$J$24=0,0,TRUNC(ROUND((($O$20/220)*(24*('Hora Extra'!O30)))*2,2),2)) -> 0 | P23: =IF('Dados Contratação'!$J$25=0,0,TRUNC(ROUND((($P$20/220)*(24*('Hora Extra'!P30)))*2,2),2)) -> 0 | Q23: =IF('Dados Contratação'!$J$26=0,0,TRUNC(ROUND((($Q$20/220)*(24*('Hora Extra'!Q30)))*2,2),2)) -> 0 | R23: =IF('Dados Contratação'!$J$27=0,0,TRUNC(ROUND((($R$20/220)*(24*('Hora Extra'!R30)))*2,2),2)) -> 0 | S23: =IF('Dados Contratação'!$J$28=0,0,TRUNC(ROUND((($S$20/220)*(24*('Hora Extra'!S30)))*2,2),2)) -> 0 | T23: =IF('Dados Contratação'!$J$29=0,0,TRUNC(ROUND((($T$20/220)*(24*('Hora Extra'!T30)))*2,2),2)) -> 0 | U23: =IF('Dados Contratação'!$J$30=0,0,TRUNC(ROUND((($U$20/220)*(24*('Hora Extra'!U30)))*2,2),2)) -> 0 | V23: =IF('Dados Contratação'!$J$31=0,0,TRUNC(ROUND((($V$20/220)*(24*('Hora Extra'!V30)))*2,2),2)) -> 0 | W23: =IF('Dados Contratação'!$J$32=0,0,TRUNC(ROUND((($W$20/220)*(24*('Hora Extra'!W30)))*2,2),2)) -> 0 | X23: =IF('Dados Contratação'!$J$33=0,0,TRUNC(ROUND((($X$20/220)*(24*('Hora Extra'!X30)))*2,2),2)) -> 0 | Y23: =IF('Dados Contratação'!$J$34=0,0,TRUNC(ROUND((($Y$20/220)*(24*('Hora Extra'!Y30)))*2,2),2)) -> 0 | Z23: =IF('Dados Contratação'!$J$35=0,0,TRUNC(ROUND((($Z$20/220)*(24*('Hora Extra'!Z30)))*2,2),2)) -> 0 | AA23: =IF('Dados Contratação'!$J$36=0,0,TRUNC(ROUND((($AA$20/220)*(24*('Hora Extra'!AA30)))*2,2),2)) -> 0 | AB23: =IF('Dados Contratação'!$J$37=0,0,TRUNC(ROUND((($AB$20/220)*(24*('Hora Extra'!AB30)))*2,2),2)) -> 0 | AC23: =IF('Dados Contratação'!$J$38=0,0,TRUNC(ROUND((($AC$20/220)*(24*('Hora Extra'!AC30)))*2,2),2)) -> 0 | AD23: =IF('Dados Contratação'!$J$39=0,0,TRUNC(ROUND((($AD$20/220)*(24*('Hora Extra'!AD30)))*2,2),2)) -> 0 | AE23: =IF('Dados Contratação'!$J$40=0,0,TRUNC(ROUND((($AE$20/220)*(24*('Hora Extra'!AE30)))*2,2),2)) -> 0 | AF23: 0
